Workbook

Sheet DataLINK_EXPORT_May_5_2014
A1: California K12 High Speed Network Connectivity Data Summary
B2: As of May 5, 2014
A4: CDS Code | B4: Location | C4: Location Type | D4: County | E4: Region | F4: Total Enrollment | G4: Connection Type | H4: Connection Type Other | I4: Connection Speed | J4: Carrier | K4: Carrier Other | L4: Connect Where | M4: Connect To | N4: Connect To Other | O4: DOC Type | P4: SOC Type | Q4: Charter
A5: 01100170000000 | B5: Alameda County Office of Education | C5: District | D5: Alameda | E5: 4 | F5: =IF(ISERROR(VLOOKUP(A5,Enrollment!$C$4:$F$10349,4,FALSE)),"",VLOOKUP(A5,Enrollment!$C$4:$F$10349,4,FALSE)) ->  | G5: Carrier Ethernet (e.g. - OptiMan, MetroEthernet) | I5: 10Gbps | L5: CalREN hub site | M5: Oakland Hub | O5: =VLOOKUP(A5,pubschls!$A$1:$AD$11703,28,FALSE) -> County Office of Education (COE) | P5: =VLOOKUP(A5,pubschls!$A$1:$AD$11703,30,FALSE) -> 0 | Q5: =VLOOKUP(A5,pubschls!$A$1:$AD$11703,24,FALSE) -> 0
A6: 01100170109835 | B6: FAME Public Charter | C6: School | D6: Alameda | E6: 4 | F6: =IF(ISERROR(VLOOKUP(A6,Enrollment!$C$4:$F$10349,4,FALSE)),"",VLOOKUP(A6,Enrollment!$C$4:$F$10349,4,FALSE)) -> 1401 | G6: Carrier Ethernet (e.g. - OptiMan, MetroEthernet) | H6: Cable | I6: > 45Mbs < 100Mbs | J6: Local ISP | L6: K12HSN node site | O6: =VLOOKUP(A6,pubschls!$A$1:$AD$11703,28,FALSE) -> County Office of Education (COE) | P6: =VLOOKUP(A6,pubschls!$A$1:$AD$11703,30,FALSE) -> K-12 Schools (Public) | Q6: =VLOOKUP(A6,pubschls!$A$1:$AD$11703,24,FALSE) -> Y
A7: 01100170112607 | B7: Envision Academy for Arts & Technology | C7: School | D7: Alameda | E7: 4 | F7: =IF(ISERROR(VLOOKUP(A7,Enrollment!$C$4:$F$10349,4,FALSE)),"",VLOOKUP(A7,Enrollment!$C$4:$F$10349,4,FALSE)) -> 331 | G7: Private Fiber | I7: > 10Gbps | J7: ComCast | O7: =VLOOKUP(A7,pubschls!$A$1:$AD$11703,28,FALSE) -> County Office of Education (COE) | P7: =VLOOKUP(A7,pubschls!$A$1:$AD$11703,30,FALSE) -> High Schools (Public) | Q7: =VLOOKUP(A7,pubschls!$A$1:$AD$11703,24,FALSE) -> Y
A8: 01100170118489 | B8: Aspire California College Preparatory Academy | C8: School | D8: Alameda | E8: 4 | F8: =IF(ISERROR(VLOOKUP(A8,Enrollment!$C$4:$F$10349,4,FALSE)),"",VLOOKUP(A8,Enrollment!$C$4:$F$10349,4,FALSE)) -> 466 | G8: Point-to-point | I8: > T-1 < 10Mbs | J8: AT&T | L8: Commercial provider | O8: =VLOOKUP(A8,pubschls!$A$1:$AD$11703,28,FALSE) -> County Office of Education (COE) | P8: =VLOOKUP(A8,pubschls!$A$1:$AD$11703,30,FALSE) -> High Schools (Public) | Q8: =VLOOKUP(A8,pubschls!$A$1:$AD$11703,24,FALSE) -> Y
A9: 01100170123968 | B9: =IF(C9="District",VLOOKUP(A9,pubschls!$A$1:$H$11703,7,FALSE),VLOOKUP(A9,pubschls!$A$1:$H$11703,8,FALSE)) -> Community School for Creative Education | C9: =IF(ISBLANK(A9),"",IF(RIGHT(A9,7)="0000000","District","School")) -> School | D9: =VLOOKUP(A9,pubschls!$A$1:$G$11703,6,FALSE) -> Alameda | F9: =IF(ISERROR(VLOOKUP(A9,Enrollment!$C$4:$F$10349,4,FALSE)),"",VLOOKUP(A9,Enrollment!$C$4:$F$10349,4,FALSE)) -> 138 | O9: =VLOOKUP(A9,pubschls!$A$1:$AD$11703,28,FALSE) -> County Office of Education (COE) | P9: =VLOOKUP(A9,pubschls!$A$1:$AD$11703,30,FALSE) -> Elementary Schools (Public) | Q9: =VLOOKUP(A9,pubschls!$A$1:$AD$11703,24,FALSE) -> Y
A10: 01100170124172 | B10: Yu Ming Charter | C10: School | D10: Alameda | E10: 4 | F10: =IF(ISERROR(VLOOKUP(A10,Enrollment!$C$4:$F$10349,4,FALSE)),"",VLOOKUP(A10,Enrollment!$C$4:$F$10349,4,FALSE)) -> 159 | G10: Other | H10: DSL line | I10: < T-1 | J10: AT&T | O10: =VLOOKUP(A10,pubschls!$A$1:$AD$11703,28,FALSE) -> County Office of Education (COE) | P10: =VLOOKUP(A10,pubschls!$A$1:$AD$11703,30,FALSE) -> Elementary Schools (Public) | Q10: =VLOOKUP(A10,pubschls!$A$1:$AD$11703,24,FALSE) -> Y
A11: 01100170125567 | B11: Urban Montessori Charter | C11: School | D11: Alameda | E11: 4 | F11: =IF(ISERROR(VLOOKUP(A11,Enrollment!$C$4:$F$10349,4,FALSE)),"",VLOOKUP(A11,Enrollment!$C$4:$F$10349,4,FALSE)) -> 214 | G11: Point-to-point | I11: > 10Mbs < 45Mbs | J11: AT&T | L11: Your district or school within your district | M11: Alameda County Office of Education | O11: =VLOOKUP(A11,pubschls!$A$1:$AD$11703,28,FALSE) -> County Office of Education (COE) | P11: =VLOOKUP(A11,pubschls!$A$1:$AD$11703,30,FALSE) -> Elementary Schools (Public) | Q11: =VLOOKUP(A11,pubschls!$A$1:$AD$11703,24,FALSE) -> Y
A12: 01100170130401 | B12: Alameda County Juvenile Hall/Court | C12: School | D12: Alameda | E12: 4 | F12: =IF(ISERROR(VLOOKUP(A12,Enrollment!$C$4:$F$10349,4,FALSE)),"",VLOOKUP(A12,Enrollment!$C$4:$F$10349,4,FALSE)) -> 193 | G12: Carrier Ethernet (e.g. - OptiMan, MetroEthernet) | H12: Cable | I12: 1Gbs | J12: AT&T | L12: K12HSN node site | M12: Alameda County Office of Education | O12: =VLOOKUP(A12,pubschls!$A$1:$AD$11703,28,FALSE) -> County Office of Education (COE) | P12: =VLOOKUP(A12,pubschls!$A$1:$AD$11703,30,FALSE) -> Juvenile Court Schools | Q12: =VLOOKUP(A12,pubschls!$A$1:$AD$11703,24,FALSE) -> N
A13: 01100170130419 | B13: Alameda County Community | C13: School | D13: Alameda | E13: 4 | F13: =IF(ISERROR(VLOOKUP(A13,Enrollment!$C$4:$F$10349,4,FALSE)),"",VLOOKUP(A13,Enrollment!$C$4:$F$10349,4,FALSE)) -> 210 | G13: Carrier Ethernet (e.g. - OptiMan, MetroEthernet) | H13: Cable | I13: 1Gbs | J13: AT&T | L13: K12HSN node site | M13: Alameda County Office of Education | O13: =VLOOKUP(A13,pubschls!$A$1:$AD$11703,28,FALSE) -> County Office of Education (COE) | P13: =VLOOKUP(A13,pubschls!$A$1:$AD$11703,30,FALSE) -> County Community | Q13: =VLOOKUP(A13,pubschls!$A$1:$AD$11703,24,FALSE) -> N
A14: 01100170130427 | B14: Alameda County Opportunity | C14: School | D14: Alameda | E14: 4 | F14: =IF(ISERROR(VLOOKUP(A14,Enrollment!$C$4:$F$10349,4,FALSE)),"",VLOOKUP(A14,Enrollment!$C$4:$F$10349,4,FALSE)) -> 63 | G14: Point-to-point | H14: Cable | I14: 1Gbs | J14: ComCast | L14: K12HSN node site | M14: Alameda County Office of Education | O14: =VLOOKUP(A14,pubschls!$A$1:$AD$11703,28,FALSE) -> County Office of Education (COE) | P14: =VLOOKUP(A14,pubschls!$A$1:$AD$11703,30,FALSE) -> Opportunity Schools | Q14: =VLOOKUP(A14,pubschls!$A$1:$AD$11703,24,FALSE) -> N
A15: 01100176001788 | B15: =IF(C15="District",VLOOKUP(A15,pubschls!$A$1:$H$11703,7,FALSE),VLOOKUP(A15,pubschls!$A$1:$H$11703,8,FALSE)) -> Cox Academy | C15: =IF(ISBLANK(A15),"",IF(RIGHT(A15,7)="0000000","District","School")) -> School | D15: =VLOOKUP(A15,pubschls!$A$1:$G$11703,6,FALSE) -> Alameda | F15: =IF(ISERROR(VLOOKUP(A15,Enrollment!$C$4:$F$10349,4,FALSE)),"",VLOOKUP(A15,Enrollment!$C$4:$F$10349,4,FALSE)) -> 566 | O15: =VLOOKUP(A15,pubschls!$A$1:$AD$11703,28,FALSE) -> County Office of Education (COE) | P15: =VLOOKUP(A15,pubschls!$A$1:$AD$11703,30,FALSE) -> Elementary Schools (Public) | Q15: =VLOOKUP(A15,pubschls!$A$1:$AD$11703,24,FALSE) -> Y
A16: 01100176002000 | B16: =IF(C16="District",VLOOKUP(A16,pubschls!$A$1:$H$11703,7,FALSE),VLOOKUP(A16,pubschls!$A$1:$H$11703,8,FALSE)) -> Lazear Charter Academy | C16: =IF(ISBLANK(A16),"",IF(RIGHT(A16,7)="0000000","District","School")) -> School | D16: =VLOOKUP(A16,pubschls!$A$1:$G$11703,6,FALSE) -> Alameda | F16: =IF(ISERROR(VLOOKUP(A16,Enrollment!$C$4:$F$10349,4,FALSE)),"",VLOOKUP(A16,Enrollment!$C$4:$F$10349,4,FALSE)) -> 300 | O16: =VLOOKUP(A16,pubschls!$A$1:$AD$11703,28,FALSE) -> County Office of Education (COE) | P16: =VLOOKUP(A16,pubschls!$A$1:$AD$11703,30,FALSE) -> Elementary Schools (Public) | Q16: =VLOOKUP(A16,pubschls!$A$1:$AD$11703,24,FALSE) -> Y
A17: 01100176106751 | B17: Alameda County Special Education | C17: School | D17: Alameda | E17: 4 | F17: =IF(ISERROR(VLOOKUP(A17,Enrollment!$C$4:$F$10349,4,FALSE)),"",VLOOKUP(A17,Enrollment!$C$4:$F$10349,4,FALSE)) ->  | G17: Carrier Ethernet (e.g. - OptiMan, MetroEthernet) | I17: 1Gbs | J17: AT&T | L17: K12HSN node site | M17: Alameda County Office of Education | O17: =VLOOKUP(A17,pubschls!$A$1:$AD$11703,28,FALSE) -> County Office of Education (COE) | P17: =VLOOKUP(A17,pubschls!$A$1:$AD$11703,30,FALSE) -> Special Education Schools (Public) | Q17: =VLOOKUP(A17,pubschls!$A$1:$AD$11703,24,FALSE) -> N
A18: 01316090000000 | B18: California School for the Blind (State Special Schl) | C18: District | D18: Alameda | E18: 4 | F18: =IF(ISERROR(VLOOKUP(A18,Enrollment!$C$4:$F$10349,4,FALSE)),"",VLOOKUP(A18,Enrollment!$C$4:$F$10349,4,FALSE)) ->  | G18: Carrier Ethernet (e.g. - OptiMan, MetroEthernet) | H18: Cable | I18: 100Mbs | J18: AT&T | L18: K12HSN node site | O18: =VLOOKUP(A18,pubschls!$A$1:$AD$11703,28,FALSE) -> State Special Schools | P18: =VLOOKUP(A18,pubschls!$A$1:$AD$11703,30,FALSE) -> 0 | Q18: =VLOOKUP(A18,pubschls!$A$1:$AD$11703,24,FALSE) -> 0
A19: 01316090131755 | B19: California School for the Blind | C19: School | D19: Alameda | E19: 4 | F19: =IF(ISERROR(VLOOKUP(A19,Enrollment!$C$4:$F$10349,4,FALSE)),"",VLOOKUP(A19,Enrollment!$C$4:$F$10349,4,FALSE)) -> 82 | G19: Carrier Ethernet (e.g. - OptiMan, MetroEthernet) | I19: 10Mbs | J19: AT&T | L19: Other school | M19: California School for the Deaf-Fremont | O19: =VLOOKUP(A19,pubschls!$A$1:$AD$11703,28,FALSE) -> State Special Schools | P19: =VLOOKUP(A19,pubschls!$A$1:$AD$11703,30,FALSE) -> State Special Schools | Q19: =VLOOKUP(A19,pubschls!$A$1:$AD$11703,24,FALSE) -> N
A20: 01316170000000 | B20: California School for the Deaf-Fremont (State Special Schl) | C20: District | D20: Alameda | E20: 4 | F20: =IF(ISERROR(VLOOKUP(A20,Enrollment!$C$4:$F$10349,4,FALSE)),"",VLOOKUP(A20,Enrollment!$C$4:$F$10349,4,FALSE)) ->  | G20: Carrier Ethernet (e.g. - OptiMan, MetroEthernet) | H20: Cable | I20: 100Mbs | J20: AT&T | L20: K12HSN node site | M20: Alameda County Office of Education | O20: =VLOOKUP(A20,pubschls!$A$1:$AD$11703,28,FALSE) -> State Special Schools | P20: =VLOOKUP(A20,pubschls!$A$1:$AD$11703,30,FALSE) -> 0 | Q20: =VLOOKUP(A20,pubschls!$A$1:$AD$11703,24,FALSE) -> 0
A21: 01316170131763 | B21: California School for the Deaf-Fremont | C21: School | D21: Alameda | E21: 4 | F21: =IF(ISERROR(VLOOKUP(A21,Enrollment!$C$4:$F$10349,4,FALSE)),"",VLOOKUP(A21,Enrollment!$C$4:$F$10349,4,FALSE)) -> 407 | G21: Carrier Ethernet (e.g. - OptiMan, MetroEthernet) | H21: Cable | I21: 100Mbs | J21: AT&T | L21: K12HSN node site | M21: Alameda County Office of Education | O21: =VLOOKUP(A21,pubschls!$A$1:$AD$11703,28,FALSE) -> State Special Schools | P21: =VLOOKUP(A21,pubschls!$A$1:$AD$11703,30,FALSE) -> State Special Schools | Q21: =VLOOKUP(A21,pubschls!$A$1:$AD$11703,24,FALSE) -> N
A22: 01611190000000 | B22: Alameda Unified | C22: District | D22: Alameda | E22: 4 | F22: =IF(ISERROR(VLOOKUP(A22,Enrollment!$C$4:$F$10349,4,FALSE)),"",VLOOKUP(A22,Enrollment!$C$4:$F$10349,4,FALSE)) ->  | G22: Carrier Ethernet (e.g. - OptiMan, MetroEthernet) | I22: 1Gbs | J22: AT&T | L22: K12HSN node site | M22: Alameda County Office of Education | O22: =VLOOKUP(A22,pubschls!$A$1:$AD$11703,28,FALSE) -> Unified School District | P22: =VLOOKUP(A22,pubschls!$A$1:$AD$11703,30,FALSE) -> 0 | Q22: =VLOOKUP(A22,pubschls!$A$1:$AD$11703,24,FALSE) -> 0
A23: 01611190106401 | B23: Alameda Science and Technology Institute | C23: School | D23: Alameda | E23: 4 | F23: =IF(ISERROR(VLOOKUP(A23,Enrollment!$C$4:$F$10349,4,FALSE)),"",VLOOKUP(A23,Enrollment!$C$4:$F$10349,4,FALSE)) -> 163 | G23: Point-to-point | I23: 100Mbs | J23: AT&T | L23: Other district or school site | M23: Alameda Unified | O23: =VLOOKUP(A23,pubschls!$A$1:$AD$11703,28,FALSE) -> Unified School District | P23: =VLOOKUP(A23,pubschls!$A$1:$AD$11703,30,FALSE) -> Alternative Schools of Choice | Q23: =VLOOKUP(A23,pubschls!$A$1:$AD$11703,24,FALSE) -> N
A24: 01611190111765 | B24: Ruby Bridges Elementary | C24: School | D24: Alameda | E24: 4 | F24: =IF(ISERROR(VLOOKUP(A24,Enrollment!$C$4:$F$10349,4,FALSE)),"",VLOOKUP(A24,Enrollment!$C$4:$F$10349,4,FALSE)) -> 616 | G24: Carrier Ethernet (e.g. - OptiMan, MetroEthernet) | I24: 100Mbs | J24: AT&T | L24: Your district or school within your district | M24: Alameda Unified | O24: =VLOOKUP(A24,pubschls!$A$1:$AD$11703,28,FALSE) -> Unified School District | P24: =VLOOKUP(A24,pubschls!$A$1:$AD$11703,30,FALSE) -> Elementary Schools (Public) | Q24: =VLOOKUP(A24,pubschls!$A$1:$AD$11703,24,FALSE) -> N
A25: 01611190119222 | B25: =IF(C25="District",VLOOKUP(A25,pubschls!$A$1:$H$11703,7,FALSE),VLOOKUP(A25,pubschls!$A$1:$H$11703,8,FALSE)) -> Nea Community Learning Center | C25: =IF(ISBLANK(A25),"",IF(RIGHT(A25,7)="0000000","District","School")) -> School | D25: =VLOOKUP(A25,pubschls!$A$1:$G$11703,6,FALSE) -> Alameda | F25: =IF(ISERROR(VLOOKUP(A25,Enrollment!$C$4:$F$10349,4,FALSE)),"",VLOOKUP(A25,Enrollment!$C$4:$F$10349,4,FALSE)) -> 520 | O25: =VLOOKUP(A25,pubschls!$A$1:$AD$11703,28,FALSE) -> Unified School District | P25: =VLOOKUP(A25,pubschls!$A$1:$AD$11703,30,FALSE) -> K-12 Schools (Public) | Q25: =VLOOKUP(A25,pubschls!$A$1:$AD$11703,24,FALSE) -> Y
A26: 01611190122085 | B26: The Academy of Alameda | C26: School | D26: Alameda | E26: 4 | F26: =IF(ISERROR(VLOOKUP(A26,Enrollment!$C$4:$F$10349,4,FALSE)),"",VLOOKUP(A26,Enrollment!$C$4:$F$10349,4,FALSE)) -> 502 | G26: Carrier Ethernet (e.g. - OptiMan, MetroEthernet) | I26: 100Mbs | J26: AT&T | L26: Your district or school within your district | M26: Alameda Unified | O26: =VLOOKUP(A26,pubschls!$A$1:$AD$11703,28,FALSE) -> Unified School District | P26: =VLOOKUP(A26,pubschls!$A$1:$AD$11703,30,FALSE) -> Intermediate/Middle Schools (Public) | Q26: =VLOOKUP(A26,pubschls!$A$1:$AD$11703,24,FALSE) -> Y
A27: 01611190126656 | B27: =IF(C27="District",VLOOKUP(A27,pubschls!$A$1:$H$11703,7,FALSE),VLOOKUP(A27,pubschls!$A$1:$H$11703,8,FALSE)) -> Maya Lin | C27: =IF(ISBLANK(A27),"",IF(RIGHT(A27,7)="0000000","District","School")) -> School | D27: =VLOOKUP(A27,pubschls!$A$1:$G$11703,6,FALSE) -> Alameda | F27: =IF(ISERROR(VLOOKUP(A27,Enrollment!$C$4:$F$10349,4,FALSE)),"",VLOOKUP(A27,Enrollment!$C$4:$F$10349,4,FALSE)) -> 301 | O27: =VLOOKUP(A27,pubschls!$A$1:$AD$11703,28,FALSE) -> Unified School District | P27: =VLOOKUP(A27,pubschls!$A$1:$AD$11703,30,FALSE) -> Alternative Schools of Choice | Q27: =VLOOKUP(A27,pubschls!$A$1:$AD$11703,24,FALSE) -> N
A28: 01611190128199 | B28: =IF(C28="District",VLOOKUP(A28,pubschls!$A$1:$H$11703,7,FALSE),VLOOKUP(A28,pubschls!$A$1:$H$11703,8,FALSE)) -> Encinal Junior Jets | C28: =IF(ISBLANK(A28),"",IF(RIGHT(A28,7)="0000000","District","School")) -> School | D28: =VLOOKUP(A28,pubschls!$A$1:$G$11703,6,FALSE) -> Alameda | F28: =IF(ISERROR(VLOOKUP(A28,Enrollment!$C$4:$F$10349,4,FALSE)),"",VLOOKUP(A28,Enrollment!$C$4:$F$10349,4,FALSE)) ->  | O28: =VLOOKUP(A28,pubschls!$A$1:$AD$11703,28,FALSE) -> Unified School District | P28: =VLOOKUP(A28,pubschls!$A$1:$AD$11703,30,FALSE) -> Intermediate/Middle Schools (Public) | Q28: =VLOOKUP(A28,pubschls!$A$1:$AD$11703,24,FALSE) -> N
A29: 01611190130120 | B29: Alameda Adult | C29: School | D29: Alameda | E29: 4 | F29: =IF(ISERROR(VLOOKUP(A29,Enrollment!$C$4:$F$10349,4,FALSE)),"",VLOOKUP(A29,Enrollment!$C$4:$F$10349,4,FALSE)) ->  | G29: Private Fiber | I29: 100Mbs | J29: AT&T | L29: Other district or school site | M29: Alameda Unified | O29: =VLOOKUP(A29,pubschls!$A$1:$AD$11703,28,FALSE) -> Unified School District | P29: =VLOOKUP(A29,pubschls!$A$1:$AD$11703,30,FALSE) -> Adult Education Centers | Q29: =VLOOKUP(A29,pubschls!$A$1:$AD$11703,24,FALSE) -> N
A30: 01611190130229 | B30: Alameda High | C30: School | D30: Alameda | E30: 4 | F30: =IF(ISERROR(VLOOKUP(A30,Enrollment!$C$4:$F$10349,4,FALSE)),"",VLOOKUP(A30,Enrollment!$C$4:$F$10349,4,FALSE)) -> 1791 | G30: Carrier Ethernet (e.g. - OptiMan, MetroEthernet) | I30: 100Mbs | J30: AT&T | L30: Your district or school within your district | M30: Alameda Unified | O30: =VLOOKUP(A30,pubschls!$A$1:$AD$11703,28,FALSE) -> Unified School District | P30: =VLOOKUP(A30,pubschls!$A$1:$AD$11703,30,FALSE) -> High Schools (Public) | Q30: =VLOOKUP(A30,pubschls!$A$1:$AD$11703,24,FALSE) -> N
A31: 01611190130609 | B31: Alameda Community Learning Center | C31: School | D31: Alameda | E31: 4 | F31: =IF(ISERROR(VLOOKUP(A31,Enrollment!$C$4:$F$10349,4,FALSE)),"",VLOOKUP(A31,Enrollment!$C$4:$F$10349,4,FALSE)) -> 303 | G31: Private Fiber | I31: 100Mbs | J31: Local ISP | O31: =VLOOKUP(A31,pubschls!$A$1:$AD$11703,28,FALSE) -> Unified School District | P31: =VLOOKUP(A31,pubschls!$A$1:$AD$11703,30,FALSE) -> High Schools (Public) | Q31: =VLOOKUP(A31,pubschls!$A$1:$AD$11703,24,FALSE) -> Y
A32: 01611190130625 | B32: Bay Area School of Enterprise | C32: School | D32: Alameda | E32: 4 | F32: =IF(ISERROR(VLOOKUP(A32,Enrollment!$C$4:$F$10349,4,FALSE)),"",VLOOKUP(A32,Enrollment!$C$4:$F$10349,4,FALSE)) -> 152 | G32: Other | H32: N/A | I32: 100Mbs | J32: Local ISP | O32: =VLOOKUP(A32,pubschls!$A$1:$AD$11703,28,FALSE) -> Unified School District | P32: =VLOOKUP(A32,pubschls!$A$1:$AD$11703,30,FALSE) -> High Schools (Public) | Q32: =VLOOKUP(A32,pubschls!$A$1:$AD$11703,24,FALSE) -> Y
A33: 01611190132878 | B33: Encinal High | C33: School | D33: Alameda | E33: 4 | F33: =IF(ISERROR(VLOOKUP(A33,Enrollment!$C$4:$F$10349,4,FALSE)),"",VLOOKUP(A33,Enrollment!$C$4:$F$10349,4,FALSE)) -> 1055 | G33: Carrier Ethernet (e.g. - OptiMan, MetroEthernet) | I33: 100Mbs | J33: AT&T | L33: Your district or school within your district | M33: Alameda Unified | O33: =VLOOKUP(A33,pubschls!$A$1:$AD$11703,28,FALSE) -> Unified School District | P33: =VLOOKUP(A33,pubschls!$A$1:$AD$11703,30,FALSE) -> High Schools (Public) | Q33: =VLOOKUP(A33,pubschls!$A$1:$AD$11703,24,FALSE) -> N
A34: 01611190134304 | B34: Island High (Continuation) | C34: School | D34: Alameda | E34: 4 | F34: =IF(ISERROR(VLOOKUP(A34,Enrollment!$C$4:$F$10349,4,FALSE)),"",VLOOKUP(A34,Enrollment!$C$4:$F$10349,4,FALSE)) -> 192 | G34: Carrier Ethernet (e.g. - OptiMan, MetroEthernet) | I34: 100Mbs | J34: AT&T | L34: Other district or school site | M34: Alameda Unified | O34: =VLOOKUP(A34,pubschls!$A$1:$AD$11703,28,FALSE) -> Unified School District | P34: =VLOOKUP(A34,pubschls!$A$1:$AD$11703,30,FALSE) -> Continuation High Schools | Q34: =VLOOKUP(A34,pubschls!$A$1:$AD$11703,24,FALSE) -> N
A35: 01611196090005 | B35: Donald D. Lum Elementary | C35: School | D35: Alameda | E35: 4 | F35: =IF(ISERROR(VLOOKUP(A35,Enrollment!$C$4:$F$10349,4,FALSE)),"",VLOOKUP(A35,Enrollment!$C$4:$F$10349,4,FALSE)) -> 499 | G35: Carrier Ethernet (e.g. - OptiMan, MetroEthernet) | I35: 100Mbs | J35: AT&T | L35: Your district or school within your district | M35: Alameda Unified | O35: =VLOOKUP(A35,pubschls!$A$1:$AD$11703,28,FALSE) -> Unified School District | P35: =VLOOKUP(A35,pubschls!$A$1:$AD$11703,30,FALSE) -> Elementary Schools (Public) | Q35: =VLOOKUP(A35,pubschls!$A$1:$AD$11703,24,FALSE) -> N
A36: 01611196090013 | B36: Edison Elementary | C36: School | D36: Alameda | E36: 4 | F36: =IF(ISERROR(VLOOKUP(A36,Enrollment!$C$4:$F$10349,4,FALSE)),"",VLOOKUP(A36,Enrollment!$C$4:$F$10349,4,FALSE)) -> 478 | G36: Carrier Ethernet (e.g. - OptiMan, MetroEthernet) | I36: 100Mbs | J36: AT&T | L36: Your district or school within your district | M36: Alameda Unified | O36: =VLOOKUP(A36,pubschls!$A$1:$AD$11703,28,FALSE) -> Unified School District | P36: =VLOOKUP(A36,pubschls!$A$1:$AD$11703,30,FALSE) -> Elementary Schools (Public) | Q36: =VLOOKUP(A36,pubschls!$A$1:$AD$11703,24,FALSE) -> N
A37: 01611196090021 | B37: Frank Otis Elementary | C37: School | D37: Alameda | E37: 4 | F37: =IF(ISERROR(VLOOKUP(A37,Enrollment!$C$4:$F$10349,4,FALSE)),"",VLOOKUP(A37,Enrollment!$C$4:$F$10349,4,FALSE)) -> 537 | G37: Carrier Ethernet (e.g. - OptiMan, MetroEthernet) | I37: 100Mbs | J37: AT&T | L37: Your district or school within your district | M37: Alameda Unified | O37: =VLOOKUP(A37,pubschls!$A$1:$AD$11703,28,FALSE) -> Unified School District | P37: =VLOOKUP(A37,pubschls!$A$1:$AD$11703,30,FALSE) -> Elementary Schools (Public) | Q37: =VLOOKUP(A37,pubschls!$A$1:$AD$11703,24,FALSE) -> N
A38: 01611196090039 | B38: Franklin Elementary | C38: School | D38: Alameda | E38: 4 | F38: =IF(ISERROR(VLOOKUP(A38,Enrollment!$C$4:$F$10349,4,FALSE)),"",VLOOKUP(A38,Enrollment!$C$4:$F$10349,4,FALSE)) -> 314 | G38: Carrier Ethernet (e.g. - OptiMan, MetroEthernet) | I38: 100Mbs | J38: AT&T | L38: Your district or school within your district | M38: Alameda Unified | O38: =VLOOKUP(A38,pubschls!$A$1:$AD$11703,28,FALSE) -> Unified School District | P38: =VLOOKUP(A38,pubschls!$A$1:$AD$11703,30,FALSE) -> Elementary Schools (Public) | Q38: =VLOOKUP(A38,pubschls!$A$1:$AD$11703,24,FALSE) -> N
A39: 01611196090047 | B39: Henry Haight Elementary | C39: School | D39: Alameda | E39: 4 | F39: =IF(ISERROR(VLOOKUP(A39,Enrollment!$C$4:$F$10349,4,FALSE)),"",VLOOKUP(A39,Enrollment!$C$4:$F$10349,4,FALSE)) -> 414 | G39: Carrier Ethernet (e.g. - OptiMan, MetroEthernet) | I39: 100Mbs | J39: AT&T | L39: Other district or school site | M39: Alameda Unified | O39: =VLOOKUP(A39,pubschls!$A$1:$AD$11703,28,FALSE) -> Unified School District | P39: =VLOOKUP(A39,pubschls!$A$1:$AD$11703,30,FALSE) -> Elementary Schools (Public) | Q39: =VLOOKUP(A39,pubschls!$A$1:$AD$11703,24,FALSE) -> N
A40: 01611196090054 | B40: Lincoln Middle | C40: School | D40: Alameda | E40: 4 | F40: =IF(ISERROR(VLOOKUP(A40,Enrollment!$C$4:$F$10349,4,FALSE)),"",VLOOKUP(A40,Enrollment!$C$4:$F$10349,4,FALSE)) -> 994 | G40: Carrier Ethernet (e.g. - OptiMan, MetroEthernet) | I40: 100Mbs | J40: AT&T | L40: Your district or school within your district | M40: Alameda Unified | O40: =VLOOKUP(A40,pubschls!$A$1:$AD$11703,28,FALSE) -> Unified School District | P40: =VLOOKUP(A40,pubschls!$A$1:$AD$11703,30,FALSE) -> Intermediate/Middle Schools (Public) | Q40: =VLOOKUP(A40,pubschls!$A$1:$AD$11703,24,FALSE) -> N
A41: 01611196090112 | B41: Will C. Wood Middle | C41: School | D41: Alameda | E41: 4 | F41: =IF(ISERROR(VLOOKUP(A41,Enrollment!$C$4:$F$10349,4,FALSE)),"",VLOOKUP(A41,Enrollment!$C$4:$F$10349,4,FALSE)) -> 537 | G41: Carrier Ethernet (e.g. - OptiMan, MetroEthernet) | I41: 100Mbs | J41: AT&T | L41: Your district or school within your district | M41: Alameda Unified | O41: =VLOOKUP(A41,pubschls!$A$1:$AD$11703,28,FALSE) -> Unified School District | P41: =VLOOKUP(A41,pubschls!$A$1:$AD$11703,30,FALSE) -> Intermediate/Middle Schools (Public) | Q41: =VLOOKUP(A41,pubschls!$A$1:$AD$11703,24,FALSE) -> N
A42: 01611196090120 | B42: William G. Paden Elementary | C42: School | D42: Alameda | E42: 4 | F42: =IF(ISERROR(VLOOKUP(A42,Enrollment!$C$4:$F$10349,4,FALSE)),"",VLOOKUP(A42,Enrollment!$C$4:$F$10349,4,FALSE)) -> 330 | G42: Carrier Ethernet (e.g. - OptiMan, MetroEthernet) | I42: 100Mbs | J42: AT&T | L42: Your district or school within your district | M42: Alameda Unified | O42: =VLOOKUP(A42,pubschls!$A$1:$AD$11703,28,FALSE) -> Unified School District | P42: =VLOOKUP(A42,pubschls!$A$1:$AD$11703,30,FALSE) -> Elementary Schools (Public) | Q42: =VLOOKUP(A42,pubschls!$A$1:$AD$11703,24,FALSE) -> N
A43: 01611196100374 | B43: Amelia Earhart Elementary | C43: School | D43: Alameda | E43: 4 | F43: =IF(ISERROR(VLOOKUP(A43,Enrollment!$C$4:$F$10349,4,FALSE)),"",VLOOKUP(A43,Enrollment!$C$4:$F$10349,4,FALSE)) -> 591 | G43: Carrier Ethernet (e.g. - OptiMan, MetroEthernet) | I43: 100Mbs | J43: AT&T | L43: Your district or school within your district | M43: Alameda Unified | O43: =VLOOKUP(A43,pubschls!$A$1:$AD$11703,28,FALSE) -> Unified School District | P43: =VLOOKUP(A43,pubschls!$A$1:$AD$11703,30,FALSE) -> Elementary Schools (Public) | Q43: =VLOOKUP(A43,pubschls!$A$1:$AD$11703,24,FALSE) -> N
A44: 01611196110779 | B44: Bay Farm | C44: School | D44: Alameda | E44: 4 | F44: =IF(ISERROR(VLOOKUP(A44,Enrollment!$C$4:$F$10349,4,FALSE)),"",VLOOKUP(A44,Enrollment!$C$4:$F$10349,4,FALSE)) -> 521 | G44: Carrier Ethernet (e.g. - OptiMan, MetroEthernet) | I44: 100Mbs | J44: AT&T | L44: Your district or school within your district | M44: Alameda Unified | O44: =VLOOKUP(A44,pubschls!$A$1:$AD$11703,28,FALSE) -> Unified School District | P44: =VLOOKUP(A44,pubschls!$A$1:$AD$11703,30,FALSE) -> Elementary Schools (Public) | Q44: =VLOOKUP(A44,pubschls!$A$1:$AD$11703,24,FALSE) -> N
A45: 01611270000000 | B45: Albany City Unified | C45: District | D45: Alameda | E45: 4 | F45: =IF(ISERROR(VLOOKUP(A45,Enrollment!$C$4:$F$10349,4,FALSE)),"",VLOOKUP(A45,Enrollment!$C$4:$F$10349,4,FALSE)) ->  | G45: Private Fiber | I45: 1Gbs | J45: Other | L45: Other district or school site | M45: Albany High | O45: =VLOOKUP(A45,pubschls!$A$1:$AD$11703,28,FALSE) -> Unified School District | P45: =VLOOKUP(A45,pubschls!$A$1:$AD$11703,30,FALSE) -> 0 | Q45: =VLOOKUP(A45,pubschls!$A$1:$AD$11703,24,FALSE) -> 0
A46: 01611270126631 | B46: =IF(C46="District",VLOOKUP(A46,pubschls!$A$1:$H$11703,7,FALSE),VLOOKUP(A46,pubschls!$A$1:$H$11703,8,FALSE)) -> Albany Children's Center | C46: =IF(ISBLANK(A46),"",IF(RIGHT(A46,7)="0000000","District","School")) -> School | D46: =VLOOKUP(A46,pubschls!$A$1:$G$11703,6,FALSE) -> Alameda | F46: =IF(ISERROR(VLOOKUP(A46,Enrollment!$C$4:$F$10349,4,FALSE)),"",VLOOKUP(A46,Enrollment!$C$4:$F$10349,4,FALSE)) -> 20 | O46: =VLOOKUP(A46,pubschls!$A$1:$AD$11703,28,FALSE) -> Unified School District | P46: =VLOOKUP(A46,pubschls!$A$1:$AD$11703,30,FALSE) -> Elementary Schools (Public) | Q46: =VLOOKUP(A46,pubschls!$A$1:$AD$11703,24,FALSE) -> N
A47: 01611270130211 | B47: Albany Adult | C47: School | D47: Alameda | E47: 4 | F47: =IF(ISERROR(VLOOKUP(A47,Enrollment!$C$4:$F$10349,4,FALSE)),"",VLOOKUP(A47,Enrollment!$C$4:$F$10349,4,FALSE)) ->  | G47: Other | H47: CLOSED! | I47: 1Gbs | L47: Other district or school site | M47: Albany High | O47: =VLOOKUP(A47,pubschls!$A$1:$AD$11703,28,FALSE) -> Unified School District | P47: =VLOOKUP(A47,pubschls!$A$1:$AD$11703,30,FALSE) -> Adult Education Centers | Q47: =VLOOKUP(A47,pubschls!$A$1:$AD$11703,24,FALSE) -> N
A48: 01611270130294 | B48: MacGregor High (Continuation) | C48: School | D48: Alameda | E48: 4 | F48: =IF(ISERROR(VLOOKUP(A48,Enrollment!$C$4:$F$10349,4,FALSE)),"",VLOOKUP(A48,Enrollment!$C$4:$F$10349,4,FALSE)) -> 28 | G48: Point-to-point | H48: Private Copper | I48: 100Mbs | L48: Your district or school within your district | M48: Albany High | O48: =VLOOKUP(A48,pubschls!$A$1:$AD$11703,28,FALSE) -> Unified School District | P48: =VLOOKUP(A48,pubschls!$A$1:$AD$11703,30,FALSE) -> Continuation High Schools | Q48: =VLOOKUP(A48,pubschls!$A$1:$AD$11703,24,FALSE) -> N
A49: 01611270130450 | B49: Albany High | C49: School | D49: Alameda | E49: 4 | F49: =IF(ISERROR(VLOOKUP(A49,Enrollment!$C$4:$F$10349,4,FALSE)),"",VLOOKUP(A49,Enrollment!$C$4:$F$10349,4,FALSE)) -> 1162 | G49: Carrier Ethernet (e.g. - OptiMan, MetroEthernet) | I49: 100Mbs | J49: AT&T | L49: K12HSN node site | M49: Alameda County Office of Education | O49: =VLOOKUP(A49,pubschls!$A$1:$AD$11703,28,FALSE) -> Unified School District | P49: =VLOOKUP(A49,pubschls!$A$1:$AD$11703,30,FALSE) -> High Schools (Public) | Q49: =VLOOKUP(A49,pubschls!$A$1:$AD$11703,24,FALSE) -> N
A50: 01611276090146 | B50: Cornell Elementary | C50: School | D50: Alameda | E50: 4 | F50: =IF(ISERROR(VLOOKUP(A50,Enrollment!$C$4:$F$10349,4,FALSE)),"",VLOOKUP(A50,Enrollment!$C$4:$F$10349,4,FALSE)) -> 590 | G50: Other | H50: Private Copper | I50: 100Mbs | L50: Your district or school within your district | M50: Albany High | O50: =VLOOKUP(A50,pubschls!$A$1:$AD$11703,28,FALSE) -> Unified School District | P50: =VLOOKUP(A50,pubschls!$A$1:$AD$11703,30,FALSE) -> Elementary Schools (Public) | Q50: =VLOOKUP(A50,pubschls!$A$1:$AD$11703,24,FALSE) -> N
A51: 01611276090161 | B51: Albany Middle | C51: School | D51: Alameda | E51: 4 | F51: =IF(ISERROR(VLOOKUP(A51,Enrollment!$C$4:$F$10349,4,FALSE)),"",VLOOKUP(A51,Enrollment!$C$4:$F$10349,4,FALSE)) -> 890 | G51: Other | H51: Private Copper | I51: 100Mbs | L51: Your district or school within your district | M51: Albany High | O51: =VLOOKUP(A51,pubschls!$A$1:$AD$11703,28,FALSE) -> Unified School District | P51: =VLOOKUP(A51,pubschls!$A$1:$AD$11703,30,FALSE) -> Intermediate/Middle Schools (Public) | Q51: =VLOOKUP(A51,pubschls!$A$1:$AD$11703,24,FALSE) -> N
A52: 01611276095376 | B52: Marin Elementary | C52: School | D52: Alameda | E52: 4 | F52: =IF(ISERROR(VLOOKUP(A52,Enrollment!$C$4:$F$10349,4,FALSE)),"",VLOOKUP(A52,Enrollment!$C$4:$F$10349,4,FALSE)) -> 514 | G52: Other | H52: Private Copper | I52: 100Mbs | L52: Your district or school within your district | M52: Albany High | O52: =VLOOKUP(A52,pubschls!$A$1:$AD$11703,28,FALSE) -> Unified School District | P52: =VLOOKUP(A52,pubschls!$A$1:$AD$11703,30,FALSE) -> Elementary Schools (Public) | Q52: =VLOOKUP(A52,pubschls!$A$1:$AD$11703,24,FALSE) -> N
A53: 01611276116222 | B53: Ocean View Elementary | C53: School | D53: Alameda | E53: 4 | F53: =IF(ISERROR(VLOOKUP(A53,Enrollment!$C$4:$F$10349,4,FALSE)),"",VLOOKUP(A53,Enrollment!$C$4:$F$10349,4,FALSE)) -> 599 | G53: Other | H53: Private Copper | I53: 100Mbs | J53: Local ISP | L53: Other district or school site | M53: Alameda High | O53: =VLOOKUP(A53,pubschls!$A$1:$AD$11703,28,FALSE) -> Unified School District | P53: =VLOOKUP(A53,pubschls!$A$1:$AD$11703,30,FALSE) -> Elementary Schools (Public) | Q53: =VLOOKUP(A53,pubschls!$A$1:$AD$11703,24,FALSE) -> N
A54: 01611430000000 | B54: Berkeley Unified | C54: District | D54: Alameda | E54: 4 | F54: =IF(ISERROR(VLOOKUP(A54,Enrollment!$C$4:$F$10349,4,FALSE)),"",VLOOKUP(A54,Enrollment!$C$4:$F$10349,4,FALSE)) ->  | G54: Carrier Ethernet (e.g. - OptiMan, MetroEthernet) | I54: > 10Mbs < 45Mbs | J54: AT&T | L54: K12HSN node site | M54: Alameda County Office of Education | O54: =VLOOKUP(A54,pubschls!$A$1:$AD$11703,28,FALSE) -> Unified School District | P54: =VLOOKUP(A54,pubschls!$A$1:$AD$11703,30,FALSE) -> 0 | Q54: =VLOOKUP(A54,pubschls!$A$1:$AD$11703,24,FALSE) -> 0
A55: 01611430122689 | B55: REALM Charter Middle | C55: School | D55: Alameda | E55: 4 | F55: =IF(ISERROR(VLOOKUP(A55,Enrollment!$C$4:$F$10349,4,FALSE)),"",VLOOKUP(A55,Enrollment!$C$4:$F$10349,4,FALSE)) -> 201 | G55: Other | H55: N/A TRT data | I55: 100Mbs | J55: Other | O55: =VLOOKUP(A55,pubschls!$A$1:$AD$11703,28,FALSE) -> Unified School District | P55: =VLOOKUP(A55,pubschls!$A$1:$AD$11703,30,FALSE) -> Intermediate/Middle Schools (Public) | Q55: =VLOOKUP(A55,pubschls!$A$1:$AD$11703,24,FALSE) -> Y
A56: 01611430122697 | B56: REALM Charter High | C56: School | D56: Alameda | E56: 4 | F56: =IF(ISERROR(VLOOKUP(A56,Enrollment!$C$4:$F$10349,4,FALSE)),"",VLOOKUP(A56,Enrollment!$C$4:$F$10349,4,FALSE)) -> 193 | G56: Other | H56: N/A TRT data | I56: 100Mbs | J56: Other | O56: =VLOOKUP(A56,pubschls!$A$1:$AD$11703,28,FALSE) -> Unified School District | P56: =VLOOKUP(A56,pubschls!$A$1:$AD$11703,30,FALSE) -> High Schools (Public) | Q56: =VLOOKUP(A56,pubschls!$A$1:$AD$11703,24,FALSE) -> Y
A57: 01611430131078 | B57: Berkeley Adult | C57: School | D57: Alameda | E57: 4 | F57: =IF(ISERROR(VLOOKUP(A57,Enrollment!$C$4:$F$10349,4,FALSE)),"",VLOOKUP(A57,Enrollment!$C$4:$F$10349,4,FALSE)) ->  | G57: Private Fiber | I57: 100Mbs | J57: Local ISP | L57: Other district or school site | M57: Berkeley Unified | O57: =VLOOKUP(A57,pubschls!$A$1:$AD$11703,28,FALSE) -> Unified School District | P57: =VLOOKUP(A57,pubschls!$A$1:$AD$11703,30,FALSE) -> Adult Education Centers | Q57: =VLOOKUP(A57,pubschls!$A$1:$AD$11703,24,FALSE) -> N
A58: 01611430131177 | B58: Berkeley High | C58: School | D58: Alameda | E58: 4 | F58: =IF(ISERROR(VLOOKUP(A58,Enrollment!$C$4:$F$10349,4,FALSE)),"",VLOOKUP(A58,Enrollment!$C$4:$F$10349,4,FALSE)) -> 3176 | G58: Private Fiber | I58: 100Mbs | J58: Local ISP | L58: Other district or school site | M58: Berkeley Unified | O58: =VLOOKUP(A58,pubschls!$A$1:$AD$11703,28,FALSE) -> Unified School District | P58: =VLOOKUP(A58,pubschls!$A$1:$AD$11703,30,FALSE) -> High Schools (Public) | Q58: =VLOOKUP(A58,pubschls!$A$1:$AD$11703,24,FALSE) -> N
A59: 01611430134924 | B59: Berkeley Technology Academy | C59: School | D59: Alameda | E59: 4 | F59: =IF(ISERROR(VLOOKUP(A59,Enrollment!$C$4:$F$10349,4,FALSE)),"",VLOOKUP(A59,Enrollment!$C$4:$F$10349,4,FALSE)) -> 113 | G59: Private Fiber | I59: 100Mbs | J59: Local ISP | L59: Other district or school site | M59: Berkeley Unified | O59: =VLOOKUP(A59,pubschls!$A$1:$AD$11703,28,FALSE) -> Unified School District | P59: =VLOOKUP(A59,pubschls!$A$1:$AD$11703,30,FALSE) -> Continuation High Schools | Q59: =VLOOKUP(A59,pubschls!$A$1:$AD$11703,24,FALSE) -> N
A60: 01611436056857 | B60: Martin Luther King Middle | C60: School | D60: Alameda | E60: 4 | F60: =IF(ISERROR(VLOOKUP(A60,Enrollment!$C$4:$F$10349,4,FALSE)),"",VLOOKUP(A60,Enrollment!$C$4:$F$10349,4,FALSE)) -> 880 | G60: Private Fiber | I60: 100Mbs | J60: Local ISP | L60: Other district or school site | M60: Berkeley Unified | O60: =VLOOKUP(A60,pubschls!$A$1:$AD$11703,28,FALSE) -> Unified School District | P60: =VLOOKUP(A60,pubschls!$A$1:$AD$11703,30,FALSE) -> Intermediate/Middle Schools (Public) | Q60: =VLOOKUP(A60,pubschls!$A$1:$AD$11703,24,FALSE) -> N
A61: 01611436056865 | B61: Willard Middle | C61: School | D61: Alameda | E61: 4 | F61: =IF(ISERROR(VLOOKUP(A61,Enrollment!$C$4:$F$10349,4,FALSE)),"",VLOOKUP(A61,Enrollment!$C$4:$F$10349,4,FALSE)) -> 511 | G61: Private Fiber | I61: 100Mbs | J61: Local ISP | L61: Other district or school site | M61: Berkeley Unified | O61: =VLOOKUP(A61,pubschls!$A$1:$AD$11703,28,FALSE) -> Unified School District | P61: =VLOOKUP(A61,pubschls!$A$1:$AD$11703,30,FALSE) -> Intermediate/Middle Schools (Public) | Q61: =VLOOKUP(A61,pubschls!$A$1:$AD$11703,24,FALSE) -> N
A62: 01611436090187 | B62: Rosa Parks Environmental Science Magnet | C62: School | D62: Alameda | E62: 4 | F62: =IF(ISERROR(VLOOKUP(A62,Enrollment!$C$4:$F$10349,4,FALSE)),"",VLOOKUP(A62,Enrollment!$C$4:$F$10349,4,FALSE)) -> 453 | G62: Private Fiber | I62: 100Mbs | J62: Local ISP | L62: Other district or school site | M62: Berkeley Unified | O62: =VLOOKUP(A62,pubschls!$A$1:$AD$11703,28,FALSE) -> Unified School District | P62: =VLOOKUP(A62,pubschls!$A$1:$AD$11703,30,FALSE) -> Elementary Schools (Public) | Q62: =VLOOKUP(A62,pubschls!$A$1:$AD$11703,24,FALSE) -> N
A63: 01611436090195 | B63: Cragmont Elementary | C63: School | D63: Alameda | E63: 4 | F63: =IF(ISERROR(VLOOKUP(A63,Enrollment!$C$4:$F$10349,4,FALSE)),"",VLOOKUP(A63,Enrollment!$C$4:$F$10349,4,FALSE)) -> 416 | G63: Private Fiber | I63: 100Mbs | J63: Local ISP | L63: Other district or school site | M63: Berkeley Unified | O63: =VLOOKUP(A63,pubschls!$A$1:$AD$11703,28,FALSE) -> Unified School District | P63: =VLOOKUP(A63,pubschls!$A$1:$AD$11703,30,FALSE) -> Elementary Schools (Public) | Q63: =VLOOKUP(A63,pubschls!$A$1:$AD$11703,24,FALSE) -> N
A64: 01611436090211 | B64: Emerson Elementary | C64: School | D64: Alameda | E64: 4 | F64: =IF(ISERROR(VLOOKUP(A64,Enrollment!$C$4:$F$10349,4,FALSE)),"",VLOOKUP(A64,Enrollment!$C$4:$F$10349,4,FALSE)) -> 288 | G64: Private Fiber | I64: 100Mbs | J64: Local ISP | L64: Other district or school site | M64: Berkeley Unified | O64: =VLOOKUP(A64,pubschls!$A$1:$AD$11703,28,FALSE) -> Unified School District | P64: =VLOOKUP(A64,pubschls!$A$1:$AD$11703,30,FALSE) -> Elementary Schools (Public) | Q64: =VLOOKUP(A64,pubschls!$A$1:$AD$11703,24,FALSE) -> N
A65: 01611436090252 | B65: Jefferson Elementary | C65: School | D65: Alameda | E65: 4 | F65: =IF(ISERROR(VLOOKUP(A65,Enrollment!$C$4:$F$10349,4,FALSE)),"",VLOOKUP(A65,Enrollment!$C$4:$F$10349,4,FALSE)) -> 335 | G65: Private Fiber | I65: 100Mbs | J65: Local ISP | L65: Other district or school site | M65: Berkeley Unified | O65: =VLOOKUP(A65,pubschls!$A$1:$AD$11703,28,FALSE) -> Unified School District | P65: =VLOOKUP(A65,pubschls!$A$1:$AD$11703,30,FALSE) -> Elementary Schools (Public) | Q65: =VLOOKUP(A65,pubschls!$A$1:$AD$11703,24,FALSE) -> N
A66: 01611436090278 | B66: Leconte Elementary | C66: School | D66: Alameda | E66: 4 | F66: =IF(ISERROR(VLOOKUP(A66,Enrollment!$C$4:$F$10349,4,FALSE)),"",VLOOKUP(A66,Enrollment!$C$4:$F$10349,4,FALSE)) -> 337 | G66: Private Fiber | I66: 100Mbs | J66: Local ISP | L66: Other district or school site | M66: Berkeley Unified | O66: =VLOOKUP(A66,pubschls!$A$1:$AD$11703,28,FALSE) -> Unified School District | P66: =VLOOKUP(A66,pubschls!$A$1:$AD$11703,30,FALSE) -> Elementary Schools (Public) | Q66: =VLOOKUP(A66,pubschls!$A$1:$AD$11703,24,FALSE) -> N
A67: 01611436090286 | B67: Malcolm X Elementary | C67: School | D67: Alameda | E67: 4 | F67: =IF(ISERROR(VLOOKUP(A67,Enrollment!$C$4:$F$10349,4,FALSE)),"",VLOOKUP(A67,Enrollment!$C$4:$F$10349,4,FALSE)) -> 480 | G67: Private Fiber | I67: 100Mbs | J67: Local ISP | L67: Other district or school site | M67: Berkeley Unified | O67: =VLOOKUP(A67,pubschls!$A$1:$AD$11703,28,FALSE) -> Unified School District | P67: =VLOOKUP(A67,pubschls!$A$1:$AD$11703,30,FALSE) -> Elementary Schools (Public) | Q67: =VLOOKUP(A67,pubschls!$A$1:$AD$11703,24,FALSE) -> N
A68: 01611436090294 | B68: Longfellow Arts and Technology Middle | C68: School | D68: Alameda | E68: 4 | F68: =IF(ISERROR(VLOOKUP(A68,Enrollment!$C$4:$F$10349,4,FALSE)),"",VLOOKUP(A68,Enrollment!$C$4:$F$10349,4,FALSE)) -> 479 | G68: Private Fiber | I68: 100Mbs | J68: Local ISP | L68: Other district or school site | M68: Berkeley Unified | O68: =VLOOKUP(A68,pubschls!$A$1:$AD$11703,28,FALSE) -> Unified School District | P68: =VLOOKUP(A68,pubschls!$A$1:$AD$11703,30,FALSE) -> Intermediate/Middle Schools (Public) | Q68: =VLOOKUP(A68,pubschls!$A$1:$AD$11703,24,FALSE) -> N
A69: 01611436090302 | B69: Oxford Elementary | C69: School | D69: Alameda | E69: 4 | F69: =IF(ISERROR(VLOOKUP(A69,Enrollment!$C$4:$F$10349,4,FALSE)),"",VLOOKUP(A69,Enrollment!$C$4:$F$10349,4,FALSE)) -> 315 | G69: Private Fiber | I69: 100Mbs | J69: Local ISP | L69: Other district or school site | M69: Berkeley Unified | O69: =VLOOKUP(A69,pubschls!$A$1:$AD$11703,28,FALSE) -> Unified School District | P69: =VLOOKUP(A69,pubschls!$A$1:$AD$11703,30,FALSE) -> Elementary Schools (Public) | Q69: =VLOOKUP(A69,pubschls!$A$1:$AD$11703,24,FALSE) -> N
A70: 01611436090310 | B70: Thousand Oaks Elementary | C70: School | D70: Alameda | E70: 4 | F70: =IF(ISERROR(VLOOKUP(A70,Enrollment!$C$4:$F$10349,4,FALSE)),"",VLOOKUP(A70,Enrollment!$C$4:$F$10349,4,FALSE)) -> 450 | G70: Private Fiber | I70: 100Mbs | J70: Local ISP | L70: Other district or school site | M70: Berkeley Unified | O70: =VLOOKUP(A70,pubschls!$A$1:$AD$11703,28,FALSE) -> Unified School District | P70: =VLOOKUP(A70,pubschls!$A$1:$AD$11703,30,FALSE) -> Elementary Schools (Public) | Q70: =VLOOKUP(A70,pubschls!$A$1:$AD$11703,24,FALSE) -> N
A71: 01611436090328 | B71: Washington Elementary | C71: School | D71: Alameda | E71: 4 | F71: =IF(ISERROR(VLOOKUP(A71,Enrollment!$C$4:$F$10349,4,FALSE)),"",VLOOKUP(A71,Enrollment!$C$4:$F$10349,4,FALSE)) -> 447 | G71: Private Fiber | I71: 100Mbs | J71: Local ISP | L71: Other district or school site | M71: Berkeley Unified | O71: =VLOOKUP(A71,pubschls!$A$1:$AD$11703,28,FALSE) -> Unified School District | P71: =VLOOKUP(A71,pubschls!$A$1:$AD$11703,30,FALSE) -> Elementary Schools (Public) | Q71: =VLOOKUP(A71,pubschls!$A$1:$AD$11703,24,FALSE) -> N
A72: 01611436097729 | B72: Berkeley Arts Magnet at Whittier | C72: School | D72: Alameda | E72: 4 | F72: =IF(ISERROR(VLOOKUP(A72,Enrollment!$C$4:$F$10349,4,FALSE)),"",VLOOKUP(A72,Enrollment!$C$4:$F$10349,4,FALSE)) -> 404 | G72: Private Fiber | I72: 100Mbs | J72: Local ISP | L72: Other district or school site | M72: Berkeley Unified | O72: =VLOOKUP(A72,pubschls!$A$1:$AD$11703,28,FALSE) -> Unified School District | P72: =VLOOKUP(A72,pubschls!$A$1:$AD$11703,30,FALSE) -> Elementary Schools (Public) | Q72: =VLOOKUP(A72,pubschls!$A$1:$AD$11703,24,FALSE) -> N
A73: 01611436105316 | B73: John Muir Elementary | C73: School | D73: Alameda | E73: 4 | F73: =IF(ISERROR(VLOOKUP(A73,Enrollment!$C$4:$F$10349,4,FALSE)),"",VLOOKUP(A73,Enrollment!$C$4:$F$10349,4,FALSE)) -> 260 | G73: Private Fiber | I73: 100Mbs | J73: Local ISP | L73: Other district or school site | M73: Berkeley Unified | O73: =VLOOKUP(A73,pubschls!$A$1:$AD$11703,28,FALSE) -> Unified School District | P73: =VLOOKUP(A73,pubschls!$A$1:$AD$11703,30,FALSE) -> Elementary Schools (Public) | Q73: =VLOOKUP(A73,pubschls!$A$1:$AD$11703,24,FALSE) -> N
A74: 01611500000000 | B74: Castro Valley Unified | C74: District | D74: Alameda | E74: 4 | F74: =IF(ISERROR(VLOOKUP(A74,Enrollment!$C$4:$F$10349,4,FALSE)),"",VLOOKUP(A74,Enrollment!$C$4:$F$10349,4,FALSE)) ->  | G74: Carrier Ethernet (e.g. - OptiMan, MetroEthernet) | I74: > 10Mbs < 45Mbs | J74: AT&T | L74: K12HSN node site | M74: Alameda County Office of Education | O74: =VLOOKUP(A74,pubschls!$A$1:$AD$11703,28,FALSE) -> Unified School District | P74: =VLOOKUP(A74,pubschls!$A$1:$AD$11703,30,FALSE) -> 0 | Q74: =VLOOKUP(A74,pubschls!$A$1:$AD$11703,24,FALSE) -> 0
A75: 01611500130039 | B75: Castro Valley Adult and Career Education | C75: School | D75: Alameda | E75: 4 | F75: =IF(ISERROR(VLOOKUP(A75,Enrollment!$C$4:$F$10349,4,FALSE)),"",VLOOKUP(A75,Enrollment!$C$4:$F$10349,4,FALSE)) ->  | G75: Carrier Ethernet (e.g. - OptiMan, MetroEthernet) | I75: > 45Mbs < 100Mbs | L75: Other district or school site | M75: Castro Valley Unified | O75: =VLOOKUP(A75,pubschls!$A$1:$AD$11703,28,FALSE) -> Unified School District | P75: =VLOOKUP(A75,pubschls!$A$1:$AD$11703,30,FALSE) -> Adult Education Centers | Q75: =VLOOKUP(A75,pubschls!$A$1:$AD$11703,24,FALSE) -> N
A76: 01611500130047 | B76: Roy A. Johnson High | C76: School | D76: Alameda | E76: 4 | F76: =IF(ISERROR(VLOOKUP(A76,Enrollment!$C$4:$F$10349,4,FALSE)),"",VLOOKUP(A76,Enrollment!$C$4:$F$10349,4,FALSE)) -> 12 | G76: Carrier Ethernet (e.g. - OptiMan, MetroEthernet) | I76: > 45Mbs < 100Mbs | L76: Other district or school site | M76: Castro Valley Unified | O76: =VLOOKUP(A76,pubschls!$A$1:$AD$11703,28,FALSE) -> Unified School District | P76: =VLOOKUP(A76,pubschls!$A$1:$AD$11703,30,FALSE) -> Special Education Schools (Public) | Q76: =VLOOKUP(A76,pubschls!$A$1:$AD$11703,24,FALSE) -> N
A77: 01611500132225 | B77: Castro Valley High | C77: School | D77: Alameda | E77: 4 | F77: =IF(ISERROR(VLOOKUP(A77,Enrollment!$C$4:$F$10349,4,FALSE)),"",VLOOKUP(A77,Enrollment!$C$4:$F$10349,4,FALSE)) -> 2975 | G77: Wireless | I77: 100Mbs | L77: Other district or school site | M77: Castro Valley Unified | O77: =VLOOKUP(A77,pubschls!$A$1:$AD$11703,28,FALSE) -> Unified School District | P77: =VLOOKUP(A77,pubschls!$A$1:$AD$11703,30,FALSE) -> High Schools (Public) | Q77: =VLOOKUP(A77,pubschls!$A$1:$AD$11703,24,FALSE) -> N
A78: 01611500135533 | B78: Redwood Continuation High | C78: School | D78: Alameda | E78: 4 | F78: =IF(ISERROR(VLOOKUP(A78,Enrollment!$C$4:$F$10349,4,FALSE)),"",VLOOKUP(A78,Enrollment!$C$4:$F$10349,4,FALSE)) -> 136 | G78: Wireless | H78: Frame Relay | I78: 100Mbs | J78: AT&T | L78: Other district or school site | M78: Castro Valley Unified | O78: =VLOOKUP(A78,pubschls!$A$1:$AD$11703,28,FALSE) -> Unified School District | P78: =VLOOKUP(A78,pubschls!$A$1:$AD$11703,30,FALSE) -> Continuation High Schools | Q78: =VLOOKUP(A78,pubschls!$A$1:$AD$11703,24,FALSE) -> N
A79: 01611506090351 | B79: Castro Valley Elementary | C79: School | D79: Alameda | E79: 4 | F79: =IF(ISERROR(VLOOKUP(A79,Enrollment!$C$4:$F$10349,4,FALSE)),"",VLOOKUP(A79,Enrollment!$C$4:$F$10349,4,FALSE)) -> 495 | G79: Wireless | I79: 100Mbs | L79: Other district or school site | M79: Castro Valley Unified | O79: =VLOOKUP(A79,pubschls!$A$1:$AD$11703,28,FALSE) -> Unified School District | P79: =VLOOKUP(A79,pubschls!$A$1:$AD$11703,30,FALSE) -> Elementary Schools (Public) | Q79: =VLOOKUP(A79,pubschls!$A$1:$AD$11703,24,FALSE) -> N
A80: 01611506090369 | B80: Chabot Elementary | C80: School | D80: Alameda | E80: 4 | F80: =IF(ISERROR(VLOOKUP(A80,Enrollment!$C$4:$F$10349,4,FALSE)),"",VLOOKUP(A80,Enrollment!$C$4:$F$10349,4,FALSE)) -> 450 | G80: Wireless | I80: 100Mbs | L80: Your district or school within your district | M80: Castro Valley Elementary | O80: =VLOOKUP(A80,pubschls!$A$1:$AD$11703,28,FALSE) -> Unified School District | P80: =VLOOKUP(A80,pubschls!$A$1:$AD$11703,30,FALSE) -> Elementary Schools (Public) | Q80: =VLOOKUP(A80,pubschls!$A$1:$AD$11703,24,FALSE) -> N
A81: 01611506090385 | B81: Creekside Middle | C81: School | D81: Alameda | E81: 4 | F81: =IF(ISERROR(VLOOKUP(A81,Enrollment!$C$4:$F$10349,4,FALSE)),"",VLOOKUP(A81,Enrollment!$C$4:$F$10349,4,FALSE)) -> 780 | G81: Wireless | I81: 100Mbs | L81: Other district or school site | M81: Castro Valley Unified | O81: =VLOOKUP(A81,pubschls!$A$1:$AD$11703,28,FALSE) -> Unified School District | P81: =VLOOKUP(A81,pubschls!$A$1:$AD$11703,30,FALSE) -> Intermediate/Middle Schools (Public) | Q81: =VLOOKUP(A81,pubschls!$A$1:$AD$11703,24,FALSE) -> N
A82: 01611506090393 | B82: Independent Elementary | C82: School | D82: Alameda | E82: 4 | F82: =IF(ISERROR(VLOOKUP(A82,Enrollment!$C$4:$F$10349,4,FALSE)),"",VLOOKUP(A82,Enrollment!$C$4:$F$10349,4,FALSE)) -> 579 | G82: Wireless | I82: 100Mbs | L82: Other district or school site | M82: Castro Valley Unified | O82: =VLOOKUP(A82,pubschls!$A$1:$AD$11703,28,FALSE) -> Unified School District | P82: =VLOOKUP(A82,pubschls!$A$1:$AD$11703,30,FALSE) -> Elementary Schools (Public) | Q82: =VLOOKUP(A82,pubschls!$A$1:$AD$11703,24,FALSE) -> N
A83: 01611506090401 | B83: Marshall Elementary | C83: School | D83: Alameda | E83: 4 | F83: =IF(ISERROR(VLOOKUP(A83,Enrollment!$C$4:$F$10349,4,FALSE)),"",VLOOKUP(A83,Enrollment!$C$4:$F$10349,4,FALSE)) -> 448 | G83: Wireless | H83: Frame Relay | I83: 100Mbs | L83: Other district or school site | M83: Castro Valley Unified | O83: =VLOOKUP(A83,pubschls!$A$1:$AD$11703,28,FALSE) -> Unified School District | P83: =VLOOKUP(A83,pubschls!$A$1:$AD$11703,30,FALSE) -> Elementary Schools (Public) | Q83: =VLOOKUP(A83,pubschls!$A$1:$AD$11703,24,FALSE) -> N
A84: 01611506090419 | B84: Palomares Elementary | C84: School | D84: Alameda | E84: 4 | F84: =IF(ISERROR(VLOOKUP(A84,Enrollment!$C$4:$F$10349,4,FALSE)),"",VLOOKUP(A84,Enrollment!$C$4:$F$10349,4,FALSE)) -> 157 | G84: Other | H84: Frame Relay | I84: T-1 | J84: AT&T | L84: Other district or school site | M84: Castro Valley Unified | O84: =VLOOKUP(A84,pubschls!$A$1:$AD$11703,28,FALSE) -> Unified School District | P84: =VLOOKUP(A84,pubschls!$A$1:$AD$11703,30,FALSE) -> Elementary Schools (Public) | Q84: =VLOOKUP(A84,pubschls!$A$1:$AD$11703,24,FALSE) -> N
A85: 01611506090435 | B85: Proctor Elementary | C85: School | D85: Alameda | E85: 4 | F85: =IF(ISERROR(VLOOKUP(A85,Enrollment!$C$4:$F$10349,4,FALSE)),"",VLOOKUP(A85,Enrollment!$C$4:$F$10349,4,FALSE)) -> 523 | G85: Wireless | H85: Frame Relay | I85: 100Mbs | L85: Other district or school site | M85: Castro Valley Unified | O85: =VLOOKUP(A85,pubschls!$A$1:$AD$11703,28,FALSE) -> Unified School District | P85: =VLOOKUP(A85,pubschls!$A$1:$AD$11703,30,FALSE) -> Elementary Schools (Public) | Q85: =VLOOKUP(A85,pubschls!$A$1:$AD$11703,24,FALSE) -> N
A86: 01611506090468 | B86: Stanton Elementary | C86: School | D86: Alameda | E86: 4 | F86: =IF(ISERROR(VLOOKUP(A86,Enrollment!$C$4:$F$10349,4,FALSE)),"",VLOOKUP(A86,Enrollment!$C$4:$F$10349,4,FALSE)) -> 445 | G86: Wireless | H86: Frame Relay | I86: 100Mbs | L86: Other district or school site | M86: Castro Valley Unified | O86: =VLOOKUP(A86,pubschls!$A$1:$AD$11703,28,FALSE) -> Unified School District | P86: =VLOOKUP(A86,pubschls!$A$1:$AD$11703,30,FALSE) -> Elementary Schools (Public) | Q86: =VLOOKUP(A86,pubschls!$A$1:$AD$11703,24,FALSE) -> N
A87: 01611506090484 | B87: Vannoy Elementary | C87: School | D87: Alameda | E87: 4 | F87: =IF(ISERROR(VLOOKUP(A87,Enrollment!$C$4:$F$10349,4,FALSE)),"",VLOOKUP(A87,Enrollment!$C$4:$F$10349,4,FALSE)) -> 405 | G87: Wireless | H87: Frame Relay | I87: 100Mbs | L87: Other district or school site | M87: Castro Valley Unified | O87: =VLOOKUP(A87,pubschls!$A$1:$AD$11703,28,FALSE) -> Unified School District | P87: =VLOOKUP(A87,pubschls!$A$1:$AD$11703,30,FALSE) -> Elementary Schools (Public) | Q87: =VLOOKUP(A87,pubschls!$A$1:$AD$11703,24,FALSE) -> N
A88: 01611506097653 | B88: Canyon Middle | C88: School | D88: Alameda | E88: 4 | F88: =IF(ISERROR(VLOOKUP(A88,Enrollment!$C$4:$F$10349,4,FALSE)),"",VLOOKUP(A88,Enrollment!$C$4:$F$10349,4,FALSE)) -> 1369 | G88: Wireless | I88: 100Mbs | L88: Other district or school site | M88: Castro Valley Unified | O88: =VLOOKUP(A88,pubschls!$A$1:$AD$11703,28,FALSE) -> Unified School District | P88: =VLOOKUP(A88,pubschls!$A$1:$AD$11703,30,FALSE) -> Intermediate/Middle Schools (Public) | Q88: =VLOOKUP(A88,pubschls!$A$1:$AD$11703,24,FALSE) -> N
A89: 01611506113005 | B89: Jensen Ranch Elementary | C89: School | D89: Alameda | E89: 4 | F89: =IF(ISERROR(VLOOKUP(A89,Enrollment!$C$4:$F$10349,4,FALSE)),"",VLOOKUP(A89,Enrollment!$C$4:$F$10349,4,FALSE)) -> 411 | G89: Carrier Ethernet (e.g. - OptiMan, MetroEthernet) | I89: 100Mbs | J89: AT&T | L89: Other district or school site | M89: Castro Valley Unified | O89: =VLOOKUP(A89,pubschls!$A$1:$AD$11703,28,FALSE) -> Unified School District | P89: =VLOOKUP(A89,pubschls!$A$1:$AD$11703,30,FALSE) -> Elementary Schools (Public) | Q89: =VLOOKUP(A89,pubschls!$A$1:$AD$11703,24,FALSE) -> N
A90: 01611680000000 | B90: Emery Unified | C90: District | D90: Alameda | E90: 4 | F90: =IF(ISERROR(VLOOKUP(A90,Enrollment!$C$4:$F$10349,4,FALSE)),"",VLOOKUP(A90,Enrollment!$C$4:$F$10349,4,FALSE)) ->  | G90: Carrier Ethernet (e.g. - OptiMan, MetroEthernet) | I90: > T-1 < 10Mbs | J90: AT&T | L90: K12HSN node site | M90: Alameda County Office of Education | O90: =VLOOKUP(A90,pubschls!$A$1:$AD$11703,28,FALSE) -> Unified School District | P90: =VLOOKUP(A90,pubschls!$A$1:$AD$11703,30,FALSE) -> 0 | Q90: =VLOOKUP(A90,pubschls!$A$1:$AD$11703,24,FALSE) -> 0
A91: 01611680132746 | B91: Emery Secondary | C91: School | D91: Alameda | E91: 4 | F91: =IF(ISERROR(VLOOKUP(A91,Enrollment!$C$4:$F$10349,4,FALSE)),"",VLOOKUP(A91,Enrollment!$C$4:$F$10349,4,FALSE)) -> 223 | G91: Carrier Ethernet (e.g. - OptiMan, MetroEthernet) | I91: 1Gbs | J91: AT&T | L91: K12HSN node site | M91: Alameda County Office of Education | O91: =VLOOKUP(A91,pubschls!$A$1:$AD$11703,28,FALSE) -> Unified School District | P91: =VLOOKUP(A91,pubschls!$A$1:$AD$11703,30,FALSE) -> High Schools (Public) | Q91: =VLOOKUP(A91,pubschls!$A$1:$AD$11703,24,FALSE) -> N
A92: 01611686090492 | B92: Anna Yates Elementary | C92: School | D92: Alameda | E92: 4 | F92: =IF(ISERROR(VLOOKUP(A92,Enrollment!$C$4:$F$10349,4,FALSE)),"",VLOOKUP(A92,Enrollment!$C$4:$F$10349,4,FALSE)) -> 526 | I92: 1Gbs | J92: AT&T | L92: Other district or school site | M92: Emery Unified | O92: =VLOOKUP(A92,pubschls!$A$1:$AD$11703,28,FALSE) -> Unified School District | P92: =VLOOKUP(A92,pubschls!$A$1:$AD$11703,30,FALSE) -> Elementary Schools (Public) | Q92: =VLOOKUP(A92,pubschls!$A$1:$AD$11703,24,FALSE) -> N
A93: 01611760000000 | B93: Fremont Unified | C93: District | D93: Alameda | E93: 4 | F93: =IF(ISERROR(VLOOKUP(A93,Enrollment!$C$4:$F$10349,4,FALSE)),"",VLOOKUP(A93,Enrollment!$C$4:$F$10349,4,FALSE)) ->  | G93: Carrier Ethernet (e.g. - OptiMan, MetroEthernet) | I93: > 45Mbs < 100Mbs | J93: AT&T | L93: K12HSN node site | M93: Alameda County Office of Education | O93: =VLOOKUP(A93,pubschls!$A$1:$AD$11703,28,FALSE) -> Unified School District | P93: =VLOOKUP(A93,pubschls!$A$1:$AD$11703,30,FALSE) -> 0 | Q93: =VLOOKUP(A93,pubschls!$A$1:$AD$11703,24,FALSE) -> 0
A94: 01611760127233 | B94: =IF(C94="District",VLOOKUP(A94,pubschls!$A$1:$H$11703,7,FALSE),VLOOKUP(A94,pubschls!$A$1:$H$11703,8,FALSE)) -> Young Adult Program | C94: =IF(ISBLANK(A94),"",IF(RIGHT(A94,7)="0000000","District","School")) -> School | D94: =VLOOKUP(A94,pubschls!$A$1:$G$11703,6,FALSE) -> Alameda | F94: =IF(ISERROR(VLOOKUP(A94,Enrollment!$C$4:$F$10349,4,FALSE)),"",VLOOKUP(A94,Enrollment!$C$4:$F$10349,4,FALSE)) -> 23 | O94: =VLOOKUP(A94,pubschls!$A$1:$AD$11703,28,FALSE) -> Unified School District | P94: =VLOOKUP(A94,pubschls!$A$1:$AD$11703,30,FALSE) -> Special Education Schools (Public) | Q94: =VLOOKUP(A94,pubschls!$A$1:$AD$11703,24,FALSE) -> N
A95: 01611760128298 | B95: =IF(C95="District",VLOOKUP(A95,pubschls!$A$1:$H$11703,7,FALSE),VLOOKUP(A95,pubschls!$A$1:$H$11703,8,FALSE)) -> Glankler Learning Center | C95: =IF(ISBLANK(A95),"",IF(RIGHT(A95,7)="0000000","District","School")) -> School | D95: =VLOOKUP(A95,pubschls!$A$1:$G$11703,6,FALSE) -> Alameda | F95: =IF(ISERROR(VLOOKUP(A95,Enrollment!$C$4:$F$10349,4,FALSE)),"",VLOOKUP(A95,Enrollment!$C$4:$F$10349,4,FALSE)) ->  | O95: =VLOOKUP(A95,pubschls!$A$1:$AD$11703,28,FALSE) -> Unified School District | P95: =VLOOKUP(A95,pubschls!$A$1:$AD$11703,30,FALSE) -> Special Education Schools (Public) | Q95: =VLOOKUP(A95,pubschls!$A$1:$AD$11703,24,FALSE) -> N
A96: 01611760130062 | B96: American High | C96: School | D96: Alameda | E96: 4 | F96: =IF(ISERROR(VLOOKUP(A96,Enrollment!$C$4:$F$10349,4,FALSE)),"",VLOOKUP(A96,Enrollment!$C$4:$F$10349,4,FALSE)) -> 1944 | G96: Carrier Ethernet (e.g. - OptiMan, MetroEthernet) | H96: Cable | I96: 1Gbs | J96: AT&T | L96: Other district or school site | M96: Fremont Unified | O96: =VLOOKUP(A96,pubschls!$A$1:$AD$11703,28,FALSE) -> Unified School District | P96: =VLOOKUP(A96,pubschls!$A$1:$AD$11703,30,FALSE) -> High Schools (Public) | Q96: =VLOOKUP(A96,pubschls!$A$1:$AD$11703,24,FALSE) -> N
A97: 01611760130138 | B97: Robertson High (Continuation) | C97: School | D97: Alameda | E97: 4 | F97: =IF(ISERROR(VLOOKUP(A97,Enrollment!$C$4:$F$10349,4,FALSE)),"",VLOOKUP(A97,Enrollment!$C$4:$F$10349,4,FALSE)) -> 249 | G97: Carrier Ethernet (e.g. - OptiMan, MetroEthernet) | H97: Cable | I97: > 10Mbs < 45Mbs | J97: AT&T | L97: Other district or school site | M97: Fremont Unified | O97: =VLOOKUP(A97,pubschls!$A$1:$AD$11703,28,FALSE) -> Unified School District | P97: =VLOOKUP(A97,pubschls!$A$1:$AD$11703,30,FALSE) -> Continuation High Schools | Q97: =VLOOKUP(A97,pubschls!$A$1:$AD$11703,24,FALSE) -> N
A98: 01611760130435 | B98: Vista Alternative | C98: School | D98: Alameda | E98: 4 | F98: =IF(ISERROR(VLOOKUP(A98,Enrollment!$C$4:$F$10349,4,FALSE)),"",VLOOKUP(A98,Enrollment!$C$4:$F$10349,4,FALSE)) -> 86 | G98: Carrier Ethernet (e.g. - OptiMan, MetroEthernet) | I98: 10Mbs | J98: AT&T | O98: =VLOOKUP(A98,pubschls!$A$1:$AD$11703,28,FALSE) -> Unified School District | P98: =VLOOKUP(A98,pubschls!$A$1:$AD$11703,30,FALSE) -> Alternative Schools of Choice | Q98: =VLOOKUP(A98,pubschls!$A$1:$AD$11703,24,FALSE) -> N
A99: 01611760130534 | B99: Circle of Independent Learning | C99: School | D99: Alameda | E99: 4 | F99: =IF(ISERROR(VLOOKUP(A99,Enrollment!$C$4:$F$10349,4,FALSE)),"",VLOOKUP(A99,Enrollment!$C$4:$F$10349,4,FALSE)) -> 253 | G99: Point-to-point | I99: T-1 | L99: Other school | M99: Robertson High (Continuation) | O99: =VLOOKUP(A99,pubschls!$A$1:$AD$11703,28,FALSE) -> Unified School District | P99: =VLOOKUP(A99,pubschls!$A$1:$AD$11703,30,FALSE) -> K-12 Schools (Public) | Q99: =VLOOKUP(A99,pubschls!$A$1:$AD$11703,24,FALSE) -> Y
A100: 01611760133108 | B100: Fremont Adult | C100: School | D100: Alameda | E100: 4 | F100: =IF(ISERROR(VLOOKUP(A100,Enrollment!$C$4:$F$10349,4,FALSE)),"",VLOOKUP(A100,Enrollment!$C$4:$F$10349,4,FALSE)) ->  | G100: Point-to-point | I100: > 10Mbs < 45Mbs | J100: ComCast | L100: Other district or school site | M100: Fremont Unified | O100: =VLOOKUP(A100,pubschls!$A$1:$AD$11703,28,FALSE) -> Unified School District | P100: =VLOOKUP(A100,pubschls!$A$1:$AD$11703,30,FALSE) -> Adult Education Centers | Q100: =VLOOKUP(A100,pubschls!$A$1:$AD$11703,24,FALSE) -> N
A101: 01611760134270 | B101: Irvington High | C101: School | D101: Alameda | E101: 4 | F101: =IF(ISERROR(VLOOKUP(A101,Enrollment!$C$4:$F$10349,4,FALSE)),"",VLOOKUP(A101,Enrollment!$C$4:$F$10349,4,FALSE)) -> 2129 | G101: Carrier Ethernet (e.g. - OptiMan, MetroEthernet) | H101: Cable | I101: 1Gbs | J101: AT&T | L101: Other district or school site | M101: Fremont Unified | O101: =VLOOKUP(A101,pubschls!$A$1:$AD$11703,28,FALSE) -> Unified School District | P101: =VLOOKUP(A101,pubschls!$A$1:$AD$11703,30,FALSE) -> High Schools (Public) | Q101: =VLOOKUP(A101,pubschls!$A$1:$AD$11703,24,FALSE) -> N
A102: 01611760134452 | B102: John F. Kennedy High | C102: School | D102: Alameda | E102: 4 | F102: =IF(ISERROR(VLOOKUP(A102,Enrollment!$C$4:$F$10349,4,FALSE)),"",VLOOKUP(A102,Enrollment!$C$4:$F$10349,4,FALSE)) -> 1417 | G102: Carrier Ethernet (e.g. - OptiMan, MetroEthernet) | H102: Cable | I102: 1Gbs | J102: AT&T | L102: Other district or school site | M102: Fremont Unified | O102: =VLOOKUP(A102,pubschls!$A$1:$AD$11703,28,FALSE) -> Unified School District | P102: =VLOOKUP(A102,pubschls!$A$1:$AD$11703,30,FALSE) -> High Schools (Public) | Q102: =VLOOKUP(A102,pubschls!$A$1:$AD$11703,24,FALSE) -> N
A103: 01611760135244 | B103: Mission San Jose High | C103: School | D103: Alameda | E103: 4 | F103: =IF(ISERROR(VLOOKUP(A103,Enrollment!$C$4:$F$10349,4,FALSE)),"",VLOOKUP(A103,Enrollment!$C$4:$F$10349,4,FALSE)) -> 2217 | G103: Carrier Ethernet (e.g. - OptiMan, MetroEthernet) | H103: Cable | I103: 1Gbs | J103: AT&T | L103: Other district or school site | M103: Fremont Unified | O103: =VLOOKUP(A103,pubschls!$A$1:$AD$11703,28,FALSE) -> Unified School District | P103: =VLOOKUP(A103,pubschls!$A$1:$AD$11703,30,FALSE) -> High Schools (Public) | Q103: =VLOOKUP(A103,pubschls!$A$1:$AD$11703,24,FALSE) -> N
A104: 01611760138693 | B104: Washington High | C104: School | D104: Alameda | E104: 4 | F104: =IF(ISERROR(VLOOKUP(A104,Enrollment!$C$4:$F$10349,4,FALSE)),"",VLOOKUP(A104,Enrollment!$C$4:$F$10349,4,FALSE)) -> 1876 | G104: Carrier Ethernet (e.g. - OptiMan, MetroEthernet) | H104: Cable | I104: 1Gbs | J104: AT&T | L104: Other district or school site | M104: Fremont Unified | O104: =VLOOKUP(A104,pubschls!$A$1:$AD$11703,28,FALSE) -> Unified School District | P104: =VLOOKUP(A104,pubschls!$A$1:$AD$11703,30,FALSE) -> High Schools (Public) | Q104: =VLOOKUP(A104,pubschls!$A$1:$AD$11703,24,FALSE) -> N
A105: 01611766000541 | B105: John Blacow Elementary | C105: School | D105: Alameda | E105: 4 | F105: =IF(ISERROR(VLOOKUP(A105,Enrollment!$C$4:$F$10349,4,FALSE)),"",VLOOKUP(A105,Enrollment!$C$4:$F$10349,4,FALSE)) -> 511 | G105: Point-to-point | H105: Cable | I105: > 10Mbs < 45Mbs | J105: AT&T | L105: Other district or school site | M105: Fremont Unified | O105: =VLOOKUP(A105,pubschls!$A$1:$AD$11703,28,FALSE) -> Unified School District | P105: =VLOOKUP(A105,pubschls!$A$1:$AD$11703,30,FALSE) -> Elementary Schools (Public) | Q105: =VLOOKUP(A105,pubschls!$A$1:$AD$11703,24,FALSE) -> N
A106: 01611766000558 | B106: Brier Elementary | C106: School | D106: Alameda | E106: 4 | F106: =IF(ISERROR(VLOOKUP(A106,Enrollment!$C$4:$F$10349,4,FALSE)),"",VLOOKUP(A106,Enrollment!$C$4:$F$10349,4,FALSE)) -> 714 | G106: Point-to-point | H106: Cable | I106: > 10Mbs < 45Mbs | J106: AT&T | L106: Other district or school site | M106: Fremont Unified | O106: =VLOOKUP(A106,pubschls!$A$1:$AD$11703,28,FALSE) -> Unified School District | P106: =VLOOKUP(A106,pubschls!$A$1:$AD$11703,30,FALSE) -> Elementary Schools (Public) | Q106: =VLOOKUP(A106,pubschls!$A$1:$AD$11703,24,FALSE) -> N
A107: 01611766000566 | B107: Cabrillo Elementary | C107: School | D107: Alameda | E107: 4 | F107: =IF(ISERROR(VLOOKUP(A107,Enrollment!$C$4:$F$10349,4,FALSE)),"",VLOOKUP(A107,Enrollment!$C$4:$F$10349,4,FALSE)) -> 397 | G107: Point-to-point | H107: Cable | I107: > 10Mbs < 45Mbs | J107: AT&T | L107: Other district or school site | M107: Fremont Unified | O107: =VLOOKUP(A107,pubschls!$A$1:$AD$11703,28,FALSE) -> Unified School District | P107: =VLOOKUP(A107,pubschls!$A$1:$AD$11703,30,FALSE) -> Elementary Schools (Public) | Q107: =VLOOKUP(A107,pubschls!$A$1:$AD$11703,24,FALSE) -> N
A108: 01611766000590 | B108: E. M. Grimmer Elementary | C108: School | D108: Alameda | E108: 4 | F108: =IF(ISERROR(VLOOKUP(A108,Enrollment!$C$4:$F$10349,4,FALSE)),"",VLOOKUP(A108,Enrollment!$C$4:$F$10349,4,FALSE)) -> 379 | G108: Point-to-point | H108: Cable | I108: > 10Mbs < 45Mbs | J108: AT&T | L108: Other district or school site | M108: Fremont Unified | O108: =VLOOKUP(A108,pubschls!$A$1:$AD$11703,28,FALSE) -> Unified School District | P108: =VLOOKUP(A108,pubschls!$A$1:$AD$11703,30,FALSE) -> Elementary Schools (Public) | Q108: =VLOOKUP(A108,pubschls!$A$1:$AD$11703,24,FALSE) -> N
A109: 01611766000624 | B109: Glenmoor Elementary | C109: School | D109: Alameda | E109: 4 | F109: =IF(ISERROR(VLOOKUP(A109,Enrollment!$C$4:$F$10349,4,FALSE)),"",VLOOKUP(A109,Enrollment!$C$4:$F$10349,4,FALSE)) -> 664 | G109: Point-to-point | H109: Cable | I109: > 10Mbs < 45Mbs | J109: AT&T | L109: Other district or school site | M109: Fremont Unified | O109: =VLOOKUP(A109,pubschls!$A$1:$AD$11703,28,FALSE) -> Unified School District | P109: =VLOOKUP(A109,pubschls!$A$1:$AD$11703,30,FALSE) -> Elementary Schools (Public) | Q109: =VLOOKUP(A109,pubschls!$A$1:$AD$11703,24,FALSE) -> N
A110: 01611766000640 | B110: Harvey Green Elementary | C110: School | D110: Alameda | E110: 4 | F110: =IF(ISERROR(VLOOKUP(A110,Enrollment!$C$4:$F$10349,4,FALSE)),"",VLOOKUP(A110,Enrollment!$C$4:$F$10349,4,FALSE)) -> 444 | G110: Point-to-point | H110: Cable | I110: > 10Mbs < 45Mbs | J110: AT&T | L110: Other district or school site | M110: Fremont Unified | O110: =VLOOKUP(A110,pubschls!$A$1:$AD$11703,28,FALSE) -> Unified School District | P110: =VLOOKUP(A110,pubschls!$A$1:$AD$11703,30,FALSE) -> Elementary Schools (Public) | Q110: =VLOOKUP(A110,pubschls!$A$1:$AD$11703,24,FALSE) -> N
A111: 01611766000665 | B111: J. Haley Durham Elementary | C111: School | D111: Alameda | E111: 4 | F111: =IF(ISERROR(VLOOKUP(A111,Enrollment!$C$4:$F$10349,4,FALSE)),"",VLOOKUP(A111,Enrollment!$C$4:$F$10349,4,FALSE)) -> 455 | G111: Point-to-point | H111: Cable | I111: > 10Mbs < 45Mbs | J111: AT&T | L111: Other district or school site | M111: Fremont Unified | O111: =VLOOKUP(A111,pubschls!$A$1:$AD$11703,28,FALSE) -> Unified School District | P111: =VLOOKUP(A111,pubschls!$A$1:$AD$11703,30,FALSE) -> Elementary Schools (Public) | Q111: =VLOOKUP(A111,pubschls!$A$1:$AD$11703,24,FALSE) -> N
A112: 01611766000673 | B112: James Leitch Elementary | C112: School | D112: Alameda | E112: 4 | F112: =IF(ISERROR(VLOOKUP(A112,Enrollment!$C$4:$F$10349,4,FALSE)),"",VLOOKUP(A112,Enrollment!$C$4:$F$10349,4,FALSE)) -> 891 | G112: Point-to-point | H112: Frame Relay | I112: > 10Mbs < 45Mbs | J112: AT&T | L112: Other district or school site | M112: Fremont Unified | O112: =VLOOKUP(A112,pubschls!$A$1:$AD$11703,28,FALSE) -> Unified School District | P112: =VLOOKUP(A112,pubschls!$A$1:$AD$11703,30,FALSE) -> Elementary Schools (Public) | Q112: =VLOOKUP(A112,pubschls!$A$1:$AD$11703,24,FALSE) -> N
A113: 01611766000681 | B113: Joseph Azevada Elementary | C113: School | D113: Alameda | E113: 4 | F113: =IF(ISERROR(VLOOKUP(A113,Enrollment!$C$4:$F$10349,4,FALSE)),"",VLOOKUP(A113,Enrollment!$C$4:$F$10349,4,FALSE)) -> 507 | G113: Point-to-point | H113: Cable | I113: > 10Mbs < 45Mbs | J113: AT&T | L113: Other district or school site | M113: Fremont Unified | O113: =VLOOKUP(A113,pubschls!$A$1:$AD$11703,28,FALSE) -> Unified School District | P113: =VLOOKUP(A113,pubschls!$A$1:$AD$11703,30,FALSE) -> Elementary Schools (Public) | Q113: =VLOOKUP(A113,pubschls!$A$1:$AD$11703,24,FALSE) -> N
A114: 01611766000715 | B114: Tom Maloney Elementary | C114: School | D114: Alameda | E114: 4 | F114: =IF(ISERROR(VLOOKUP(A114,Enrollment!$C$4:$F$10349,4,FALSE)),"",VLOOKUP(A114,Enrollment!$C$4:$F$10349,4,FALSE)) -> 604 | G114: Point-to-point | H114: Cable | I114: > 10Mbs < 45Mbs | J114: AT&T | L114: Other district or school site | M114: Fremont Unified | O114: =VLOOKUP(A114,pubschls!$A$1:$AD$11703,28,FALSE) -> Unified School District | P114: =VLOOKUP(A114,pubschls!$A$1:$AD$11703,30,FALSE) -> Elementary Schools (Public) | Q114: =VLOOKUP(A114,pubschls!$A$1:$AD$11703,24,FALSE) -> N
A115: 01611766000723 | B115: John G. Mattos Elementary | C115: School | D115: Alameda | E115: 4 | F115: =IF(ISERROR(VLOOKUP(A115,Enrollment!$C$4:$F$10349,4,FALSE)),"",VLOOKUP(A115,Enrollment!$C$4:$F$10349,4,FALSE)) -> 580 | G115: Point-to-point | H115: Cable | I115: > 10Mbs < 45Mbs | J115: AT&T | L115: Other district or school site | M115: Fremont Unified | O115: =VLOOKUP(A115,pubschls!$A$1:$AD$11703,28,FALSE) -> Unified School District | P115: =VLOOKUP(A115,pubschls!$A$1:$AD$11703,30,FALSE) -> Elementary Schools (Public) | Q115: =VLOOKUP(A115,pubschls!$A$1:$AD$11703,24,FALSE) -> N
A116: 01611766000749 | B116: Mission Valley Elementary | C116: School | D116: Alameda | E116: 4 | F116: =IF(ISERROR(VLOOKUP(A116,Enrollment!$C$4:$F$10349,4,FALSE)),"",VLOOKUP(A116,Enrollment!$C$4:$F$10349,4,FALSE)) -> 683 | G116: Point-to-point | H116: Cable | I116: 10Mbs | J116: AT&T | L116: Other district or school site | M116: Fremont Unified | O116: =VLOOKUP(A116,pubschls!$A$1:$AD$11703,28,FALSE) -> Unified School District | P116: =VLOOKUP(A116,pubschls!$A$1:$AD$11703,30,FALSE) -> Elementary Schools (Public) | Q116: =VLOOKUP(A116,pubschls!$A$1:$AD$11703,24,FALSE) -> N
A117: 01611766000756 | B117: Niles Elementary | C117: School | D117: Alameda | E117: 4 | F117: =IF(ISERROR(VLOOKUP(A117,Enrollment!$C$4:$F$10349,4,FALSE)),"",VLOOKUP(A117,Enrollment!$C$4:$F$10349,4,FALSE)) -> 567 | G117: Point-to-point | H117: Cable | I117: > 10Mbs < 45Mbs | J117: AT&T | L117: Other district or school site | M117: Fremont Unified | O117: =VLOOKUP(A117,pubschls!$A$1:$AD$11703,28,FALSE) -> Unified School District | P117: =VLOOKUP(A117,pubschls!$A$1:$AD$11703,30,FALSE) -> Elementary Schools (Public) | Q117: =VLOOKUP(A117,pubschls!$A$1:$AD$11703,24,FALSE) -> N
A118: 01611766000764 | B118: O. N. Hirsch Elementary | C118: School | D118: Alameda | E118: 4 | F118: =IF(ISERROR(VLOOKUP(A118,Enrollment!$C$4:$F$10349,4,FALSE)),"",VLOOKUP(A118,Enrollment!$C$4:$F$10349,4,FALSE)) -> 502 | G118: Point-to-point | H118: Cable | I118: > 10Mbs < 45Mbs | J118: AT&T | L118: Other district or school site | M118: Fremont Unified | O118: =VLOOKUP(A118,pubschls!$A$1:$AD$11703,28,FALSE) -> Unified School District | P118: =VLOOKUP(A118,pubschls!$A$1:$AD$11703,30,FALSE) -> Elementary Schools (Public) | Q118: =VLOOKUP(A118,pubschls!$A$1:$AD$11703,24,FALSE) -> N
A119: 01611766000798 | B119: Parkmont Elementary | C119: School | D119: Alameda | E119: 4 | F119: =IF(ISERROR(VLOOKUP(A119,Enrollment!$C$4:$F$10349,4,FALSE)),"",VLOOKUP(A119,Enrollment!$C$4:$F$10349,4,FALSE)) -> 890 | G119: Point-to-point | H119: Cable | I119: > 10Mbs < 45Mbs | J119: AT&T | L119: Other district or school site | M119: Fremont Unified | O119: =VLOOKUP(A119,pubschls!$A$1:$AD$11703,28,FALSE) -> Unified School District | P119: =VLOOKUP(A119,pubschls!$A$1:$AD$11703,30,FALSE) -> Elementary Schools (Public) | Q119: =VLOOKUP(A119,pubschls!$A$1:$AD$11703,24,FALSE) -> N
A120: 01611766000806 | B120: Patterson Elementary | C120: School | D120: Alameda | E120: 4 | F120: =IF(ISERROR(VLOOKUP(A120,Enrollment!$C$4:$F$10349,4,FALSE)),"",VLOOKUP(A120,Enrollment!$C$4:$F$10349,4,FALSE)) -> 609 | G120: Point-to-point | H120: Cable | I120: > 10Mbs < 45Mbs | J120: AT&T | L120: Other district or school site | M120: Fremont Unified | O120: =VLOOKUP(A120,pubschls!$A$1:$AD$11703,28,FALSE) -> Unified School District | P120: =VLOOKUP(A120,pubschls!$A$1:$AD$11703,30,FALSE) -> Elementary Schools (Public) | Q120: =VLOOKUP(A120,pubschls!$A$1:$AD$11703,24,FALSE) -> N
A121: 01611766000830 | B121: Vallejo Mill Elementary | C121: School | D121: Alameda | E121: 4 | F121: =IF(ISERROR(VLOOKUP(A121,Enrollment!$C$4:$F$10349,4,FALSE)),"",VLOOKUP(A121,Enrollment!$C$4:$F$10349,4,FALSE)) -> 538 | G121: Point-to-point | H121: Cable | I121: > 10Mbs < 45Mbs | J121: AT&T | L121: Other district or school site | M121: Fremont Unified | O121: =VLOOKUP(A121,pubschls!$A$1:$AD$11703,28,FALSE) -> Unified School District | P121: =VLOOKUP(A121,pubschls!$A$1:$AD$11703,30,FALSE) -> Elementary Schools (Public) | Q121: =VLOOKUP(A121,pubschls!$A$1:$AD$11703,24,FALSE) -> N
A122: 01611766000848 | B122: Warm Springs Elementary | C122: School | D122: Alameda | E122: 4 | F122: =IF(ISERROR(VLOOKUP(A122,Enrollment!$C$4:$F$10349,4,FALSE)),"",VLOOKUP(A122,Enrollment!$C$4:$F$10349,4,FALSE)) -> 931 | G122: Point-to-point | H122: Cable | I122: > 10Mbs < 45Mbs | J122: AT&T | L122: Other district or school site | M122: Fremont Unified | O122: =VLOOKUP(A122,pubschls!$A$1:$AD$11703,28,FALSE) -> Unified School District | P122: =VLOOKUP(A122,pubschls!$A$1:$AD$11703,30,FALSE) -> Elementary Schools (Public) | Q122: =VLOOKUP(A122,pubschls!$A$1:$AD$11703,24,FALSE) -> N
A123: 01611766056873 | B123: Centerville Junior High | C123: School | D123: Alameda | E123: 4 | F123: =IF(ISERROR(VLOOKUP(A123,Enrollment!$C$4:$F$10349,4,FALSE)),"",VLOOKUP(A123,Enrollment!$C$4:$F$10349,4,FALSE)) -> 917 | G123: Carrier Ethernet (e.g. - OptiMan, MetroEthernet) | H123: Cable | I123: 100Mbs | J123: AT&T | L123: Other district or school site | M123: Fremont Unified | O123: =VLOOKUP(A123,pubschls!$A$1:$AD$11703,28,FALSE) -> Unified School District | P123: =VLOOKUP(A123,pubschls!$A$1:$AD$11703,30,FALSE) -> Intermediate/Middle Schools (Public) | Q123: =VLOOKUP(A123,pubschls!$A$1:$AD$11703,24,FALSE) -> N
A124: 01611766056881 | B124: G. M. Walters Junior High | C124: School | D124: Alameda | E124: 4 | F124: =IF(ISERROR(VLOOKUP(A124,Enrollment!$C$4:$F$10349,4,FALSE)),"",VLOOKUP(A124,Enrollment!$C$4:$F$10349,4,FALSE)) -> 763 | G124: Carrier Ethernet (e.g. - OptiMan, MetroEthernet) | H124: Cable | I124: 100Mbs | J124: AT&T | L124: Other district or school site | M124: Fremont Unified | O124: =VLOOKUP(A124,pubschls!$A$1:$AD$11703,28,FALSE) -> Unified School District | P124: =VLOOKUP(A124,pubschls!$A$1:$AD$11703,30,FALSE) -> Intermediate/Middle Schools (Public) | Q124: =VLOOKUP(A124,pubschls!$A$1:$AD$11703,24,FALSE) -> N
A125: 01611766056907 | B125: John M. Horner Junior High | C125: School | D125: Alameda | E125: 4 | F125: =IF(ISERROR(VLOOKUP(A125,Enrollment!$C$4:$F$10349,4,FALSE)),"",VLOOKUP(A125,Enrollment!$C$4:$F$10349,4,FALSE)) -> 1016 | G125: Carrier Ethernet (e.g. - OptiMan, MetroEthernet) | H125: Cable | I125: 100Mbs | J125: AT&T | L125: Other district or school site | M125: Fremont Unified | O125: =VLOOKUP(A125,pubschls!$A$1:$AD$11703,28,FALSE) -> Unified School District | P125: =VLOOKUP(A125,pubschls!$A$1:$AD$11703,30,FALSE) -> Intermediate/Middle Schools (Public) | Q125: =VLOOKUP(A125,pubschls!$A$1:$AD$11703,24,FALSE) -> N
A126: 01611766056915 | B126: Thornton Junior High | C126: School | D126: Alameda | E126: 4 | F126: =IF(ISERROR(VLOOKUP(A126,Enrollment!$C$4:$F$10349,4,FALSE)),"",VLOOKUP(A126,Enrollment!$C$4:$F$10349,4,FALSE)) -> 1041 | G126: Carrier Ethernet (e.g. - OptiMan, MetroEthernet) | H126: Cable | I126: 100Mbs | J126: AT&T | L126: Other district or school site | M126: Fremont Unified | O126: =VLOOKUP(A126,pubschls!$A$1:$AD$11703,28,FALSE) -> Unified School District | P126: =VLOOKUP(A126,pubschls!$A$1:$AD$11703,30,FALSE) -> Intermediate/Middle Schools (Public) | Q126: =VLOOKUP(A126,pubschls!$A$1:$AD$11703,24,FALSE) -> N
A127: 01611766056923 | B127: William Hopkins Junior High | C127: School | D127: Alameda | E127: 4 | F127: =IF(ISERROR(VLOOKUP(A127,Enrollment!$C$4:$F$10349,4,FALSE)),"",VLOOKUP(A127,Enrollment!$C$4:$F$10349,4,FALSE)) -> 1038 | G127: Carrier Ethernet (e.g. - OptiMan, MetroEthernet) | H127: Cable | I127: 100Mbs | J127: AT&T | L127: Other district or school site | M127: Fremont Unified | O127: =VLOOKUP(A127,pubschls!$A$1:$AD$11703,28,FALSE) -> Unified School District | P127: =VLOOKUP(A127,pubschls!$A$1:$AD$11703,30,FALSE) -> Intermediate/Middle Schools (Public) | Q127: =VLOOKUP(A127,pubschls!$A$1:$AD$11703,24,FALSE) -> N
A128: 01611766066468 | B128: John Gomes Elementary | C128: School | D128: Alameda | E128: 4 | F128: =IF(ISERROR(VLOOKUP(A128,Enrollment!$C$4:$F$10349,4,FALSE)),"",VLOOKUP(A128,Enrollment!$C$4:$F$10349,4,FALSE)) -> 775 | G128: Point-to-point | H128: Cable | I128: > 10Mbs < 45Mbs | J128: AT&T | L128: Other district or school site | M128: Fremont Unified | O128: =VLOOKUP(A128,pubschls!$A$1:$AD$11703,28,FALSE) -> Unified School District | P128: =VLOOKUP(A128,pubschls!$A$1:$AD$11703,30,FALSE) -> Elementary Schools (Public) | Q128: =VLOOKUP(A128,pubschls!$A$1:$AD$11703,24,FALSE) -> N
A129: 01611766089320 | B129: Brookvale Elementary | C129: School | D129: Alameda | E129: 4 | F129: =IF(ISERROR(VLOOKUP(A129,Enrollment!$C$4:$F$10349,4,FALSE)),"",VLOOKUP(A129,Enrollment!$C$4:$F$10349,4,FALSE)) -> 580 | G129: Point-to-point | H129: Cable | I129: > 10Mbs < 45Mbs | J129: AT&T | L129: Other district or school site | M129: Fremont Unified | O129: =VLOOKUP(A129,pubschls!$A$1:$AD$11703,28,FALSE) -> Unified School District | P129: =VLOOKUP(A129,pubschls!$A$1:$AD$11703,30,FALSE) -> Elementary Schools (Public) | Q129: =VLOOKUP(A129,pubschls!$A$1:$AD$11703,24,FALSE) -> N
A130: 01611766089619 | B130: Warwick Elementary | C130: School | D130: Alameda | E130: 4 | F130: =IF(ISERROR(VLOOKUP(A130,Enrollment!$C$4:$F$10349,4,FALSE)),"",VLOOKUP(A130,Enrollment!$C$4:$F$10349,4,FALSE)) -> 836 | G130: Point-to-point | H130: Cable | I130: > 10Mbs < 45Mbs | J130: AT&T | L130: Other district or school site | M130: Fremont Unified | O130: =VLOOKUP(A130,pubschls!$A$1:$AD$11703,28,FALSE) -> Unified School District | P130: =VLOOKUP(A130,pubschls!$A$1:$AD$11703,30,FALSE) -> Elementary Schools (Public) | Q130: =VLOOKUP(A130,pubschls!$A$1:$AD$11703,24,FALSE) -> N
A131: 01611766090526 | B131: Joshua Chadbourne Elementary | C131: School | D131: Alameda | E131: 4 | F131: =IF(ISERROR(VLOOKUP(A131,Enrollment!$C$4:$F$10349,4,FALSE)),"",VLOOKUP(A131,Enrollment!$C$4:$F$10349,4,FALSE)) -> 798 | G131: Point-to-point | H131: Cable | I131: > 10Mbs < 45Mbs | J131: AT&T | L131: Other district or school site | M131: Fremont Unified | O131: =VLOOKUP(A131,pubschls!$A$1:$AD$11703,28,FALSE) -> Unified School District | P131: =VLOOKUP(A131,pubschls!$A$1:$AD$11703,30,FALSE) -> Elementary Schools (Public) | Q131: =VLOOKUP(A131,pubschls!$A$1:$AD$11703,24,FALSE) -> N
A132: 01611766090534 | B132: Mission San Jose Elementary | C132: School | D132: Alameda | E132: 4 | F132: =IF(ISERROR(VLOOKUP(A132,Enrollment!$C$4:$F$10349,4,FALSE)),"",VLOOKUP(A132,Enrollment!$C$4:$F$10349,4,FALSE)) -> 650 | G132: Point-to-point | H132: Cable | I132: > 10Mbs < 45Mbs | J132: AT&T | L132: Other district or school site | M132: Fremont Unified | O132: =VLOOKUP(A132,pubschls!$A$1:$AD$11703,28,FALSE) -> Unified School District | P132: =VLOOKUP(A132,pubschls!$A$1:$AD$11703,30,FALSE) -> Elementary Schools (Public) | Q132: =VLOOKUP(A132,pubschls!$A$1:$AD$11703,24,FALSE) -> N
A133: 01611766090542 | B133: Oliveira Elementary | C133: School | D133: Alameda | E133: 4 | F133: =IF(ISERROR(VLOOKUP(A133,Enrollment!$C$4:$F$10349,4,FALSE)),"",VLOOKUP(A133,Enrollment!$C$4:$F$10349,4,FALSE)) -> 665 | G133: Point-to-point | H133: Cable | I133: > 10Mbs < 45Mbs | J133: AT&T | L133: Other district or school site | M133: Fremont Unified | O133: =VLOOKUP(A133,pubschls!$A$1:$AD$11703,28,FALSE) -> Unified School District | P133: =VLOOKUP(A133,pubschls!$A$1:$AD$11703,30,FALSE) -> Elementary Schools (Public) | Q133: =VLOOKUP(A133,pubschls!$A$1:$AD$11703,24,FALSE) -> N
A134: 01611766090559 | B134: Steven Millard Elementary | C134: School | D134: Alameda | E134: 4 | F134: =IF(ISERROR(VLOOKUP(A134,Enrollment!$C$4:$F$10349,4,FALSE)),"",VLOOKUP(A134,Enrollment!$C$4:$F$10349,4,FALSE)) -> 575 | G134: Point-to-point | H134: Cable | I134: > 10Mbs < 45Mbs | J134: AT&T | L134: Other district or school site | M134: Fremont Unified | O134: =VLOOKUP(A134,pubschls!$A$1:$AD$11703,28,FALSE) -> Unified School District | P134: =VLOOKUP(A134,pubschls!$A$1:$AD$11703,30,FALSE) -> Elementary Schools (Public) | Q134: =VLOOKUP(A134,pubschls!$A$1:$AD$11703,24,FALSE) -> N
A135: 01611766104723 | B135: Ardenwood Elementary | C135: School | D135: Alameda | E135: 4 | F135: =IF(ISERROR(VLOOKUP(A135,Enrollment!$C$4:$F$10349,4,FALSE)),"",VLOOKUP(A135,Enrollment!$C$4:$F$10349,4,FALSE)) -> 905 | G135: Point-to-point | H135: Cable | I135: > 10Mbs < 45Mbs | J135: AT&T | L135: Other district or school site | M135: Fremont Unified | O135: =VLOOKUP(A135,pubschls!$A$1:$AD$11703,28,FALSE) -> Unified School District | P135: =VLOOKUP(A135,pubschls!$A$1:$AD$11703,30,FALSE) -> Elementary Schools (Public) | Q135: =VLOOKUP(A135,pubschls!$A$1:$AD$11703,24,FALSE) -> N
A136: 01611766106983 | B136: Fred E. Weibel Elementary | C136: School | D136: Alameda | E136: 4 | F136: =IF(ISERROR(VLOOKUP(A136,Enrollment!$C$4:$F$10349,4,FALSE)),"",VLOOKUP(A136,Enrollment!$C$4:$F$10349,4,FALSE)) -> 754 | G136: Point-to-point | H136: Cable | I136: > 10Mbs < 45Mbs | J136: AT&T | L136: Other district or school site | M136: Fremont Unified | O136: =VLOOKUP(A136,pubschls!$A$1:$AD$11703,28,FALSE) -> Unified School District | P136: =VLOOKUP(A136,pubschls!$A$1:$AD$11703,30,FALSE) -> Elementary Schools (Public) | Q136: =VLOOKUP(A136,pubschls!$A$1:$AD$11703,24,FALSE) -> N
A137: 01611766111330 | B137: Forest Park Elementary | C137: School | D137: Alameda | E137: 4 | F137: =IF(ISERROR(VLOOKUP(A137,Enrollment!$C$4:$F$10349,4,FALSE)),"",VLOOKUP(A137,Enrollment!$C$4:$F$10349,4,FALSE)) -> 978 | G137: Point-to-point | H137: Cable | I137: > 10Mbs < 45Mbs | J137: ComCast | L137: Other district or school site | M137: Fremont Unified | O137: =VLOOKUP(A137,pubschls!$A$1:$AD$11703,28,FALSE) -> Unified School District | P137: =VLOOKUP(A137,pubschls!$A$1:$AD$11703,30,FALSE) -> Elementary Schools (Public) | Q137: =VLOOKUP(A137,pubschls!$A$1:$AD$11703,24,FALSE) -> N
A138: 01611920000000 | B138: Hayward Unified | C138: District | D138: Alameda | E138: 4 | F138: =IF(ISERROR(VLOOKUP(A138,Enrollment!$C$4:$F$10349,4,FALSE)),"",VLOOKUP(A138,Enrollment!$C$4:$F$10349,4,FALSE)) ->  | G138: Carrier Ethernet (e.g. - OptiMan, MetroEthernet) | I138: > 10Mbs < 45Mbs | J138: AT&T | L138: K12HSN node site | M138: Alameda County Office of Education | O138: =VLOOKUP(A138,pubschls!$A$1:$AD$11703,28,FALSE) -> Unified School District | P138: =VLOOKUP(A138,pubschls!$A$1:$AD$11703,30,FALSE) -> 0 | Q138: =VLOOKUP(A138,pubschls!$A$1:$AD$11703,24,FALSE) -> 0
A139: 01611920108670 | B139: Leadership Public Schools - Hayward | C139: School | D139: Alameda | E139: 4 | F139: =IF(ISERROR(VLOOKUP(A139,Enrollment!$C$4:$F$10349,4,FALSE)),"",VLOOKUP(A139,Enrollment!$C$4:$F$10349,4,FALSE)) -> 455 | G139: Carrier Ethernet (e.g. - OptiMan, MetroEthernet) | I139: > 155Mbs < 1Gbs | J139: Other | O139: =VLOOKUP(A139,pubschls!$A$1:$AD$11703,28,FALSE) -> Unified School District | P139: =VLOOKUP(A139,pubschls!$A$1:$AD$11703,30,FALSE) -> High Schools (Public) | Q139: =VLOOKUP(A139,pubschls!$A$1:$AD$11703,24,FALSE) -> Y
A140: 01611920111815 | B140: Stonebrae Elementary | C140: School | D140: Alameda | E140: 4 | F140: =IF(ISERROR(VLOOKUP(A140,Enrollment!$C$4:$F$10349,4,FALSE)),"",VLOOKUP(A140,Enrollment!$C$4:$F$10349,4,FALSE)) -> 738 | G140: Carrier Ethernet (e.g. - OptiMan, MetroEthernet) | I140: 10Mbs | J140: AT&T | L140: Other district or school site | M140: Hayward Unified | O140: =VLOOKUP(A140,pubschls!$A$1:$AD$11703,28,FALSE) -> Unified School District | P140: =VLOOKUP(A140,pubschls!$A$1:$AD$11703,30,FALSE) -> Elementary Schools (Public) | Q140: =VLOOKUP(A140,pubschls!$A$1:$AD$11703,24,FALSE) -> N
A141: 01611920113902 | B141: Impact Academy of Arts & Technology | C141: School | D141: Alameda | E141: 4 | F141: =IF(ISERROR(VLOOKUP(A141,Enrollment!$C$4:$F$10349,4,FALSE)),"",VLOOKUP(A141,Enrollment!$C$4:$F$10349,4,FALSE)) -> 462 | G141: Private Fiber | I141: > 10Gbps | J141: ComCast | O141: =VLOOKUP(A141,pubschls!$A$1:$AD$11703,28,FALSE) -> Unified School District | P141: =VLOOKUP(A141,pubschls!$A$1:$AD$11703,30,FALSE) -> High Schools (Public) | Q141: =VLOOKUP(A141,pubschls!$A$1:$AD$11703,24,FALSE) -> Y
A142: 01611920119248 | B142: =IF(C142="District",VLOOKUP(A142,pubschls!$A$1:$H$11703,7,FALSE),VLOOKUP(A142,pubschls!$A$1:$H$11703,8,FALSE)) -> Golden Oak Montessori of Hayward | C142: =IF(ISBLANK(A142),"",IF(RIGHT(A142,7)="0000000","District","School")) -> School | D142: =VLOOKUP(A142,pubschls!$A$1:$G$11703,6,FALSE) -> Alameda | F142: =IF(ISERROR(VLOOKUP(A142,Enrollment!$C$4:$F$10349,4,FALSE)),"",VLOOKUP(A142,Enrollment!$C$4:$F$10349,4,FALSE)) -> 182 | O142: =VLOOKUP(A142,pubschls!$A$1:$AD$11703,28,FALSE) -> Unified School District | P142: =VLOOKUP(A142,pubschls!$A$1:$AD$11703,30,FALSE) -> Elementary Schools (Public) | Q142: =VLOOKUP(A142,pubschls!$A$1:$AD$11703,24,FALSE) -> Y
A143: 01611920127696 | B143: Knowledge Enlightens You (KEY) Academy | C143: School | D143: Alameda | E143: 4 | F143: =IF(ISERROR(VLOOKUP(A143,Enrollment!$C$4:$F$10349,4,FALSE)),"",VLOOKUP(A143,Enrollment!$C$4:$F$10349,4,FALSE)) ->  | G143: Carrier Ethernet (e.g. - OptiMan, MetroEthernet) | I143: > 100Mbs < 155Mbs | J143: ComCast | O143: =VLOOKUP(A143,pubschls!$A$1:$AD$11703,28,FALSE) -> Unified School District | P143: =VLOOKUP(A143,pubschls!$A$1:$AD$11703,30,FALSE) -> Elementary Schools (Public) | Q143: =VLOOKUP(A143,pubschls!$A$1:$AD$11703,24,FALSE) -> Y
A144: 01611920133009 | B144: Brenkwitz High | C144: School | D144: Alameda | E144: 4 | F144: =IF(ISERROR(VLOOKUP(A144,Enrollment!$C$4:$F$10349,4,FALSE)),"",VLOOKUP(A144,Enrollment!$C$4:$F$10349,4,FALSE)) -> 202 | G144: Carrier Ethernet (e.g. - OptiMan, MetroEthernet) | I144: 10Mbs | J144: AT&T | L144: Other district or school site | M144: Hayward Unified | O144: =VLOOKUP(A144,pubschls!$A$1:$AD$11703,28,FALSE) -> Unified School District | P144: =VLOOKUP(A144,pubschls!$A$1:$AD$11703,30,FALSE) -> Continuation High Schools | Q144: =VLOOKUP(A144,pubschls!$A$1:$AD$11703,24,FALSE) -> N
A145: 01611920133520 | B145: Hayward Adult | C145: School | D145: Alameda | E145: 4 | F145: =IF(ISERROR(VLOOKUP(A145,Enrollment!$C$4:$F$10349,4,FALSE)),"",VLOOKUP(A145,Enrollment!$C$4:$F$10349,4,FALSE)) ->  | G145: Carrier Ethernet (e.g. - OptiMan, MetroEthernet) | I145: > 45Mbs < 100Mbs | J145: ComCast | L145: K12HSN node site | M145: Alameda County Office of Education | O145: =VLOOKUP(A145,pubschls!$A$1:$AD$11703,28,FALSE) -> Unified School District | P145: =VLOOKUP(A145,pubschls!$A$1:$AD$11703,30,FALSE) -> Adult Education Centers | Q145: =VLOOKUP(A145,pubschls!$A$1:$AD$11703,24,FALSE) -> N
A146: 01611920133629 | B146: Hayward High | C146: School | D146: Alameda | E146: 4 | F146: =IF(ISERROR(VLOOKUP(A146,Enrollment!$C$4:$F$10349,4,FALSE)),"",VLOOKUP(A146,Enrollment!$C$4:$F$10349,4,FALSE)) -> 1665 | G146: Carrier Ethernet (e.g. - OptiMan, MetroEthernet) | I146: 10Mbs | J146: AT&T | L146: Other district or school site | M146: Hayward Unified | O146: =VLOOKUP(A146,pubschls!$A$1:$AD$11703,28,FALSE) -> Unified School District | P146: =VLOOKUP(A146,pubschls!$A$1:$AD$11703,30,FALSE) -> High Schools (Public) | Q146: =VLOOKUP(A146,pubschls!$A$1:$AD$11703,24,FALSE) -> N
A147: 01611920135319 | B147: Mt. Eden High | C147: School | D147: Alameda | E147: 4 | F147: =IF(ISERROR(VLOOKUP(A147,Enrollment!$C$4:$F$10349,4,FALSE)),"",VLOOKUP(A147,Enrollment!$C$4:$F$10349,4,FALSE)) -> 1838 | G147: Carrier Ethernet (e.g. - OptiMan, MetroEthernet) | I147: 10Mbs | J147: AT&T | L147: Other district or school site | M147: Hayward Unified | O147: =VLOOKUP(A147,pubschls!$A$1:$AD$11703,28,FALSE) -> Unified School District | P147: =VLOOKUP(A147,pubschls!$A$1:$AD$11703,30,FALSE) -> High Schools (Public) | Q147: =VLOOKUP(A147,pubschls!$A$1:$AD$11703,24,FALSE) -> N
A148: 01611920138339 | B148: Tennyson High | C148: School | D148: Alameda | E148: 4 | F148: =IF(ISERROR(VLOOKUP(A148,Enrollment!$C$4:$F$10349,4,FALSE)),"",VLOOKUP(A148,Enrollment!$C$4:$F$10349,4,FALSE)) -> 1312 | G148: Carrier Ethernet (e.g. - OptiMan, MetroEthernet) | I148: 10Mbs | J148: AT&T | L148: Other district or school site | M148: Hayward Unified | O148: =VLOOKUP(A148,pubschls!$A$1:$AD$11703,28,FALSE) -> Unified School District | P148: =VLOOKUP(A148,pubschls!$A$1:$AD$11703,30,FALSE) -> High Schools (Public) | Q148: =VLOOKUP(A148,pubschls!$A$1:$AD$11703,24,FALSE) -> N
A149: 01611926000889 | B149: Bowman Elementary | C149: School | D149: Alameda | E149: 4 | F149: =IF(ISERROR(VLOOKUP(A149,Enrollment!$C$4:$F$10349,4,FALSE)),"",VLOOKUP(A149,Enrollment!$C$4:$F$10349,4,FALSE)) -> 512 | G149: Carrier Ethernet (e.g. - OptiMan, MetroEthernet) | I149: 10Mbs | J149: AT&T | L149: Other district or school site | M149: Hayward Unified | O149: =VLOOKUP(A149,pubschls!$A$1:$AD$11703,28,FALSE) -> Unified School District | P149: =VLOOKUP(A149,pubschls!$A$1:$AD$11703,30,FALSE) -> Elementary Schools (Public) | Q149: =VLOOKUP(A149,pubschls!$A$1:$AD$11703,24,FALSE) -> N
A150: 01611926000905 | B150: Burbank Elementary | C150: School | D150: Alameda | E150: 4 | F150: =IF(ISERROR(VLOOKUP(A150,Enrollment!$C$4:$F$10349,4,FALSE)),"",VLOOKUP(A150,Enrollment!$C$4:$F$10349,4,FALSE)) -> 765 | G150: Carrier Ethernet (e.g. - OptiMan, MetroEthernet) | I150: 10Mbs | J150: AT&T | L150: Other district or school site | M150: Hayward Unified | O150: =VLOOKUP(A150,pubschls!$A$1:$AD$11703,28,FALSE) -> Unified School District | P150: =VLOOKUP(A150,pubschls!$A$1:$AD$11703,30,FALSE) -> Elementary Schools (Public) | Q150: =VLOOKUP(A150,pubschls!$A$1:$AD$11703,24,FALSE) -> N
A151: 01611926000913 | B151: Cherryland Elementary | C151: School | D151: Alameda | E151: 4 | F151: =IF(ISERROR(VLOOKUP(A151,Enrollment!$C$4:$F$10349,4,FALSE)),"",VLOOKUP(A151,Enrollment!$C$4:$F$10349,4,FALSE)) -> 779 | G151: Carrier Ethernet (e.g. - OptiMan, MetroEthernet) | I151: 10Mbs | J151: AT&T | L151: Other district or school site | M151: Hayward Unified | O151: =VLOOKUP(A151,pubschls!$A$1:$AD$11703,28,FALSE) -> Unified School District | P151: =VLOOKUP(A151,pubschls!$A$1:$AD$11703,30,FALSE) -> Elementary Schools (Public) | Q151: =VLOOKUP(A151,pubschls!$A$1:$AD$11703,24,FALSE) -> N
A152: 01611926000921 | B152: East Avenue Elementary | C152: School | D152: Alameda | E152: 4 | F152: =IF(ISERROR(VLOOKUP(A152,Enrollment!$C$4:$F$10349,4,FALSE)),"",VLOOKUP(A152,Enrollment!$C$4:$F$10349,4,FALSE)) -> 589 | G152: Carrier Ethernet (e.g. - OptiMan, MetroEthernet) | I152: 10Mbs | J152: Local ISP | L152: Other district or school site | M152: Hayward Unified | O152: =VLOOKUP(A152,pubschls!$A$1:$AD$11703,28,FALSE) -> Unified School District | P152: =VLOOKUP(A152,pubschls!$A$1:$AD$11703,30,FALSE) -> Elementary Schools (Public) | Q152: =VLOOKUP(A152,pubschls!$A$1:$AD$11703,24,FALSE) -> N
A153: 01611926000947 | B153: Eldridge Elementary | C153: School | D153: Alameda | E153: 4 | F153: =IF(ISERROR(VLOOKUP(A153,Enrollment!$C$4:$F$10349,4,FALSE)),"",VLOOKUP(A153,Enrollment!$C$4:$F$10349,4,FALSE)) -> 558 | G153: Carrier Ethernet (e.g. - OptiMan, MetroEthernet) | I153: 10Mbs | J153: AT&T | L153: Other district or school site | M153: Hayward Unified | O153: =VLOOKUP(A153,pubschls!$A$1:$AD$11703,28,FALSE) -> Unified School District | P153: =VLOOKUP(A153,pubschls!$A$1:$AD$11703,30,FALSE) -> Elementary Schools (Public) | Q153: =VLOOKUP(A153,pubschls!$A$1:$AD$11703,24,FALSE) -> N
A154: 01611926000962 | B154: Fairview Elementary | C154: School | D154: Alameda | E154: 4 | F154: =IF(ISERROR(VLOOKUP(A154,Enrollment!$C$4:$F$10349,4,FALSE)),"",VLOOKUP(A154,Enrollment!$C$4:$F$10349,4,FALSE)) -> 492 | G154: Carrier Ethernet (e.g. - OptiMan, MetroEthernet) | I154: 10Mbs | J154: AT&T | L154: Other district or school site | M154: Hayward Unified | O154: =VLOOKUP(A154,pubschls!$A$1:$AD$11703,28,FALSE) -> Unified School District | P154: =VLOOKUP(A154,pubschls!$A$1:$AD$11703,30,FALSE) -> Elementary Schools (Public) | Q154: =VLOOKUP(A154,pubschls!$A$1:$AD$11703,24,FALSE) -> N
A155: 01611926000988 | B155: Glassbrook Elementary | C155: School | D155: Alameda | E155: 4 | F155: =IF(ISERROR(VLOOKUP(A155,Enrollment!$C$4:$F$10349,4,FALSE)),"",VLOOKUP(A155,Enrollment!$C$4:$F$10349,4,FALSE)) -> 516 | G155: Carrier Ethernet (e.g. - OptiMan, MetroEthernet) | I155: 10Mbs | J155: AT&T | L155: Other district or school site | M155: Hayward Unified | O155: =VLOOKUP(A155,pubschls!$A$1:$AD$11703,28,FALSE) -> Unified School District | P155: =VLOOKUP(A155,pubschls!$A$1:$AD$11703,30,FALSE) -> Elementary Schools (Public) | Q155: =VLOOKUP(A155,pubschls!$A$1:$AD$11703,24,FALSE) -> N
A156: 01611926000996 | B156: Harder Elementary | C156: School | D156: Alameda | E156: 4 | F156: =IF(ISERROR(VLOOKUP(A156,Enrollment!$C$4:$F$10349,4,FALSE)),"",VLOOKUP(A156,Enrollment!$C$4:$F$10349,4,FALSE)) -> 623 | G156: Carrier Ethernet (e.g. - OptiMan, MetroEthernet) | I156: 10Mbs | J156: AT&T | L156: Other district or school site | M156: Hayward Unified | O156: =VLOOKUP(A156,pubschls!$A$1:$AD$11703,28,FALSE) -> Unified School District | P156: =VLOOKUP(A156,pubschls!$A$1:$AD$11703,30,FALSE) -> Elementary Schools (Public) | Q156: =VLOOKUP(A156,pubschls!$A$1:$AD$11703,24,FALSE) -> N
A157: 01611926001044 | B157: Longwood Elementary | C157: School | D157: Alameda | E157: 4 | F157: =IF(ISERROR(VLOOKUP(A157,Enrollment!$C$4:$F$10349,4,FALSE)),"",VLOOKUP(A157,Enrollment!$C$4:$F$10349,4,FALSE)) -> 660 | G157: Carrier Ethernet (e.g. - OptiMan, MetroEthernet) | I157: 10Mbs | J157: AT&T | L157: Other district or school site | M157: Hayward Unified | O157: =VLOOKUP(A157,pubschls!$A$1:$AD$11703,28,FALSE) -> Unified School District | P157: =VLOOKUP(A157,pubschls!$A$1:$AD$11703,30,FALSE) -> Elementary Schools (Public) | Q157: =VLOOKUP(A157,pubschls!$A$1:$AD$11703,24,FALSE) -> N
A158: 01611926001051 | B158: Lorin A. Eden Elementary | C158: School | D158: Alameda | E158: 4 | F158: =IF(ISERROR(VLOOKUP(A158,Enrollment!$C$4:$F$10349,4,FALSE)),"",VLOOKUP(A158,Enrollment!$C$4:$F$10349,4,FALSE)) -> 487 | G158: Carrier Ethernet (e.g. - OptiMan, MetroEthernet) | I158: 10Mbs | J158: AT&T | L158: Other district or school site | M158: Hayward Unified | O158: =VLOOKUP(A158,pubschls!$A$1:$AD$11703,28,FALSE) -> Unified School District | P158: =VLOOKUP(A158,pubschls!$A$1:$AD$11703,30,FALSE) -> Elementary Schools (Public) | Q158: =VLOOKUP(A158,pubschls!$A$1:$AD$11703,24,FALSE) -> N
A159: 01611926001093 | B159: Palma Ceia Elementary | C159: School | D159: Alameda | E159: 4 | F159: =IF(ISERROR(VLOOKUP(A159,Enrollment!$C$4:$F$10349,4,FALSE)),"",VLOOKUP(A159,Enrollment!$C$4:$F$10349,4,FALSE)) -> 560 | G159: Carrier Ethernet (e.g. - OptiMan, MetroEthernet) | I159: 10Mbs | J159: AT&T | L159: Other district or school site | M159: Hayward Unified | O159: =VLOOKUP(A159,pubschls!$A$1:$AD$11703,28,FALSE) -> Unified School District | P159: =VLOOKUP(A159,pubschls!$A$1:$AD$11703,30,FALSE) -> Elementary Schools (Public) | Q159: =VLOOKUP(A159,pubschls!$A$1:$AD$11703,24,FALSE) -> N
A160: 01611926001101 | B160: Park Elementary | C160: School | D160: Alameda | E160: 4 | F160: =IF(ISERROR(VLOOKUP(A160,Enrollment!$C$4:$F$10349,4,FALSE)),"",VLOOKUP(A160,Enrollment!$C$4:$F$10349,4,FALSE)) -> 659 | G160: Carrier Ethernet (e.g. - OptiMan, MetroEthernet) | I160: 10Mbs | J160: AT&T | L160: Other district or school site | M160: Hayward Unified | O160: =VLOOKUP(A160,pubschls!$A$1:$AD$11703,28,FALSE) -> Unified School District | P160: =VLOOKUP(A160,pubschls!$A$1:$AD$11703,30,FALSE) -> Elementary Schools (Public) | Q160: =VLOOKUP(A160,pubschls!$A$1:$AD$11703,24,FALSE) -> N
A161: 01611926001127 | B161: Ruus Elementary | C161: School | D161: Alameda | E161: 4 | F161: =IF(ISERROR(VLOOKUP(A161,Enrollment!$C$4:$F$10349,4,FALSE)),"",VLOOKUP(A161,Enrollment!$C$4:$F$10349,4,FALSE)) -> 632 | G161: Carrier Ethernet (e.g. - OptiMan, MetroEthernet) | I161: 10Mbs | J161: AT&T | L161: Other district or school site | M161: Hayward Unified | O161: =VLOOKUP(A161,pubschls!$A$1:$AD$11703,28,FALSE) -> Unified School District | P161: =VLOOKUP(A161,pubschls!$A$1:$AD$11703,30,FALSE) -> Elementary Schools (Public) | Q161: =VLOOKUP(A161,pubschls!$A$1:$AD$11703,24,FALSE) -> N
A162: 01611926001135 | B162: Schafer Park Elementary | C162: School | D162: Alameda | E162: 4 | F162: =IF(ISERROR(VLOOKUP(A162,Enrollment!$C$4:$F$10349,4,FALSE)),"",VLOOKUP(A162,Enrollment!$C$4:$F$10349,4,FALSE)) -> 604 | G162: Carrier Ethernet (e.g. - OptiMan, MetroEthernet) | I162: 10Mbs | J162: AT&T | L162: Other district or school site | M162: Hayward Unified | O162: =VLOOKUP(A162,pubschls!$A$1:$AD$11703,28,FALSE) -> Unified School District | P162: =VLOOKUP(A162,pubschls!$A$1:$AD$11703,30,FALSE) -> Elementary Schools (Public) | Q162: =VLOOKUP(A162,pubschls!$A$1:$AD$11703,24,FALSE) -> N
A163: 01611926001176 | B163: Southgate Elementary | C163: School | D163: Alameda | E163: 4 | F163: =IF(ISERROR(VLOOKUP(A163,Enrollment!$C$4:$F$10349,4,FALSE)),"",VLOOKUP(A163,Enrollment!$C$4:$F$10349,4,FALSE)) -> 663 | G163: Carrier Ethernet (e.g. - OptiMan, MetroEthernet) | I163: 10Mbs | J163: AT&T | L163: Other district or school site | M163: Hayward Unified | O163: =VLOOKUP(A163,pubschls!$A$1:$AD$11703,28,FALSE) -> Unified School District | P163: =VLOOKUP(A163,pubschls!$A$1:$AD$11703,30,FALSE) -> Elementary Schools (Public) | Q163: =VLOOKUP(A163,pubschls!$A$1:$AD$11703,24,FALSE) -> N
A164: 01611926001192 | B164: Treeview Elementary | C164: School | D164: Alameda | E164: 4 | F164: =IF(ISERROR(VLOOKUP(A164,Enrollment!$C$4:$F$10349,4,FALSE)),"",VLOOKUP(A164,Enrollment!$C$4:$F$10349,4,FALSE)) -> 609 | G164: Carrier Ethernet (e.g. - OptiMan, MetroEthernet) | I164: 10Mbs | J164: AT&T | L164: Other district or school site | M164: Hayward Unified | O164: =VLOOKUP(A164,pubschls!$A$1:$AD$11703,28,FALSE) -> Unified School District | P164: =VLOOKUP(A164,pubschls!$A$1:$AD$11703,30,FALSE) -> Elementary Schools (Public) | Q164: =VLOOKUP(A164,pubschls!$A$1:$AD$11703,24,FALSE) -> N
A165: 01611926056931 | B165: Bret Harte Middle | C165: School | D165: Alameda | E165: 4 | F165: =IF(ISERROR(VLOOKUP(A165,Enrollment!$C$4:$F$10349,4,FALSE)),"",VLOOKUP(A165,Enrollment!$C$4:$F$10349,4,FALSE)) -> 625 | G165: Carrier Ethernet (e.g. - OptiMan, MetroEthernet) | I165: 10Mbs | J165: AT&T | L165: Other district or school site | M165: Hayward Unified | O165: =VLOOKUP(A165,pubschls!$A$1:$AD$11703,28,FALSE) -> Unified School District | P165: =VLOOKUP(A165,pubschls!$A$1:$AD$11703,30,FALSE) -> Intermediate/Middle Schools (Public) | Q165: =VLOOKUP(A165,pubschls!$A$1:$AD$11703,24,FALSE) -> N
A166: 01611926056949 | B166: Cesar Chavez Middle | C166: School | D166: Alameda | E166: 4 | F166: =IF(ISERROR(VLOOKUP(A166,Enrollment!$C$4:$F$10349,4,FALSE)),"",VLOOKUP(A166,Enrollment!$C$4:$F$10349,4,FALSE)) -> 616 | G166: Carrier Ethernet (e.g. - OptiMan, MetroEthernet) | I166: 10Mbs | J166: AT&T | L166: Other district or school site | M166: Hayward Unified | O166: =VLOOKUP(A166,pubschls!$A$1:$AD$11703,28,FALSE) -> Unified School District | P166: =VLOOKUP(A166,pubschls!$A$1:$AD$11703,30,FALSE) -> Intermediate/Middle Schools (Public) | Q166: =VLOOKUP(A166,pubschls!$A$1:$AD$11703,24,FALSE) -> N
A167: 01611926056956 | B167: Anthony W. Ochoa Middle | C167: School | D167: Alameda | E167: 4 | F167: =IF(ISERROR(VLOOKUP(A167,Enrollment!$C$4:$F$10349,4,FALSE)),"",VLOOKUP(A167,Enrollment!$C$4:$F$10349,4,FALSE)) -> 608 | G167: Carrier Ethernet (e.g. - OptiMan, MetroEthernet) | I167: 10Mbs | J167: AT&T | L167: Other district or school site | M167: Hayward Unified | O167: =VLOOKUP(A167,pubschls!$A$1:$AD$11703,28,FALSE) -> Unified School District | P167: =VLOOKUP(A167,pubschls!$A$1:$AD$11703,30,FALSE) -> Intermediate/Middle Schools (Public) | Q167: =VLOOKUP(A167,pubschls!$A$1:$AD$11703,24,FALSE) -> N
A168: 01611926056972 | B168: Winton Middle | C168: School | D168: Alameda | E168: 4 | F168: =IF(ISERROR(VLOOKUP(A168,Enrollment!$C$4:$F$10349,4,FALSE)),"",VLOOKUP(A168,Enrollment!$C$4:$F$10349,4,FALSE)) -> 609 | G168: Carrier Ethernet (e.g. - OptiMan, MetroEthernet) | I168: 10Mbs | J168: AT&T | L168: Other district or school site | M168: Hayward Unified | O168: =VLOOKUP(A168,pubschls!$A$1:$AD$11703,28,FALSE) -> Unified School District | P168: =VLOOKUP(A168,pubschls!$A$1:$AD$11703,30,FALSE) -> Intermediate/Middle Schools (Public) | Q168: =VLOOKUP(A168,pubschls!$A$1:$AD$11703,24,FALSE) -> N
A169: 01611926062160 | B169: Strobridge Elementary | C169: School | D169: Alameda | E169: 4 | F169: =IF(ISERROR(VLOOKUP(A169,Enrollment!$C$4:$F$10349,4,FALSE)),"",VLOOKUP(A169,Enrollment!$C$4:$F$10349,4,FALSE)) -> 611 | G169: Carrier Ethernet (e.g. - OptiMan, MetroEthernet) | I169: 10Mbs | J169: AT&T | L169: Other district or school site | M169: Hayward Unified | O169: =VLOOKUP(A169,pubschls!$A$1:$AD$11703,28,FALSE) -> Unified School District | P169: =VLOOKUP(A169,pubschls!$A$1:$AD$11703,30,FALSE) -> Elementary Schools (Public) | Q169: =VLOOKUP(A169,pubschls!$A$1:$AD$11703,24,FALSE) -> N
A170: 01611926066476 | B170: Martin Luther King, Jr. Middle | C170: School | D170: Alameda | E170: 4 | F170: =IF(ISERROR(VLOOKUP(A170,Enrollment!$C$4:$F$10349,4,FALSE)),"",VLOOKUP(A170,Enrollment!$C$4:$F$10349,4,FALSE)) -> 717 | G170: Carrier Ethernet (e.g. - OptiMan, MetroEthernet) | I170: 10Mbs | J170: AT&T | L170: Other district or school site | M170: Hayward Unified | O170: =VLOOKUP(A170,pubschls!$A$1:$AD$11703,28,FALSE) -> Unified School District | P170: =VLOOKUP(A170,pubschls!$A$1:$AD$11703,30,FALSE) -> Intermediate/Middle Schools (Public) | Q170: =VLOOKUP(A170,pubschls!$A$1:$AD$11703,24,FALSE) -> N
A171: 01611926090583 | B171: Eden Gardens Elementary | C171: School | D171: Alameda | E171: 4 | F171: =IF(ISERROR(VLOOKUP(A171,Enrollment!$C$4:$F$10349,4,FALSE)),"",VLOOKUP(A171,Enrollment!$C$4:$F$10349,4,FALSE)) -> 589 | G171: Carrier Ethernet (e.g. - OptiMan, MetroEthernet) | I171: 10Mbs | J171: AT&T | L171: Other district or school site | M171: Hayward Unified | O171: =VLOOKUP(A171,pubschls!$A$1:$AD$11703,28,FALSE) -> Unified School District | P171: =VLOOKUP(A171,pubschls!$A$1:$AD$11703,30,FALSE) -> Elementary Schools (Public) | Q171: =VLOOKUP(A171,pubschls!$A$1:$AD$11703,24,FALSE) -> N
A172: 01611926104566 | B172: Tyrrell Elementary | C172: School | D172: Alameda | E172: 4 | F172: =IF(ISERROR(VLOOKUP(A172,Enrollment!$C$4:$F$10349,4,FALSE)),"",VLOOKUP(A172,Enrollment!$C$4:$F$10349,4,FALSE)) -> 738 | G172: Carrier Ethernet (e.g. - OptiMan, MetroEthernet) | I172: 10Mbs | J172: AT&T | L172: Other district or school site | M172: Hayward Unified | O172: =VLOOKUP(A172,pubschls!$A$1:$AD$11703,28,FALSE) -> Unified School District | P172: =VLOOKUP(A172,pubschls!$A$1:$AD$11703,30,FALSE) -> Elementary Schools (Public) | Q172: =VLOOKUP(A172,pubschls!$A$1:$AD$11703,24,FALSE) -> N
A173: 01611926113815 | B173: Faith Ringgold School of Arts and Science | C173: School | D173: Alameda | E173: 4 | F173: =IF(ISERROR(VLOOKUP(A173,Enrollment!$C$4:$F$10349,4,FALSE)),"",VLOOKUP(A173,Enrollment!$C$4:$F$10349,4,FALSE)) -> 153 | G173: Carrier Ethernet (e.g. - OptiMan, MetroEthernet) | I173: 10Mbs | J173: AT&T | L173: Other district or school site | M173: Hayward Unified | O173: =VLOOKUP(A173,pubschls!$A$1:$AD$11703,28,FALSE) -> Unified School District | P173: =VLOOKUP(A173,pubschls!$A$1:$AD$11703,30,FALSE) -> Elementary Schools (Public) | Q173: =VLOOKUP(A173,pubschls!$A$1:$AD$11703,24,FALSE) -> N
A174: 01612000000000 | B174: Livermore Valley Joint Unified | C174: District | D174: Alameda | E174: 4 | F174: =IF(ISERROR(VLOOKUP(A174,Enrollment!$C$4:$F$10349,4,FALSE)),"",VLOOKUP(A174,Enrollment!$C$4:$F$10349,4,FALSE)) ->  | G174: Carrier Ethernet (e.g. - OptiMan, MetroEthernet) | I174: 1Gbs | J174: ComCast | L174: K12HSN node site | M174: Alameda County Office of Education | O174: =VLOOKUP(A174,pubschls!$A$1:$AD$11703,28,FALSE) -> Unified School District | P174: =VLOOKUP(A174,pubschls!$A$1:$AD$11703,30,FALSE) -> 0 | Q174: =VLOOKUP(A174,pubschls!$A$1:$AD$11703,24,FALSE) -> 0
A175: 01612000107839 | B175: =IF(C175="District",VLOOKUP(A175,pubschls!$A$1:$H$11703,7,FALSE),VLOOKUP(A175,pubschls!$A$1:$H$11703,8,FALSE)) -> Livermore Valley Charter | C175: =IF(ISBLANK(A175),"",IF(RIGHT(A175,7)="0000000","District","School")) -> School | D175: =VLOOKUP(A175,pubschls!$A$1:$G$11703,6,FALSE) -> Alameda | F175: =IF(ISERROR(VLOOKUP(A175,Enrollment!$C$4:$F$10349,4,FALSE)),"",VLOOKUP(A175,Enrollment!$C$4:$F$10349,4,FALSE)) ->  | O175: =VLOOKUP(A175,pubschls!$A$1:$AD$11703,28,FALSE) -> Unified School District | P175: =VLOOKUP(A175,pubschls!$A$1:$AD$11703,30,FALSE) -> Elementary Schools (Public) | Q175: =VLOOKUP(A175,pubschls!$A$1:$AD$11703,24,FALSE) -> Y
A176: 01612000123554 | B176: Special Education Preschool | C176: School | D176: Alameda | E176: 4 | F176: =IF(ISERROR(VLOOKUP(A176,Enrollment!$C$4:$F$10349,4,FALSE)),"",VLOOKUP(A176,Enrollment!$C$4:$F$10349,4,FALSE)) ->  | G176: Carrier Ethernet (e.g. - OptiMan, MetroEthernet) | I176: 1Gbs | J176: ComCast | L176: Your district or school within your district | M176: Livermore Valley Joint Unified | O176: =VLOOKUP(A176,pubschls!$A$1:$AD$11703,28,FALSE) -> Unified School District | P176: =VLOOKUP(A176,pubschls!$A$1:$AD$11703,30,FALSE) -> Preschool | Q176: =VLOOKUP(A176,pubschls!$A$1:$AD$11703,24,FALSE) -> N
A177: 01612000130393 | B177: Vineyard Alternative | C177: School | D177: Alameda | E177: 4 | F177: =IF(ISERROR(VLOOKUP(A177,Enrollment!$C$4:$F$10349,4,FALSE)),"",VLOOKUP(A177,Enrollment!$C$4:$F$10349,4,FALSE)) -> 133 | G177: Carrier Ethernet (e.g. - OptiMan, MetroEthernet) | I177: 1Gbs | J177: ComCast | L177: Other district or school site | M177: Livermore Valley Joint Unified | O177: =VLOOKUP(A177,pubschls!$A$1:$AD$11703,28,FALSE) -> Unified School District | P177: =VLOOKUP(A177,pubschls!$A$1:$AD$11703,30,FALSE) -> Alternative Schools of Choice | Q177: =VLOOKUP(A177,pubschls!$A$1:$AD$11703,24,FALSE) -> N
A178: 01612000130492 | B178: Phoenix High (Continuation) | C178: School | D178: Alameda | E178: 4 | F178: =IF(ISERROR(VLOOKUP(A178,Enrollment!$C$4:$F$10349,4,FALSE)),"",VLOOKUP(A178,Enrollment!$C$4:$F$10349,4,FALSE)) -> 6 | G178: Carrier Ethernet (e.g. - OptiMan, MetroEthernet) | I178: 1Gbs | J178: ComCast | L178: Other district or school site | M178: Livermore Valley Joint Unified | O178: =VLOOKUP(A178,pubschls!$A$1:$AD$11703,28,FALSE) -> Unified School District | P178: =VLOOKUP(A178,pubschls!$A$1:$AD$11703,30,FALSE) -> Continuation High Schools | Q178: =VLOOKUP(A178,pubschls!$A$1:$AD$11703,24,FALSE) -> N
A179: 01612000132670 | B179: Del Valle Continuation High | C179: School | D179: Alameda | E179: 4 | F179: =IF(ISERROR(VLOOKUP(A179,Enrollment!$C$4:$F$10349,4,FALSE)),"",VLOOKUP(A179,Enrollment!$C$4:$F$10349,4,FALSE)) -> 127 | G179: Carrier Ethernet (e.g. - OptiMan, MetroEthernet) | I179: 1Gbs | J179: ComCast | L179: Other district or school site | M179: Livermore Valley Joint Unified | O179: =VLOOKUP(A179,pubschls!$A$1:$AD$11703,28,FALSE) -> Unified School District | P179: =VLOOKUP(A179,pubschls!$A$1:$AD$11703,30,FALSE) -> Continuation High Schools | Q179: =VLOOKUP(A179,pubschls!$A$1:$AD$11703,24,FALSE) -> N
A180: 01612000133397 | B180: Granada High | C180: School | D180: Alameda | E180: 4 | F180: =IF(ISERROR(VLOOKUP(A180,Enrollment!$C$4:$F$10349,4,FALSE)),"",VLOOKUP(A180,Enrollment!$C$4:$F$10349,4,FALSE)) -> 2095 | G180: Carrier Ethernet (e.g. - OptiMan, MetroEthernet) | I180: 1Gbs | J180: ComCast | L180: Other district or school site | M180: Livermore Valley Joint Unified | O180: =VLOOKUP(A180,pubschls!$A$1:$AD$11703,28,FALSE) -> Unified School District | P180: =VLOOKUP(A180,pubschls!$A$1:$AD$11703,30,FALSE) -> High Schools (Public) | Q180: =VLOOKUP(A180,pubschls!$A$1:$AD$11703,24,FALSE) -> N
A181: 01612000134536 | B181: Livermore High | C181: School | D181: Alameda | E181: 4 | F181: =IF(ISERROR(VLOOKUP(A181,Enrollment!$C$4:$F$10349,4,FALSE)),"",VLOOKUP(A181,Enrollment!$C$4:$F$10349,4,FALSE)) -> 1810 | G181: Carrier Ethernet (e.g. - OptiMan, MetroEthernet) | I181: 1Gbs | J181: ComCast | L181: Other district or school site | M181: Livermore Valley Joint Unified | O181: =VLOOKUP(A181,pubschls!$A$1:$AD$11703,28,FALSE) -> Unified School District | P181: =VLOOKUP(A181,pubschls!$A$1:$AD$11703,30,FALSE) -> High Schools (Public) | Q181: =VLOOKUP(A181,pubschls!$A$1:$AD$11703,24,FALSE) -> N
A182: 01612000138826 | B182: Livermore Adult | C182: School | D182: Alameda | E182: 4 | F182: =IF(ISERROR(VLOOKUP(A182,Enrollment!$C$4:$F$10349,4,FALSE)),"",VLOOKUP(A182,Enrollment!$C$4:$F$10349,4,FALSE)) ->  | G182: Carrier Ethernet (e.g. - OptiMan, MetroEthernet) | I182: 1Gbs | J182: ComCast | L182: Other district or school site | M182: Livermore Valley Joint Unified | O182: =VLOOKUP(A182,pubschls!$A$1:$AD$11703,28,FALSE) -> Unified School District | P182: =VLOOKUP(A182,pubschls!$A$1:$AD$11703,30,FALSE) -> Adult Education Centers | Q182: =VLOOKUP(A182,pubschls!$A$1:$AD$11703,24,FALSE) -> N
A183: 01612006001234 | B183: Junction K-8 | C183: School | D183: Alameda | E183: 4 | F183: =IF(ISERROR(VLOOKUP(A183,Enrollment!$C$4:$F$10349,4,FALSE)),"",VLOOKUP(A183,Enrollment!$C$4:$F$10349,4,FALSE)) -> 807 | G183: Carrier Ethernet (e.g. - OptiMan, MetroEthernet) | I183: 1Gbs | J183: ComCast | L183: Other district or school site | M183: Livermore Valley Joint Unified | O183: =VLOOKUP(A183,pubschls!$A$1:$AD$11703,28,FALSE) -> Unified School District | P183: =VLOOKUP(A183,pubschls!$A$1:$AD$11703,30,FALSE) -> Elementary Schools (Public) | Q183: =VLOOKUP(A183,pubschls!$A$1:$AD$11703,24,FALSE) -> N
A184: 01612006001242 | B184: East Avenue Middle | C184: School | D184: Alameda | E184: 4 | F184: =IF(ISERROR(VLOOKUP(A184,Enrollment!$C$4:$F$10349,4,FALSE)),"",VLOOKUP(A184,Enrollment!$C$4:$F$10349,4,FALSE)) -> 589 | G184: Carrier Ethernet (e.g. - OptiMan, MetroEthernet) | I184: 1Gbs | J184: ComCast | L184: Other district or school site | M184: Livermore Valley Joint Unified | O184: =VLOOKUP(A184,pubschls!$A$1:$AD$11703,28,FALSE) -> Unified School District | P184: =VLOOKUP(A184,pubschls!$A$1:$AD$11703,30,FALSE) -> Intermediate/Middle Schools (Public) | Q184: =VLOOKUP(A184,pubschls!$A$1:$AD$11703,24,FALSE) -> N
A185: 01612006001259 | B185: Emma C. Smith Elementary | C185: School | D185: Alameda | E185: 4 | F185: =IF(ISERROR(VLOOKUP(A185,Enrollment!$C$4:$F$10349,4,FALSE)),"",VLOOKUP(A185,Enrollment!$C$4:$F$10349,4,FALSE)) -> 718 | G185: Carrier Ethernet (e.g. - OptiMan, MetroEthernet) | I185: 1Gbs | J185: ComCast | L185: Other district or school site | M185: Livermore Valley Joint Unified | O185: =VLOOKUP(A185,pubschls!$A$1:$AD$11703,28,FALSE) -> Unified School District | P185: =VLOOKUP(A185,pubschls!$A$1:$AD$11703,30,FALSE) -> Elementary Schools (Public) | Q185: =VLOOKUP(A185,pubschls!$A$1:$AD$11703,24,FALSE) -> N
A186: 01612006001283 | B186: Jackson Avenue Elementary | C186: School | D186: Alameda | E186: 4 | F186: =IF(ISERROR(VLOOKUP(A186,Enrollment!$C$4:$F$10349,4,FALSE)),"",VLOOKUP(A186,Enrollment!$C$4:$F$10349,4,FALSE)) -> 566 | G186: Carrier Ethernet (e.g. - OptiMan, MetroEthernet) | I186: 1Gbs | J186: ComCast | L186: Other district or school site | M186: Livermore Valley Joint Unified | O186: =VLOOKUP(A186,pubschls!$A$1:$AD$11703,28,FALSE) -> Unified School District | P186: =VLOOKUP(A186,pubschls!$A$1:$AD$11703,30,FALSE) -> Elementary Schools (Public) | Q186: =VLOOKUP(A186,pubschls!$A$1:$AD$11703,24,FALSE) -> N
A187: 01612006001291 | B187: Joe Michell | C187: School | D187: Alameda | E187: 4 | F187: =IF(ISERROR(VLOOKUP(A187,Enrollment!$C$4:$F$10349,4,FALSE)),"",VLOOKUP(A187,Enrollment!$C$4:$F$10349,4,FALSE)) -> 461 | G187: Carrier Ethernet (e.g. - OptiMan, MetroEthernet) | I187: 1Gbs | J187: ComCast | L187: Other district or school site | M187: Livermore Valley Joint Unified | O187: =VLOOKUP(A187,pubschls!$A$1:$AD$11703,28,FALSE) -> Unified School District | P187: =VLOOKUP(A187,pubschls!$A$1:$AD$11703,30,FALSE) -> Elementary Schools (Public) | Q187: =VLOOKUP(A187,pubschls!$A$1:$AD$11703,24,FALSE) -> N
A188: 01612006001317 | B188: Marylin Avenue Elementary | C188: School | D188: Alameda | E188: 4 | F188: =IF(ISERROR(VLOOKUP(A188,Enrollment!$C$4:$F$10349,4,FALSE)),"",VLOOKUP(A188,Enrollment!$C$4:$F$10349,4,FALSE)) -> 479 | G188: Carrier Ethernet (e.g. - OptiMan, MetroEthernet) | I188: 1Gbs | J188: ComCast | L188: Other district or school site | M188: Livermore Valley Joint Unified | O188: =VLOOKUP(A188,pubschls!$A$1:$AD$11703,28,FALSE) -> Unified School District | P188: =VLOOKUP(A188,pubschls!$A$1:$AD$11703,30,FALSE) -> Elementary Schools (Public) | Q188: =VLOOKUP(A188,pubschls!$A$1:$AD$11703,24,FALSE) -> N
A189: 01612006001341 | B189: William Mendenhall Middle | C189: School | D189: Alameda | E189: 4 | F189: =IF(ISERROR(VLOOKUP(A189,Enrollment!$C$4:$F$10349,4,FALSE)),"",VLOOKUP(A189,Enrollment!$C$4:$F$10349,4,FALSE)) -> 954 | G189: Carrier Ethernet (e.g. - OptiMan, MetroEthernet) | I189: 1Gbs | J189: ComCast | L189: Other district or school site | M189: Livermore Valley Joint Unified | O189: =VLOOKUP(A189,pubschls!$A$1:$AD$11703,28,FALSE) -> Unified School District | P189: =VLOOKUP(A189,pubschls!$A$1:$AD$11703,30,FALSE) -> Intermediate/Middle Schools (Public) | Q189: =VLOOKUP(A189,pubschls!$A$1:$AD$11703,24,FALSE) -> N
A190: 01612006071906 | B190: Arroyo Seco Elementary | C190: School | D190: Alameda | E190: 4 | F190: =IF(ISERROR(VLOOKUP(A190,Enrollment!$C$4:$F$10349,4,FALSE)),"",VLOOKUP(A190,Enrollment!$C$4:$F$10349,4,FALSE)) -> 687 | G190: Carrier Ethernet (e.g. - OptiMan, MetroEthernet) | I190: 1Gbs | J190: ComCast | L190: Other district or school site | M190: Livermore Valley Joint Unified | O190: =VLOOKUP(A190,pubschls!$A$1:$AD$11703,28,FALSE) -> Unified School District | P190: =VLOOKUP(A190,pubschls!$A$1:$AD$11703,30,FALSE) -> Elementary Schools (Public) | Q190: =VLOOKUP(A190,pubschls!$A$1:$AD$11703,24,FALSE) -> N
A191: 01612006085773 | B191: Andrew N. Christensen Middle | C191: School | D191: Alameda | E191: 4 | F191: =IF(ISERROR(VLOOKUP(A191,Enrollment!$C$4:$F$10349,4,FALSE)),"",VLOOKUP(A191,Enrollment!$C$4:$F$10349,4,FALSE)) -> 680 | G191: Carrier Ethernet (e.g. - OptiMan, MetroEthernet) | I191: 1Gbs | J191: ComCast | L191: Other district or school site | M191: Livermore Valley Joint Unified | O191: =VLOOKUP(A191,pubschls!$A$1:$AD$11703,28,FALSE) -> Unified School District | P191: =VLOOKUP(A191,pubschls!$A$1:$AD$11703,30,FALSE) -> Intermediate/Middle Schools (Public) | Q191: =VLOOKUP(A191,pubschls!$A$1:$AD$11703,24,FALSE) -> N
A192: 01612006089338 | B192: Rancho Las Positas Elementary | C192: School | D192: Alameda | E192: 4 | F192: =IF(ISERROR(VLOOKUP(A192,Enrollment!$C$4:$F$10349,4,FALSE)),"",VLOOKUP(A192,Enrollment!$C$4:$F$10349,4,FALSE)) -> 520 | G192: Carrier Ethernet (e.g. - OptiMan, MetroEthernet) | I192: 1Gbs | J192: ComCast | L192: Other district or school site | M192: Livermore Valley Joint Unified | O192: =VLOOKUP(A192,pubschls!$A$1:$AD$11703,28,FALSE) -> Unified School District | P192: =VLOOKUP(A192,pubschls!$A$1:$AD$11703,30,FALSE) -> Elementary Schools (Public) | Q192: =VLOOKUP(A192,pubschls!$A$1:$AD$11703,24,FALSE) -> N
A193: 01612006097661 | B193: Sunset Elementary | C193: School | D193: Alameda | E193: 4 | F193: =IF(ISERROR(VLOOKUP(A193,Enrollment!$C$4:$F$10349,4,FALSE)),"",VLOOKUP(A193,Enrollment!$C$4:$F$10349,4,FALSE)) -> 809 | G193: Carrier Ethernet (e.g. - OptiMan, MetroEthernet) | I193: 1Gbs | J193: ComCast | L193: Other district or school site | M193: Livermore Valley Joint Unified | O193: =VLOOKUP(A193,pubschls!$A$1:$AD$11703,28,FALSE) -> Unified School District | P193: =VLOOKUP(A193,pubschls!$A$1:$AD$11703,30,FALSE) -> Elementary Schools (Public) | Q193: =VLOOKUP(A193,pubschls!$A$1:$AD$11703,24,FALSE) -> N
A194: 01612006110332 | B194: Leo R. Croce Elementary | C194: School | D194: Alameda | E194: 4 | F194: =IF(ISERROR(VLOOKUP(A194,Enrollment!$C$4:$F$10349,4,FALSE)),"",VLOOKUP(A194,Enrollment!$C$4:$F$10349,4,FALSE)) -> 604 | G194: Carrier Ethernet (e.g. - OptiMan, MetroEthernet) | I194: 1Gbs | J194: ComCast | L194: Other district or school site | M194: Livermore Valley Joint Unified | O194: =VLOOKUP(A194,pubschls!$A$1:$AD$11703,28,FALSE) -> Unified School District | P194: =VLOOKUP(A194,pubschls!$A$1:$AD$11703,30,FALSE) -> Elementary Schools (Public) | Q194: =VLOOKUP(A194,pubschls!$A$1:$AD$11703,24,FALSE) -> N
A195: 01612006117543 | B195: Altamont Creek Elementary | C195: School | D195: Alameda | E195: 4 | F195: =IF(ISERROR(VLOOKUP(A195,Enrollment!$C$4:$F$10349,4,FALSE)),"",VLOOKUP(A195,Enrollment!$C$4:$F$10349,4,FALSE)) -> 584 | G195: Carrier Ethernet (e.g. - OptiMan, MetroEthernet) | I195: 1Gbs | J195: ComCast | L195: Other district or school site | M195: Livermore Valley Joint Unified | O195: =VLOOKUP(A195,pubschls!$A$1:$AD$11703,28,FALSE) -> Unified School District | P195: =VLOOKUP(A195,pubschls!$A$1:$AD$11703,30,FALSE) -> Elementary Schools (Public) | Q195: =VLOOKUP(A195,pubschls!$A$1:$AD$11703,24,FALSE) -> N
A196: 01612180000000 | B196: Mountain House Elementary | C196: District | D196: Alameda | E196: 4 | F196: =IF(ISERROR(VLOOKUP(A196,Enrollment!$C$4:$F$10349,4,FALSE)),"",VLOOKUP(A196,Enrollment!$C$4:$F$10349,4,FALSE)) ->  | G196: Wireless | I196: T-1 | J196: Local ISP | L196: K12HSN node site | M196: Alameda County Office of Education | O196: =VLOOKUP(A196,pubschls!$A$1:$AD$11703,28,FALSE) -> Elementary School District | P196: =VLOOKUP(A196,pubschls!$A$1:$AD$11703,30,FALSE) -> 0 | Q196: =VLOOKUP(A196,pubschls!$A$1:$AD$11703,24,FALSE) -> 0
A197: 01612186001358 | B197: Mountain House Elementary | C197: School | D197: Alameda | E197: 4 | F197: =IF(ISERROR(VLOOKUP(A197,Enrollment!$C$4:$F$10349,4,FALSE)),"",VLOOKUP(A197,Enrollment!$C$4:$F$10349,4,FALSE)) -> 31 | G197: Wireless | I197: T-1 | J197: Local ISP | L197: K12HSN node site | M197: Alameda County Office of Education | O197: =VLOOKUP(A197,pubschls!$A$1:$AD$11703,28,FALSE) -> Elementary School District | P197: =VLOOKUP(A197,pubschls!$A$1:$AD$11703,30,FALSE) -> Elemen Schools In 1 School Dist. (Public) | Q197: =VLOOKUP(A197,pubschls!$A$1:$AD$11703,24,FALSE) -> N
A198: 01612340000000 | B198: Newark Unified | C198: District | D198: Alameda | E198: 4 | F198: =IF(ISERROR(VLOOKUP(A198,Enrollment!$C$4:$F$10349,4,FALSE)),"",VLOOKUP(A198,Enrollment!$C$4:$F$10349,4,FALSE)) ->  | G198: Carrier Ethernet (e.g. - OptiMan, MetroEthernet) | I198: > 10Mbs < 45Mbs | J198: AT&T | L198: K12HSN node site | M198: Alameda County Office of Education | O198: =VLOOKUP(A198,pubschls!$A$1:$AD$11703,28,FALSE) -> Unified School District | P198: =VLOOKUP(A198,pubschls!$A$1:$AD$11703,30,FALSE) -> 0 | Q198: =VLOOKUP(A198,pubschls!$A$1:$AD$11703,24,FALSE) -> 0
A199: 01612340130054 | B199: Newark Memorial High | C199: School | D199: Alameda | E199: 4 | F199: =IF(ISERROR(VLOOKUP(A199,Enrollment!$C$4:$F$10349,4,FALSE)),"",VLOOKUP(A199,Enrollment!$C$4:$F$10349,4,FALSE)) -> 1952 | G199: Carrier Ethernet (e.g. - OptiMan, MetroEthernet) | H199: Frame Relay | I199: > 155Mbs < 1Gbs | J199: AT&T | L199: Other district or school site | M199: Newark Unified | O199: =VLOOKUP(A199,pubschls!$A$1:$AD$11703,28,FALSE) -> Unified School District | P199: =VLOOKUP(A199,pubschls!$A$1:$AD$11703,30,FALSE) -> High Schools (Public) | Q199: =VLOOKUP(A199,pubschls!$A$1:$AD$11703,24,FALSE) -> N
A200: 01612340130484 | B200: Crossroads High (Alternative) | C200: School | D200: Alameda | E200: 4 | F200: =IF(ISERROR(VLOOKUP(A200,Enrollment!$C$4:$F$10349,4,FALSE)),"",VLOOKUP(A200,Enrollment!$C$4:$F$10349,4,FALSE)) -> 45 | G200: Carrier Ethernet (e.g. - OptiMan, MetroEthernet) | H200: Frame Relay | I200: 100Mbs | J200: AT&T | L200: Other district or school site | M200: Newark Unified | O200: =VLOOKUP(A200,pubschls!$A$1:$AD$11703,28,FALSE) -> Unified School District | P200: =VLOOKUP(A200,pubschls!$A$1:$AD$11703,30,FALSE) -> Alternative Schools of Choice | Q200: =VLOOKUP(A200,pubschls!$A$1:$AD$11703,24,FALSE) -> N
A201: 01612340135418 | B201: Newark Adult | C201: School | D201: Alameda | E201: 4 | F201: =IF(ISERROR(VLOOKUP(A201,Enrollment!$C$4:$F$10349,4,FALSE)),"",VLOOKUP(A201,Enrollment!$C$4:$F$10349,4,FALSE)) ->  | G201: Carrier Ethernet (e.g. - OptiMan, MetroEthernet) | H201: Frame Relay | I201: 100Mbs | J201: AT&T | L201: Other district or school site | M201: Bridgepoint High (Continuation) | O201: =VLOOKUP(A201,pubschls!$A$1:$AD$11703,28,FALSE) -> Unified School District | P201: =VLOOKUP(A201,pubschls!$A$1:$AD$11703,30,FALSE) -> Adult Education Centers | Q201: =VLOOKUP(A201,pubschls!$A$1:$AD$11703,24,FALSE) -> N
... 4299 more rows

Sheet pubschls
A1: CDSCodeValue | B1: CDSCode | C1: NCESDist | D1: NCESSchool | E1: StatusType | F1: County | G1: District | H1: School | I1: Street | J1: StreetAbr | K1: City | L1: Zip | M1: State | N1: MailStreet | O1: MailStrAbr | P1: MailCity | Q1: MailZip | R1: MailState | S1: Phone | T1: Ext | U1: Website | V1: OpenDate | W1: ClosedDate | X1: Charter | Y1: CharterNum | Z1: FundingType | AA1: DOC | AB1: DOCType | AC1: SOC | AD1: SOCType | AE1: EdOpsCode | AF1: EdOpsName | AG1: EILCode | AH1: EILName | AI1: GSoffered | AJ1: GSserved | AK1: Latitude | AL1: Longitude | AM1: AdmFName1 | AN1: AdmLName1 | AO1: AdmEmail1 | AP1: AdmFName2 | AQ1: AdmLName2 | AR1: AdmEmail2 | AS1: AdmFName3 | AT1: AdmLName3 | AU1: AdmEmail3 | AV1: LastUpdate
A2: =VALUE(B2) -> 07616550000000 | B2: 07616550000000 | C2: 0605910 | E2: Active | F2: Contra Costa | G2: Brentwood Union Elementary | I2: 255 Guthrie Lane | J2: 255 Guthrie Ln. | K2: Brentwood | L2: 94513-1610 | M2: CA | N2: 255 Guthrie Lane | O2: 255 Guthrie Ln. | P2: Brentwood | Q2: 94513-1610 | R2: CA | S2: (925) 513-6300 | U2: www.brentwood.k12.ca.us | AA2: 52 | AB2: Elementary School District | AK2: 37.7810199 | AL2: -121.68128 | AM2: Dana | AN2: Eaton | AO2: deaton@brentwood.k12.ca.us | AV2: 7/2/2013
A3: =VALUE(B3) -> 07616630000000 | B3: 07616630000000 | C3: 0606750 | E3: Active | F3: Contra Costa | G3: Byron Union Elementary | I3: 14301 Byron Highway | J3: 14301 Byron Hwy. | K3: Byron | L3: 94514-2515 | M3: CA | N3: 14301 Byron Highway | O3: 14301 Byron Hwy. | P3: Byron | Q3: 94514-2515 | R3: CA | S3: (925) 809-7500 | U3: www.byronusd.com | AA3: 52 | AB3: Elementary School District | AK3: 37.7059599 | AL3: -121.61968 | AM3: Debbie | AN3: Burnette | AO3: dburnette@byron.k12.ca.us | AV3: 7/24/2013
A4: 07616710000000 | B4: 07616710000000 | C4: 0607350 | E4: Active | F4: Contra Costa | G4: Canyon Elementary | I4: 187 Pinehurst Road PO Box 187 | J4: 187 Pinehurst Rd. PO Box 187 | K4: Canyon | L4: 94516-0187 | M4: CA | N4: PO Box 187 PO Box 187 | O4: PO Box 187 PO Box 187 | P4: Canyon | Q4: 94516-0187 | R4: CA | S4: (925) 376-4671 | U4: www.canyon.k12.ca.us | AA4: 52 | AB4: Elementary School District | AK4: 37.6876499 | AL4: -122.17291 | AM4: Gloria | AN4: Faircloth | AO4: gfaircloth@canyon.k12.ca.us | AV4: 8/28/2013
A5: 07616970000000 | B5: 07616970000000 | C5: 0618990 | E5: Active | F5: Contra Costa | G5: John Swett Unified | I5: 400 Parker Avenue | J5: 400 Parker Ave. | K5: Rodeo | L5: 94572-1400 | M5: CA | N5: 400 Parker Avenue | O5: 400 Parker Ave. | P5: Rodeo | Q5: 94572-1400 | R5: CA | S5: (510) 245-4300 | T5: 105 | U5: www.jsusd.org | AA5: 54 | AB5: Unified School District | AK5: 37.9026599 | AL5: -122.21944 | AM5: Rob | AN5: Stockberger | AO5: rstockberger@jsusd.k12.ca.us | AV5: 8/27/2013
A6: 07617050000000 | B6: 07617050000000 | C6: 0620040 | E6: Active | F6: Contra Costa | G6: Knightsen Elementary | I6: 1923 Delta Road | J6: 1923 Delta Rd. | K6: Knightsen | L6: 94548-0265 | M6: CA | N6: PO Box 265 | O6: PO Box 265 | P6: Knightsen | Q6: 94548-0265 | R6: CA | S6: (925) 625-0073 | U6: www.knightsen.k12.ca.us | AA6: 52 | AB6: Elementary School District | AK6: 37.8364199 | AL6: -121.65724 | AM6: Theresa | AN6: Estrada | AO6: testrada@knightsen.k12.ca.us | AV6: 7/2/2013
A7: 07617130000000 | B7: 07617130000000 | C7: 0620310 | E7: Active | F7: Contra Costa | G7: Lafayette Elementary | I7: 3477 School Street | J7: 3477 School St. | K7: Lafayette | L7: 94549-1029 | M7: CA | N7: 3477 School Street | O7: 3477 School St. | P7: Lafayette | Q7: 94549-1029 | R7: CA | S7: (925) 927-3500 | U7: www.lafsd.k12.ca.us | AA7: 52 | AB7: Elementary School District | AK7: 37.7441600 | AL7: -122.11468 | AM7: Fred | AN7: Brill | AO7: fbrill@lafsd.k12.ca.us | AV7: 7/2/2013
A8: 07617210000000 | B8: 07617210000000 | C8: 0621600 | E8: Active | F8: Contra Costa | G8: Liberty Union High | I8: 20 Oak Street | J8: 20 Oak St. | K8: Brentwood | L8: 94513-1379 | M8: CA | N8: 20 Oak Street | O8: 20 Oak St. | P8: Brentwood | Q8: 94513-1379 | R8: CA | S8: (925) 634-2166 | U8: www.libertyuhsd.k12.ca.us | AA8: 56 | AB8: High School District | AK8: 37.7914900 | AL8: -121.69089 | AM8: Eric | AN8: Volta | AO8: voltae@luhsd.net | AV8: 7/2/2013
A9: 07617390000000 | B9: 07617390000000 | C9: 0624030 | E9: Active | F9: Contra Costa | G9: Martinez Unified | I9: 921 Susana Street | J9: 921 Susana St. | K9: Martinez | L9: 94553-1848 | M9: CA | N9: 921 Susana Street | O9: 921 Susana St. | P9: Martinez | Q9: 94553-1848 | R9: CA | S9: (925) 335-5800 | U9: www.martinez.k12.ca.us | AA9: 54 | AB9: Unified School District | AK9: 37.8700899 | AL9: -122.13285 | AM9: Rami | AN9: Muth | AO9: rmuth@martinez.k12.ca.us | AV9: 7/2/2013
A10: 07617470000000 | B10: 07617470000000 | C10: 0625740 | E10: Active | F10: Contra Costa | G10: Moraga Elementary | I10: 1540 School Street | J10: 1540 School St. | K10: Moraga | L10: 94556-0158 | M10: CA | N10: 1540 School Street | O10: 1540 School St. | P10: Moraga | Q10: 94556-0158 | R10: CA | S10: (925) 376-5943 | U10: http://district.moraga.k12.ca.us | AA10: 52 | AB10: Elementary School District | AK10: 37.6916000 | AL10: -122.13140 | AM10: Bruce | AN10: Burns | AO10: bburns@moraga.k12.ca.us | AV10: 7/2/2013
A11: 07617540000000 | B11: 07617540000000 | C11: 0626370 | E11: Active | F11: Contra Costa | G11: Mt. Diablo Unified | I11: 1936 Carlotta Drive | J11: 1936 Carlotta Dr. | K11: Concord | L11: 94519-1397 | M11: CA | N11: 1936 Carlotta Drive | O11: 1936 Carlotta Dr. | P11: Concord | Q11: 94519-1397 | R11: CA | S11: (925) 682-8000 | T11: 4000 | U11: www.mdusd.org | AA11: 54 | AB11: Unified School District | AK11: 37.8427599 | AL11: -122.00716 | AM11: Nellie | AN11: Meyer | AO11: meyern@mdusd.org | AV11: 8/30/2013
A12: 07617620000000 | B12: 07617620000000 | C12: 0628080 | E12: Active | F12: Contra Costa | G12: Oakley Union Elementary | I12: 91 Mercedes Lane | J12: 91 Mercedes Ln. | K12: Oakley | L12: 94561-4617 | M12: CA | N12: 91 Mercedes Lane | O12: 91 Mercedes Ln. | P12: Oakley | Q12: 94561-4617 | R12: CA | S12: (925) 625-0700 | U12: www.ouesd.k12.ca.us | AA12: 52 | AB12: Elementary School District | AK12: 37.8378700 | AL12: -121.71584 | AM12: Richard | AN12: Rogers | AO12: rrogers@ouesd.k12.ca.us | AV12: 7/2/2013
A13: 07617700000000 | B13: 07617700000000 | C13: 0628860 | E13: Active | F13: Contra Costa | G13: Orinda Union Elementary | I13: 25 Orinda Way, Suite 200 | J13: 25 Orinda Way, Ste. 200 | K13: Orinda | L13: 94563-2603 | M13: CA | N13: 25 Orinda Way, Suite 200 | O13: 25 Orinda Way, Ste. 200 | P13: Orinda | Q13: 94563-2603 | R13: CA | S13: (925) 254-4901 | U13: www.orindaschools.org | AA13: 52 | AB13: Elementary School District | AK13: 37.7380700 | AL13: -122.18541 | AM13: Joe | AN13: Jaconette | AO13: jjaconette@orinda.k12.ca.us | AV13: 7/3/2013
A14: 07617880000000 | B14: 07617880000000 | C14: 0630600 | E14: Active | F14: Contra Costa | G14: Pittsburg Unified | I14: 2000 Railroad Avenue | J14: 2000 Railroad Ave. | K14: Pittsburg | L14: 94565-3830 | M14: CA | N14: 2000 Railroad Avenue | O14: 2000 Railroad Ave. | P14: Pittsburg | Q14: 94565-3830 | R14: CA | S14: (925) 473-2300 | U14: www.pittsburg.k12.ca.us | AA14: 54 | AB14: Unified School District | AK14: 37.8764200 | AL14: -121.88778 | AM14: Linda | AN14: Rondeau | AO14: lrondeau@pittsburg.k12.ca.us | AV14: 7/2/2013
A15: 07617960000000 | B15: 07617960000000 | C15: 0632550 | E15: Active | F15: Contra Costa | G15: West Contra Costa Unified | I15: 1108 Bissell Avenue | J15: 1108 Bissell Ave. | K15: Richmond | L15: 94801-3135 | M15: CA | N15: 1108 Bissell Avenue | O15: 1108 Bissell Ave. | P15: Richmond | Q15: 94801-3135 | R15: CA | S15: (510) 231-1101 | U15: www.wccusd.net | AA15: 54 | AB15: Unified School District | AK15: 37.7905599 | AL15: -122.35907 | AM15: Bruce | AN15: Harter | AO15: bharter@wccusd.net | AV15: 7/2/2013
A16: 07618040000000 | B16: 07618040000000 | C16: 0635130 | E16: Active | F16: Contra Costa | G16: San Ramon Valley Unified | I16: 699 Old Orchard Drive | J16: 699 Old Orchard Dr. | K16: Danville | L16: 94526-4331 | M16: CA | N16: 699 Old Orchard Drive | O16: 699 Old Orchard Dr. | P16: Danville | Q16: 94526-4331 | R16: CA | S16: (925) 552-5500 | U16: www.srvusd.net | AA16: 54 | AB16: Unified School District | AK16: 37.6684300 | AL16: -121.97615 | AM16: Mary | AN16: Shelton | AO16: mshelton@srvusd.net | AV16: 7/2/2013
A17: 07618120000000 | B17: 07618120000000 | C17: 0641250 | E17: Active | F17: Contra Costa | G17: Walnut Creek Elementary | I17: 960 Ygnacio Valley Road | J17: 960 Ygnacio Valley Rd. | K17: Walnut Creek | L17: 94596-3826 | M17: CA | N17: 960 Ygnacio Valley Road | O17: 960 Ygnacio Valley Rd. | P17: Walnut Creek | Q17: 94596-3826 | R17: CA | S17: (925) 944-6850 | U17: www.walnutcreeksd.org | AA17: 52 | AB17: Elementary School District | AK17: 37.7642200 | AL17: -122.05562 | AM17: Patricia | AN17: Wool | AO17: pwool@wcsd.k12.ca.us | AV17: 7/2/2013
A18: 07743440000000 | B18: 07743440000000 | C18: 0600092 | E18: Active | F18: Contra Costa | G18: Contra Costa County ROP | I18: 77 Santa Barbara Road | J18: 77 Santa Barbara Rd. | K18: Pleasant Hill | L18: 94523 | M18: CA | N18: 77 Santa Barbara Road | O18: 77 Santa Barbara Rd. | P18: Pleasant Hill | Q18: 94523 | R18: CA | AA18: 98 | AB18: Regional Occupation Center/Program (ROC/P) | AM18: Janet | AN18: Haun | AO18: jhaun@cccoe.k12.ca.us | AV18: 9/25/2012
A19: 08100820000000 | B19: 08100820000000 | C19: 0691063 | E19: Active | F19: Del Norte | G19: Del Norte County Office of Education | I19: 301 West Washington Boulevard | J19: 301 West Washington Blvd. | K19: Crescent City | L19: 95531-8340 | M19: CA | N19: 301 West Washington Boulevard | O19: 301 West Washington Blvd. | P19: Crescent City | Q19: 95531-8340 | R19: CA | S19: (707) 464-0200 | U19: www.delnorte.k12.ca.us | AA19: 00 | AB19: County Office of Education (COE) | AK19: 41.6229299 | AL19: -124.20425 | AM19: Don | AN19: Olson | AO19: dolson@delnorte.k12.ca.us | AV19: 7/2/2013
A20: 08743510000000 | B20: 08743510000000 | C20: 0600093 | E20: Active | F20: Del Norte | G20: Del Norte County ROP | I20: 301 West Washington Boulevard | J20: 301 West Washington Blvd. | K20: Crescent City | L20: 95531 | M20: CA | N20: 301 West Washington Boulevard | O20: 301 West Washington Blvd. | P20: Crescent City | Q20: 95531 | R20: CA | AA20: 98 | AB20: Regional Occupation Center/Program (ROC/P) | AV20: 7/2/2013
A21: 09100900000000 | B21: 09100900000000 | C21: 0691006 | E21: Active | F21: El Dorado | G21: El Dorado County Office of Education | I21: 6767 Green Valley Road | J21: 6767 Green Valley Rd. | K21: Placerville | L21: 95667-8984 | M21: CA | N21: 6767 Green Valley Road | O21: 6767 Green Valley Rd. | P21: Placerville | Q21: 95667-8984 | R21: CA | S21: (530) 622-7130 | U21: www.edcoe.org | AA21: 00 | AB21: County Office of Education (COE) | AK21: 38.5755500 | AL21: -120.87858 | AM21: Jeremy | AN21: Meyers | AO21: jmeyers@edcoe.org | AV21: 7/16/2013
A22: 11754810000000 | B22: 11754810000000 | C22: 0600045 | E22: Active | F22: Glenn | G22: Orland Joint Unified | I22: 1320 Sixth Street | J22: 1320 Sixth St. | K22: Orland | L22: 95963-1641 | M22: CA | N22: 1320 Sixth Street | O22: 1320 Sixth St. | P22: Orland | Q22: 95963-1641 | R22: CA | S22: (530) 865-1200 | U22: www.orlandusd.net | AA22: 54 | AB22: Unified School District | AK22: 39.5583699 | AL22: -122.34780 | AM22: Chris | AN22: Von Kleist | AO22: cvonkleist@orlandusd.net | AV22: 7/2/2013
A23: 08618200000000 | B23: 08618200000000 | C23: 0610770 | E23: Active | F23: Del Norte | G23: Del Norte County Unified | I23: 301 West Washington Boulevard | J23: 301 West Washington Blvd. | K23: Crescent City | L23: 95531-8340 | M23: CA | N23: 301 West Washington Boulevard | O23: 301 West Washington Blvd. | P23: Crescent City | Q23: 95531-8340 | R23: CA | S23: (707) 464-0200 | U23: www.delnorte.k12.ca.us | AA23: 54 | AB23: Unified School District | AK23: 41.6229299 | AL23: -124.20425 | AM23: Don | AN23: Olson | AO23: dolson@delnorte.k12.ca.us | AV23: 7/2/2013
A24: 12101240000000 | B24: 12101240000000 | C24: 0691009 | E24: Active | F24: Humboldt | G24: Humboldt County Office of Education | I24: 901 Myrtle Avenue | J24: 901 Myrtle Ave. | K24: Eureka | L24: 95501-1219 | M24: CA | N24: 901 Myrtle Avenue | O24: 901 Myrtle Ave. | P24: Eureka | Q24: 95501-1219 | R24: CA | S24: (707) 445-7000 | U24: www.humboldt.k12.ca.us | AA24: 00 | AB24: County Office of Education (COE) | AK24: 40.6532300 | AL24: -124.15192 | AM24: Garry | AN24: Eagles | AO24: superintendent@hcoe.net | AV24: 7/2/2013
A25: 12626790000000 | B25: 12626790000000 | C25: 0603000 | E25: Active | F25: Humboldt | G25: Arcata Elementary | I25: 1435 Buttermilk Lane | J25: 1435 Buttermilk Ln. | K25: Arcata | L25: 95521-6909 | M25: CA | N25: 1435 Buttermilk Lane | O25: 1435 Buttermilk Ln. | P25: Arcata | Q25: 95521-6909 | R25: CA | S25: (707) 822-0351 | U25: www.humboldt.k12.ca.us/arcata_sd/ | AA25: 52 | AB25: Elementary School District | AK25: 40.7090800 | AL25: -124.06679 | AM25: Pamela | AN25: Jones | AO25: pjones@humboldt.k12.ca.us | AV25: 7/2/2013
A26: 12626870000000 | B26: 12626870000000 | C26: 0603030 | E26: Active | F26: Humboldt | G26: Northern Humboldt Union High | I26: 2755 McKinleyville Avenue | J26: 2755 McKinleyville Ave. | K26: McKinleyville | L26: 95519-3400 | M26: CA | N26: 2755 McKinleyville Avenue | O26: 2755 McKinleyville Ave. | P26: McKinleyville | Q26: 95519-3400 | R26: CA | S26: (707) 839-6470 | U26: www.nohum.k12.ca.us/nhuhsd/nhuhsd.htm | AA26: 56 | AB26: High School District | AK26: 40.8047200 | AL26: -124.11123 | AM26: Chris | AN26: Hartley | AO26: chartley@nohum.k12.ca.us | AV26: 7/2/2013
A27: 12626950000000 | B27: 12626950000000 | C27: 0604890 | E27: Active | F27: Humboldt | G27: Big Lagoon Union Elementary | I27: 269 Big Lagoon Park Road | J27: 269 Big Lagoon Park Rd. | K27: Trinidad | L27: 95570-9622 | M27: CA | N27: 269 Big Lagoon Park Road | O27: 269 Big Lagoon Park Rd. | P27: Trinidad | Q27: 95570-9622 | R27: CA | S27: (707) 677-3688 | U27: www.humboldt.k12.ca.us/blagoon_sd | AA27: 52 | AB27: Elementary School District | AK27: 41.0144799 | AL27: -124.13169 | AM27: Alan | AN27: LaPolice | AO27: Alapolice@nohum.k12.ca.us | AV27: 7/2/2013
A28: 12627030000000 | B28: 12627030000000 | C28: 0605400 | E28: Active | F28: Humboldt | G28: Blue Lake Union Elementary | I28: 631 Greenwood Avenue | J28: 631 Greenwood Ave. | K28: Blue Lake | L28: 95525 | M28: CA | N28: PO Box 268 | O28: PO Box 268 | P28: Blue Lake | Q28: 95525-0268 | R28: CA | S28: (707) 668-5674 | U28: www.humboldt.k12.ca.us/bluelake | AA28: 52 | AB28: Elementary School District | AK28: 40.8224500 | AL28: -123.88330 | AM28: Paula | AN28: Wyant | AO28: pwyant@humboldt.k12.ca.us | AV28: 7/2/2013
A29: 12627290000000 | B29: 12627290000000 | C29: 0606000 | E29: Active | F29: Humboldt | G29: Bridgeville Elementary | I29: 38717 Kneeland Road | J29: 38717 Kneeland Rd. | K29: Bridgeville | L29: 95526-0098 | M29: CA | N29: PO Box 98 | O29: PO Box 98 | P29: Bridgeville | Q29: 95526-0098 | R29: CA | S29: (707) 777-3311 | U29: www.humboldt.k12.ca.us/bridgeville_sd | AA29: 52 | AB29: Elementary School District | AK29: 40.3518600 | AL29: -123.81883 | AM29: Mike | AN29: Mullan | AO29: mmullan@humboldt.k12.ca.us | AV29: 7/2/2013
A30: 12627370000000 | B30: 12627370000000 | C30: 0610230 | E30: Active | F30: Humboldt | G30: Cuddeback Union Elementary | I30: 300 Wilder Road | J30: 300 Wilder Rd. | K30: Carlotta | L30: 95528-0007 | M30: CA | N30: PO Box 7 | O30: PO Box 7 | P30: Carlotta | Q30: 95528-0007 | R30: CA | S30: (707) 768-3372 | U30: www.humboldt.k12.ca.us/cuddeback_sd | AA30: 52 | AB30: Elementary School District | AK30: 40.3280299 | AL30: -123.93897 | AM30: Ronan | AN30: Collver | AO30: rcollver@humboldt.k12.ca.us | AV30: 7/2/2013
A31: 12627450000000 | B31: 12627450000000 | C31: 0610380 | E31: Active | F31: Humboldt | G31: Cutten Elementary | I31: 4182 Walnut Drive | J31: 4182 Walnut Dr. | K31: Eureka | L31: 95503-6223 | M31: CA | N31: 4182 Walnut Drive | O31: 4182 Walnut Dr. | P31: Eureka | Q31: 95503-6223 | R31: CA | S31: (707) 441-3900 | U31: www.humboldt.k12.ca.us/cutten_sd | AA31: 52 | AB31: Elementary School District | AK31: 40.6180900 | AL31: -124.14393 | AM31: Julie | AN31: Osborne | AO31: josborne@humboldt.k12.ca.us | AV31: 7/2/2013
A32: 12627940000000 | B32: 12627940000000 | C32: 0613740 | E32: Active | F32: Humboldt | G32: Fieldbrook Elementary | I32: 4070 Fieldbrook Road | J32: 4070 Fieldbrook Rd. | K32: McKinleyville | L32: 95519-9709 | M32: CA | N32: 4070 Fieldbrook Road | O32: 4070 Fieldbrook Rd. | P32: McKinleyville | Q32: 95519-9709 | R32: CA | S32: (707) 839-3201 | U32: www.nohum.k12.ca.us/fsd | AA32: 52 | AB32: Elementary School District | AK32: 40.8034400 | AL32: -124.03366 | AM32: Daria | AN32: Lowery | AO32: darialowery@nohum.k12.ca.us | AV32: 7/2/2013
A33: 12628100000000 | B33: 12628100000000 | C33: 0614190 | E33: Active | F33: Humboldt | G33: Fortuna Union High | I33: 379 12th Street | J33: 379 12th St. | K33: Fortuna | L33: 95540-2398 | M33: CA | N33: 379 12th Street | O33: 379 12th St. | P33: Fortuna | Q33: 95540-2398 | R33: CA | S33: (707) 725-4461 | T33: 3011 | U33: www.fuhsdistrict.org | AA33: 56 | AB33: High School District | AK33: 40.4474799 | AL33: -124.15537 | AM33: Glen | AN33: Senestraro | AO33: gsenestraro@fuhsdistrict.org | AV33: 8/29/2013
A34: 12628280000000 | B34: 12628280000000 | C34: 0614520 | E34: Active | F34: Humboldt | G34: Freshwater Elementary | I34: 75 Greenwood Heights Drive | J34: 75 Greenwood Heights Dr. | K34: Eureka | L34: 95503-9569 | M34: CA | N34: 75 Greenwood Heights Drive | O34: 75 Greenwood Heights Dr. | P34: Eureka | Q34: 95503-9569 | R34: CA | S34: (707) 442-2969 | U34: www.humboldt.k12.ca.us/freshwater_sd | AA34: 52 | AB34: Elementary School District | AK34: 40.6391100 | AL34: -124.08369 | AM34: Thom | AN34: McMahon | AO34: tmcmahon@humboldt.k12.ca.us | AV34: 7/2/2013
A35: 12628360000000 | B35: 12628360000000 | C35: 0614910 | E35: Active | F35: Humboldt | G35: Garfield Elementary | I35: 2200 Freshwater Road | J35: 2200 Freshwater Rd. | K35: Eureka | L35: 95503-9562 | M35: CA | N35: 2200 Freshwater Road | O35: 2200 Freshwater Rd. | P35: Eureka | Q35: 95503-9562 | R35: CA | S35: (707) 442-5471 | U35: www.humboldt.k12.ca.us/garfield_sd | AA35: 52 | AB35: Elementary School District | AK35: 40.6082400 | AL35: -124.03525 | AM35: Barbara | AN35: McMahon | AO35: bmcmahon@humboldt.k12.ca.us | AV35: 7/2/2013
A36: 12628510000000 | B36: 12628510000000 | C36: 0615990 | E36: Active | F36: Humboldt | G36: Green Point Elementary | I36: 180 Valkensar Lane | J36: 180 Valkensar Ln. | K36: Blue Lake | L36: 95525-9700 | M36: CA | N36: 180 Valkensar Lane | O36: 180 Valkensar Ln. | P36: Blue Lake | Q36: 95525-9700 | R36: CA | S36: (707) 668-5921 | U36: www.humboldt.k12.ca.us/greenpoint_sd | AA36: 52 | AB36: Elementary School District | AK36: 40.8224500 | AL36: -123.88330 | AM36: Rea | AN36: Erickson | AO36: rerickson@humboldt.k12.ca.us | AV36: 7/2/2013
A37: 12628850000000 | B37: 12628850000000 | C37: 0618120 | E37: Active | F37: Humboldt | G37: Hydesville Elementary | I37: 3050 Johnson Road | J37: 3050 Johnson Rd. | K37: Hydesville | L37: 95547-0551 | M37: CA | N37: PO Box 551 | O37: PO Box 551 | P37: Hydesville | Q37: 95547-0551 | R37: CA | S37: (707) 768-3610 | U37: www.humboldt.k12.ca.us/hydesville_sd | AA37: 52 | AB37: Elementary School District | AK37: 40.4078900 | AL37: -124.08942 | AM37: John | AN37: Blakely | AO37: jblakely@humboldt.k12.ca.us | AV37: 7/2/2013
A38: 12628930000000 | B38: 12628930000000 | C38: 0618660 | E38: Active | F38: Humboldt | G38: Jacoby Creek Elementary | I38: 1617 Old Arcata Road | J38: 1617 Old Arcata Rd. | K38: Bayside | L38: 95524-9301 | M38: CA | N38: 1617 Old Arcata Road | O38: 1617 Old Arcata Rd. | P38: Bayside | Q38: 95524-9301 | R38: CA | S38: (707) 822-4896 | U38: http://internet.humboldt.k12.ca.us/jacobycreekschool | AA38: 52 | AB38: Elementary School District | AK38: 40.7011699 | AL38: -124.06950 | AM38: Catherine | AN38: Stone | AO38: cstone@nohum.k12.ca.us | AV38: 7/2/2013
A39: 12629010000000 | B39: 12629010000000 | C39: 0619950 | E39: Active | F39: Humboldt | G39: Klamath-Trinity Joint Unified | I39: 5 Loop Road | J39: 5 Loop Rd. | K39: Hoopa | L39: 95546-1308 | M39: CA | N39: PO Box 1308 | O39: PO Box 1308 | P39: Hoopa | Q39: 95546-1308 | R39: CA | S39: (530) 625-5600 | T39: 1003 | U39: www.ktjusd.k12.ca.us | AA39: 54 | AB39: Unified School District | AK39: 41.0827800 | AL39: -123.75498 | AM39: Dione | AN39: Bielby | AO39: dbeilby@ktjusd.k12.ca.us | AV39: 9/13/2013
A40: 12629190000000 | B40: 12629190000000 | C40: 0619980 | E40: Active | F40: Humboldt | G40: Kneeland Elementary | I40: 9313 Kneeland Road | J40: 9313 Kneeland Rd. | K40: Kneeland | L40: 95549-9018 | M40: CA | N40: 9313 Kneeland Road | O40: 9313 Kneeland Rd. | P40: Kneeland | Q40: 95549-9018 | R40: CA | S40: (707) 442-5472 | U40: www.humboldt.k12.ca.us/kneeland_sd | AA40: 52 | AB40: Elementary School District | AK40: 40.5484300 | AL40: -123.93733 | AM40: Michael | AN40: Quinlan | AO40: kneeland@humboldt.k12.ca.us | AV40: 7/2/2013
A41: 12629270000000 | B41: 12629270000000 | C41: 0622320 | E41: Active | F41: Humboldt | G41: Loleta Union Elementary | I41: 700 Loleta Drive | J41: 700 Loleta Dr. | K41: Loleta | L41: 95551-0547 | M41: CA | N41: PO Box 547 | O41: PO Box 547 | P41: Loleta | Q41: 95551-0547 | R41: CA | S41: (707) 733-5705 | U41: www.humboldt.k12.ca.us/loleta_sd | AA41: 52 | AB41: Elementary School District | AK41: 40.4952699 | AL41: -124.22077 | AM41: Sally | AN41: Hadden | AO41: shadden@humboldt.k12.ca.us | AV41: 7/2/2013
A42: 12629350000000 | B42: 12629350000000 | C42: 0623730 | E42: Active | F42: Humboldt | G42: Maple Creek Elementary | I42: 15933 Maple Creek Road | J42: 15933 Maple Creek Rd. | K42: Korbel | L42: 95550-9602 | M42: CA | N42: 15933 Maple Creek Road | O42: 15933 Maple Creek Rd. | P42: Korbel | Q42: 95550-9602 | R42: CA | S42: (707) 668-5596 | U42: www.humboldt.k12.ca.us/mapleck_sd/ | AA42: 52 | AB42: Elementary School District | AK42: 40.6222399 | AL42: -123.84815 | AM42: Wendy | AN42: Orlandi | AO42: worlandi@humboldt.k12.ca.us | AV42: 7/2/2013
A43: 12629500000000 | B43: 12629500000000 | C43: 0624300 | E43: Active | F43: Humboldt | G43: McKinleyville Union Elementary | I43: 2275 Central Avenue | J43: 2275 Central Ave. | K43: McKinleyville | L43: 95519-3611 | M43: CA | N43: 2275 Central Avenue | O43: 2275 Central Ave. | P43: McKinleyville | Q43: 95519-3611 | R43: CA | S43: (707) 839-1549 | U43: www.nohum.k12.ca.us/msd | AA43: 52 | AB43: Elementary School District | AK43: 40.8030300 | AL43: -124.10175 | AM43: Michael | AN43: Davies-Hughes | AO43: mdavies-hughes@nohum.k12.ca.us | AV43: 7/2/2013
A44: 12629680000000 | B44: 12629680000000 | C44: 0628830 | E44: Active | F44: Humboldt | G44: Orick Elementary | I44: Highway 101 | J44: Highway 101 | K44: Orick | L44: 95555-0128 | M44: CA | N44: PO Box 128 | O44: PO Box 128 | P44: Orick | Q44: 95555-0128 | R44: CA | S44: (707) 488-2821 | U44: http://orickschool.homestead.com | AA44: 52 | AB44: Elementary School District | AK44: 41.2266199 | AL44: -124.05589 | AM44: John | AN44: Sutter | AO44: jsutter@humboldt.k12.ca.us | AV44: 7/2/2013
A45: 12629760000000 | B45: 12629760000000 | C45: 0629430 | E45: Active | F45: Humboldt | G45: Pacific Union Elementary | I45: 3001 Janes Road | J45: 3001 Janes Rd. | K45: Arcata | L45: 95521-4701 | M45: CA | N45: 3001 Janes Road | O45: 3001 Janes Rd. | P45: Arcata | Q45: 95521-4701 | R45: CA | S45: (707) 822-4619 | U45: www.pacificunionschool.org | AA45: 52 | AB45: Elementary School District | AK45: 40.7535600 | AL45: -124.09233 | AM45: Karla | AN45: Darnall | AO45: kdarnall@humboldt.k12.ca.us | AV45: 7/2/2013
A46: 12629840000000 | B46: 12629840000000 | C46: 0630090 | E46: Active | F46: Humboldt | G46: Peninsula Union | I46: 909 Vance Avenue | J46: 909 Vance Ave. | K46: Samoa | L46: 95564-0175 | M46: CA | N46: PO Box 175 | O46: PO Box 175 | P46: Samoa | Q46: 95564-0175 | R46: CA | S46: (707) 443-2731 | U46: www.humboldt.k12.ca.us/peninsula_sd | AA46: 52 | AB46: Elementary School District | AK46: 40.6453399 | AL46: -124.20431 | AM46: Kim | AN46: Blanc | AO46: kblanc@humboldt.k12.ca.us | AV46: 7/2/2013
A47: 12630080000000 | B47: 12630080000000 | C47: 0632730 | E47: Active | F47: Humboldt | G47: Rio Dell Elementary | I47: 95 Center Street | J47: 95 Center St. | K47: Rio Dell | L47: 95562-1323 | M47: CA | N47: 95 Center Street | O47: 95 Center St. | P47: Rio Dell | Q47: 95562-1323 | R47: CA | S47: (707) 764-5694 | U47: http://riodell.schoolwires.com | AA47: 52 | AB47: Elementary School District | AK47: 40.3542399 | AL47: -124.10536 | AM47: Mary | AN47: Varner | AO47: mvarner@humboldt.k12.ca.us | AV47: 7/2/2013
A48: 12630240000000 | B48: 12630240000000 | C48: 0636100 | E48: Active | F48: Humboldt | G48: Scotia Union Elementary | I48: 417 Church Street | J48: 417 Church St. | K48: Scotia | L48: 95565-0217 | M48: CA | N48: PO Box 217 | O48: PO Box 217 | P48: Scotia | Q48: 95565-0217 | R48: CA | S48: (707) 764-2212 | U48: www.humboldt.k12.ca.us/scotia_sd | AA48: 52 | AB48: Elementary School District | AK48: 40.3033500 | AL48: -124.01443 | AM48: Ronan | AN48: Collver | AO48: rcollver@humboldt.k12.ca.us | AV48: 7/30/2013
A49: 12630320000000 | B49: 12630320000000 | C49: 0637350 | E49: Active | F49: Humboldt | G49: South Bay Union Elementary | I49: 6077 Loma Avenue | J49: 6077 Loma Ave. | K49: Eureka | L49: 95503-6869 | M49: CA | N49: 6077 Loma Avenue | O49: 6077 Loma Ave. | P49: Eureka | Q49: 95503-6869 | R49: CA | S49: (707) 476-8549 | U49: www.southbaydistrict.org | AA49: 52 | AB49: Elementary School District | AK49: 40.6099299 | AL49: -124.18199 | AM49: Paul | AN49: Meyers | AO49: pmeyers@humboldt.k12.ca.us | AV49: 7/2/2013
A50: 12630400000000 | B50: 12630400000000 | C50: 0637590 | E50: Active | F50: Humboldt | G50: Southern Humboldt Joint Unified | I50: 110 School Road | J50: 110 School Rd. | K50: Miranda | L50: 95553 | M50: CA | N50: PO Box 650 | O50: PO Box 650 | P50: Miranda | Q50: 95553-0650 | R50: CA | S50: (707) 943-1789 | U50: www.humboldt.k12.ca.us/sohumb_usd/school | AA50: 54 | AB50: Unified School District | AK50: 39.9505600 | AL50: -123.79947 | AM50: Catherine | AN50: Scott | AO50: cscott@humboldt.k12.ca.us | AV50: 7/2/2013
A51: 12630570000000 | B51: 12630570000000 | C51: 0639720 | E51: Active | F51: Humboldt | G51: Trinidad Union Elementary | I51: 300 Trinity Street | J51: 300 Trinity St. | K51: Trinidad | L51: 95570-3030 | M51: CA | N51: PO Box 3030 | O51: PO Box 3030 | P51: Trinidad | Q51: 95570-3030 | R51: CA | S51: (707) 677-3631 | U51: www.humboldt.k12.ca.us/trinidad_sd | AA51: 52 | AB51: Elementary School District | AK51: 41.0003900 | AL51: -124.04984 | AM51: Geoffrey | AN51: Proust | AO51: gproust@nohum.k12.ca.us | AV51: 7/2/2013
A52: 12743930000000 | B52: 12743930000000 | C52: 0600100 | E52: Active | F52: Humboldt | G52: Humboldt County ROP | I52: 901 Myrtle Avenue | J52: 901 Myrtle Ave. | K52: Eureka | L52: 95501 | M52: CA | N52: 901 Myrtle Avenue | O52: 901 Myrtle Ave. | P52: Eureka | Q52: 95501 | R52: CA | AA52: 98 | AB52: Regional Occupation Center/Program (ROC/P) | AV52: 7/2/2013
A53: 12753740000000 | B53: 12753740000000 | C53: 0600037 | E53: Active | F53: Humboldt | G53: Ferndale Unified | I53: 1231 Main Street | J53: 1231 Main St. | K53: Ferndale | L53: 95536-9416 | M53: CA | N53: 1231 Main Street | O53: 1231 Main St. | P53: Ferndale | Q53: 95536-9416 | R53: CA | S53: (707) 786-5900 | U53: www.ferndalek12.org | AA53: 54 | AB53: Unified School District | AK53: 40.4284100 | AL53: -124.26487 | AM53: Jack | AN53: Lakin | AO53: jlakin@humboldt.k12.ca.us | AV53: 7/2/2013
A54: 12753820000000 | B54: 12753820000000 | C54: 0600038 | E54: Active | F54: Humboldt | G54: Mattole Unified | I54: 29289 Chambers Road | J54: 29289 Chambers Rd. | K54: Petrolia | L54: 95558-0211 | M54: CA | N54: PO Box 211 | O54: PO Box 211 | P54: Petrolia | Q54: 95558-0211 | R54: CA | S54: (707) 629-3311 | U54: www.humboldt.k12.ca.us/mattole_usd | AA54: 54 | AB54: Unified School District | AK54: 40.1417700 | AL54: -124.21187 | AM54: Richard | AN54: Graey | AO54: rgraey@hotmail.com | AV54: 7/2/2013
A55: 12755150000000 | B55: 12755150000000 | C55: 0600052 | E55: Active | F55: Humboldt | G55: Eureka City Schools | I55: 2100 J Street | J55: 2100 J St. | K55: Eureka | L55: 95501-3055 | M55: CA | N55: 2100 J Street | O55: 2100 J St. | P55: Eureka | Q55: 95501-3055 | R55: CA | S55: (707) 441-2414 | U55: www.eurekacityschools.org | AA55: 54 | AB55: Unified School District | AK55: 40.6322300 | AL55: -124.13862 | AM55: Fred | AN55: Van Vleck, Ed.D. | AO55: vanvleckf@eurekacityschools.org | AV55: 8/28/2013
A56: 13101320000000 | B56: 13101320000000 | C56: 0691010 | E56: Active | F56: Imperial | G56: Imperial County Office of Education | I56: 1398 Sperber Road | J56: 1398 Sperber Rd. | K56: El Centro | L56: 92243-9621 | M56: CA | N56: 1398 Sperber Road | O56: 1398 Sperber Rd. | P56: El Centro | Q56: 92243-9621 | R56: CA | S56: (760) 312-6464 | U56: www.icoe.org | AA56: 00 | AB56: County Office of Education (COE) | AK56: 32.6385999 | AL56: -115.59941 | AM56: Anne | AN56: Mallory | AO56: ajmallory@icoe.org | AV56: 7/2/2013
A57: 13630730000000 | B57: 13630730000000 | C57: 0605790 | E57: Active | F57: Imperial | G57: Brawley Elementary | I57: 261 D Street | J57: 261 D St. | K57: Brawley | L57: 92227-1912 | M57: CA | N57: 261 D Street | O57: 261 D St. | P57: Brawley | Q57: 92227-1912 | R57: CA | S57: (760) 344-2330 | U57: www.besd.org | AA57: 52 | AB57: Elementary School District | AK57: 32.8477200 | AL57: -115.53531 | AM57: Ronald A. | AN57: Garcia | AO57: rongarcia@besd.org | AV57: 7/2/2013
A58: 13632140000000 | B58: 13632140000000 | C58: 0635070 | E58: Active | F58: Imperial | G58: San Pasqual Valley Unified | I58: Route 1, 676 Baseline Road | J58: Route 1, 676 Baseline Rd. | K58: Winterhaven | L58: 92283-9801 | M58: CA | N58: Route 1, 676 Baseline Road | O58: Route 1, 676 Baseline Rd. | P58: Winterhaven | Q58: 92283-9801 | R58: CA | S58: (760) 572-0222 | U58: www.sanpasqual.k12.ca.us | AA58: 54 | AB58: Unified School District | AK58: 32.9263100 | AL58: -115.07177 | AM58: David | AN58: Bealer | AO58: dbealer@spvusd.org | AV58: 7/2/2013
A59: 13630810000000 | B59: 13630810000000 | C59: 0605820 | E59: Active | F59: Imperial | G59: Brawley Union High | I59: 480 North Imperial Avenue | J59: 480 North Imperial Ave. | K59: Brawley | L59: 92227-1625 | M59: CA | N59: 480 North Imperial Avenue | O59: 480 North Imperial Ave. | P59: Brawley | Q59: 92227-1625 | R59: CA | S59: (760) 312-5819 | U59: www.brawleyhigh.org | AA59: 56 | AB59: High School District | AK59: 32.8498099 | AL59: -115.53215 | AM59: Hasmik | AN59: Danielian | AO59: superintendent@brawleyhigh.org | AV59: 7/2/2013
A60: 13630990000000 | B60: 13630990000000 | C60: 0606900 | E60: Active | F60: Imperial | G60: Calexico Unified | I60: 901 Andrade Avenue | J60: 901 Andrade Ave. | K60: Calexico | L60: 92231-3015 | M60: CA | N60: 901 Andrade Avenue | O60: 901 Andrade Ave. | P60: Calexico | Q60: 92231-3015 | R60: CA | S60: (760) 768-3888 | U60: www.calexico.k12.ca.us | AA60: 54 | AB60: Unified School District | AK60: 32.5372500 | AL60: -115.47937 | AM60: Maria | AN60: Ambriz | AO60: mambriz@cusdk12.org | AV60: 8/27/2013
A61: 13631070000000 | B61: 13631070000000 | C61: 0606990 | E61: Active | F61: Imperial | G61: Calipatria Unified | I61: 501 West Main Street | J61: 501 West Main St. | K61: Calipatria | L61: 92233-9787 | M61: CA | N61: 501 West Main Street | O61: 501 West Main St. | P61: Calipatria | Q61: 92233-9787 | R61: CA | S61: (760) 348-2151 | U61: www.calipat.com | AA61: 54 | AB61: Unified School District | AK61: 32.9923100 | AL61: -115.51468 | AM61: Douglas | AN61: Kline | AO61: dkline@calipat.com | AV61: 7/2/2013
A62: 13631150000000 | B62: 13631150000000 | C62: 0608010 | E62: Active | F62: Imperial | G62: Central Union High | I62: 351 West Ross Avenue | J62: 351 West Ross Ave. | K62: El Centro | L62: 92243-3110 | M62: CA | N62: 351 West Ross Avenue | O62: 351 West Ross Ave. | P62: El Centro | Q62: 92243-3110 | R62: CA | S62: (760) 336-4500 | U62: www.cuhsd.net | AA62: 56 | AB62: High School District | AK62: 32.6570899 | AL62: -115.56068 | AM62: C. | AN62: Budde | AO62: tbudde@cuhsd.net | AV62: 7/2/2013
A63: 13631230000000 | B63: 13631230000000 | C63: 0612030 | E63: Active | F63: Imperial | G63: El Centro Elementary | I63: 1256 Broadway | J63: 1256 Broadway | K63: El Centro | L63: 92243-2317 | M63: CA | N63: 1256 Broadway | O63: 1256 Broadway | P63: El Centro | Q63: 92243-2317 | R63: CA | S63: (760) 352-5712 | U63: www.ecesd.org | AA63: 52 | AB63: Elementary School District | AK63: 32.6612000 | AL63: -115.56340 | AM63: Jon | AN63: LeDoux | AO63: jledoux@ecesd.org | AV63: 7/2/2013
A64: 13631310000000 | B64: 13631310000000 | C64: 0616830 | E64: Active | F64: Imperial | G64: Heber Elementary | I64: 1052 Heber Avenue | J64: 1052 Heber Ave. | K64: Heber | L64: 92249-9759 | M64: CA | N64: 1052 Heber Avenue | O64: 1052 Heber Ave. | P64: Heber | Q64: 92249-9759 | R64: CA | S64: (760) 337-6530 | T64: 2497 | U64: http://hesdk8.org | AA64: 52 | AB64: Elementary School District | AK64: 32.5975899 | AL64: -115.42722 | AM64: Jaime | AN64: Silva | AO64: jaimes@hesdk8.org | AV64: 7/2/2013
A65: 13631490000000 | B65: 13631490000000 | C65: 0617430 | E65: Active | F65: Imperial | G65: Holtville Unified | I65: 621 East Sixth Street | J65: 621 East Sixth St. | K65: Holtville | L65: 92250-1450 | M65: CA | N65: 621 East Sixth Street | O65: 621 East Sixth St. | P65: Holtville | Q65: 92250-1450 | R65: CA | S65: (760) 356-2974 | U65: www.holtville.k12.ca.us | AA65: 54 | AB65: Unified School District | AK65: 32.6803000 | AL65: -115.37058 | AM65: Celso | AN65: Ruiz | AO65: celso@holtville.k12.ca.us | AV65: 7/2/2013
A66: 13631640000000 | B66: 13631640000000 | C66: 0618210 | E66: Active | F66: Imperial | G66: Imperial Unified | I66: 219 North E Street | J66: 219 North E St. | K66: Imperial | L66: 92251 | M66: CA | N66: 219 North E Street | O66: 219 North E St. | P66: Imperial | Q66: 92251 | R66: CA | S66: (760) 355-3200 | U66: http://iusd.imperial.k12.ca.us | AA66: 54 | AB66: Unified School District | AK66: 32.7158299 | AL66: -115.57196 | AM66: Lisa | AN66: Tabarez | AO66: ltabarez@imperialusd.org | AV66: 7/2/2013
A67: =VALUE(B67) -> 13631720000000 | B67: 13631720000000 | C67: 0623460 | E67: Active | F67: Imperial | G67: Magnolia Union Elementary | I67: 4502 Casey Road | J67: 4502 Casey Rd. | K67: Brawley | L67: 92227-9561 | M67: CA | N67: 4502 Casey Road | O67: 4502 Casey Rd. | P67: Brawley | Q67: 92227-9561 | R67: CA | S67: (760) 344-2494 | U67: www.magnoliatigers.com | AA67: 52 | AB67: Elementary School District | AK67: 32.8687100 | AL67: -115.42081 | AM67: Blaine | AN67: Smith | AO67: brsmith@ivnet.org | AV67: 7/2/2013
A68: 13631800000000 | B68: 13631800000000 | C68: 0624180 | E68: Active | F68: Imperial | G68: McCabe Union Elementary | I68: 701 West McCabe Road | J68: 701 West McCabe Rd. | K68: El Centro | L68: 92243-9507 | M68: CA | N68: 701 West McCabe Road | O68: 701 West McCabe Rd. | P68: El Centro | Q68: 92243-9507 | R68: CA | S68: (760) 335-5200 | U68: www.mccabeschool.net | AA68: 52 | AB68: Elementary School District | AK68: 32.6197599 | AL68: -115.58707 | AM68: Amanda | AN68: Brooke | AO68: abrooke@ivnet.org | AV68: 7/2/2013
A69: 13631980000000 | B69: 13631980000000 | C69: 0624390 | E69: Active | F69: Imperial | G69: Meadows Union Elementary | I69: 2059 Bowker Road | J69: 2059 Bowker Rd. | K69: El Centro | L69: 92243-9724 | M69: CA | N69: 2059 Bowker Road | O69: 2059 Bowker Rd. | P69: El Centro | Q69: 92243-9724 | R69: CA | S69: (760) 352-7512 | U69: www.meadows.k12.ca.us | AA69: 52 | AB69: Elementary School District | AK69: 32.6646900 | AL69: -115.47068 | AM69: Sharon | AN69: Theis | AO69: stheis@ivnet.org | AV69: 7/2/2013
A70: 13632060000000 | B70: 13632060000000 | C70: 0626430 | E70: Active | F70: Imperial | G70: Mulberry Elementary | I70: 1391 East Rutherford Road | J70: 1391 East Rutherford Rd. | K70: Brawley | L70: 92227-9578 | M70: CA | N70: 1391 East Rutherford Road | O70: 1391 East Rutherford Rd. | P70: Brawley | Q70: 92227-9578 | R70: CA | S70: (760) 344-8600 | AA70: 52 | AB70: Elementary School District | AK70: 32.9113300 | AL70: -115.41963 | AM70: Danny | AN70: Eddins | AO70: dfeddins@ivnet.org | AV70: 7/2/2013
A71: 13632220000000 | B71: 13632220000000 | C71: 0636210 | E71: Active | F71: Imperial | G71: Seeley Union Elementary | I71: 1812 West Rio Vista Street | J71: 1812 West Rio Vista St. | K71: Seeley | L71: 92273-0868 | M71: CA | N71: PO Box 868 | O71: PO Box 868 | P71: Seeley | Q71: 92273-0868 | R71: CA | S71: (760) 352-3571 | U71: www.seeley.k12.ca.us | AA71: 52 | AB71: Elementary School District | AK71: 32.6560399 | AL71: -115.68169 | AM71: Ruben | AN71: Castro | AO71: rcastro@seeley.k12.ca.us | AV71: 7/2/2013
A72: 13632300000000 | B72: 13632300000000 | C72: 0642180 | E72: Active | F72: Imperial | G72: Westmorland Union Elementary | I72: 200 South C Street | J72: 200 South C St. | K72: Westmorland | L72: 92281-0088 | M72: CA | N72: PO Box 88 | O72: PO Box 88 | P72: Westmorland | Q72: 92281-0088 | R72: CA | S72: (760) 344-4364 | U72: www.wued.org | AA72: 52 | AB72: Elementary School District | AK72: 32.9054799 | AL72: -115.61584 | AM72: Nancy | AN72: Johnson | AO72: n.johnson@wued.org | AV72: 9/3/2013
A73: 13744010000000 | B73: 13744010000000 | C73: 0600101 | E73: Active | F73: Imperial | G73: Imperial Valley ROP | I73: 687 State Street | J73: 687 State St. | K73: El Centro | L73: 92243 | M73: CA | N73: 687 State Street | O73: 687 State St. | P73: El Centro | Q73: 92243 | R73: CA | S73: (760) 482-2600 | AA73: 98 | AB73: Regional Occupation Center/Program (ROC/P) | AM73: Edwin | AN73: Obergfell | AO73: eobergfell@ivrop.org | AV73: 7/22/2013
A74: 14101400000000 | B74: 14101400000000 | C74: 0691011 | E74: Active | F74: Inyo | G74: Inyo County Office of Education | I74: 555 South Clay Street | J74: 555 South Clay St. | K74: Independence | L74: 93526-0607 | M74: CA | N74: 555 South Clay Street PO Drawer G | O74: 555 South Clay St. PO Drawer G | P74: Independence | Q74: 93526-0607 | R74: CA | S74: (760) 878-2426 | U74: www.inyo.k12.ca.us | AA74: 00 | AB74: County Office of Education (COE) | AK74: 36.7381400 | AL74: -117.91224 | AM74: Terence | AN74: McAteer | AO74: terry_mcateer@inyo.k12.ca.us | AV74: 7/2/2013
A75: 14632480000000 | B75: 14632480000000 | C75: 0604950 | E75: Active | F75: Inyo | G75: Big Pine Unified | I75: 500 South Main Street | J75: 500 South Main St. | K75: Big Pine | L75: 93513-0908 | M75: CA | N75: PO Box 908 | O75: PO Box 908 | P75: Big Pine | Q75: 93513 | R75: CA | S75: (760) 938-2005 | T75: 235 | U75: http://bp.k12.ca.us | AA75: 54 | AB75: Unified School District | AK75: 37.1257499 | AL75: -117.94195 | AM75: Pamela | AN75: Jones | AO75: pamela_jones@inyo.k12.ca.us | AV75: 7/2/2013
A76: 14632710000000 | B76: 14632710000000 | C76: 0610680 | E76: Active | F76: Inyo | G76: Death Valley Unified | I76: Old State Highway 127 | J76: Old State Highway 127 | K76: Shoshone | L76: 92384-0217 | M76: CA | N76: PO Box 217 | O76: PO Box 217 | P76: Shoshone | Q76: 92384-0217 | R76: CA | S76: (760) 852-4303 | AA76: 54 | AB76: Unified School District | AK76: 36.0470699 | AL76: -116.41126 | AM76: Jim | AN76: Copeland | AO76: jim_copeland@inyo.k12.ca.us | AV76: 7/2/2013
A77: 14632890000000 | B77: 14632890000000 | C77: 0622440 | E77: Active | F77: Inyo | G77: Lone Pine Unified | I77: 301 South Hay Street | J77: 301 South Hay St. | K77: Lone Pine | L77: 93545-0159 | M77: CA | N77: PO Box 159 | O77: PO Box 159 | P77: Lone Pine | Q77: 93545-0159 | R77: CA | S77: (760) 876-5579 | U77: www.lpusd.k12.ca.us | AA77: 54 | AB77: Unified School District | AK77: 36.4617999 | AL77: -118.05821 | AM77: Victor | AN77: Hopper | AO77: vhopper@lpusd.k12.ca.us | AV77: 7/2/2013
A78: 14632970000000 | B78: 14632970000000 | C78: 0629190 | E78: Active | F78: Inyo | G78: Owens Valley Unified | I78: 202 South Clay Street | J78: 202 South Clay St. | K78: Independence | L78: 93526-0605 | M78: CA | N78: PO Drawer E | O78: PO Drawer E | P78: Independence | Q78: 93526-0605 | R78: CA | S78: (760) 878-2405 | U78: www.ovusd.org | AA78: 54 | AB78: Unified School District | AK78: 36.7381400 | AL78: -117.91224 | AM78: Joel | AN78: Hampton | AO78: jhampton@ovusd.k12.ca.us | AV78: 7/2/2013
A79: 14633050000000 | B79: 14633050000000 | C79: 0633690 | E79: Active | F79: Inyo | G79: Round Valley Joint Elementary | I79: 300 North Round Valley Road | J79: 300 North Round Valley Rd. | K79: Bishop | L79: 93514-9632 | M79: CA | N79: 300 North Round Valley Road | O79: 300 North Round Valley Rd. | P79: Bishop | Q79: 93514-9632 | R79: CA | S79: (760) 387-2525 | U79: http://rvjesd-ca.schoolloop.com/ | AA79: 52 | AB79: Elementary School District | AK79: 37.3063900 | AL79: -118.36712 | AM79: Daniel | AN79: Moore | AO79: dmoore@rv.k12.ca.us | AV79: 7/2/2013
A80: 14740700000000 | B80: 14740700000000 | C80: 0600102 | E80: Active | F80: Inyo | G80: Inyo County ROP | I80: 166 Grandview Drive | J80: 166 Grandview Dr. | K80: Bishop | L80: 93514-2984 | M80: CA | N80: 166 Grandview Drive | O80: 166 Grandview Dr. | P80: Bishop | Q80: 93514-2984 | R80: CA | S80: (760) 873-3262 | T80: 411 | U80: www.inyo.k12.ca.us | AA80: 98 | AB80: Regional Occupation Center/Program (ROC/P) | AM80: Sophie | AN80: Kenn | AO80: sophie_kenn@inyo.k12.ca.us | AV80: 5/18/2011
A81: 15101570000000 | B81: 15101570000000 | C81: 0691012 | E81: Active | F81: Kern | G81: Kern County Office of Education | I81: 1300 17th Street, City Centre | J81: 1300 17th St., City Centre | K81: Bakersfield | L81: 93301-4533 | M81: CA | N81: 1300 17th Street, City Centre | O81: 1300 17th St., City Centre | P81: Bakersfield | Q81: 93301-4533 | R81: CA | S81: (661) 636-4621 | U81: www.kern.org | AA81: 00 | AB81: County Office of Education (COE) | AK81: 35.2357099 | AL81: -119.01495 | AM81: Christine | AN81: Frazier | AO81: chfrazier@kern.org | AV81: 9/3/2013
A82: 15633130000000 | B82: 15633130000000 | C82: 0603270 | E82: Active | F82: Kern | G82: Arvin Union | I82: 737 Bear Mountain Boulevard | J82: 737 Bear Mountain Blvd. | K82: Arvin | L82: 93203-1413 | M82: CA | N82: 737 Bear Mountain Boulevard | O82: 737 Bear Mountain Blvd. | P82: Arvin | Q82: 93203-1413 | R82: CA | S82: (661) 854-6500 | U82: www.arvinschools.com | AA82: 52 | AB82: Elementary School District | AK82: 35.0709900 | AL82: -118.85655 | AM82: Michelle | AN82: McLean | AO82: mmclean@arvin-do.com | AV82: 7/2/2013
A83: 15633210000000 | B83: 15633210000000 | C83: 0603630 | E83: Active | F83: Kern | G83: Bakersfield City | I83: 1300 Baker Street | J83: 1300 Baker St. | K83: Bakersfield | L83: 93305-4326 | M83: CA | N83: 1300 Baker Street | O83: 1300 Baker St. | P83: Bakersfield | Q83: 93305-4326 | R83: CA | S83: (661) 631-4610 | U83: www.bcsd.com | AA83: 52 | AB83: Elementary School District | AK83: 35.2435499 | AL83: -118.98941 | AM83: Robert | AN83: Arias | AO83: ariasr@bcsd.com | AV83: 7/2/2013
A84: 15633390000000 | B84: 15633390000000 | C84: 0604260 | E84: Active | F84: Kern | G84: Beardsley Elementary | I84: 1001 Roberts Lane | J84: 1001 Roberts Ln. | K84: Bakersfield | L84: 93308-4503 | M84: CA | N84: 1001 Roberts Lane | O84: 1001 Roberts Ln. | P84: Bakersfield | Q84: 93308-4503 | R84: CA | S84: (661) 393-8550 | U84: www.beardsleyschool.org | AA84: 52 | AB84: Elementary School District | AK84: 35.2698699 | AL84: -119.03906 | AM84: Paul | AN84: Miller | AO84: pamiller@beardsley.k12.ca.us | AV84: 7/2/2013
A85: 15633470000000 | B85: 15633470000000 | C85: 0604560 | E85: Active | F85: Kern | G85: Belridge Elementary | I85: 19447 Wagon Wheel Road | J85: 19447 Wagon Wheel Rd. | K85: McKittrick | L85: 93251-9715 | M85: CA | N85: 19447 Wagon Wheel Road | O85: 19447 Wagon Wheel Rd. | P85: McKittrick | Q85: 93251-9715 | R85: CA | S85: (661) 762-7381 | U85: http://kcsos.kern.org/belridge | AA85: 52 | AB85: Elementary School District | AK85: 35.2276400 | AL85: -119.61794 | AM85: Tammy | AN85: Reynolds | AO85: tareyno@zeus.kern.org | AV85: 7/2/2013
A86: 15633540000000 | B86: 15633540000000 | C86: 0605250 | E86: Active | F86: Kern | G86: Blake Elementary | I86: 19165 Main Street | J86: 19165 Main St. | K86: Woody | L86: 93287-0040 | M86: CA | N86: 1300 17th Street, 6th Floor | O86: 1300 17th St., 6th Fl. | P86: Bakersfield | Q86: 93301 | R86: CA | S86: (661) 536-8559 | U86: http://kcsos.kern.org/blakesd | AA86: 52 | AB86: Elementary School District | AK86: 35.5651400 | AL86: -118.83483 | AM86: Gary | AN86: Bray | AO86: gabray@kern.org | AV86: 7/2/2013
A87: 15633620000000 | B87: 15633620000000 | C87: 0606390 | E87: Active | F87: Kern | G87: Panama-Buena Vista Union | I87: 4200 Ashe Road | J87: 4200 Ashe Rd. | K87: Bakersfield | L87: 93313-2029 | M87: CA | N87: 4200 Ashe Road | O87: 4200 Ashe Rd. | P87: Bakersfield | Q87: 93313-2029 | R87: CA | S87: (661) 831-8331 | T87: 6104 | U87: www.pbvusd.net | AA87: 52 | AB87: Elementary School District | AK87: 35.1769400 | AL87: -119.07356 | AM87: Kevin | AN87: Silbergerg | AO87: ksilberberg@pbvusd.net | AV87: 8/27/2013
A88: 15633700000000 | B88: 15633700000000 | C88: 0606720 | E88: Active | F88: Kern | G88: Buttonwillow Union Elementary | I88: 42600 Highway 58 | J88: 42600 Highway 58 | K88: Buttonwillow | L88: 93206-9700 | M88: CA | N88: 42600 Highway 58 | O88: 42600 Highway 58 | P88: Buttonwillow | Q88: 93206-9700 | R88: CA | S88: (661) 764-5166 | U88: www.buttonwillow.k12.ca.us | AA88: 52 | AB88: Elementary School District | AK88: 35.2651699 | AL88: -119.48453 | AM88: Stuart | AN88: Packard | AO88: spackard@buttonwillowschool.com | AV88: 7/2/2013
A89: 15633880000000 | B89: 15633880000000 | C89: 0606960 | E89: Active | F89: Kern | G89: Caliente Union Elementary | I89: 12400 Caliente Creek Road | J89: 12400 Caliente Creek Rd. | K89: Caliente | L89: 93518-2851 | M89: CA | N89: 12400 Caliente Creek Road | O89: 12400 Caliente Creek Rd. | P89: Caliente | Q89: 93518-2851 | R89: CA | S89: (661) 867-2301 | U89: www.calienteschooldistrict.org | AA89: 52 | AB89: Elementary School District | AK89: 35.1793400 | AL89: -118.53829 | AM89: Kathleen | AN89: Hansen | AO89: khansen@calienteschooldistrict.org | AV89: 7/2/2013
A90: 15634040000000 | B90: 15634040000000 | C90: 0610890 | E90: Active | F90: Kern | G90: Delano Union Elementary | I90: 1405 12th Avenue | J90: 1405 12th Ave. | K90: Delano | L90: 93215-2416 | M90: CA | N90: 1405 12th Avenue | O90: 1405 12th Ave. | P90: Delano | Q90: 93215-2416 | R90: CA | S90: (661) 721-5000 | U90: www.duesd.org | AA90: 52 | AB90: Elementary School District | AK90: 35.6336099 | AL90: -119.23595 | AM90: Robert | AN90: Aguilar | AO90: raguilar2@duesd.org | AV90: 7/2/2013
A91: 15634120000000 | B91: 15634120000000 | C91: 0610860 | E91: Active | F91: Kern | G91: Delano Joint Union High | I91: 1720 Norwalk Street | J91: 1720 Norwalk St. | K91: Delano | L91: 93215-1456 | M91: CA | N91: 1720 Norwalk Street | O91: 1720 Norwalk St. | P91: Delano | Q91: 93215-1456 | R91: CA | S91: (661) 725-4000 | U91: www.djuhsd.org | AA91: 56 | AB91: High School District | AK91: 35.6392200 | AL91: -119.23508 | AM91: Rosalina | AN91: Rivera | AO91: rrivera@djuhsd.org | AV91: 7/3/2013
A92: 15634200000000 | B92: 15634200000000 | C92: 0611130 | E92: Active | F92: Kern | G92: Di Giorgio Elementary | I92: 19405 Buena Vista Boulevard | J92: 19405 Buena Vista Blvd. | K92: Arvin | L92: 93203-9709 | M92: CA | N92: 19405 Buena Vista Boulevard | O92: 19405 Buena Vista Blvd. | P92: Arvin | Q92: 93203-9709 | R92: CA | S92: (661) 854-2604 | U92: www.digiorgio.k12.ca.us | AA92: 52 | AB92: Elementary School District | AK92: 35.1004399 | AL92: -118.78161 | AM92: Paul | AN92: Boatman | AO92: pboatman@digiorgio.k12.ca.us | AV92: 7/2/2013
A93: 15634380000000 | B93: 15634380000000 | C93: 0611940 | E93: Active | F93: Kern | G93: Edison Elementary | I93: 11518 School Street | J93: 11518 School St. | K93: Bakersfield | L93: 93307-9148 | M93: CA | N93: PO Box 368 | O93: PO Box 368 | P93: Edison | Q93: 93220-0368 | R93: CA | S93: (661) 363-5394 | U93: www.edline.net/pages/edison_elementary | AA93: 52 | AB93: Elementary School District | AK93: 35.2269000 | AL93: -118.89619 | AM93: Erica | AN93: Andrews | AO93: eandrews@edison.k12.ca.us | AV93: 7/2/2013
A94: 15634460000000 | B94: 15634460000000 | C94: 0612360 | E94: Active | F94: Kern | G94: Elk Hills Elementary | I94: 501 Kern Street | J94: 501 Kern St. | K94: Tupman | L94: 93276-0129 | M94: CA | N94: PO Box 129 | O94: PO Box 129 | P94: Tupman | Q94: 93276-0129 | R94: CA | S94: (661) 765-7431 | U94: www.elkhills.k12.ca.us | AA94: 52 | AB94: Elementary School District | AK94: 35.1007400 | AL94: -119.29579 | AM94: Jeff | AN94: Tensley | AO94: jetensley@elkhills.org | AV94: 7/2/2013
A95: 15634610000000 | B95: 15634610000000 | C95: 0613290 | E95: Active | F95: Kern | G95: Fairfax Elementary | I95: 1500 South Fairfax Road | J95: 1500 South Fairfax Rd. | K95: Bakersfield | L95: 93307-3151 | M95: CA | N95: 1500 South Fairfax Road | O95: 1500 South Fairfax Rd. | P95: Bakersfield | Q95: 93307-3151 | R95: CA | S95: (661) 366-7221 | U95: www.fairfax.k12.ca.us | AA95: 52 | AB95: Elementary School District | AK95: 35.2014700 | AL95: -118.93074 | AM95: Michael | AN95: Coleman | AO95: mcoleman@fairfax.k12.ca.us | AV95: 7/2/2013
A96: 15634790000000 | B96: 15634790000000 | C96: 0614700 | E96: Active | F96: Kern | G96: Fruitvale Elementary | I96: 7311 Rosedale Highway | J96: 7311 Rosedale Hwy. | K96: Bakersfield | L96: 93308-5738 | M96: CA | N96: 7311 Rosedale Highway | O96: 7311 Rosedale Hwy. | P96: Bakersfield | Q96: 93308-5738 | R96: CA | S96: (661) 589-3830 | T96: 206 | U96: www.fruitvale.k12.ca.us/district | AA96: 52 | AB96: Elementary School District | AK96: 35.2447500 | AL96: -119.08226 | AM96: Mary | AN96: Westendorf | AO96: mawestendorf@fruitvale.k12.ca.us | AV96: 7/2/2013
A97: 15634870000000 | B97: 15634870000000 | C97: 0615000 | E97: Active | F97: Kern | G97: General Shafter Elementary | I97: 1825 Shafter Road | J97: 1825 Shafter Rd. | K97: Bakersfield | L97: 93313-9766 | M97: CA | N97: 1825 Shafter Road | O97: 1825 Shafter Rd. | P97: Bakersfield | Q97: 93313-9766 | R97: CA | S97: (661) 837-1931 | U97: www.generalshafter.org | AA97: 52 | AB97: Elementary School District | AK97: 35.0851600 | AL97: -119.05695 | AM97: Chris | AN97: Salyards | AO97: sdsalya@zeus.kern.org | AV97: 7/2/2013
A98: 15635030000000 | B98: 15635030000000 | C98: 0616050 | E98: Active | F98: Kern | G98: Greenfield Union | I98: 1624 Fairview Road | J98: 1624 Fairview Rd. | K98: Bakersfield | L98: 93307-5512 | M98: CA | N98: 1624 Fairview Road | O98: 1624 Fairview Rd. | P98: Bakersfield | Q98: 93307-5512 | R98: CA | S98: (661) 837-6000 | U98: www.gfusd.k12.ca.us | AA98: 52 | AB98: Elementary School District | AK98: 35.1648000 | AL98: -119.01837 | AM98: Chris | AN98: Crawford | AO98: crawfordc@gfusd.net | AV98: 8/27/2013
A99: 15635290000000 | B99: 15635290000000 | C99: 0619540 | E99: Active | F99: Kern | G99: Kern Union High | I99: 5801 Sundale Avenue | J99: 5801 Sundale Ave. | K99: Bakersfield | L99: 93309-2924 | M99: CA | N99: 5801 Sundale Avenue | O99: 5801 Sundale Ave. | P99: Bakersfield | Q99: 93309-2924 | R99: CA | S99: (661) 827-3100 | U99: www.kernhigh.org | AA99: 56 | AB99: High School District | AK99: 35.2050600 | AL99: -119.06435 | AM99: Donald | AN99: Carter | AO99: dcarter@khsd.k12.ca.us | AV99: 7/2/2013
A100: 15635450000000 | B100: 15635450000000 | C100: 0619590 | E100: Active | F100: Kern | G100: Kernville Union Elementary | I100: 3240 Erskine Creek Road | J100: 3240 Erskine Creek Rd. | K100: Lake Isabella | L100: 93240-3077 | M100: CA | N100: 3240 Erskine Creek Road | O100: 3240 Erskine Creek Rd. | P100: Lake Isabella | Q100: 93240-3077 | R100: CA | S100: (760) 379-3651 | U100: www.kernvilleusd.org | AA100: 52 | AB100: Elementary School District | AK100: 35.4714900 | AL100: -118.48084 | AM100: Robin | AN100: Shive | AO100: rshive@kernvilleusd.org | AV100: 7/23/2013
A101: 15635520000000 | B101: 15635520000000 | C101: 0620730 | E101: Active | F101: Kern | G101: Lakeside Union | I101: 14535 Old River Road | J101: 14535 Old River Rd. | K101: Bakersfield | L101: 93311-9756 | M101: CA | N101: 14535 Old River Road | O101: 14535 Old River Rd. | P101: Bakersfield | Q101: 93311-9756 | R101: CA | S101: (661) 836-6658 | U101: www.lakesideusd.org | AA101: 52 | AB101: Elementary School District | AK101: 35.0825099 | AL101: -119.10858 | AM101: Gary | AN101: Mullen | AO101: gmullen@lakesideusd.org | AV101: 7/2/2013
A102: 15635600000000 | B102: 15635600000000 | C102: 0620850 | E102: Active | F102: Kern | G102: Lamont Elementary | I102: 7915 Burgundy Avenue | J102: 7915 Burgundy Ave. | K102: Lamont | L102: 93241-1350 | M102: CA | N102: 7915 Burgundy Avenue | O102: 7915 Burgundy Ave. | P102: Lamont | Q102: 93241-1350 | R102: CA | S102: (661) 845-0751 | T102: 216 | U102: www.lamontschooldistrict.org | AA102: 52 | AB102: Elementary School District | AK102: 35.1195499 | AL102: -118.91186 | AM102: Ricardo | AN102: Robles | AO102: rrobles@lesd.us | AV102: 7/2/2013
A103: 15635780000000 | B103: 15635780000000 | C103: 0621450 | E103: Active | F103: Kern | G103: Richland Union Elementary | I103: 300 N. Valley | J103: 300 N. Valley | K103: Shafter | L103: 93263-1967 | M103: CA | N103: 331 North Shafter Avenue | O103: 331 North Shafter Ave. | P103: Shafter | Q103: 93263-1967 | R103: CA | S103: (661) 746-8600 | U103: www.richland.k12.ca.us | AA103: 52 | AB103: Elementary School District | AK103: 35.3470700 | AL103: -119.32190 | AM103: Kenneth | AN103: Bergevin | AO103: kbergevin@richland.k12.ca.us | AV103: 8/27/2013
A104: 15635860000000 | B104: 15635860000000 | C104: 0621900 | E104: Active | F104: Kern | G104: Linns Valley-Poso Flat Union | I104: 158 White River Road | J104: 158 White River Rd. | K104: Glennville | L104: 93226-0399 | M104: CA | N104: PO Box 399 | O104: PO Box 399 | P104: Glennville | Q104: 93226-0399 | R104: CA | S104: (661) 536-8811 | U104: http://kcsos.kern.org/linnsvalley | AA104: 52 | AB104: Elementary School District | AK104: 35.5896499 | AL104: -118.67755 | AM104: Lavenia | AN104: Yarger | AO104: kayarge@zeus.kern.org | AV104: 7/2/2013
A105: 15635940000000 | B105: 15635940000000 | C105: 0622950 | E105: Active | F105: Kern | G105: Lost Hills Union Elementary | I105: 14823 Office Lane | J105: 14823 Office Ln. | K105: Lost Hills | L105: 93249-0158 | M105: CA | N105: PO Box 158 | O105: PO Box 158 | P105: Lost Hills | Q105: 93249-0158 | R105: CA | S105: (661) 797-2626 | AA105: 52 | AB105: Elementary School District | AK105: 35.4763700 | AL105: -119.79710 | AM105: Harrison | AN105: Favereaux | AO105: hafaver@zeus.kern.org | AV105: 7/2/2013
A106: 15636100000000 | B106: 15636100000000 | C106: 0623760 | E106: Active | F106: Kern | G106: Maple Elementary | I106: 29161 Fresno Avenue | J106: 29161 Fresno Ave. | K106: Shafter | L106: 93263-9719 | M106: CA | N106: 29161 Fresno Avenue | O106: 29161 Fresno Ave. | P106: Shafter | Q106: 93263-9719 | R106: CA | S106: (661) 746-4439 | U106: www.maple.k12.ca.us | AA106: 52 | AB106: Elementary School District | AK106: 35.3756399 | AL106: -119.31676 | AM106: Shayleen | AN106: Harte | AO106: shharte@zeus.kern.org | AV106: 7/2/2013
A107: 15636280000000 | B107: 15636280000000 | C107: 0623820 | E107: Active | F107: Kern | G107: Maricopa Unified | I107: 955 Stanislaus Street | J107: 955 Stanislaus St. | K107: Maricopa | L107: 93252-9779 | M107: CA | N107: 955 Stanislaus Street | O107: 955 Stanislaus St. | P107: Maricopa | Q107: 93252-9779 | R107: CA | S107: (661) 769-8231 | U107: www.maricopaschools.org | AA107: 54 | AB107: Unified School District | AK107: 34.9171699 | AL107: -119.40125 | AM107: Scott | AN107: Meier | AO107: smeier@maricopaschools.org | AV107: 7/2/2013
A108: 15636510000000 | B108: 15636510000000 | C108: 0624330 | E108: Active | F108: Kern | G108: McKittrick Elementary | I108: 23250 Second Street | J108: 23250 Second St. | K108: McKittrick | L108: 93251-0277 | M108: CA | N108: PO Box 277 | O108: PO Box 277 | P108: McKittrick | Q108: 93251-0277 | R108: CA | S108: (661) 762-7303 | U108: http://mckittrickschool.org | AA108: 52 | AB108: Elementary School District | AK108: 35.2276400 | AL108: -119.61794 | AM108: Barry | AN108: Koerner | AO108: bakoern@zeus.kern.org | AV108: 7/2/2013
A109: 15636690000000 | B109: 15636690000000 | C109: 0624780 | E109: Active | F109: Kern | G109: Midway Elementary | I109: 259 F Street | J109: 259 F St. | K109: Fellows | L109: 93224-0039 | M109: CA | N109: PO Box 39 | O109: PO Box 39 | P109: Fellows | Q109: 93224-0039 | R109: CA | S109: (661) 768-4344 | U109: www.midwayschooldistrict.org | AA109: 52 | AB109: Elementary School District | AK109: 35.0372100 | AL109: -119.54273 | AM109: Greg | AN109: Coker | AO109: snoopybeagleboy@yahoo.com | AV109: 7/2/2013
A110: 15636770000000 | B110: 15636770000000 | C110: 0625230 | E110: Active | F110: Kern | G110: Mojave Unified | I110: 3500 Douglas Avenue | J110: 3500 Douglas Ave. | K110: Mojave | L110: 93501-1143 | M110: CA | N110: 3500 Douglas Avenue | O110: 3500 Douglas Ave. | P110: Mojave | Q110: 93501-1143 | R110: CA | S110: (661) 824-4001 | U110: www.mojave.k12.ca.us | AA110: 54 | AB110: Unified School District | AK110: 34.9233400 | AL110: -118.19194 | AM110: Aaron | AN110: Haughton | AO110: aaronhaughton@mojave.k12.ca.us | AV110: 7/2/2013
A111: 15636850000000 | B111: 15636850000000 | C111: 0626490 | E111: Active | F111: Kern | G111: Muroc Joint Unified | I111: 17100 Foothill Avenue | J111: 17100 Foothill Ave. | K111: North Edwards | L111: 93523-3533 | M111: CA | N111: 17100 Foothill Avenue | O111: 17100 Foothill Ave. | P111: North Edwards | Q111: 93523-3533 | R111: CA | S111: (760) 769-4821 | U111: www.muroc.k12.ca.us | AA111: 54 | AB111: Unified School District | AK111: 34.8453999 | AL111: -117.87989 | AM111: Loretta | AN111: Gibson | AO111: lgibson@muroc.k12.ca.us | AV111: 7/2/2013
A112: 15636930000000 | B112: 15636930000000 | C112: 0627450 | E112: Active | F112: Kern | G112: Norris Elementary | I112: 6940 Calloway Drive | J112: 6940 Calloway Dr. | K112: Bakersfield | L112: 93312-9005 | M112: CA | N112: 6940 Calloway Drive | O112: 6940 Calloway Dr. | P112: Bakersfield | Q112: 93312-9005 | R112: CA | S112: (661) 387-7000 | U112: www.norris.k12.ca.us | AA112: 52 | AB112: Elementary School District | AK112: 35.2831800 | AL112: -119.10849 | AM112: Steven | AN112: Shelton | AO112: stshelt@norris.k12.ca.us | AV112: 7/2/2013
A113: 15637190000000 | B113: 15637190000000 | C113: 0631350 | E113: Active | F113: Kern | G113: Pond Union Elementary | I113: 29585 Pond Road | J113: 29585 Pond Rd. | K113: Pond | L113: 93280-0927 | M113: CA | N113: 29585 Pond Road | O113: 29585 Pond Rd. | P113: Pond | Q113: 93280-0927 | R113: CA | S113: (661) 792-2545 | U113: www.pond.k12.ca.us | AA113: 52 | AB113: Elementary School District | AK113: 35.4920400 | AL113: -119.42171 | AM113: Frank | AN113: Ohnesorgen | AO113: fohnesorgen@pond.k12.ca.us | AV113: 7/2/2013
A114: 15637500000000 | B114: 15637500000000 | C114: 0633480 | E114: Active | F114: Kern | G114: Rosedale Union Elementary | I114: 2553 Old Farm Road | J114: 2553 Old Farm Rd. | K114: Bakersfield | L114: 93312-3531 | M114: CA | N114: 2553 Old Farm Road | O114: 2553 Old Farm Rd. | P114: Bakersfield | Q114: 93312-3531 | R114: CA | S114: (661) 588-6000 | U114: www.ruesd.net | AA114: 52 | AB114: Elementary School District | AK114: 35.2445099 | AL114: -119.13527 | AM114: John | AN114: Mendiburu | AO114: jmendiburu@ruesd.net | AV114: 7/2/2013
A115: 15637680000000 | B115: 15637680000000 | C115: 0636330 | E115: Active | F115: Kern | G115: Semitropic Elementary | I115: 25300 Highway 46 | J115: 25300 Highway 46 | K115: Wasco | L115: 93280-9540 | M115: CA | N115: 25300 Highway 46 | O115: 25300 Highway 46 | P115: Wasco | Q115: 93280-9540 | R115: CA | S115: (661) 758-6412 | AA115: 52 | AB115: Elementary School District | AK115: 35.5058799 | AL115: -119.39351 | AM115: Felix | AN115: Garcera | AO115: fegarcer@zeus.kern.org | AV115: 7/2/2013
A116: 15637760000000 | B116: 15637760000000 | C116: 0637620 | E116: Active | F116: Kern | G116: Southern Kern Unified | I116: 3082 Glendower Street | J116: 3082 Glendower St. | K116: Rosamond | L116: 93560-0640 | M116: CA | N116: PO Drawer CC | O116: PO Drawer CC | P116: Rosamond | Q116: 93560-0640 | R116: CA | S116: (661) 256-5000 | U116: www.skusd.k12.ca.us | AA116: 54 | AB116: Unified School District | AK116: 34.7280599 | AL116: -118.16767 | AM116: Jeffrey | AN116: Weinstein | AO116: jweinstein@skusd.k12.ca.us | AV116: 7/2/2013
A117: 15637840000000 | B117: 15637840000000 | C117: 0637470 | E117: Active | F117: Kern | G117: South Fork Union | I117: 5225 Kelso Valley Road | J117: 5225 Kelso Valley Rd. | K117: Weldon | L117: 93283-9564 | M117: CA | N117: 5225 Kelso Valley Road | O117: 5225 Kelso Valley Rd. | P117: Weldon | Q117: 93283-9564 | R117: CA | S117: (760) 378-4000 | T117: 3 | U117: www.southforkschool.org | AA117: 52 | AB117: Elementary School District | AK117: 35.5268500 | AL117: -118.28854 | AM117: Robin | AN117: Shive | AO117: roshive@southforkschool.org | AV117: 8/15/2013
A118: 15637920000000 | B118: 15637920000000 | C118: 0637890 | E118: Active | F118: Kern | G118: Standard Elementary | I118: 1200 North Chester Avenue | J118: 1200 North Chester Ave. | K118: Bakersfield | L118: 93308-3521 | M118: CA | N118: 1200 North Chester Avenue | O118: 1200 North Chester Ave. | P118: Bakersfield | Q118: 93308-3521 | R118: CA | S118: (661) 392-2110 | U118: www.standard.k12.ca.us | AA118: 52 | AB118: Elementary School District | AK118: 35.2785000 | AL118: -119.01963 | AM118: Karen | AN118: Cox | AO118: kcox@standard.k12.ca.us | AV118: 8/29/2013
A119: 15638000000000 | B119: 15638000000000 | C119: 0638700 | E119: Active | F119: Kern | G119: Taft City | I119: 820 Sixth Street | J119: 820 Sixth St. | K119: Taft | L119: 93268-2306 | M119: CA | N119: 820 Sixth Street | O119: 820 Sixth St. | P119: Taft | Q119: 93268-2306 | R119: CA | S119: (661) 763-1521 | U119: www.taftcity.org | AA119: 52 | AB119: Elementary School District | AK119: 35.0091100 | AL119: -119.45654 | AM119: Ron | AN119: Bryant | AO119: rbryant@taftcity.org | AV119: 7/2/2013
A120: 15638180000000 | B120: 15638180000000 | C120: 0638730 | E120: Active | F120: Kern | G120: Taft Union High | I120: 1 Wildcat Way | J120: 1 Wildcat Way | K120: Taft | L120: 93268-8000 | M120: CA | N120: 1 Wildcat Way | O120: 1 Wildcat Way | P120: Taft | Q120: 93268-8000 | R120: CA | S120: (661) 763-2330 | U120: www.taft.k12.ca.us | AA120: 56 | AB120: High School District | AK120: 35.0075000 | AL120: -119.45896 | AM120: Blanca | AN120: Cavazos | AO120: bcavazos@taft.k12.ca.us | AV120: 7/3/2013
A121: 15638260000000 | B121: 15638260000000 | C121: 0638880 | E121: Active | F121: Kern | G121: Tehachapi Unified | I121: 300 S. Robinson Street | J121: 300 S. Robinson St. | K121: Tehachapi | L121: 93561-1519 | M121: CA | N121: 300 S. Robinson Street | O121: 300 S. Robinson St. | P121: Tehachapi | Q121: 93561-1519 | R121: CA | S121: (661) 822-2100 | U121: www.teh.k12.ca.us | AA121: 54 | AB121: Unified School District | AK121: 34.9901600 | AL121: -118.43675 | AM121: Lisa | AN121: Gilbert | AO121: lgilbert@teh.k12.ca.us | AV121: 7/3/2013
A122: 15638340000000 | B122: 15638340000000 | C122: 0641130 | E122: Active | F122: Kern | G122: Vineland Elementary | I122: 14713 Weedpatch Highway | J122: 14713 Weedpatch Hwy. | K122: Bakersfield | L122: 93307-9653 | M122: CA | N122: 14713 Weedpatch Highway | O122: 14713 Weedpatch Hwy. | P122: Bakersfield | Q122: 93307-9653 | R122: CA | S122: (661) 845-3713 | U122: http://vineland.k12.ca.us | AA122: 52 | AB122: Elementary School District | AK122: 35.1392499 | AL122: -118.91294 | AM122: Matthew | AN122: Ross | AO122: mross@vineland.k12.ca.us | AV122: 8/5/2013
A123: 15638420000000 | B123: 15638420000000 | C123: 0641400 | E123: Active | F123: Kern | G123: Wasco Union Elementary | I123: 639 Broadway Street | J123: 639 Broadway St. | K123: Wasco | L123: 93280-1825 | M123: CA | N123: 639 Broadway Street | O123: 639 Broadway St. | P123: Wasco | Q123: 93280-1825 | R123: CA | S123: (661) 758-7100 | U123: www.wuesd.org | AA123: 52 | AB123: Elementary School District | AK123: 35.4563800 | AL123: -119.33677 | AM123: Carl | AN123: Olsen | AO123: colsen@wuesd.org | AV123: 8/13/2013
A124: 15638590000000 | B124: 15638590000000 | C124: 0641430 | E124: Active | F124: Kern | G124: Wasco Union High | I124: 2100 Seventh Street | J124: 2100 Seventh St. | K124: Wasco | L124: 93280-1563 | M124: CA | N124: 2100 Seventh Street | O124: 2100 Seventh St. | P124: Wasco | Q124: 93280-1563 | R124: CA | S124: (661) 758-8447 | U124: www.wasco.k12.ca.us | AA124: 56 | AB124: High School District | AK124: 35.4553700 | AL124: -119.34330 | AM124: Elizabeth | AN124: McCray | AO124: lalbrecht@wasco.k12.ca.us | AV124: 8/6/2013
A125: 15735440000000 | B125: 15735440000000 | C125: 0632710 | E125: Active | F125: Kern | G125: Rio Bravo-Greeley Union Elementary | I125: 6521 Enos Lane | J125: 6521 Enos Ln. | K125: Bakersfield | L125: 93314-8721 | M125: CA | N125: 6521 Enos Lane | O125: 6521 Enos Ln. | P125: Bakersfield | Q125: 93314-8721 | R125: CA | S125: (661) 589-2696 | U125: www.rbgusd.k12.ca.us | AA125: 52 | AB125: Elementary School District | AK125: 35.2803400 | AL125: -119.25057 | AM125: Ernie | AN125: Unruh | AO125: erunruh@zeus.kern.org | AV125: 7/2/2013
A126: 15737420000000 | B126: 15737420000000 | C126: 0636800 | E126: Active | F126: Kern | G126: Sierra Sands Unified | I126: 113 West Felspar Avenue | J126: 113 West Felspar Ave. | K126: Ridgecrest | L126: 93555-3520 | M126: CA | N126: 113 West Felspar Avenue | O126: 113 West Felspar Ave. | P126: Ridgecrest | Q126: 93555-3520 | R126: CA | S126: (760) 499-1604 | U126: www.ssusd.org | AA126: 54 | AB126: Unified School District | AK126: 35.4944199 | AL126: -117.66781 | AM126: Joanna | AN126: Rummer | AO126: superintendent@ssusd.org | AV126: 7/3/2013
A127: 15739080000000 | B127: 15739080000000 | C127: 0624230 | E127: Active | F127: Kern | G127: McFarland Unified | I127: 601 Second Street | J127: 601 Second St. | K127: McFarland | L127: 93250-1121 | M127: CA | N127: 601 Second Street | O127: 601 Second St. | P127: McFarland | Q127: 93250-1121 | R127: CA | S127: (661) 792-3081 | U127: www.mcfarlandusd.com | AA127: 54 | AB127: Unified School District | AK127: 35.5411599 | AL127: -119.22796 | AM127: Raul | AN127: Maldonado | AO127: rmaldonado@mcfarland.k12.ca.us | AV127: 8/27/2013
A128: 15741610000000 | B128: 15741610000000 | C128: 0600073 | E128: Active | F128: Kern | G128: West Side ROP | I128: 515 Ninth Street | J128: 515 Ninth St. | K128: Taft | L128: 93268 | M128: CA | N128: PO Box 1337 | O128: PO Box 1337 | P128: Taft | Q128: 93268 | R128: CA | S128: (661) 763-2390 | AA128: 98 | AB128: Regional Occupation Center/Program (ROC/P) | AM128: Dale | AN128: Countryman | AO128: dcountryman@taft.k12.ca.us | AV128: 6/21/2011
A129: 15747570000000 | B129: 15747570000000 | C129: 0600074 | E129: Active | F129: Kern | G129: North Kern Vocational Training Center | I129: 1334 F Street | J129: 1334 F St. | K129: Wasco | L129: 93280 | M129: CA | N129: 1334 F Street | O129: 1334 F St. | P129: Wasco | Q129: 93280 | R129: CA | S129: (661) 758-3045 | AA129: 98 | AB129: Regional Occupation Center/Program (ROC/P) | AV129: 7/2/2013
A130: 15747650000000 | B130: 15747650000000 | C130: 0600075 | E130: Active | F130: Kern | G130: Kern County ROP | I130: 5801 Sundale Avenue | J130: 5801 Sundale Ave. | K130: Bakersfield | L130: 93309 | M130: CA | N130: 5801 Sundale Avenue | O130: 5801 Sundale Ave. | P130: Bakersfield | Q130: 93309 | R130: CA | U130: www.kern.org | AA130: 98 | AB130: Regional Occupation Center/Program (ROC/P) | AM130: Tom | AN130: Anspach | AO130: toanspach@kern.org | AV130: 7/2/2013
A131: =VALUE(B131) -> 15748070000000 | B131: 15748070000000 | C131: 0600076 | E131: Active | F131: Kern | G131: Kern High ROC | I131: 501 South Mount Vernon Avenue | J131: 501 South Mt. Vernon Ave. | K131: Bakersfield | L131: 93307 | M131: CA | N131: 501 South Mount Vernon Avenue | O131: 501 South Mt. Vernon Ave. | P131: Bakersfield | Q131: 93307 | R131: CA | S131: (661) 831-3327 | AA131: 98 | AB131: Regional Occupation Center/Program (ROC/P) | AM131: Donald | AN131: Carter | AV131: 7/2/2013
A132: 15751680000000 | B132: 15751680000000 | C132: 0600026 | E132: Active | F132: Kern | G132: El Tejon Unified | I132: 4337 Lebec Road | J132: 4337 Lebec Rd. | K132: Lebec | L132: 93243-0876 | M132: CA | N132: PO Box 876 | O132: PO Box 876 | P132: Lebec | Q132: 93243-0876 | R132: CA | S132: (661) 248-6247 | U132: www.el-tejon.k12.ca.us/ | AA132: 54 | AB132: Unified School District | AK132: 34.6562699 | AL132: -118.81059 | AM132: Katherine | AN132: Kleier | AO132: kkleier@el-tejon.org | AV132: 7/2/2013
A133: 16101650000000 | B133: 16101650000000 | C133: 0691013 | E133: Active | F133: Kings | G133: Kings County Office of Education | I133: 1144 West Lacey Boulevard | J133: 1144 West Lacey Blvd. | K133: Hanford | L133: 93230-5956 | M133: CA | N133: 1144 West Lacey Boulevard | O133: 1144 West Lacey Blvd. | P133: Hanford | Q133: 93230-5956 | R133: CA | S133: (559) 584-1441 | U133: www.kings.k12.ca.us | AA133: 00 | AB133: County Office of Education (COE) | AK133: 36.1875399 | AL133: -119.66065 | AM133: Tim | AN133: Bowers | AO133: tbowers@kings.k12.ca.us | AV133: 7/2/2013
A134: 16638750000000 | B134: 16638750000000 | C134: 0603180 | E134: Active | F134: Kings | G134: Armona Union Elementary | I134: 11115 C Street | J134: 11115 C St. | K134: Armona | L134: 93202-0368 | M134: CA | N134: PO Box 368 | O134: PO Box 368 | P134: Armona | Q134: 93202-0368 | R134: CA | S134: (559) 583-5000 | T134: 101 | U134: www.auesd.com | AA134: 52 | AB134: Elementary School District | AK134: 36.1711699 | AL134: -119.70607 | AM134: Steve | AN134: Bogan | AO134: sbogan@kings.k12.ca.us | AV134: 7/2/2013
A135: 16638830000000 | B135: 16638830000000 | C135: 0607980 | E135: Active | F135: Kings | G135: Central Union Elementary | I135: 15783 18th Avenue | J135: 15783 18th Ave. | K135: Lemoore | L135: 93245-9742 | M135: CA | N135: 15783 18th Avenue | O135: 15783 18th Ave. | P135: Lemoore | Q135: 93245-9742 | R135: CA | S135: (559) 924-3405 | U135: www.central.k12.ca.us/district | AA135: 52 | AB135: Elementary School District | AK135: 36.1054600 | AL135: -119.77981 | AM135: Thomas | AN135: Addington | AO135: darthhr@me.com | AV135: 7/2/2013
A136: 16638910000000 | B136: 16638910000000 | C136: 0609690 | E136: Active | F136: Kings | G136: Corcoran Joint Unified | I136: 1520 Patterson Avenue | J136: 1520 Patterson Ave. | K136: Corcoran | L136: 93212-1722 | M136: CA | N136: 1520 Patterson Avenue | O136: 1520 Patterson Ave. | P136: Corcoran | Q136: 93212-1722 | R136: CA | S136: (559) 992-8888 | T136: 1224 | U136: www.corcoran.k12.ca.us | AA136: 54 | AB136: Unified School District | AK136: 35.9617599 | AL136: -119.56529 | AM136: Richard | AN136: Merlo | AO136: rmerlo@corcoranunified.com | AV136: 7/2/2013
A137: 16639170000000 | B137: 16639170000000 | C137: 0616470 | E137: Active | F137: Kings | G137: Hanford Elementary | I137: 714 North White Street | J137: 714 North White St. | K137: Hanford | L137: 93230-4029 | M137: CA | N137: PO Box 1067 | O137: PO Box 1067 | P137: Hanford | Q137: 93232 | R137: CA | S137: (559) 585-3600 | U137: www.hesd.k12.ca.us | AA137: 52 | AB137: Elementary School District | AK137: 36.1916500 | AL137: -119.63844 | AM137: Paul | AN137: Terry | AO137: pterry@hesd.k12.ca.us | AV137: 7/2/2013
A138: 16639250000000 | B138: 16639250000000 | C138: 0616500 | E138: Active | F138: Kings | G138: Hanford Joint Union High | I138: 823 West Lacey Boulevard | J138: 823 West Lacey Blvd. | K138: Hanford | L138: 93230-3067 | M138: CA | N138: 823 West Lacey Boulevard | O138: 823 West Lacey Blvd. | P138: Hanford | Q138: 93230-3067 | R138: CA | S138: (559) 583-5901 | U138: www.hjuhsd.k12.ca.us | AA138: 56 | AB138: High School District | AK138: 36.2021299 | AL138: -119.64467 | AM138: William | AN138: Fishbough | AO138: wfishbough@hjuhsd.k12.ca.us | AV138: 7/2/2013
A139: 16639330000000 | B139: 16639330000000 | C139: 0618510 | E139: Active | F139: Kings | G139: Island Union Elementary | I139: 7799 21st Avenue | J139: 7799 21st Ave. | K139: Lemoore | L139: 93245-9673 | M139: CA | N139: 7799 21st Avenue | O139: 7799 21st Ave. | P139: Lemoore | Q139: 93245-9673 | R139: CA | S139: (559) 924-6424 | U139: www.kings.k12.ca.us/island | AA139: 52 | AB139: Elementary School District | AK139: 36.1925800 | AL139: -119.83360 | AM139: Charlotte | AN139: Hines | AO139: chines@kings.k12.ca.us | AV139: 7/2/2013
A140: 16639410000000 | B140: 16639410000000 | C140: 0619770 | E140: Active | F140: Kings | G140: Kings River-Hardwick Union Elementary | I140: 10300 Excelsior Avenue | J140: 10300 Excelsior Ave. | K140: Hanford | L140: 93230-9108 | M140: CA | N140: 10300 Excelsior Avenue | O140: 10300 Excelsior Ave. | P140: Hanford | Q140: 93230-9108 | R140: CA | S140: (559) 584-4475 | U140: www.krhsd.k12.ca.us | AA140: 52 | AB140: Elementary School District | AK140: 36.2607100 | AL140: -119.64140 | AM140: Cathlene | AN140: Anderson | AO140: canderson@kings.k12.ca.us | AV140: 7/2/2013
A141: 16639580000000 | B141: 16639580000000 | C141: 0619890 | E141: Active | F141: Kings | G141: Kit Carson Union Elementary | I141: 9895 Seventh Avenue | J141: 9895 Seventh Ave. | K141: Hanford | L141: 93230-8802 | M141: CA | N141: 9895 Seventh Avenue | O141: 9895 Seventh Ave. | P141: Hanford | Q141: 93230-8802 | R141: CA | S141: (559) 582-2843 | U141: www.kitcarsonschool.com | AA141: 52 | AB141: Elementary School District | AK141: 36.1893400 | AL141: -119.58179 | AM141: Todd | AN141: Barlow | AO141: tbarlow@kings.k12.ca.us | AV141: 7/2/2013
A142: 16639660000000 | B142: 16639660000000 | C142: 0620760 | E142: Active | F142: Kings | G142: Lakeside Union Elementary | I142: 9100 Jersey Avenue | J142: 9100 Jersey Ave. | K142: Hanford | L142: 93230-9560 | M142: CA | N142: 9100 Jersey Avenue | O142: 9100 Jersey Ave. | P142: Hanford | Q142: 93230-9560 | R142: CA | S142: (559) 582-2868 | T142: 101 | U142: www.lakeside.k12.ca.us | AA142: 52 | AB142: Elementary School District | AK142: 36.1000500 | AL142: -119.62470 | AM142: Dale | AN142: Ellis | AO142: dellis@kings.k12.ca.us | AV142: 7/2/2013
A143: 16639740000000 | B143: 16639740000000 | C143: 0621360 | E143: Active | F143: Kings | G143: Lemoore Union Elementary | I143: 1200 West Cinnamon Drive | J143: 1200 West Cinnamon Dr. | K143: Lemoore | L143: 93245-9420 | M143: CA | N143: 100 Vine Street | O143: 100 Vine St. | P143: Lemoore | Q143: 93245-3418 | R143: CA | S143: (559) 924-6800 | U143: www.luesd.k12.ca.us | AA143: 52 | AB143: Elementary School District | AK143: 36.1569200 | AL143: -119.78894 | AM143: Richard | AN143: Rayburn | AO143: rrayburn@luesd.k12.ca.us | AV143: 7/2/2013
A144: 16639820000000 | B144: 16639820000000 | C144: 0621400 | E144: Active | F144: Kings | G144: Lemoore Union High | I144: 5 Powell Avenue | J144: 5 Powell Ave. | K144: Lemoore | L144: 93245-2856 | M144: CA | N144: 5 Powell Avenue | O144: 5 Powell Ave. | P144: Lemoore | Q144: 93245-2856 | R144: CA | S144: (559) 924-6610 | U144: www.luhsd.k12.ca.us | AA144: 56 | AB144: High School District | AK144: 36.1577899 | AL144: -119.77979 | AM144: Debbie | AN144: Muro | AO144: dmuro@luhsd.k12.ca.us | AV144: 7/2/2013
A145: 16639900000000 | B145: 16639900000000 | C145: 0630510 | E145: Active | F145: Kings | G145: Pioneer Union Elementary | I145: 1888 North Mustang Drive | J145: 1888 North Mustang Dr. | K145: Hanford | L145: 93230-9811 | M145: CA | N145: 1888 North Mustang Drive | O145: 1888 North Mustang Dr. | P145: Hanford | Q145: 93230-9811 | R145: CA | S145: (559) 585-2400 | U145: www.pioneerschooldistrict.org | AA145: 52 | AB145: Elementary School District | AK145: 36.2055999 | AL145: -119.70798 | AM145: Paul | AN145: Van Loon | AO145: vanloonp@puesd.k12.ca.us | AV145: 8/28/2013
A146: 16739320000000 | B146: 16739320000000 | C146: 0632270 | E146: Active | F146: Kings | G146: Reef-Sunset Unified | I146: 205 North Park Avenue | J146: 205 North Park Ave. | K146: Avenal | L146: 93204-1425 | M146: CA | N146: 205 North Park Avenue | O146: 205 North Park Ave. | P146: Avenal | Q146: 93204-1425 | R146: CA | S146: (559) 386-9083 | U146: www.rsusd.net | AA146: 54 | AB146: Unified School District | AK146: 35.8688300 | AL146: -120.12542 | AM146: David | AN146: East | AO146: deast@rsusd.net | AV146: 7/2/2013
A147: 16747080000000 | B147: 16747080000000 | C147: 0600077 | E147: Active | F147: Kings | G147: Kings County ROP | I147: Mary Brock Hall | J147: Mary Brock Hall | K147: Hanford | L147: 93230 | M147: CA | N147: Kings County Government Center | O147: Kings County Government Ctr. | P147: Hanford | Q147: 93230 | R147: CA | AA147: 98 | AB147: Regional Occupation Center/Program (ROC/P) | AM147: Glenda | AN147: Woolley | AO147: gwoolley@kings.k12.ca.us | AV147: 7/2/2013
A148: 17101730000000 | B148: 17101730000000 | C148: 0691014 | E148: Active | F148: Lake | G148: Lake County Office of Education | I148: 1152 South Main Street | J148: 1152 South Main St. | K148: Lakeport | L148: 95453-5517 | M148: CA | N148: 1152 South Main Street | O148: 1152 South Main St. | P148: Lakeport | Q148: 95453-5517 | R148: CA | S148: (707) 262-4100 | U148: www.lake-coe.k12.ca.us | AA148: 00 | AB148: County Office of Education (COE) | AK148: 38.8831700 | AL148: -122.91631 | AM148: Wally | AN148: Holbrook | AO148: wholbrook@lakecoe.org | AV148: 7/2/2013
A149: 17640140000000 | B149: 17640140000000 | C149: 0619320 | E149: Active | F149: Lake | G149: Kelseyville Unified | I149: 4410 Konocti Road | J149: 4410 Konocti Rd. | K149: Kelseyville | L149: 95451-8953 | M149: CA | N149: 4410 Konocti Road | O149: 4410 Konocti Rd. | P149: Kelseyville | Q149: 95451-8953 | R149: CA | S149: (707) 279-1511 | U149: www.kusd.lake.k12.ca.us | AA149: 54 | AB149: Unified School District | AK149: 38.8324000 | AL149: -122.83804 | AM149: David | AN149: McQueen | AO149: davem@kusd.lake.k12.ca.us | AV149: 7/2/2013
A150: 17640220000000 | B150: 17640220000000 | C150: 0620070 | E150: Active | F150: Lake | G150: Konocti Unified | I150: 9430 B Lake Street | J150: 9430 B Lake St. | K150: Lower Lake | L150: 95457 | M150: CA | N150: PO Box 759 | O150: PO Box 759 | P150: Lower Lake | Q150: 95457-5000 | R150: CA | S150: (707) 994-6475 | U150: www.konoctiusd.org | AA150: 54 | AB150: Unified School District | AK150: 38.7674200 | AL150: -122.60930 | AM150: Donna | AN150: Becnel | AO150: donna.becnel@konoctiusd.org | AV150: 7/2/2013
A151: 17640300000000 | B151: 17640300000000 | C151: 0620670 | E151: Active | F151: Lake | G151: Lakeport Unified | I151: 2508 Howard Avenue | J151: 2508 Howard Ave. | K151: Lakeport | L151: 95453-6908 | M151: CA | N151: 2508 Howard Avenue | O151: 2508 Howard Ave. | P151: Lakeport | Q151: 95453-6908 | R151: CA | S151: (707) 262-3000 | U151: www.lakeport.k12.ca.us | AA151: 54 | AB151: Unified School District | AK151: 38.9138299 | AL151: -122.91367 | AM151: Erin | AN151: Smith-Hagberg | AO151: esh@lakeport.k12.ca.us | AV151: 7/2/2013
A152: 17640480000000 | B152: 17640480000000 | C152: 0623040 | E152: Active | F152: Lake | G152: Lucerne Elementary | I152: 3351 Country Club Drive | J152: 3351 Country Club Dr. | K152: Lucerne | L152: 95458-1083 | M152: CA | N152: PO Box 1083 | O152: PO Box 1083 | P152: Lucerne | Q152: 95458-1083 | R152: CA | S152: (707) 274-5578 | U152: www.lucerne.k12.ca.us | AA152: 52 | AB152: Elementary School District | AK152: 38.9231899 | AL152: -122.77477 | AM152: Mike | AN152: Brown | AO152: mbrown@lucerne.k12.ca.us | AV152: 7/2/2013
A153: 17640550000000 | B153: 17640550000000 | C153: 0624750 | E153: Active | F153: Lake | G153: Middletown Unified | I153: 20932 Big Canyon Road | J153: 20932 Big Canyon Rd. | K153: Middletown | L153: 95461-0338 | M153: CA | N153: 20932 Big Canyon Road | O153: 20932 Big Canyon Rd. | P153: Middletown | Q153: 95461-0338 | R153: CA | S153: (707) 987-4100 | U153: www.middletownusd.org | AA153: 54 | AB153: Unified School District | AK153: 38.6455100 | AL153: -122.57563 | AM153: Korby | AN153: Olson | AO153: korby.olson@middletownusd.org | AV153: 7/2/2013
A154: 17640630000000 | B154: 17640630000000 | C154: 0640470 | E154: Active | F154: Lake | G154: Upper Lake Union Elementary | I154: 679 Second Street | J154: 679 Second St. | K154: Upper Lake | L154: 95485-0036 | M154: CA | N154: PO Box 36 | O154: PO Box 36 | P154: Upper Lake | Q154: 95485-0036 | R154: CA | S154: (707) 275-2357 | U154: www.ulesd.org | AA154: 52 | AB154: Elementary School District | AK154: 39.0279000 | AL154: -122.92234 | AM154: Valerie | AN154: Gardner | AO154: vgardner@ulesd.org | AV154: 8/27/2013
A155: 17640710000000 | B155: 17640710000000 | C155: 0640500 | E155: Active | F155: Lake | G155: Upper Lake Union High | I155: 675 Clover Valley Road | J155: 675 Clover Valley Rd. | K155: Upper Lake | L155: 95485-9220 | M155: CA | N155: 675 Clover Valley Road | O155: 675 Clover Valley Rd. | P155: Upper Lake | Q155: 95485-9220 | R155: CA | S155: (707) 275-2655 | U155: www.ulhs.k12.ca.us | AA155: 56 | AB155: High School District | AK155: 39.0186399 | AL155: -122.90291 | AM155: Patrick | AN155: Iaccino | AO155: piaccino@ulhs.k12.ca.us | AV155: 7/2/2013
A156: 17744190000000 | B156: 17744190000000 | C156: 0600078 | E156: Active | F156: Lake | G156: Lake County ROP | I156: 1152 South Main Street | J156: 1152 South Main St. | K156: Lakeport | L156: 95453 | M156: CA | N156: 1152 South Main Street | O156: 1152 South Main St. | P156: Lakeport | Q156: 95453 | R156: CA | AA156: 98 | AB156: Regional Occupation Center/Program (ROC/P) | AV156: 7/2/2013
A157: 18747400000000 | B157: 18747400000000 | C157: 0600079 | E157: Active | F157: Lassen | G157: Lassen ROP | I157: 472-013 Johnstonville Rd, North | J157: 472-013 Johnstonville Rd, North | K157: Susanville | L157: 96130 | M157: CA | N157: 472-013 Johnstonville Rd, North | O157: 472-013 Johnstonville Rd, North | P157: Susanville | Q157: 96130 | R157: CA | AA157: 98 | AB157: Regional Occupation Center/Program (ROC/P) | AV157: 7/2/2013
A158: 18640890000000 | B158: 18640890000000 | C158: 0605010 | E158: Active | F158: Lassen | G158: Big Valley Joint Unified | I158: 390 Bridge Street | J158: 390 Bridge St. | K158: Bieber | L158: 96009-0157 | M158: CA | N158: PO Box 157 | O158: PO Box 157 | P158: Bieber | Q158: 96009-0157 | R158: CA | S158: (530) 294-5266 | U158: www.bigvalleyschool.org | AA158: 54 | AB158: Unified School District | AK158: 40.9406100 | AL158: -121.00279 | AM158: Larry | AN158: Todd | AO158: ltodd@bigvalleyschool.org | AV158: 7/2/2013
A159: 18101810000000 | B159: 18101810000000 | C159: 0691015 | E159: Active | F159: Lassen | G159: Lassen County Office of Education | I159: 472-013 Johnstonville Road, North | J159: 472-013 Johnstonville Rd., North | K159: Susanville | L159: 96130-8752 | M159: CA | N159: 472-013 Johnstonville Road, North | O159: 472-013 Johnstonville Rd., North | P159: Susanville | Q159: 96130-8752 | R159: CA | S159: (530) 257-2196 | U159: www.lcoe.org | AA159: 00 | AB159: County Office of Education (COE) | AK159: 40.3544100 | AL159: -120.67104 | AM159: Richard | AN159: DuVarney | AO159: rduvarney@lcoe.org | AV159: 8/27/2013
A160: 18641050000000 | B160: 18641050000000 | C160: 0618780 | E160: Active | F160: Lassen | G160: Janesville Union Elementary | I160: 464-555 Main Street | J160: 464-555 Main St. | K160: Janesville | L160: 96114-0280 | M160: CA | N160: PO Box 280 | O160: PO Box 280 | P160: Janesville | Q160: 96114-0280 | R160: CA | S160: (530) 253-3660 | U160: www.janesvilleschool.org | AA160: 52 | AB160: Elementary School District | AK160: 40.0072300 | AL160: -120.54358 | AM160: Zach | AN160: Thurman | AO160: zthurman@janesvilleschool.org | AV160: 7/2/2013
A161: 18641130000000 | B161: 18641130000000 | C161: 0619050 | E161: Active | F161: Lassen | G161: Johnstonville Elementary | I161: 704-795 Bangham Lane | J161: 704-795 Bangham Ln. | K161: Susanville | L161: 96130-7716 | M161: CA | N161: 704-795 Bangham Lane | O161: 704-795 Bangham Ln. | P161: Susanville | Q161: 96130-7716 | R161: CA | S161: (530) 257-2471 | U161: www.johnstonville-ca.schoolloop.com | AA161: 52 | AB161: Elementary School District | AK161: 40.3544100 | AL161: -120.67104 | AM161: Roy | AN161: Casey | AO161: dhowe@johnstonvilleusd.org | AV161: 8/27/2013
A162: 18641390000000 | B162: 18641390000000 | C162: 0621060 | E162: Active | F162: Lassen | G162: Lassen Union High | I162: 1000 Main Street | J162: 1000 Main St. | K162: Susanville | L162: 96130-4409 | M162: CA | N162: 1000 Main Street | O162: 1000 Main St. | P162: Susanville | Q162: 96130-4409 | R162: CA | S162: (530) 257-5134 | U162: http://district.lassenhigh.org | AA162: 56 | AB162: High School District | AK162: 40.2674200 | AL162: -120.65380 | AM162: Roy | AN162: Casey | AO162: roy.casey@lassenhigh.org | AV162: 8/14/2013
A163: 18641620000000 | B163: 18641620000000 | C163: 0631830 | E163: Active | F163: Lassen | G163: Ravendale-Termo Elementary | I163: 709-855 Termo-Grasshopper Road | J163: 709-855 Termo-Grasshopper Rd. | K163: Termo | L163: 96132 | M163: CA | N163: PO Box 99 | O163: PO Box 99 | P163: Ravendale | Q163: 96123 | R163: CA | S163: (530) 257-8200 | AA163: 52 | AB163: Elementary School District | AK163: 40.3544100 | AL163: -120.67104 | AM163: Jason | AN163: Waddell | AO163: jwaddell@susanvillesd.org | AV163: 7/26/2013
A164: 18641700000000 | B164: 18641700000000 | C164: 0632520 | E164: Active | F164: Lassen | G164: Richmond Elementary | I164: 700-585 Richmond Road, East | J164: 700-585 Richmond Rd., East | K164: Susanville | L164: 96130-5026 | M164: CA | N164: 700-585 Richmond Road, East | O164: 700-585 Richmond Rd., East | P164: Susanville | Q164: 96130-5026 | R164: CA | S164: (530) 257-2338 | U164: www.richmondelementary.com | AA164: 52 | AB164: Elementary School District | AK164: 40.2601099 | AL164: -120.66063 | AM164: Vicky | AN164: Leitaker | AO164: vleitaker@richmondelementary.com | AV164: 7/2/2013
A165: 18641880000000 | B165: 18641880000000 | C165: 0636420 | E165: Active | F165: Lassen | G165: Shaffer Union Elementary | I165: 722-055 Highway 395 North | J165: 722-055 Highway 395 North | K165: Litchfield | L165: 96117-0320 | M165: CA | N165: PO Box 320 | O165: PO Box 320 | P165: Litchfield | Q165: 96117-0320 | R165: CA | S165: (530) 254-6577 | U165: www.shafferschool.com | AA165: 52 | AB165: Elementary School District | AK165: 40.2564199 | AL165: -120.27455 | AM165: Terri | AN165: Daniels | AO165: tdaniels@shafferschool.com | AV165: 7/2/2013
A166: 18641960000000 | B166: 18641960000000 | C166: 0638550 | E166: Active | F166: Lassen | G166: Susanville Elementary | I166: 109 South Gilman Street | J166: 109 South Gilman St. | K166: Susanville | L166: 96130-4150 | M166: CA | N166: 109 South Gilman Street | O166: 109 South Gilman St. | P166: Susanville | Q166: 96130-4150 | R166: CA | S166: (530) 257-8200 | U166: www.susanvillesd.org | AA166: 52 | AB166: Elementary School District | AK166: 40.2659400 | AL166: -120.64498 | AM166: Jason | AN166: Waddell | AO166: jwaddell@susanvillesd.org | AV166: 7/2/2013
A167: 18642040000000 | B167: 18642040000000 | C167: 0642300 | E167: Active | F167: Lassen | G167: Westwood Unified | I167: Fifth and Delwood Streets | J167: Fifth and Delwood Sts. | K167: Westwood | L167: 96137-1225 | M167: CA | N167: PO Box 1225 | O167: PO Box 1225 | P167: Westwood | Q167: 96137-1225 | R167: CA | S167: (530) 256-2311 | U167: http://westwoodusd.org | AA167: 54 | AB167: Unified School District | AK167: 40.1219100 | AL167: -121.08781 | AM167: Adele | AN167: Emershaw | AO167: aemershaw@westwoodusd.org | AV167: 7/2/2013
A168: 18750360000000 | B168: 18750360000000 | C168: 0600011 | E168: Active | F168: Lassen | G168: Fort Sage Unified | I168: 100 DS Hall Street | J168: 100 DS Hall St. | K168: Herlong | L168: 96113-0035 | M168: CA | N168: PO Box 35 | O168: PO Box 35 | P168: Herlong | Q168: 96113-0035 | R168: CA | S168: (530) 827-2129 | AA168: 54 | AB168: Unified School District | AK168: 40.0978800 | AL168: -120.22593 | AM168: Bryan | AN168: Young | AO168: byoung@fortsage.org | AV168: 7/2/2013
A169: 19646420000000 | B169: 19646420000000 | C169: 0619440 | E169: Active | F169: Los Angeles | G169: Keppel Union Elementary | I169: 34004 128th Street East | J169: 34004 128th St. East | K169: Pearblossom | L169: 93553-0186 | M169: CA | N169: PO Box 186 | O169: PO Box 186 | P169: Pearblossom | Q169: 93553-0186 | R169: CA | S169: (661) 944-2155 | U169: www.keppel.k12.ca.us | AA169: 52 | AB169: Elementary School District | AK169: 34.3683400 | AL169: -117.89885 | AM169: Steve | AN169: Doyle | AO169: sdoyle@keppel.k12.ca.us | AV169: 7/2/2013
A170: 19648320000000 | B170: 19648320000000 | C170: 0627180 | E170: Active | F170: Los Angeles | G170: Newhall | I170: 25375 Orchard Village Road, Suite 200 | J170: 25375 Orchard Village Rd., Ste. 200 | K170: Valencia | L170: 91355-3000 | M170: CA | N170: 25375 Orchard Village Road, Suite 200 | O170: 25375 Orchard Village Rd., Ste. 200 | P170: Valencia | Q170: 91355-3000 | R170: CA | S170: (661) 291-4000 | U170: www.newhallschooldistrict.net | AA170: 52 | AB170: Elementary School District | AK170: 34.2570400 | AL170: -118.54898 | AM170: Marc | AN170: Winger | AO170: mwinger@newhall.k12.ca.us | AV170: 7/2/2013
A171: 19744350000000 | B171: 19744350000000 | C171: 0600109 | E171: Active | F171: Los Angeles | G171: Los Angeles Unified ROCP | I171: 333 South Beaudry Avenue | J171: 333 South Beaudry Ave. | K171: Los Angeles | L171: 90017-1466 | M171: CA | N171: 333 South Beaudry Avenue | O171: 333 South Beaudry Ave. | P171: Los Angeles | Q171: 90017-1466 | R171: CA | S171: (213) 241-1000 | AA171: 98 | AB171: Regional Occupation Center/Program (ROC/P) | AM171: John | AN171: Deasy | AO171: Superintendent@lausd.net | AV171: 5/17/2012
A172: 19747990000000 | B172: 19747990000000 | C172: 0600112 | E172: Active | F172: Los Angeles | G172: Antelope Valley ROP | I172: 1156 East Avenue, S | J172: 1156 East Ave., S | K172: Palmdale | L172: 93550-6149 | M172: CA | N172: 1156 East Avenue, S | O172: 1156 East Ave., S | P172: Palmdale | Q172: 93550-6149 | R172: CA | S172: (661) 575-1026 | U172: www.avrop.avhsd.org | AA172: 98 | AB172: Regional Occupation Center/Program (ROC/P) | AM172: Betsy | AN172: McKinstry | AO172: bmckinstry@avhsd.org | AV172: 8/31/2011
A173: 19101990000000 | B173: 19101990000000 | C173: 0691078 | E173: Active | F173: Los Angeles | G173: Los Angeles County Office of Education | I173: 9300 Imperial Highway | J173: 9300 Imperial Hwy. | K173: Downey | L173: 90242-2890 | M173: CA | N173: 9300 Imperial Highway | O173: 9300 Imperial Hwy. | P173: Downey | Q173: 90242-2890 | R173: CA | S173: (562) 922-6111 | U173: www.lacoe.edu | AA173: 00 | AB173: County Office of Education (COE) | AK173: 33.7818499 | AL173: -118.12774 | AM173: Arturo | AN173: Delgado | AO173: delgado_arturo@lacoe.edu | AV173: 7/2/2013
A174: 19642120000000 | B174: 19642120000000 | C174: 0601620 | E174: Active | F174: Los Angeles | G174: ABC Unified | I174: 16700 Norwalk Boulevard | J174: 16700 Norwalk Blvd. | K174: Cerritos | L174: 90703-1838 | M174: CA | N174: 16700 Norwalk Boulevard | O174: 16700 Norwalk Blvd. | P174: Cerritos | Q174: 90703-1838 | R174: CA | S174: (562) 926-5566 | T174: 21161 | U174: www.abcusd.k12.ca.us | AA174: 54 | AB174: Unified School District | AK174: 33.7441000 | AL174: -118.07100 | AM174: Mary | AN174: Sieu | AO174: mary.sieu@abcusd.k12.ca.us | AV174: 7/2/2013
A175: 19642460000000 | B175: 19642460000000 | C175: 0602820 | E175: Active | F175: Los Angeles | G175: Antelope Valley Union High | I175: 44811 N. Sierra Highway | J175: 44811 N. Sierra Hwy. | K175: Lancaster | L175: 93534-3226 | M175: CA | N175: 44811 N. Sierra Highway | O175: 44811 N. Sierra Hwy. | P175: Lancaster | Q175: 93534-3226 | R175: CA | S175: (661) 948-7655 | U175: www.avdistrict.org | AA175: 56 | AB175: High School District | AK175: 34.5597900 | AL175: -118.13527 | AM175: David | AN175: Vierra | AO175: dvierra@avhsd.org | AV175: 7/2/2013
A176: 19642610000000 | B176: 19642610000000 | C176: 0602970 | E176: Active | F176: Los Angeles | G176: Arcadia Unified | I176: 234 Campus Drive | J176: 234 Campus Dr. | K176: Arcadia | L176: 91007-6902 | M176: CA | N176: 234 Campus Drive | O176: 234 Campus Dr. | P176: Arcadia | Q176: 91007-6902 | R176: CA | S176: (626) 821-8300 | U176: www.ausd.k12.ca.us | AA176: 54 | AB176: Unified School District | AK176: 33.9949799 | AL176: -118.03810 | AM176: Joel | AN176: Shawn | AO176: jshawn@ausd.net | AV176: 7/2/2013
A177: 19642790000000 | B177: 19642790000000 | C177: 0603600 | E177: Active | F177: Los Angeles | G177: Azusa Unified | I177: 546 South Citrus Avenue | J177: 546 South Citrus Ave. | K177: Azusa | L177: 91702-0500 | M177: CA | N177: PO Box 500 | O177: PO Box 500 | P177: Azusa | Q177: 91702-0500 | R177: CA | S177: (626) 967-6211 | U177: www.azusausd.k12.ca.us | AA177: 54 | AB177: Unified School District | AK177: 33.9577900 | AL177: -117.88831 | AM177: Linda | AN177: Kaminski | AO177: lindak@azusausd.k12.ca.us | AV177: 7/2/2013
A178: 19642870000000 | B178: 19642870000000 | C178: 0603690 | E178: Active | F178: Los Angeles | G178: Baldwin Park Unified | I178: 3699 North Holly Avenue | J178: 3699 North Holly Ave. | K178: Baldwin Park | L178: 91706-5397 | M178: CA | N178: 3699 North Holly Avenue | O178: 3699 North Holly Ave. | P178: Baldwin Park | Q178: 91706-5397 | R178: CA | S178: (626) 962-3311 | U178: www.bpusd.net | AA178: 54 | AB178: Unified School District | AK178: 33.9473899 | AL178: -117.95791 | AM178: Mark | AN178: Skvarna | AO178: mmskvarna203@bpusd.net | AV178: 7/2/2013
A179: 19642950000000 | B179: 19642950000000 | C179: 0604110 | E179: Active | F179: Los Angeles | G179: Bassett Unified | I179: 904 North Willow Avenue | J179: 904 North Willow Ave. | K179: La Puente | L179: 91746-1615 | M179: CA | N179: 904 North Willow Avenue | O179: 904 North Willow Ave. | P179: La Puente | Q179: 91746-1615 | R179: CA | S179: (626) 931-3000 | U179: www.bassett.k12.ca.us | AA179: 54 | AB179: Unified School District | AK179: 33.9172400 | AL179: -117.97059 | AM179: Jose | AN179: Reynoso | AO179: jreynoso@bassett.k12.ca.us | AV179: 8/19/2013
A180: 19643030000000 | B180: 19643030000000 | C180: 0604440 | E180: Active | F180: Los Angeles | G180: Bellflower Unified | I180: 16703 South Clark Avenue | J180: 16703 South Clark Ave. | K180: Bellflower | L180: 90706-5203 | M180: CA | N180: 16703 South Clark Avenue | O180: 16703 South Clark Ave. | P180: Bellflower | Q180: 90706-5203 | R180: CA | S180: (562) 866-9011 | U180: www.busd.k12.ca.us | AA180: 54 | AB180: Unified School District | AK180: 33.7477600 | AL180: -118.13222 | AM180: Brian | AN180: Jacobs | AO180: bjacobs@busd.k12.ca.us | AV180: 7/2/2013
A181: 19643110000000 | B181: 19643110000000 | C181: 0604830 | E181: Active | F181: Los Angeles | G181: Beverly Hills Unified | I181: 255 South Lasky Drive | J181: 255 South Lasky Dr. | K181: Beverly Hills | L181: 90212-3644 | M181: CA | N181: 255 South Lasky Drive | O181: 255 South Lasky Dr. | P181: Beverly Hills | Q181: 90212-3644 | R181: CA | S181: (310) 551-5100 | T181: 2210 | U181: www.bhusd.org | AA181: 54 | AB181: Unified School District | AK181: 33.9272800 | AL181: -118.40849 | AM181: Gary | AN181: Woods | AO181: gwoods@bhusd.org | AV181: 7/2/2013
A182: 19643290000000 | B182: 19643290000000 | C182: 0605610 | E182: Active | F182: Los Angeles | G182: Bonita Unified | I182: 115 West Allen Avenue | J182: 115 West Allen Ave. | K182: San Dimas | L182: 91773-1437 | M182: CA | N182: 115 West Allen Avenue | O182: 115 West Allen Ave. | P182: San Dimas | Q182: 91773-1437 | R182: CA | S182: (909) 971-8200 | U182: www.bonita.k12.ca.us | AA182: 54 | AB182: Unified School District | AK182: 33.9817100 | AL182: -117.80540 | AM182: Gary | AN182: Rapkin | AO182: rapkin@bonita.k12.ca.us | AV182: 7/2/2013
A183: 19643370000000 | B183: 19643370000000 | C183: 0606450 | E183: Active | F183: Los Angeles | G183: Burbank Unified | I183: 1900 West Olive Avenue | J183: 1900 West Olive Ave. | K183: Burbank | L183: 91506-2438 | M183: CA | N183: 1900 West Olive Avenue | O183: 1900 West Olive Ave. | P183: Burbank | Q183: 91506-2438 | R183: CA | S183: (818) 729-4400 | U183: www.burbankusd.org | AA183: 54 | AB183: Unified School District | AK183: 34.0280700 | AL183: -118.32926 | AM183: Jan | AN183: Britz | AO183: janbritz@burbankusd.org | AV183: 7/2/2013
A184: 19643450000000 | B184: 19643450000000 | C184: 0607740 | E184: Active | F184: Los Angeles | G184: Castaic Union | I184: 28131 Livingston Avenue | J184: 28131 Livingston Ave. | K184: Valencia | L184: 91355-4114 | M184: CA | N184: 28131 Livingston Avenue | O184: 28131 Livingston Ave. | P184: Valencia | Q184: 91355-4114 | R184: CA | S184: (661) 257-4500 | T184: 1500 | U184: www.castaic.k12.ca.us | AA184: 52 | AB184: Elementary School District | AK184: 34.2776300 | AL184: -118.55813 | AM184: James | AN184: Gibson | AO184: jgibson@castaic.k12.ca.us | AV184: 7/2/2013
A185: 19643520000000 | B185: 19643520000000 | C185: 0607920 | E185: Active | F185: Los Angeles | G185: Centinela Valley Union High | I185: 14901 South Inglewood Avenue | J185: 14901 South Inglewood Ave. | K185: Lawndale | L185: 90260-1251 | M185: CA | N185: 14901 South Inglewood Avenue | O185: 14901 South Inglewood Ave. | P185: Lawndale | Q185: 90260-1251 | R185: CA | S185: (310) 263-3200 | U185: www.centinela.k12.ca.us | AA185: 56 | AB185: High School District | AK185: 33.7610000 | AL185: -118.35951 | AM185: Jose | AN185: Fernandez | AO185: fernandezj@centinela.k12.ca.us | AV185: 7/2/2013
A186: 19643780000000 | B186: 19643780000000 | C186: 0608190 | E186: Active | F186: Los Angeles | G186: Charter Oak Unified | I186: 20240 East Cienega Avenue | J186: 20240 East Cienega Ave. | K186: Covina | L186: 91724-1227 | M186: CA | N186: 20240 East Cienega Avenue | O186: 20240 East Cienega Ave. | P186: Covina | Q186: 91724-1227 | R186: CA | S186: (626) 966-8331 | U186: www.cousd.net | AA186: 54 | AB186: Unified School District | AK186: 33.9675200 | AL186: -117.85767 | AM186: Michael | AN186: Hendricks | AO186: mhendricks@cousd.net | AV186: 7/2/2013
A187: 19643940000000 | B187: 19643940000000 | C187: 0608760 | E187: Active | F187: Los Angeles | G187: Claremont Unified | I187: 170 West San Jose Avenue | J187: 170 West San Jose Ave. | K187: Claremont | L187: 91711-5285 | M187: CA | N187: 170 West San Jose Avenue | O187: 170 West San Jose Ave. | P187: Claremont | Q187: 91711-5285 | R187: CA | S187: (909) 398-0609 | U187: www.cusd.claremont.edu | AA187: 54 | AB187: Unified School District | AK187: 33.9853799 | AL187: -117.72696 | AM187: James | AN187: Elsasser | AO187: jelsasser@cusd.claremont.edu | AV187: 7/2/2013
A188: 19644360000000 | B188: 19644360000000 | C188: 0610050 | E188: Active | F188: Los Angeles | G188: Covina-Valley Unified | I188: 519 East Badillo Street | J188: 519 East Badillo St. | K188: Covina | L188: 91723-0269 | M188: CA | N188: 519 East Badillo Street | O188: 519 East Badillo St. | P188: Covina | Q188: 91723-0269 | R188: CA | S188: (626) 974-7000 | U188: www.cvusd.k12.ca.us | AA188: 54 | AB188: Unified School District | AK188: 33.9508200 | AL188: -117.87885 | AM188: Catherine | AN188: Nichols | AO188: cnichols@cvusd.k12.ca.us | AV188: 7/2/2013
A189: 19644440000000 | B189: 19644440000000 | C189: 0610260 | E189: Active | F189: Los Angeles | G189: Culver City Unified | I189: 4034 Irving Place | J189: 4034 Irving Pl. | K189: Culver City | L189: 90232-2810 | M189: CA | N189: 4034 Irving Place | O189: 4034 Irving Pl. | P189: Culver City | Q189: 90232-2810 | R189: CA | S189: (310) 842-4220 | U189: www.ccusd.org | AA189: 54 | AB189: Unified School District | AK189: 33.8863899 | AL189: -118.39154 | AM189: David | AN189: LaRose | AO189: davidlarose@ccusd.org | AV189: 7/2/2013
A190: 19644510000000 | B190: 19644510000000 | C190: 0611460 | E190: Active | F190: Los Angeles | G190: Downey Unified | I190: 11627 Brookshire Avenue | J190: 11627 Brookshire Ave. | K190: Downey | L190: 90241-7017 | M190: CA | N190: PO Box 7017 | O190: PO Box 7017 | P190: Downey | Q190: 90241-7017 | R190: CA | S190: (562) 469-6500 | U190: www.dusd.net | AA190: 54 | AB190: Unified School District | AK190: 33.7991099 | AL190: -118.13081 | AM190: John | AN190: Garcia, Jr., Ph.D. | AO190: jgarcia@dusd.net | AV190: 7/2/2013
A191: 19644690000000 | B191: 19644690000000 | C191: 0611520 | E191: Active | F191: Los Angeles | G191: Duarte Unified | I191: 1620 Huntington Drive | J191: 1620 Huntington Dr. | K191: Duarte | L191: 91010-2534 | M191: CA | N191: 1620 Huntington Drive | O191: 1620 Huntington Dr. | P191: Duarte | Q191: 91010-2534 | R191: CA | S191: (626) 599-5000 | U191: www.duarte.k12.ca.us | AA191: 54 | AB191: Unified School District | AK191: 34.0037200 | AL191: -117.96943 | AM191: Terry | AN191: Nichols | AO191: tnichols@duarte.k12.ca.us | AV191: 7/2/2013
A192: 19644770000000 | B192: 19644770000000 | C192: 0611910 | E192: Active | F192: Los Angeles | G192: Eastside Union Elementary | I192: 45006 30th Street East | J192: 45006 30th St. East | K192: Lancaster | L192: 93535-2815 | M192: CA | N192: 45006 30th Street East | O192: 45006 30th St. East | P192: Lancaster | Q192: 93535-2815 | R192: CA | S192: (661) 952-1200 | T192: 8213 | U192: www.eastside.k12.ca.us | AA192: 52 | AB192: Elementary School District | AK192: 34.5767999 | AL192: -118.07566 | AM192: Mark | AN192: Marshall | AO192: mmarshall@eastside.k12.ca.us | AV192: 7/26/2013
A193: 19644850000000 | B193: 19644850000000 | C193: 0611850 | E193: Active | F193: Los Angeles | G193: East Whittier City Elementary | I193: 14535 East Whittier Boulevard | J193: 14535 East Whittier Blvd. | K193: Whittier | L193: 90605-2130 | M193: CA | N193: 14535 East Whittier Boulevard | O193: 14535 East Whittier Blvd. | P193: Whittier | Q193: 90605-2130 | R193: CA | S193: (562) 907-5900 | U193: www.ewcsd.org | AA193: 52 | AB193: Elementary School District | AK193: 33.8158200 | AL193: -118.00928 | AM193: Dorka | AN193: Durón | AO193: superintendent@ewcsd.org | AV193: 7/2/2013
A194: 19645010000000 | B194: 19645010000000 | C194: 0612090 | E194: Active | F194: Los Angeles | G194: El Monte City | I194: 3540 North Lexington Avenue | J194: 3540 North Lexington Ave. | K194: El Monte | L194: 91731-2684 | M194: CA | N194: 3540 North Lexington Avenue | O194: 3540 North Lexington Ave. | P194: El Monte | Q194: 91731-2684 | R194: CA | S194: (626) 453-3700 | U194: www.emcsd.org | AA194: 52 | AB194: Elementary School District | AK194: 33.9370899 | AL194: -118.03761 | AM194: Maribel | AN194: Garcia | AO194: mgarcia@emcsd.org | AV194: 8/19/2013
A195: =VALUE(B195) -> 19645190000000 | B195: 19645190000000 | C195: 0612120 | E195: Active | F195: Los Angeles | G195: El Monte Union High | I195: 3537 Johnson Avenue | J195: 3537 Johnson Ave. | K195: El Monte | L195: 91731-3290 | M195: CA | N195: 3537 Johnson Avenue | O195: 3537 Johnson Ave. | P195: El Monte | Q195: 91731-3290 | R195: CA | S195: (626) 444-9005 | U195: www.emuhsd.k12.ca.us | AA195: 56 | AB195: High School District | AK195: 33.9363099 | AL195: -118.02871 | AM195: Nick | AN195: Salerno | AO195: nsalerno@emuhsd.k12.ca.us | AV195: 7/2/2013
A196: 19645270000000 | B196: 19645270000000 | C196: 0612180 | E196: Active | F196: Los Angeles | G196: El Rancho Unified | I196: 9333 Loch Lomond Drive | J196: 9333 Loch Lomond Dr. | K196: Pico Rivera | L196: 90660-2913 | M196: CA | N196: 9333 Loch Lomond Drive | O196: 9333 Loch Lomond Dr. | P196: Pico Rivera | Q196: 90660-2913 | R196: CA | S196: (562) 942-1500 | U196: http://erusd.org | AA196: 54 | AB196: Unified School District | AK196: 33.8595600 | AL196: -118.07978 | AM196: Martin | AN196: Galindo | AO196: mgalindo@erusd.org | AV196: 7/3/2013
A197: 19645350000000 | B197: 19645350000000 | C197: 0612210 | E197: Active | F197: Los Angeles | G197: El Segundo Unified | I197: 641 Sheldon Street | J197: 641 Sheldon St. | K197: El Segundo | L197: 90245-3036 | M197: CA | N197: 641 Sheldon Street | O197: 641 Sheldon St. | P197: El Segundo | Q197: 90245-3036 | R197: CA | S197: (310) 615-2650 | U197: www.elsegundousd.com | AA197: 54 | AB197: Unified School District | AK197: 33.7887700 | AL197: -118.40967 | AM197: Geoff | AN197: Yantz | AO197: gyantz@esusd.k12.ca.us | AV197: 7/2/2013
A198: 19645500000000 | B198: 19645500000000 | C198: 0614940 | E198: Active | F198: Los Angeles | G198: Garvey Elementary | I198: 2730 North Del Mar Avenue | J198: 2730 North Del Mar Ave. | K198: Rosemead | L198: 91770-3026 | M198: CA | N198: 2730 North Del Mar Avenue | O198: 2730 North Del Mar Ave. | P198: Rosemead | Q198: 91770-3026 | R198: CA | S198: (626) 307-3444 | U198: www.garvey.k12.ca.us | AA198: 52 | AB198: Elementary School District | AK198: 33.9255900 | AL198: -118.09775 | AM198: Sandra | AN198: Johnson | AO198: sjohnson@garvey.k12.ca.us | AV198: 7/2/2013
A199: 19645680000000 | B199: 19645680000000 | C199: 0615240 | E199: Active | F199: Los Angeles | G199: Glendale Unified | I199: 223 North Jackson Street | J199: 223 North Jackson St. | K199: Glendale | L199: 91206-4334 | M199: CA | N199: 223 North Jackson Street | O199: 223 North Jackson St. | P199: Glendale | Q199: 91206-4334 | R199: CA | S199: (818) 241-3111 | U199: www.gusd.net | AA199: 54 | AB199: Unified School District | AK199: 34.0127900 | AL199: -118.24850 | AM199: Richard | AN199: Sheehan | AO199: dsheehan@gusd.net | AV199: 7/2/2013
A200: 19645760000000 | B200: 19645760000000 | C200: 0615270 | E200: Active | F200: Los Angeles | G200: Glendora Unified | I200: 500 North Loraine Avenue | J200: 500 North Loraine Ave. | K200: Glendora | L200: 91741-2964 | M200: CA | N200: 500 North Loraine Avenue | O200: 500 North Loraine Ave. | P200: Glendora | Q200: 91741-2964 | R200: CA | S200: (626) 963-1611 | U200: www.glendora.k12.ca.us | AA200: 54 | AB200: Unified School District | AK200: 34.0076200 | AL200: -117.84430 | AM200: Robert | AN200: Voors | AO200: rvoors@glendora.k12.ca.us | AV200: 7/2/2013
... 2050 more rows

Sheet Enrollment
A1: DataQuest
A2: School Enrollment Data 2012-2013
A4: DistrictCode | B4: SchoolCode | C4: CDE Code | D4: District | E4: school | F4: Total
A5: 3310330 | B5: 110833 | C5: 33103300110833 | D5: Riverside County Office of Education | E5: River Springs Charter | F5: 5548
A6: 1964873 | B6: 1936749 | C6: 19648731936749 | D6: Paramount Unified | E6: Paramount High | F6: 4989
A7: 1964725 | B7: 1936947 | C7: 19647251936947 | D7: Long Beach Unified | E7: Polytechnic High | F7: 4634
A8: 3467447 | B8: 3430717 | C8: 34674473430717 | D8: San Juan Unified | E8: Visions In Education | F8: 4497
A9: 1964451 | B9: 1932441 | C9: 19644511932441 | D9: Downey Unified | E9: Downey High | F9: 4332
A10: 1964733 | B10: 1933746 | C10: 19647331933746 | D10: Los Angeles Unified | E10: Granada Hills Charter High | F10: 4224
A11: 1964725 | B11: 1939875 | C11: 19647251939875 | D11: Long Beach Unified | E11: Wilson High | F11: 4109
A12: 3010306 | B12: 3030764 | C12: 30103063030764 | D12: Orange County Department of Education | E12: Access County Community | F12: 4081
A13: 1073965 | B13: 1030626 | C13: 10739651030626 | D13: Central Unified | E13: Central High East Campus | F13: 4022
A14: 1964725 | B14: 1935758 | C14: 19647251935758 | D14: Long Beach Unified | E14: Millikan High | F14: 4009
A15: 161242 | B15: 134668 | C15: 1612420134668 | D15: New Haven Unified | E15: James Logan High | F15: 3934
A16: 1965094 | B16: 112706 | C16: 19650940112706 | D16: West Covina Unified | E16: California Virtual Academy @ Los Angeles | F16: 3874
A17: 1964725 | B17: 1934678 | C17: 19647251934678 | D17: Long Beach Unified | E17: Lakewood High | F17: 3831
A18: 1964733 | B18: 1932623 | C18: 19647331932623 | D18: Los Angeles Unified | E18: El Camino Real Charter High | F18: 3766
A19: 1964451 | B19: 1939164 | C19: 19644511939164 | D19: Downey Unified | E19: Warren High | F19: 3747
A20: 3367033 | B20: 3330701 | C20: 33670333330701 | D20: Corona-Norco Unified | E20: Santiago High | F20: 3726
A21: 1964733 | B21: 1930866 | C21: 19647331930866 | D21: Los Angeles Unified | E21: Bell Senior High | F21: 3720
A22: 3375192 | B22: 105734 | C22: 33751920105734 | D22: Temecula Valley Unified | E22: Great Oak High | F22: 3615
A23: 3675069 | B23: 3637584 | C23: 36750693637584 | D23: Upland Unified | E23: Upland High | F23: 3608
A24: 1964725 | B24: 1934470 | C24: 19647251934470 | D24: Long Beach Unified | E24: Jordan High | F24: 3604
A25: 3667652 | B25: 3632205 | C25: 36676523632205 | D25: Chaffey Joint Union High | E25: Chaffey High | F25: 3571
A26: 3066548 | B26: 3032158 | C26: 30665483032158 | D26: Huntington Beach Union High | E26: Fountain Valley High | F26: 3568
A27: 1964261 | B27: 1930288 | C27: 19642611930288 | D27: Arcadia Unified | E27: Arcadia High | F27: 3514
A28: 3367033 | B28: 110627 | C28: 33670330110627 | D28: Corona-Norco Unified | E28: Eleanor Roosevelt High | F28: 3457
A29: 3667652 | B29: 3630571 | C29: 36676523630571 | D29: Chaffey Joint Union High | E29: Rancho Cucamonga High | F29: 3433
A30: 1964733 | B30: 1931864 | C30: 19647331931864 | D30: Los Angeles Unified | E30: Grover Cleveland High | F30: 3393
A31: 1964303 | B31: 1935618 | C31: 19643031935618 | D31: Bellflower Unified | E31: Mayfair High | F31: 3332
A32: 5672546 | B32: 5630389 | C32: 56725465630389 | D32: Oxnard Union High | E32: Pacifica High | F32: 3328
A33: 3375200 | B33: 100420 | C33: 33752000100420 | D33: Murrieta Valley Unified | E33: Vista Murrieta High | F33: 3323
A34: 1964733 | B34: 1936160 | C34: 19647331936160 | D34: Los Angeles Unified | E34: Nathaniel Narbonne Senior High | F34: 3304
A35: 1964246 | B35: 100081 | C35: 19642460100081 | D35: Antelope Valley Union High | E35: William J. (Pete) Knight High | F35: 3294
A36: 3375242 | B36: 3330552 | C36: 33752423330552 | D36: Val Verde Unified | E36: Rancho Verde High | F36: 3276
A37: 3667652 | B37: 3630373 | C37: 36676523630373 | D37: Chaffey Joint Union High | E37: Etiwanda High | F37: 3260
A38: 3367215 | B38: 3330859 | C38: 33672153330859 | D38: Riverside Unified | E38: Martin Luther King Jr. High | F38: 3239
A39: 3667652 | B39: 3631058 | C39: 36676523631058 | D39: Chaffey Joint Union High | E39: Los Osos High | F39: 3233
A40: 3066431 | B40: 3030228 | C40: 30664313030228 | D40: Anaheim Union High | E40: Anaheim High | F40: 3232
A41: 1062166 | B41: 1030675 | C41: 10621661030675 | D41: Fresno Unified | E41: Sunnyside High | F41: 3229
A42: 3367033 | B42: 3330446 | C42: 33670333330446 | D42: Corona-Norco Unified | E42: Centennial High | F42: 3225
A43: 3073924 | B43: 3033917 | C43: 30739243033917 | D43: Los Alamitos Unified | E43: Los Alamitos High | F43: 3203
A44: 1964246 | B44: 1937051 | C44: 19642461937051 | D44: Antelope Valley Union High | E44: Quartz Hill High | F44: 3198
A45: 1964808 | B45: 1935998 | C45: 19648081935998 | D45: Montebello Unified | E45: Montebello High | F45: 3191
A46: 1964808 | B46: 1930155 | C46: 19648081930155 | D46: Montebello Unified | E46: Schurr High | F46: 3179
A47: 161143 | B47: 131177 | C47: 1611430131177 | D47: Berkeley Unified | E47: Berkeley High | F47: 3176
A48: 4369427 | B48: 4330031 | C48: 43694274330031 | D48: East Side Union High | E48: Independence High | F48: 3158
A49: 1964808 | B49: 1930825 | C49: 19648081930825 | D49: Montebello Unified | E49: Bell Gardens High | F49: 3153
A50: 3773551 | B50: 3730694 | C50: 37735513730694 | D50: Carlsbad Unified | E50: Carlsbad High | F50: 3151
A51: 1964246 | B51: 1995398 | C51: 19642461995398 | D51: Antelope Valley Union High | E51: Highland High | F51: 3148
A52: 3667652 | B52: 3633906 | C52: 36676523633906 | D52: Chaffey Joint Union High | E52: Montclair High | F52: 3140
A53: 1964733 | B53: 1938307 | C53: 19647331938307 | D53: Los Angeles Unified | E53: South Gate Senior High | F53: 3125
A54: 3073635 | B54: 3030392 | C54: 30736353030392 | D54: Saddleback Valley Unified | E54: Trabuco Hills High | F54: 3121
A55: 3367033 | B55: 3331600 | C55: 33670333331600 | D55: Corona-Norco Unified | E55: Corona High | F55: 3119
A56: 3667934 | B56: 3630670 | C56: 36679343630670 | D56: Victor Valley Union High | E56: Options for Youth-Victorville Charter | F56: 3091
A57: 1965128 | B57: 1931302 | C57: 19651281931302 | D57: Whittier Union High | E57: California High | F57: 3083
A58: 3768403 | B58: 6120893 | C58: 37684036120893 | D58: Spencer Valley Elementary | E58: California Virtual Academy @ San Diego | F58: 3079
A59: 3375192 | B59: 3330743 | C59: 33751923330743 | D59: Temecula Valley Unified | E59: Chaparral High | F59: 3079
A60: 3773569 | B60: 3739018 | C60: 37735693739018 | D60: Oceanside Unified | E60: El Camino High | F60: 3076
A61: 3667934 | B61: 3630787 | C61: 36679343630787 | D61: Victor Valley Union High | E61: Silverado High | F61: 3056
A62: 1964733 | B62: 1933852 | C62: 19647331933852 | D62: Los Angeles Unified | E62: Alexander Hamilton Senior High | F62: 3047
A63: 1964980 | B63: 1938000 | C63: 19649801938000 | D63: Santa Monica-Malibu Unified | E63: Santa Monica High | F63: 3041
A64: 4373387 | B64: 4334470 | C64: 43733874334470 | D64: Milpitas Unified | E64: Milpitas High | F64: 3030
A65: 1973460 | B65: 1932862 | C65: 19734601932862 | D65: Walnut Valley Unified | E65: Diamond Bar High | F65: 3030
A66: 3768411 | B66: 3730843 | C66: 37684113730843 | D66: Sweetwater Union High | E66: Eastlake High | F66: 3025
A67: 1964725 | B67: 1995935 | C67: 19647251995935 | D67: Long Beach Unified | E67: Cabrillo High | F67: 3023
A68: 3667678 | B68: 3631017 | C68: 36676783631017 | D68: Chino Valley Unified | E68: Chino Hills High | F68: 3022
A69: 3667850 | B69: 3630597 | C69: 36678503630597 | D69: Rialto Unified | E69: Rialto High | F69: 3017
A70: 1964527 | B70: 1932706 | C70: 19645271932706 | D70: El Rancho Unified | E70: El Rancho High | F70: 3001
A71: 3066464 | B71: 3030574 | C71: 30664643030574 | D71: Capistrano Unified | E71: Aliso Niguel High | F71: 2993
A72: 3066464 | B72: 3036001 | C72: 30664643036001 | D72: Capistrano Unified | E72: San Clemente High | F72: 2989
A73: 161150 | B73: 132225 | C73: 1611500132225 | D73: Castro Valley Unified | E73: Castro Valley High | F73: 2975
A74: 1964733 | B74: 1932987 | C74: 19647331932987 | D74: Los Angeles Unified | E74: John H. Francis Polytechnic | F74: 2971
A75: 1964733 | B75: 1936350 | C75: 19647331936350 | D75: Los Angeles Unified | E75: North Hollywood Senior High | F75: 2966
A76: 1965136 | B76: 1995802 | C76: 19651361995802 | D76: William S. Hart Union High | E76: Valencia High | F76: 2965
A77: 1964303 | B77: 1930775 | C77: 19643031930775 | D77: Bellflower Unified | E77: Bellflower High | F77: 2940
A78: 3768411 | B78: 3731064 | C78: 37684113731064 | D78: Sweetwater Union High | E78: Chula Vista Senior High | F78: 2935
A79: 1363099 | B79: 1332204 | C79: 13630991332204 | D79: Calexico Unified | E79: Calexico High | F79: 2932
A80: 3366977 | B80: 3330008 | C80: 33669773330008 | D80: Alvord Unified | E80: La Sierra High | F80: 2923
A81: 1964733 | B81: 1931047 | C81: 19647331931047 | D81: Los Angeles Unified | E81: Birmingham Community Charter High | F81: 2923
A82: 3367058 | B82: 3330669 | C82: 33670583330669 | D82: Desert Sands Unified | E82: La Quinta High | F82: 2922
A83: 3066670 | B83: 3036357 | C83: 30666703036357 | D83: Santa Ana Unified | E83: Santa Ana High | F83: 2916
A84: 3567538 | B84: 3537008 | C84: 35675383537008 | D84: San Benito High | E84: San Benito High | F84: 2915
A85: 3066548 | B85: 3032943 | C85: 30665483032943 | D85: Huntington Beach Union High | E85: Huntington Beach High | F85: 2909
A86: 1964246 | B86: 1936624 | C86: 19642461936624 | D86: Antelope Valley Union High | E86: Palmdale High | F86: 2897
A87: 1563529 | B87: 1530708 | C87: 15635291530708 | D87: Kern Union High | E87: Bakersfield High | F87: 2897
A88: 1973460 | B88: 1939149 | C88: 19734601939149 | D88: Walnut Valley Unified | E88: Walnut High | F88: 2887
A89: 1964568 | B89: 1932144 | C89: 19645681932144 | D89: Glendale Unified | E89: Crescenta Valley High | F89: 2886
A90: 1964733 | B90: 1995836 | C90: 19647331995836 | D90: Los Angeles Unified | E90: Palisades Charter High | F90: 2880
A91: 761788 | B91: 735407 | C91: 7617880735407 | D91: Pittsburg Unified | E91: Pittsburg Senior High | F91: 2876
A92: 3367215 | B92: 3336237 | C92: 33672153336237 | D92: Riverside Unified | E92: Polytechnic High | F92: 2876
A93: 3066464 | B93: 3038569 | C93: 30664643038569 | D93: Capistrano Unified | E93: Dana Hills High | F93: 2851
A94: 1062117 | B94: 1031053 | C94: 10621171031053 | D94: Clovis Unified | E94: Clovis High | F94: 2851
A95: 3467314 | B95: 3430873 | C95: 34673143430873 | D95: Elk Grove Unified | E95: Franklin High | F95: 2850
A96: 5672546 | B96: 5634548 | C96: 56725465634548 | D96: Oxnard Union High | E96: Oxnard High | F96: 2833
A97: 3768411 | B97: 3738226 | C97: 37684113738226 | D97: Sweetwater Union High | E97: Sweetwater High | F97: 2833
A98: 3375192 | B98: 3330370 | C98: 33751923330370 | D98: Temecula Valley Unified | E98: Temecula Valley High | F98: 2817
A99: 1965128 | B99: 1934868 | C99: 19651281934868 | D99: Whittier Union High | E99: La Serna High | F99: 2816
A100: 3667876 | B100: 3632221 | C100: 36678763632221 | D100: San Bernardino City Unified | E100: Cajon High | F100: 2797
A101: 1964568 | B101: 1933530 | C101: 19645681933530 | D101: Glendale Unified | E101: Glendale High | F101: 2796
A102: 3768411 | B102: 3731627 | C102: 37684113731627 | D102: Sweetwater Union High | E102: Otay Ranch Senior High | F102: 2789
A103: 1975713 | B103: 1930163 | C103: 19757131930163 | D103: Alhambra Unified | E103: Alhambra High | F103: 2781
A104: 1964733 | B104: 1938968 | C104: 19647331938968 | D104: Los Angeles Unified | E104: Van Nuys Senior High | F104: 2776
A105: 1964733 | B105: 1937838 | C105: 19647331937838 | D105: Los Angeles Unified | E105: San Pedro Senior High | F105: 2771
A106: 1964733 | B106: 1930650 | C106: 19647331930650 | D106: Los Angeles Unified | E106: Phineas Banning Senior High | F106: 2767
A107: 3367173 | B107: 3330578 | C107: 33671733330578 | D107: Palm Springs Unified | E107: Cathedral City High | F107: 2758
A108: 3066548 | B108: 3034410 | C108: 30665483034410 | D108: Huntington Beach Union High | E108: Marina High | F108: 2743
A109: 3968569 | B109: 3933801 | C109: 39685693933801 | D109: Lincoln Unified | E109: Lincoln High | F109: 2741
A110: 1062414 | B110: 1036094 | C110: 10624141036094 | D110: Sanger Unified | E110: Sanger High | F110: 2731
A111: 3667652 | B111: 3634482 | C111: 36676523634482 | D111: Chaffey Joint Union High | E111: Ontario High | F111: 2729
A112: 3367207 | B112: 3330727 | C112: 33672073330727 | D112: Perris Union High | E112: Paloma Valley High | F112: 2728
A113: 1062166 | B113: 1030279 | C113: 10621661030279 | D113: Fresno Unified | E113: Bullard High | F113: 2723
A114: 3066514 | B114: 3037496 | C114: 30665143037496 | D114: Fullerton Joint Union High | E114: Troy High | F114: 2721
A115: 761648 | B115: 730465 | C115: 7616480730465 | D115: Antioch Unified | E115: Deer Valley High | F115: 2711
A116: 3667710 | B116: 3633302 | C116: 36677103633302 | D116: Fontana Unified | E116: Fontana High | F116: 2711
A117: 2065243 | B117: 110965 | C117: 20652430110965 | D117: Madera Unified | E117: Madera South High | F117: 2705
A118: 2465789 | B118: 2435204 | C118: 24657892435204 | D118: Merced Union High | E118: Merced High | F118: 2700
A119: 4369427 | B119: 4330692 | C119: 43694274330692 | D119: East Side Union High | E119: Evergreen Valley High | F119: 2693
A120: 1964337 | B120: 1931187 | C120: 19643371931187 | D120: Burbank Unified | E120: Burbank High | F120: 2690
A121: 3073635 | B121: 3030061 | C121: 30736353030061 | D121: Saddleback Valley Unified | E121: El Toro High | F121: 2690
A122: 3667959 | B122: 3638509 | C122: 36679593638509 | D122: Yucaipa-Calimesa Joint Unified | E122: Yucaipa High | F122: 2689
A123: 3066431 | B123: 3033057 | C123: 30664313033057 | D123: Anaheim Union High | E123: Katella High | F123: 2686
A124: 3768130 | B124: 3732336 | C124: 37681303732336 | D124: Grossmont Union High | E124: Granite Hills High | F124: 2686
A125: 1964733 | B125: 1935568 | C125: 19647331935568 | D125: Los Angeles Unified | E125: John Marshall Senior High | F125: 2684
A126: 1965136 | B126: 102475 | C126: 19651360102475 | D126: William S. Hart Union High | E126: West Ranch High | F126: 2673
A127: 161291 | B127: 137588 | C127: 1612910137588 | D127: San Leandro Unified | E127: San Leandro High | F127: 2671
A128: 3066431 | B128: 3030038 | C128: 30664313030038 | D128: Anaheim Union High | E128: Cypress High | F128: 2666
A129: 1964337 | B129: 1931237 | C129: 19643371931237 | D129: Burbank Unified | E129: Burroughs High | F129: 2664
A130: 3768346 | B130: 3730033 | C130: 37683463730033 | D130: San Dieguito Union High | E130: Torrey Pines High | F130: 2651
A131: 3667652 | B131: 3630225 | C131: 36676523630225 | D131: Chaffey Joint Union High | E131: Alta Loma High | F131: 2650
A132: 1965128 | B132: 1937903 | C132: 19651281937903 | D132: Whittier Union High | E132: Santa Fe High | F132: 2650
A133: 3868478 | B133: 3833407 | C133: 38684783833407 | D133: San Francisco Unified | E133: Lowell High | F133: 2648
A134: 3768106 | B134: 3732062 | C134: 37681063732062 | D134: Escondido Union High | E134: Escondido High | F134: 2645
A135: 3066670 | B135: 114736 | C135: 30666700114736 | D135: Santa Ana Unified | E135: Hector G. Godinez | F135: 2630
A136: 3066548 | B136: 3031895 | C136: 30665483031895 | D136: Huntington Beach Union High | E136: Edison High | F136: 2625
A137: 175101 | B137: 130583 | C137: 1751010130583 | D137: Pleasanton Unified | E137: Amador Valley High | F137: 2625
A138: 3066431 | B138: 3033784 | C138: 30664313033784 | D138: Anaheim Union High | E138: Loara High | F138: 2624
A139: 4269310 | B139: 102285 | C139: 42693100102285 | D139: Santa Maria Joint Union High | E139: Pioneer Valley High | F139: 2618
A140: 5672546 | B140: 5631742 | C140: 56725465631742 | D140: Oxnard Union High | E140: Channel Islands High | F140: 2617
A141: 3066548 | B141: 3038445 | C141: 30665483038445 | D141: Huntington Beach Union High | E141: Westminster High | F141: 2616
A142: 1964733 | B142: 1932540 | C142: 19647331932540 | D142: Los Angeles Unified | E142: Eagle Rock High | F142: 2615
A143: 3367207 | B143: 113191 | C143: 33672070113191 | D143: Perris Union High | E143: Heritage High | F143: 2615
A144: 3373676 | B144: 3330990 | C144: 33736763330990 | D144: Coachella Valley Unified | E144: Coachella Valley High | F144: 2608
A145: 1965094 | B145: 1939537 | C145: 19650941939537 | D145: West Covina Unified | E145: West Covina High | F145: 2606
A146: 5673759 | B146: 5633748 | C146: 56737595633748 | D146: Conejo Valley Unified | E146: Newbury Park High | F146: 2599
A147: 3768452 | B147: 3730728 | C147: 37684523730728 | D147: Vista Unified | E147: Rancho Buena Vista High | F147: 2599
A148: 3667876 | B148: 3631082 | C148: 36678763631082 | D148: San Bernardino City Unified | E148: Arroyo Valley High | F148: 2596
A149: 1964733 | B149: 109454 | C149: 19647330109454 | D149: Los Angeles Unified | E149: South East High | F149: 2593
A150: 3367124 | B150: 3330438 | C150: 33671243330438 | D150: Moreno Valley Unified | E150: Valley View High | F150: 2593
A151: 3066464 | B151: 3030210 | C151: 30664643030210 | D151: Capistrano Unified | E151: Capistrano Valley High | F151: 2585
A152: 3773791 | B152: 105726 | C152: 37737910105726 | D152: San Marcos Unified | E152: Mission Hills High | F152: 2580
A153: 1964733 | B153: 1935865 | C153: 19647331935865 | D153: Los Angeles Unified | E153: James Monroe High | F153: 2577
A154: 3667710 | B154: 3630555 | C154: 36677103630555 | D154: Fontana Unified | E154: Fontana A. B. Miller High | F154: 2576
A155: 3768338 | B155: 3730181 | C155: 37683383730181 | D155: San Diego Unified | E155: Mira Mesa High | F155: 2574
A156: 1964733 | B156: 1937622 | C156: 19647331937622 | D156: Los Angeles Unified | E156: San Fernando Senior High | F156: 2572
A157: 3768411 | B157: 3730405 | C157: 37684113730405 | D157: Sweetwater Union High | E157: Bonita Vista Senior High | F157: 2565
A158: 3667678 | B158: 3630522 | C158: 36676783630522 | D158: Chino Valley Unified | E158: Ruben S. Ayala High | F158: 2554
A159: 1964733 | B159: 1995489 | C159: 19647331995489 | D159: Los Angeles Unified | E159: Los Angeles Unified Alternative Education | F159: 2553
A160: 761804 | B160: 730051 | C160: 7618040730051 | D160: San Ramon Valley Unified | E160: California High | F160: 2551
A161: 1964352 | B161: 1934926 | C161: 19643521934926 | D161: Centinela Valley Union High | E161: Lawndale High | F161: 2549
A162: 3367207 | B162: 3335973 | C162: 33672073335973 | D162: Perris Union High | E162: Perris High | F162: 2547
A163: 3768452 | B163: 3738705 | C163: 37684523738705 | D163: Vista Unified | E163: Vista High | F163: 2546
A164: 1975341 | B164: 1937143 | C164: 19753411937143 | D164: Redondo Beach Unified | E164: Redondo Union High | F164: 2541
A165: 3066670 | B165: 108365 | C165: 30666700108365 | D165: Santa Ana Unified | E165: Segerstrom High | F165: 2541
A166: 1062117 | B166: 1030501 | C166: 10621171030501 | D166: Clovis Unified | E166: Buchanan High | F166: 2534
A167: 3467314 | B167: 108753 | C167: 34673140108753 | D167: Elk Grove Unified | E167: Pleasant Grove High | F167: 2533
A168: 2766159 | B168: 2734556 | C168: 27661592734556 | D168: Salinas Union High | E168: Salinas High | F168: 2533
A169: 3768338 | B169: 3732781 | C169: 37683383732781 | D169: San Diego Unified | E169: Henry High | F169: 2529
A170: 3367124 | B170: 3330396 | C170: 33671243330396 | D170: Moreno Valley Unified | E170: Canyon Springs High | F170: 2523
A171: 3066647 | B171: 3038023 | C171: 30666473038023 | D171: Placentia-Yorba Linda Unified | E171: Valencia High | F171: 2523
A172: 5672546 | B172: 5631619 | C172: 56725465631619 | D172: Oxnard Union High | E172: Adolfo Camarillo High | F172: 2521
A173: 1964865 | B173: 1995588 | C173: 19648651995588 | D173: Palos Verdes Peninsula Unified | E173: Palos Verdes Peninsula High | F173: 2519
A174: 1964733 | B174: 1933118 | C174: 19647331933118 | D174: Los Angeles Unified | E174: John C. Fremont Senior High | F174: 2515
A175: 761721 | B175: 730457 | C175: 7617210730457 | D175: Liberty Union High | E175: Freedom High | F175: 2511
A176: 3667678 | B176: 3632502 | C176: 36676783632502 | D176: Chino Valley Unified | E176: Chino High | F176: 2498
A177: 3066621 | B177: 3038098 | C177: 30666213038098 | D177: Orange Unified | E177: Villa Park High | F177: 2498
A178: 3768122 | B178: 3732179 | C178: 37681223732179 | D178: Fallbrook Union High | E178: Fallbrook High | F178: 2496
A179: 3768130 | B179: 3732625 | C179: 37681303732625 | D179: Grossmont Union High | E179: Grossmont High | F179: 2495
A180: 1964733 | B180: 1931708 | C180: 19647331931708 | D180: Los Angeles Unified | E180: Chatsworth Senior High | F180: 2495
A181: 3073643 | B181: 3032109 | C181: 30736433032109 | D181: Tustin Unified | E181: Foothill High | F181: 2494
A182: 3073635 | B182: 3034956 | C182: 30736353034956 | D182: Saddleback Valley Unified | E182: Mission Viejo High | F182: 2492
A183: 1964733 | B183: 6061543 | C183: 19647336061543 | D183: Los Angeles Unified | E183: Alfred B. Nobel Charter Middle | F183: 2491
A184: 1965136 | B184: 1931492 | C184: 19651361931492 | D184: William S. Hart Union High | E184: Canyon High | F184: 2484
A185: 3768411 | B185: 3731502 | C185: 37684113731502 | D185: Sweetwater Union High | E185: San Ysidro High | F185: 2478
A186: 5071175 | B186: 110593 | C186: 50711750110593 | D186: Modesto City High | E186: James C. Enochs High | F186: 2476
A187: 3066597 | B187: 3031697 | C187: 30665973031697 | D187: Newport-Mesa Unified | E187: Corona del Mar High | F187: 2473
A188: 3073643 | B188: 102871 | C188: 30736430102871 | D188: Tustin Unified | E188: Arnold O. Beckman High | F188: 2470
A189: 1964733 | B189: 1933381 | C189: 19647331933381 | D189: Los Angeles Unified | E189: James A. Garfield Senior High | F189: 2468
A190: 3366993 | B190: 3330479 | C190: 33669933330479 | D190: Beaumont Unified | E190: Beaumont Senior High | F190: 2467
A191: 3073650 | B191: 3035102 | C191: 30736503035102 | D191: Irvine Unified | E191: University High | F191: 2463
A192: 3768106 | B192: 3730058 | C192: 37681063730058 | D192: Escondido Union High | E192: San Pasqual High | F192: 2458
A193: 1975333 | B193: 1935808 | C193: 19753331935808 | D193: Manhattan Beach Unified | E193: Mira Costa High | F193: 2456
A194: 5673759 | B194: 5637004 | C194: 56737595637004 | D194: Conejo Valley Unified | E194: Thousand Oaks High | F194: 2454
A195: 1964733 | B195: 1938612 | C195: 19647331938612 | D195: Los Angeles Unified | E195: William Howard Taft Senior High | F195: 2450
A196: 5071175 | B196: 5034905 | C196: 50711755034905 | D196: Modesto City High | E196: Modesto High | F196: 2450
A197: 1563529 | B197: 100198 | C197: 15635290100198 | D197: Kern Union High | E197: Golden Valley High | F197: 2448
A198: 3667850 | B198: 102830 | C198: 36678500102830 | D198: Rialto Unified | E198: Wilmer Amina Carter High | F198: 2445
A199: 1965128 | B199: 1939701 | C199: 19651281939701 | D199: Whittier Union High | E199: Whittier High | F199: 2441
A200: 3768130 | B200: 3732732 | C200: 37681303732732 | D200: Grossmont Union High | E200: Helix High | F200: 2440
A201: 1563529 | B201: 1530252 | C201: 15635291530252 | D201: Kern Union High | E201: Arvin High | F201: 2440
... 10148 more rows

Sheet no data
A1: No Data | B1: CDSCodeValue | C1: CDSCode | D1: NCESDist | E1: NCESSchool | F1: StatusType | G1: County | H1: District | I1: School | J1: Street | K1: StreetAbr | L1: City | M1: Zip | N1: State | O1: MailStreet | P1: MailStrAbr | Q1: MailCity | R1: MailZip | S1: MailState | T1: Phone | U1: Ext | V1: Website | W1: OpenDate | X1: ClosedDate | Y1: Charter | Z1: CharterNum | AA1: FundingType | AB1: DOC | AC1: DOCType | AD1: SOC | AE1: SOCType | AF1: EdOpsCode | AG1: EdOpsName | AH1: EILCode | AI1: EILName | AJ1: GSoffered | AK1: GSserved | AL1: Latitude | AM1: Longitude | AN1: AdmFName1 | AO1: AdmLName1 | AP1: AdmEmail1 | AQ1: AdmFName2 | AR1: AdmLName2 | AS1: AdmEmail2 | AT1: AdmFName3 | AU1: AdmLName3 | AV1: AdmEmail3 | AW1: LastUpdate
A2: =IF(VLOOKUP(B2,DataLINK_EXPORT_May_5_2014!$A$5:$A$11469,1,FALSE)=B2,"Yes","No") -> Yes | B2: =VALUE(C2) -> 07616550000000 | C2: 07616550000000 | D2: 0605910 | F2: Active | G2: Contra Costa | H2: Brentwood Union Elementary | J2: 255 Guthrie Lane | K2: 255 Guthrie Ln. | L2: Brentwood | M2: 94513-1610 | N2: CA | O2: 255 Guthrie Lane | P2: 255 Guthrie Ln. | Q2: Brentwood | R2: 94513-1610 | S2: CA | T2: (925) 513-6300 | V2: www.brentwood.k12.ca.us | AB2: 52 | AC2: Elementary School District | AL2: 37.7810199 | AM2: -121.68128 | AN2: Dana | AO2: Eaton | AP2: deaton@brentwood.k12.ca.us | AW2: 7/2/2013
A3: =IF(VLOOKUP(B3,DataLINK_EXPORT_May_5_2014!$A$5:$A$11469,1,FALSE)=B3,"Yes","No") -> Yes | B3: =VALUE(C3) -> 07616630000000 | C3: 07616630000000 | D3: 0606750 | F3: Active | G3: Contra Costa | H3: Byron Union Elementary | J3: 14301 Byron Highway | K3: 14301 Byron Hwy. | L3: Byron | M3: 94514-2515 | N3: CA | O3: 14301 Byron Highway | P3: 14301 Byron Hwy. | Q3: Byron | R3: 94514-2515 | S3: CA | T3: (925) 809-7500 | V3: www.byronusd.com | AB3: 52 | AC3: Elementary School District | AL3: 37.7059599 | AM3: -121.61968 | AN3: Debbie | AO3: Burnette | AP3: dburnette@byron.k12.ca.us | AW3: 7/24/2013
A4: =IF(VLOOKUP(B4,DataLINK_EXPORT_May_5_2014!$A$5:$A$11469,1,FALSE)=B4,"Yes","No") -> Yes | B4: 07616710000000 | C4: 07616710000000 | D4: 0607350 | F4: Active | G4: Contra Costa | H4: Canyon Elementary | J4: 187 Pinehurst Road PO Box 187 | K4: 187 Pinehurst Rd. PO Box 187 | L4: Canyon | M4: 94516-0187 | N4: CA | O4: PO Box 187 PO Box 187 | P4: PO Box 187 PO Box 187 | Q4: Canyon | R4: 94516-0187 | S4: CA | T4: (925) 376-4671 | V4: www.canyon.k12.ca.us | AB4: 52 | AC4: Elementary School District | AL4: 37.6876499 | AM4: -122.17291 | AN4: Gloria | AO4: Faircloth | AP4: gfaircloth@canyon.k12.ca.us | AW4: 8/28/2013
A5: =IF(VLOOKUP(B5,DataLINK_EXPORT_May_5_2014!$A$5:$A$11469,1,FALSE)=B5,"Yes","No") -> Yes | B5: 07616970000000 | C5: 07616970000000 | D5: 0618990 | F5: Active | G5: Contra Costa | H5: John Swett Unified | J5: 400 Parker Avenue | K5: 400 Parker Ave. | L5: Rodeo | M5: 94572-1400 | N5: CA | O5: 400 Parker Avenue | P5: 400 Parker Ave. | Q5: Rodeo | R5: 94572-1400 | S5: CA | T5: (510) 245-4300 | U5: 105 | V5: www.jsusd.org | AB5: 54 | AC5: Unified School District | AL5: 37.9026599 | AM5: -122.21944 | AN5: Rob | AO5: Stockberger | AP5: rstockberger@jsusd.k12.ca.us | AW5: 8/27/2013
A6: =IF(VLOOKUP(B6,DataLINK_EXPORT_May_5_2014!$A$5:$A$11469,1,FALSE)=B6,"Yes","No") -> Yes | B6: 07617050000000 | C6: 07617050000000 | D6: 0620040 | F6: Active | G6: Contra Costa | H6: Knightsen Elementary | J6: 1923 Delta Road | K6: 1923 Delta Rd. | L6: Knightsen | M6: 94548-0265 | N6: CA | O6: PO Box 265 | P6: PO Box 265 | Q6: Knightsen | R6: 94548-0265 | S6: CA | T6: (925) 625-0073 | V6: www.knightsen.k12.ca.us | AB6: 52 | AC6: Elementary School District | AL6: 37.8364199 | AM6: -121.65724 | AN6: Theresa | AO6: Estrada | AP6: testrada@knightsen.k12.ca.us | AW6: 7/2/2013
A7: =IF(VLOOKUP(B7,DataLINK_EXPORT_May_5_2014!$A$5:$A$11469,1,FALSE)=B7,"Yes","No") -> Yes | B7: 07617130000000 | C7: 07617130000000 | D7: 0620310 | F7: Active | G7: Contra Costa | H7: Lafayette Elementary | J7: 3477 School Street | K7: 3477 School St. | L7: Lafayette | M7: 94549-1029 | N7: CA | O7: 3477 School Street | P7: 3477 School St. | Q7: Lafayette | R7: 94549-1029 | S7: CA | T7: (925) 927-3500 | V7: www.lafsd.k12.ca.us | AB7: 52 | AC7: Elementary School District | AL7: 37.7441600 | AM7: -122.11468 | AN7: Fred | AO7: Brill | AP7: fbrill@lafsd.k12.ca.us | AW7: 7/2/2013
A8: =IF(VLOOKUP(B8,DataLINK_EXPORT_May_5_2014!$A$5:$A$11469,1,FALSE)=B8,"Yes","No") -> Yes | B8: 07617210000000 | C8: 07617210000000 | D8: 0621600 | F8: Active | G8: Contra Costa | H8: Liberty Union High | J8: 20 Oak Street | K8: 20 Oak St. | L8: Brentwood | M8: 94513-1379 | N8: CA | O8: 20 Oak Street | P8: 20 Oak St. | Q8: Brentwood | R8: 94513-1379 | S8: CA | T8: (925) 634-2166 | V8: www.libertyuhsd.k12.ca.us | AB8: 56 | AC8: High School District | AL8: 37.7914900 | AM8: -121.69089 | AN8: Eric | AO8: Volta | AP8: voltae@luhsd.net | AW8: 7/2/2013
A9: =IF(VLOOKUP(B9,DataLINK_EXPORT_May_5_2014!$A$5:$A$11469,1,FALSE)=B9,"Yes","No") -> Yes | B9: 07617390000000 | C9: 07617390000000 | D9: 0624030 | F9: Active | G9: Contra Costa | H9: Martinez Unified | J9: 921 Susana Street | K9: 921 Susana St. | L9: Martinez | M9: 94553-1848 | N9: CA | O9: 921 Susana Street | P9: 921 Susana St. | Q9: Martinez | R9: 94553-1848 | S9: CA | T9: (925) 335-5800 | V9: www.martinez.k12.ca.us | AB9: 54 | AC9: Unified School District | AL9: 37.8700899 | AM9: -122.13285 | AN9: Rami | AO9: Muth | AP9: rmuth@martinez.k12.ca.us | AW9: 7/2/2013
A10: =IF(VLOOKUP(B10,DataLINK_EXPORT_May_5_2014!$A$5:$A$11469,1,FALSE)=B10,"Yes","No") -> Yes | B10: 07617470000000 | C10: 07617470000000 | D10: 0625740 | F10: Active | G10: Contra Costa | H10: Moraga Elementary | J10: 1540 School Street | K10: 1540 School St. | L10: Moraga | M10: 94556-0158 | N10: CA | O10: 1540 School Street | P10: 1540 School St. | Q10: Moraga | R10: 94556-0158 | S10: CA | T10: (925) 376-5943 | V10: http://district.moraga.k12.ca.us | AB10: 52 | AC10: Elementary School District | AL10: 37.6916000 | AM10: -122.13140 | AN10: Bruce | AO10: Burns | AP10: bburns@moraga.k12.ca.us | AW10: 7/2/2013
A11: =IF(VLOOKUP(B11,DataLINK_EXPORT_May_5_2014!$A$5:$A$11469,1,FALSE)=B11,"Yes","No") -> Yes | B11: 07617540000000 | C11: 07617540000000 | D11: 0626370 | F11: Active | G11: Contra Costa | H11: Mt. Diablo Unified | J11: 1936 Carlotta Drive | K11: 1936 Carlotta Dr. | L11: Concord | M11: 94519-1397 | N11: CA | O11: 1936 Carlotta Drive | P11: 1936 Carlotta Dr. | Q11: Concord | R11: 94519-1397 | S11: CA | T11: (925) 682-8000 | U11: 4000 | V11: www.mdusd.org | AB11: 54 | AC11: Unified School District | AL11: 37.8427599 | AM11: -122.00716 | AN11: Nellie | AO11: Meyer | AP11: meyern@mdusd.org | AW11: 8/30/2013
A12: =IF(VLOOKUP(B12,DataLINK_EXPORT_May_5_2014!$A$5:$A$11469,1,FALSE)=B12,"Yes","No") -> Yes | B12: 07617620000000 | C12: 07617620000000 | D12: 0628080 | F12: Active | G12: Contra Costa | H12: Oakley Union Elementary | J12: 91 Mercedes Lane | K12: 91 Mercedes Ln. | L12: Oakley | M12: 94561-4617 | N12: CA | O12: 91 Mercedes Lane | P12: 91 Mercedes Ln. | Q12: Oakley | R12: 94561-4617 | S12: CA | T12: (925) 625-0700 | V12: www.ouesd.k12.ca.us | AB12: 52 | AC12: Elementary School District | AL12: 37.8378700 | AM12: -121.71584 | AN12: Richard | AO12: Rogers | AP12: rrogers@ouesd.k12.ca.us | AW12: 7/2/2013
A13: =IF(VLOOKUP(B13,DataLINK_EXPORT_May_5_2014!$A$5:$A$11469,1,FALSE)=B13,"Yes","No") -> Yes | B13: 07617700000000 | C13: 07617700000000 | D13: 0628860 | F13: Active | G13: Contra Costa | H13: Orinda Union Elementary | J13: 25 Orinda Way, Suite 200 | K13: 25 Orinda Way, Ste. 200 | L13: Orinda | M13: 94563-2603 | N13: CA | O13: 25 Orinda Way, Suite 200 | P13: 25 Orinda Way, Ste. 200 | Q13: Orinda | R13: 94563-2603 | S13: CA | T13: (925) 254-4901 | V13: www.orindaschools.org | AB13: 52 | AC13: Elementary School District | AL13: 37.7380700 | AM13: -122.18541 | AN13: Joe | AO13: Jaconette | AP13: jjaconette@orinda.k12.ca.us | AW13: 7/3/2013
A14: =IF(VLOOKUP(B14,DataLINK_EXPORT_May_5_2014!$A$5:$A$11469,1,FALSE)=B14,"Yes","No") -> Yes | B14: 07617880000000 | C14: 07617880000000 | D14: 0630600 | F14: Active | G14: Contra Costa | H14: Pittsburg Unified | J14: 2000 Railroad Avenue | K14: 2000 Railroad Ave. | L14: Pittsburg | M14: 94565-3830 | N14: CA | O14: 2000 Railroad Avenue | P14: 2000 Railroad Ave. | Q14: Pittsburg | R14: 94565-3830 | S14: CA | T14: (925) 473-2300 | V14: www.pittsburg.k12.ca.us | AB14: 54 | AC14: Unified School District | AL14: 37.8764200 | AM14: -121.88778 | AN14: Linda | AO14: Rondeau | AP14: lrondeau@pittsburg.k12.ca.us | AW14: 7/2/2013
A15: =IF(VLOOKUP(B15,DataLINK_EXPORT_May_5_2014!$A$5:$A$11469,1,FALSE)=B15,"Yes","No") -> Yes | B15: 07617960000000 | C15: 07617960000000 | D15: 0632550 | F15: Active | G15: Contra Costa | H15: West Contra Costa Unified | J15: 1108 Bissell Avenue | K15: 1108 Bissell Ave. | L15: Richmond | M15: 94801-3135 | N15: CA | O15: 1108 Bissell Avenue | P15: 1108 Bissell Ave. | Q15: Richmond | R15: 94801-3135 | S15: CA | T15: (510) 231-1101 | V15: www.wccusd.net | AB15: 54 | AC15: Unified School District | AL15: 37.7905599 | AM15: -122.35907 | AN15: Bruce | AO15: Harter | AP15: bharter@wccusd.net | AW15: 7/2/2013
A16: =IF(VLOOKUP(B16,DataLINK_EXPORT_May_5_2014!$A$5:$A$11469,1,FALSE)=B16,"Yes","No") -> Yes | B16: 07618040000000 | C16: 07618040000000 | D16: 0635130 | F16: Active | G16: Contra Costa | H16: San Ramon Valley Unified | J16: 699 Old Orchard Drive | K16: 699 Old Orchard Dr. | L16: Danville | M16: 94526-4331 | N16: CA | O16: 699 Old Orchard Drive | P16: 699 Old Orchard Dr. | Q16: Danville | R16: 94526-4331 | S16: CA | T16: (925) 552-5500 | V16: www.srvusd.net | AB16: 54 | AC16: Unified School District | AL16: 37.6684300 | AM16: -121.97615 | AN16: Mary | AO16: Shelton | AP16: mshelton@srvusd.net | AW16: 7/2/2013
A17: =IF(VLOOKUP(B17,DataLINK_EXPORT_May_5_2014!$A$5:$A$11469,1,FALSE)=B17,"Yes","No") -> Yes | B17: 07618120000000 | C17: 07618120000000 | D17: 0641250 | F17: Active | G17: Contra Costa | H17: Walnut Creek Elementary | J17: 960 Ygnacio Valley Road | K17: 960 Ygnacio Valley Rd. | L17: Walnut Creek | M17: 94596-3826 | N17: CA | O17: 960 Ygnacio Valley Road | P17: 960 Ygnacio Valley Rd. | Q17: Walnut Creek | R17: 94596-3826 | S17: CA | T17: (925) 944-6850 | V17: www.walnutcreeksd.org | AB17: 52 | AC17: Elementary School District | AL17: 37.7642200 | AM17: -122.05562 | AN17: Patricia | AO17: Wool | AP17: pwool@wcsd.k12.ca.us | AW17: 7/2/2013
A18: =IF(VLOOKUP(B18,DataLINK_EXPORT_May_5_2014!$A$5:$A$11469,1,FALSE)=B18,"Yes","No") -> Yes | B18: 07743440000000 | C18: 07743440000000 | D18: 0600092 | F18: Active | G18: Contra Costa | H18: Contra Costa County ROP | J18: 77 Santa Barbara Road | K18: 77 Santa Barbara Rd. | L18: Pleasant Hill | M18: 94523 | N18: CA | O18: 77 Santa Barbara Road | P18: 77 Santa Barbara Rd. | Q18: Pleasant Hill | R18: 94523 | S18: CA | AB18: 98 | AC18: Regional Occupation Center/Program (ROC/P) | AN18: Janet | AO18: Haun | AP18: jhaun@cccoe.k12.ca.us | AW18: 9/25/2012
A19: =IF(VLOOKUP(B19,DataLINK_EXPORT_May_5_2014!$A$5:$A$11469,1,FALSE)=B19,"Yes","No") -> Yes | B19: 08100820000000 | C19: 08100820000000 | D19: 0691063 | F19: Active | G19: Del Norte | H19: Del Norte County Office of Education | J19: 301 West Washington Boulevard | K19: 301 West Washington Blvd. | L19: Crescent City | M19: 95531-8340 | N19: CA | O19: 301 West Washington Boulevard | P19: 301 West Washington Blvd. | Q19: Crescent City | R19: 95531-8340 | S19: CA | T19: (707) 464-0200 | V19: www.delnorte.k12.ca.us | AB19: 00 | AC19: County Office of Education (COE) | AL19: 41.6229299 | AM19: -124.20425 | AN19: Don | AO19: Olson | AP19: dolson@delnorte.k12.ca.us | AW19: 7/2/2013
A20: =IF(VLOOKUP(B20,DataLINK_EXPORT_May_5_2014!$A$5:$A$11469,1,FALSE)=B20,"Yes","No") -> Yes | B20: 08743510000000 | C20: 08743510000000 | D20: 0600093 | F20: Active | G20: Del Norte | H20: Del Norte County ROP | J20: 301 West Washington Boulevard | K20: 301 West Washington Blvd. | L20: Crescent City | M20: 95531 | N20: CA | O20: 301 West Washington Boulevard | P20: 301 West Washington Blvd. | Q20: Crescent City | R20: 95531 | S20: CA | AB20: 98 | AC20: Regional Occupation Center/Program (ROC/P) | AW20: 7/2/2013
A21: =IF(VLOOKUP(B21,DataLINK_EXPORT_May_5_2014!$A$5:$A$11469,1,FALSE)=B21,"Yes","No") -> Yes | B21: 09100900000000 | C21: 09100900000000 | D21: 0691006 | F21: Active | G21: El Dorado | H21: El Dorado County Office of Education | J21: 6767 Green Valley Road | K21: 6767 Green Valley Rd. | L21: Placerville | M21: 95667-8984 | N21: CA | O21: 6767 Green Valley Road | P21: 6767 Green Valley Rd. | Q21: Placerville | R21: 95667-8984 | S21: CA | T21: (530) 622-7130 | V21: www.edcoe.org | AB21: 00 | AC21: County Office of Education (COE) | AL21: 38.5755500 | AM21: -120.87858 | AN21: Jeremy | AO21: Meyers | AP21: jmeyers@edcoe.org | AW21: 7/16/2013
A22: =IF(VLOOKUP(B22,DataLINK_EXPORT_May_5_2014!$A$5:$A$11469,1,FALSE)=B22,"Yes","No") -> Yes | B22: 11754810000000 | C22: 11754810000000 | D22: 0600045 | F22: Active | G22: Glenn | H22: Orland Joint Unified | J22: 1320 Sixth Street | K22: 1320 Sixth St. | L22: Orland | M22: 95963-1641 | N22: CA | O22: 1320 Sixth Street | P22: 1320 Sixth St. | Q22: Orland | R22: 95963-1641 | S22: CA | T22: (530) 865-1200 | V22: www.orlandusd.net | AB22: 54 | AC22: Unified School District | AL22: 39.5583699 | AM22: -122.34780 | AN22: Chris | AO22: Von Kleist | AP22: cvonkleist@orlandusd.net | AW22: 7/2/2013
A23: =IF(VLOOKUP(B23,DataLINK_EXPORT_May_5_2014!$A$5:$A$11469,1,FALSE)=B23,"Yes","No") -> Yes | B23: 08618200000000 | C23: 08618200000000 | D23: 0610770 | F23: Active | G23: Del Norte | H23: Del Norte County Unified | J23: 301 West Washington Boulevard | K23: 301 West Washington Blvd. | L23: Crescent City | M23: 95531-8340 | N23: CA | O23: 301 West Washington Boulevard | P23: 301 West Washington Blvd. | Q23: Crescent City | R23: 95531-8340 | S23: CA | T23: (707) 464-0200 | V23: www.delnorte.k12.ca.us | AB23: 54 | AC23: Unified School District | AL23: 41.6229299 | AM23: -124.20425 | AN23: Don | AO23: Olson | AP23: dolson@delnorte.k12.ca.us | AW23: 7/2/2013
A24: =IF(VLOOKUP(B24,DataLINK_EXPORT_May_5_2014!$A$5:$A$11469,1,FALSE)=B24,"Yes","No") -> Yes | B24: 12101240000000 | C24: 12101240000000 | D24: 0691009 | F24: Active | G24: Humboldt | H24: Humboldt County Office of Education | J24: 901 Myrtle Avenue | K24: 901 Myrtle Ave. | L24: Eureka | M24: 95501-1219 | N24: CA | O24: 901 Myrtle Avenue | P24: 901 Myrtle Ave. | Q24: Eureka | R24: 95501-1219 | S24: CA | T24: (707) 445-7000 | V24: www.humboldt.k12.ca.us | AB24: 00 | AC24: County Office of Education (COE) | AL24: 40.6532300 | AM24: -124.15192 | AN24: Garry | AO24: Eagles | AP24: superintendent@hcoe.net | AW24: 7/2/2013
A25: =IF(VLOOKUP(B25,DataLINK_EXPORT_May_5_2014!$A$5:$A$11469,1,FALSE)=B25,"Yes","No") -> Yes | B25: 12626790000000 | C25: 12626790000000 | D25: 0603000 | F25: Active | G25: Humboldt | H25: Arcata Elementary | J25: 1435 Buttermilk Lane | K25: 1435 Buttermilk Ln. | L25: Arcata | M25: 95521-6909 | N25: CA | O25: 1435 Buttermilk Lane | P25: 1435 Buttermilk Ln. | Q25: Arcata | R25: 95521-6909 | S25: CA | T25: (707) 822-0351 | V25: www.humboldt.k12.ca.us/arcata_sd/ | AB25: 52 | AC25: Elementary School District | AL25: 40.7090800 | AM25: -124.06679 | AN25: Pamela | AO25: Jones | AP25: pjones@humboldt.k12.ca.us | AW25: 7/2/2013
A26: =IF(VLOOKUP(B26,DataLINK_EXPORT_May_5_2014!$A$5:$A$11469,1,FALSE)=B26,"Yes","No") -> Yes | B26: 12626870000000 | C26: 12626870000000 | D26: 0603030 | F26: Active | G26: Humboldt | H26: Northern Humboldt Union High | J26: 2755 McKinleyville Avenue | K26: 2755 McKinleyville Ave. | L26: McKinleyville | M26: 95519-3400 | N26: CA | O26: 2755 McKinleyville Avenue | P26: 2755 McKinleyville Ave. | Q26: McKinleyville | R26: 95519-3400 | S26: CA | T26: (707) 839-6470 | V26: www.nohum.k12.ca.us/nhuhsd/nhuhsd.htm | AB26: 56 | AC26: High School District | AL26: 40.8047200 | AM26: -124.11123 | AN26: Chris | AO26: Hartley | AP26: chartley@nohum.k12.ca.us | AW26: 7/2/2013
A27: =IF(VLOOKUP(B27,DataLINK_EXPORT_May_5_2014!$A$5:$A$11469,1,FALSE)=B27,"Yes","No") -> Yes | B27: 12626950000000 | C27: 12626950000000 | D27: 0604890 | F27: Active | G27: Humboldt | H27: Big Lagoon Union Elementary | J27: 269 Big Lagoon Park Road | K27: 269 Big Lagoon Park Rd. | L27: Trinidad | M27: 95570-9622 | N27: CA | O27: 269 Big Lagoon Park Road | P27: 269 Big Lagoon Park Rd. | Q27: Trinidad | R27: 95570-9622 | S27: CA | T27: (707) 677-3688 | V27: www.humboldt.k12.ca.us/blagoon_sd | AB27: 52 | AC27: Elementary School District | AL27: 41.0144799 | AM27: -124.13169 | AN27: Alan | AO27: LaPolice | AP27: Alapolice@nohum.k12.ca.us | AW27: 7/2/2013
A28: =IF(VLOOKUP(B28,DataLINK_EXPORT_May_5_2014!$A$5:$A$11469,1,FALSE)=B28,"Yes","No") -> Yes | B28: 12627030000000 | C28: 12627030000000 | D28: 0605400 | F28: Active | G28: Humboldt | H28: Blue Lake Union Elementary | J28: 631 Greenwood Avenue | K28: 631 Greenwood Ave. | L28: Blue Lake | M28: 95525 | N28: CA | O28: PO Box 268 | P28: PO Box 268 | Q28: Blue Lake | R28: 95525-0268 | S28: CA | T28: (707) 668-5674 | V28: www.humboldt.k12.ca.us/bluelake | AB28: 52 | AC28: Elementary School District | AL28: 40.8224500 | AM28: -123.88330 | AN28: Paula | AO28: Wyant | AP28: pwyant@humboldt.k12.ca.us | AW28: 7/2/2013
A29: =IF(VLOOKUP(B29,DataLINK_EXPORT_May_5_2014!$A$5:$A$11469,1,FALSE)=B29,"Yes","No") -> Yes | B29: 12627290000000 | C29: 12627290000000 | D29: 0606000 | F29: Active | G29: Humboldt | H29: Bridgeville Elementary | J29: 38717 Kneeland Road | K29: 38717 Kneeland Rd. | L29: Bridgeville | M29: 95526-0098 | N29: CA | O29: PO Box 98 | P29: PO Box 98 | Q29: Bridgeville | R29: 95526-0098 | S29: CA | T29: (707) 777-3311 | V29: www.humboldt.k12.ca.us/bridgeville_sd | AB29: 52 | AC29: Elementary School District | AL29: 40.3518600 | AM29: -123.81883 | AN29: Mike | AO29: Mullan | AP29: mmullan@humboldt.k12.ca.us | AW29: 7/2/2013
A30: =IF(VLOOKUP(B30,DataLINK_EXPORT_May_5_2014!$A$5:$A$11469,1,FALSE)=B30,"Yes","No") -> Yes | B30: 12627370000000 | C30: 12627370000000 | D30: 0610230 | F30: Active | G30: Humboldt | H30: Cuddeback Union Elementary | J30: 300 Wilder Road | K30: 300 Wilder Rd. | L30: Carlotta | M30: 95528-0007 | N30: CA | O30: PO Box 7 | P30: PO Box 7 | Q30: Carlotta | R30: 95528-0007 | S30: CA | T30: (707) 768-3372 | V30: www.humboldt.k12.ca.us/cuddeback_sd | AB30: 52 | AC30: Elementary School District | AL30: 40.3280299 | AM30: -123.93897 | AN30: Ronan | AO30: Collver | AP30: rcollver@humboldt.k12.ca.us | AW30: 7/2/2013
A31: =IF(VLOOKUP(B31,DataLINK_EXPORT_May_5_2014!$A$5:$A$11469,1,FALSE)=B31,"Yes","No") -> Yes | B31: 12627450000000 | C31: 12627450000000 | D31: 0610380 | F31: Active | G31: Humboldt | H31: Cutten Elementary | J31: 4182 Walnut Drive | K31: 4182 Walnut Dr. | L31: Eureka | M31: 95503-6223 | N31: CA | O31: 4182 Walnut Drive | P31: 4182 Walnut Dr. | Q31: Eureka | R31: 95503-6223 | S31: CA | T31: (707) 441-3900 | V31: www.humboldt.k12.ca.us/cutten_sd | AB31: 52 | AC31: Elementary School District | AL31: 40.6180900 | AM31: -124.14393 | AN31: Julie | AO31: Osborne | AP31: josborne@humboldt.k12.ca.us | AW31: 7/2/2013
A32: =IF(VLOOKUP(B32,DataLINK_EXPORT_May_5_2014!$A$5:$A$11469,1,FALSE)=B32,"Yes","No") -> Yes | B32: 12627940000000 | C32: 12627940000000 | D32: 0613740 | F32: Active | G32: Humboldt | H32: Fieldbrook Elementary | J32: 4070 Fieldbrook Road | K32: 4070 Fieldbrook Rd. | L32: McKinleyville | M32: 95519-9709 | N32: CA | O32: 4070 Fieldbrook Road | P32: 4070 Fieldbrook Rd. | Q32: McKinleyville | R32: 95519-9709 | S32: CA | T32: (707) 839-3201 | V32: www.nohum.k12.ca.us/fsd | AB32: 52 | AC32: Elementary School District | AL32: 40.8034400 | AM32: -124.03366 | AN32: Daria | AO32: Lowery | AP32: darialowery@nohum.k12.ca.us | AW32: 7/2/2013
A33: =IF(VLOOKUP(B33,DataLINK_EXPORT_May_5_2014!$A$5:$A$11469,1,FALSE)=B33,"Yes","No") -> Yes | B33: 12628100000000 | C33: 12628100000000 | D33: 0614190 | F33: Active | G33: Humboldt | H33: Fortuna Union High | J33: 379 12th Street | K33: 379 12th St. | L33: Fortuna | M33: 95540-2398 | N33: CA | O33: 379 12th Street | P33: 379 12th St. | Q33: Fortuna | R33: 95540-2398 | S33: CA | T33: (707) 725-4461 | U33: 3011 | V33: www.fuhsdistrict.org | AB33: 56 | AC33: High School District | AL33: 40.4474799 | AM33: -124.15537 | AN33: Glen | AO33: Senestraro | AP33: gsenestraro@fuhsdistrict.org | AW33: 8/29/2013
A34: =IF(VLOOKUP(B34,DataLINK_EXPORT_May_5_2014!$A$5:$A$11469,1,FALSE)=B34,"Yes","No") -> Yes | B34: 12628280000000 | C34: 12628280000000 | D34: 0614520 | F34: Active | G34: Humboldt | H34: Freshwater Elementary | J34: 75 Greenwood Heights Drive | K34: 75 Greenwood Heights Dr. | L34: Eureka | M34: 95503-9569 | N34: CA | O34: 75 Greenwood Heights Drive | P34: 75 Greenwood Heights Dr. | Q34: Eureka | R34: 95503-9569 | S34: CA | T34: (707) 442-2969 | V34: www.humboldt.k12.ca.us/freshwater_sd | AB34: 52 | AC34: Elementary School District | AL34: 40.6391100 | AM34: -124.08369 | AN34: Thom | AO34: McMahon | AP34: tmcmahon@humboldt.k12.ca.us | AW34: 7/2/2013
A35: =IF(VLOOKUP(B35,DataLINK_EXPORT_May_5_2014!$A$5:$A$11469,1,FALSE)=B35,"Yes","No") -> Yes | B35: 12628360000000 | C35: 12628360000000 | D35: 0614910 | F35: Active | G35: Humboldt | H35: Garfield Elementary | J35: 2200 Freshwater Road | K35: 2200 Freshwater Rd. | L35: Eureka | M35: 95503-9562 | N35: CA | O35: 2200 Freshwater Road | P35: 2200 Freshwater Rd. | Q35: Eureka | R35: 95503-9562 | S35: CA | T35: (707) 442-5471 | V35: www.humboldt.k12.ca.us/garfield_sd | AB35: 52 | AC35: Elementary School District | AL35: 40.6082400 | AM35: -124.03525 | AN35: Barbara | AO35: McMahon | AP35: bmcmahon@humboldt.k12.ca.us | AW35: 7/2/2013
A36: =IF(VLOOKUP(B36,DataLINK_EXPORT_May_5_2014!$A$5:$A$11469,1,FALSE)=B36,"Yes","No") -> Yes | B36: 12628510000000 | C36: 12628510000000 | D36: 0615990 | F36: Active | G36: Humboldt | H36: Green Point Elementary | J36: 180 Valkensar Lane | K36: 180 Valkensar Ln. | L36: Blue Lake | M36: 95525-9700 | N36: CA | O36: 180 Valkensar Lane | P36: 180 Valkensar Ln. | Q36: Blue Lake | R36: 95525-9700 | S36: CA | T36: (707) 668-5921 | V36: www.humboldt.k12.ca.us/greenpoint_sd | AB36: 52 | AC36: Elementary School District | AL36: 40.8224500 | AM36: -123.88330 | AN36: Rea | AO36: Erickson | AP36: rerickson@humboldt.k12.ca.us | AW36: 7/2/2013
A37: =IF(VLOOKUP(B37,DataLINK_EXPORT_May_5_2014!$A$5:$A$11469,1,FALSE)=B37,"Yes","No") -> Yes | B37: 12628850000000 | C37: 12628850000000 | D37: 0618120 | F37: Active | G37: Humboldt | H37: Hydesville Elementary | J37: 3050 Johnson Road | K37: 3050 Johnson Rd. | L37: Hydesville | M37: 95547-0551 | N37: CA | O37: PO Box 551 | P37: PO Box 551 | Q37: Hydesville | R37: 95547-0551 | S37: CA | T37: (707) 768-3610 | V37: www.humboldt.k12.ca.us/hydesville_sd | AB37: 52 | AC37: Elementary School District | AL37: 40.4078900 | AM37: -124.08942 | AN37: John | AO37: Blakely | AP37: jblakely@humboldt.k12.ca.us | AW37: 7/2/2013
A38: =IF(VLOOKUP(B38,DataLINK_EXPORT_May_5_2014!$A$5:$A$11469,1,FALSE)=B38,"Yes","No") -> Yes | B38: 12628930000000 | C38: 12628930000000 | D38: 0618660 | F38: Active | G38: Humboldt | H38: Jacoby Creek Elementary | J38: 1617 Old Arcata Road | K38: 1617 Old Arcata Rd. | L38: Bayside | M38: 95524-9301 | N38: CA | O38: 1617 Old Arcata Road | P38: 1617 Old Arcata Rd. | Q38: Bayside | R38: 95524-9301 | S38: CA | T38: (707) 822-4896 | V38: http://internet.humboldt.k12.ca.us/jacobycreekschool | AB38: 52 | AC38: Elementary School District | AL38: 40.7011699 | AM38: -124.06950 | AN38: Catherine | AO38: Stone | AP38: cstone@nohum.k12.ca.us | AW38: 7/2/2013
A39: =IF(VLOOKUP(B39,DataLINK_EXPORT_May_5_2014!$A$5:$A$11469,1,FALSE)=B39,"Yes","No") -> Yes | B39: 12629010000000 | C39: 12629010000000 | D39: 0619950 | F39: Active | G39: Humboldt | H39: Klamath-Trinity Joint Unified | J39: 5 Loop Road | K39: 5 Loop Rd. | L39: Hoopa | M39: 95546-1308 | N39: CA | O39: PO Box 1308 | P39: PO Box 1308 | Q39: Hoopa | R39: 95546-1308 | S39: CA | T39: (530) 625-5600 | U39: 1003 | V39: www.ktjusd.k12.ca.us | AB39: 54 | AC39: Unified School District | AL39: 41.0827800 | AM39: -123.75498 | AN39: Dione | AO39: Bielby | AP39: dbeilby@ktjusd.k12.ca.us | AW39: 9/13/2013
A40: =IF(VLOOKUP(B40,DataLINK_EXPORT_May_5_2014!$A$5:$A$11469,1,FALSE)=B40,"Yes","No") -> Yes | B40: 12629190000000 | C40: 12629190000000 | D40: 0619980 | F40: Active | G40: Humboldt | H40: Kneeland Elementary | J40: 9313 Kneeland Road | K40: 9313 Kneeland Rd. | L40: Kneeland | M40: 95549-9018 | N40: CA | O40: 9313 Kneeland Road | P40: 9313 Kneeland Rd. | Q40: Kneeland | R40: 95549-9018 | S40: CA | T40: (707) 442-5472 | V40: www.humboldt.k12.ca.us/kneeland_sd | AB40: 52 | AC40: Elementary School District | AL40: 40.5484300 | AM40: -123.93733 | AN40: Michael | AO40: Quinlan | AP40: kneeland@humboldt.k12.ca.us | AW40: 7/2/2013
A41: =IF(VLOOKUP(B41,DataLINK_EXPORT_May_5_2014!$A$5:$A$11469,1,FALSE)=B41,"Yes","No") -> Yes | B41: 12629270000000 | C41: 12629270000000 | D41: 0622320 | F41: Active | G41: Humboldt | H41: Loleta Union Elementary | J41: 700 Loleta Drive | K41: 700 Loleta Dr. | L41: Loleta | M41: 95551-0547 | N41: CA | O41: PO Box 547 | P41: PO Box 547 | Q41: Loleta | R41: 95551-0547 | S41: CA | T41: (707) 733-5705 | V41: www.humboldt.k12.ca.us/loleta_sd | AB41: 52 | AC41: Elementary School District | AL41: 40.4952699 | AM41: -124.22077 | AN41: Sally | AO41: Hadden | AP41: shadden@humboldt.k12.ca.us | AW41: 7/2/2013
A42: =IF(VLOOKUP(B42,DataLINK_EXPORT_May_5_2014!$A$5:$A$11469,1,FALSE)=B42,"Yes","No") -> Yes | B42: 12629350000000 | C42: 12629350000000 | D42: 0623730 | F42: Active | G42: Humboldt | H42: Maple Creek Elementary | J42: 15933 Maple Creek Road | K42: 15933 Maple Creek Rd. | L42: Korbel | M42: 95550-9602 | N42: CA | O42: 15933 Maple Creek Road | P42: 15933 Maple Creek Rd. | Q42: Korbel | R42: 95550-9602 | S42: CA | T42: (707) 668-5596 | V42: www.humboldt.k12.ca.us/mapleck_sd/ | AB42: 52 | AC42: Elementary School District | AL42: 40.6222399 | AM42: -123.84815 | AN42: Wendy | AO42: Orlandi | AP42: worlandi@humboldt.k12.ca.us | AW42: 7/2/2013
A43: =IF(VLOOKUP(B43,DataLINK_EXPORT_May_5_2014!$A$5:$A$11469,1,FALSE)=B43,"Yes","No") -> Yes | B43: 12629500000000 | C43: 12629500000000 | D43: 0624300 | F43: Active | G43: Humboldt | H43: McKinleyville Union Elementary | J43: 2275 Central Avenue | K43: 2275 Central Ave. | L43: McKinleyville | M43: 95519-3611 | N43: CA | O43: 2275 Central Avenue | P43: 2275 Central Ave. | Q43: McKinleyville | R43: 95519-3611 | S43: CA | T43: (707) 839-1549 | V43: www.nohum.k12.ca.us/msd | AB43: 52 | AC43: Elementary School District | AL43: 40.8030300 | AM43: -124.10175 | AN43: Michael | AO43: Davies-Hughes | AP43: mdavies-hughes@nohum.k12.ca.us | AW43: 7/2/2013
A44: =IF(VLOOKUP(B44,DataLINK_EXPORT_May_5_2014!$A$5:$A$11469,1,FALSE)=B44,"Yes","No") -> Yes | B44: 12629680000000 | C44: 12629680000000 | D44: 0628830 | F44: Active | G44: Humboldt | H44: Orick Elementary | J44: Highway 101 | K44: Highway 101 | L44: Orick | M44: 95555-0128 | N44: CA | O44: PO Box 128 | P44: PO Box 128 | Q44: Orick | R44: 95555-0128 | S44: CA | T44: (707) 488-2821 | V44: http://orickschool.homestead.com | AB44: 52 | AC44: Elementary School District | AL44: 41.2266199 | AM44: -124.05589 | AN44: John | AO44: Sutter | AP44: jsutter@humboldt.k12.ca.us | AW44: 7/2/2013
A45: =IF(VLOOKUP(B45,DataLINK_EXPORT_May_5_2014!$A$5:$A$11469,1,FALSE)=B45,"Yes","No") -> Yes | B45: 12629760000000 | C45: 12629760000000 | D45: 0629430 | F45: Active | G45: Humboldt | H45: Pacific Union Elementary | J45: 3001 Janes Road | K45: 3001 Janes Rd. | L45: Arcata | M45: 95521-4701 | N45: CA | O45: 3001 Janes Road | P45: 3001 Janes Rd. | Q45: Arcata | R45: 95521-4701 | S45: CA | T45: (707) 822-4619 | V45: www.pacificunionschool.org | AB45: 52 | AC45: Elementary School District | AL45: 40.7535600 | AM45: -124.09233 | AN45: Karla | AO45: Darnall | AP45: kdarnall@humboldt.k12.ca.us | AW45: 7/2/2013
A46: =IF(VLOOKUP(B46,DataLINK_EXPORT_May_5_2014!$A$5:$A$11469,1,FALSE)=B46,"Yes","No") -> Yes | B46: 12629840000000 | C46: 12629840000000 | D46: 0630090 | F46: Active | G46: Humboldt | H46: Peninsula Union | J46: 909 Vance Avenue | K46: 909 Vance Ave. | L46: Samoa | M46: 95564-0175 | N46: CA | O46: PO Box 175 | P46: PO Box 175 | Q46: Samoa | R46: 95564-0175 | S46: CA | T46: (707) 443-2731 | V46: www.humboldt.k12.ca.us/peninsula_sd | AB46: 52 | AC46: Elementary School District | AL46: 40.6453399 | AM46: -124.20431 | AN46: Kim | AO46: Blanc | AP46: kblanc@humboldt.k12.ca.us | AW46: 7/2/2013
A47: =IF(VLOOKUP(B47,DataLINK_EXPORT_May_5_2014!$A$5:$A$11469,1,FALSE)=B47,"Yes","No") -> Yes | B47: 12630080000000 | C47: 12630080000000 | D47: 0632730 | F47: Active | G47: Humboldt | H47: Rio Dell Elementary | J47: 95 Center Street | K47: 95 Center St. | L47: Rio Dell | M47: 95562-1323 | N47: CA | O47: 95 Center Street | P47: 95 Center St. | Q47: Rio Dell | R47: 95562-1323 | S47: CA | T47: (707) 764-5694 | V47: http://riodell.schoolwires.com | AB47: 52 | AC47: Elementary School District | AL47: 40.3542399 | AM47: -124.10536 | AN47: Mary | AO47: Varner | AP47: mvarner@humboldt.k12.ca.us | AW47: 7/2/2013
A48: =IF(VLOOKUP(B48,DataLINK_EXPORT_May_5_2014!$A$5:$A$11469,1,FALSE)=B48,"Yes","No") -> Yes | B48: 12630240000000 | C48: 12630240000000 | D48: 0636100 | F48: Active | G48: Humboldt | H48: Scotia Union Elementary | J48: 417 Church Street | K48: 417 Church St. | L48: Scotia | M48: 95565-0217 | N48: CA | O48: PO Box 217 | P48: PO Box 217 | Q48: Scotia | R48: 95565-0217 | S48: CA | T48: (707) 764-2212 | V48: www.humboldt.k12.ca.us/scotia_sd | AB48: 52 | AC48: Elementary School District | AL48: 40.3033500 | AM48: -124.01443 | AN48: Ronan | AO48: Collver | AP48: rcollver@humboldt.k12.ca.us | AW48: 7/30/2013
A49: =IF(VLOOKUP(B49,DataLINK_EXPORT_May_5_2014!$A$5:$A$11469,1,FALSE)=B49,"Yes","No") -> Yes | B49: 12630320000000 | C49: 12630320000000 | D49: 0637350 | F49: Active | G49: Humboldt | H49: South Bay Union Elementary | J49: 6077 Loma Avenue | K49: 6077 Loma Ave. | L49: Eureka | M49: 95503-6869 | N49: CA | O49: 6077 Loma Avenue | P49: 6077 Loma Ave. | Q49: Eureka | R49: 95503-6869 | S49: CA | T49: (707) 476-8549 | V49: www.southbaydistrict.org | AB49: 52 | AC49: Elementary School District | AL49: 40.6099299 | AM49: -124.18199 | AN49: Paul | AO49: Meyers | AP49: pmeyers@humboldt.k12.ca.us | AW49: 7/2/2013
A50: =IF(VLOOKUP(B50,DataLINK_EXPORT_May_5_2014!$A$5:$A$11469,1,FALSE)=B50,"Yes","No") -> Yes | B50: 12630400000000 | C50: 12630400000000 | D50: 0637590 | F50: Active | G50: Humboldt | H50: Southern Humboldt Joint Unified | J50: 110 School Road | K50: 110 School Rd. | L50: Miranda | M50: 95553 | N50: CA | O50: PO Box 650 | P50: PO Box 650 | Q50: Miranda | R50: 95553-0650 | S50: CA | T50: (707) 943-1789 | V50: www.humboldt.k12.ca.us/sohumb_usd/school | AB50: 54 | AC50: Unified School District | AL50: 39.9505600 | AM50: -123.79947 | AN50: Catherine | AO50: Scott | AP50: cscott@humboldt.k12.ca.us | AW50: 7/2/2013
A51: =IF(VLOOKUP(B51,DataLINK_EXPORT_May_5_2014!$A$5:$A$11469,1,FALSE)=B51,"Yes","No") -> Yes | B51: 12630570000000 | C51: 12630570000000 | D51: 0639720 | F51: Active | G51: Humboldt | H51: Trinidad Union Elementary | J51: 300 Trinity Street | K51: 300 Trinity St. | L51: Trinidad | M51: 95570-3030 | N51: CA | O51: PO Box 3030 | P51: PO Box 3030 | Q51: Trinidad | R51: 95570-3030 | S51: CA | T51: (707) 677-3631 | V51: www.humboldt.k12.ca.us/trinidad_sd | AB51: 52 | AC51: Elementary School District | AL51: 41.0003900 | AM51: -124.04984 | AN51: Geoffrey | AO51: Proust | AP51: gproust@nohum.k12.ca.us | AW51: 7/2/2013
A52: =IF(VLOOKUP(B52,DataLINK_EXPORT_May_5_2014!$A$5:$A$11469,1,FALSE)=B52,"Yes","No") ->  | B52: 12743930000000 | C52: 12743930000000 | D52: 0600100 | F52: Active | G52: Humboldt | H52: Humboldt County ROP | J52: 901 Myrtle Avenue | K52: 901 Myrtle Ave. | L52: Eureka | M52: 95501 | N52: CA | O52: 901 Myrtle Avenue | P52: 901 Myrtle Ave. | Q52: Eureka | R52: 95501 | S52: CA | AB52: 98 | AC52: Regional Occupation Center/Program (ROC/P) | AW52: 7/2/2013
A53: =IF(VLOOKUP(B53,DataLINK_EXPORT_May_5_2014!$A$5:$A$11469,1,FALSE)=B53,"Yes","No") -> Yes | B53: 12753740000000 | C53: 12753740000000 | D53: 0600037 | F53: Active | G53: Humboldt | H53: Ferndale Unified | J53: 1231 Main Street | K53: 1231 Main St. | L53: Ferndale | M53: 95536-9416 | N53: CA | O53: 1231 Main Street | P53: 1231 Main St. | Q53: Ferndale | R53: 95536-9416 | S53: CA | T53: (707) 786-5900 | V53: www.ferndalek12.org | AB53: 54 | AC53: Unified School District | AL53: 40.4284100 | AM53: -124.26487 | AN53: Jack | AO53: Lakin | AP53: jlakin@humboldt.k12.ca.us | AW53: 7/2/2013
A54: =IF(VLOOKUP(B54,DataLINK_EXPORT_May_5_2014!$A$5:$A$11469,1,FALSE)=B54,"Yes","No") -> Yes | B54: 12753820000000 | C54: 12753820000000 | D54: 0600038 | F54: Active | G54: Humboldt | H54: Mattole Unified | J54: 29289 Chambers Road | K54: 29289 Chambers Rd. | L54: Petrolia | M54: 95558-0211 | N54: CA | O54: PO Box 211 | P54: PO Box 211 | Q54: Petrolia | R54: 95558-0211 | S54: CA | T54: (707) 629-3311 | V54: www.humboldt.k12.ca.us/mattole_usd | AB54: 54 | AC54: Unified School District | AL54: 40.1417700 | AM54: -124.21187 | AN54: Richard | AO54: Graey | AP54: rgraey@hotmail.com | AW54: 7/2/2013
A55: =IF(VLOOKUP(B55,DataLINK_EXPORT_May_5_2014!$A$5:$A$11469,1,FALSE)=B55,"Yes","No") -> Yes | B55: 12755150000000 | C55: 12755150000000 | D55: 0600052 | F55: Active | G55: Humboldt | H55: Eureka City Schools | J55: 2100 J Street | K55: 2100 J St. | L55: Eureka | M55: 95501-3055 | N55: CA | O55: 2100 J Street | P55: 2100 J St. | Q55: Eureka | R55: 95501-3055 | S55: CA | T55: (707) 441-2414 | V55: www.eurekacityschools.org | AB55: 54 | AC55: Unified School District | AL55: 40.6322300 | AM55: -124.13862 | AN55: Fred | AO55: Van Vleck, Ed.D. | AP55: vanvleckf@eurekacityschools.org | AW55: 8/28/2013
A56: =IF(VLOOKUP(B56,DataLINK_EXPORT_May_5_2014!$A$5:$A$11469,1,FALSE)=B56,"Yes","No") -> Yes | B56: 13101320000000 | C56: 13101320000000 | D56: 0691010 | F56: Active | G56: Imperial | H56: Imperial County Office of Education | J56: 1398 Sperber Road | K56: 1398 Sperber Rd. | L56: El Centro | M56: 92243-9621 | N56: CA | O56: 1398 Sperber Road | P56: 1398 Sperber Rd. | Q56: El Centro | R56: 92243-9621 | S56: CA | T56: (760) 312-6464 | V56: www.icoe.org | AB56: 00 | AC56: County Office of Education (COE) | AL56: 32.6385999 | AM56: -115.59941 | AN56: Anne | AO56: Mallory | AP56: ajmallory@icoe.org | AW56: 7/2/2013
A57: =IF(VLOOKUP(B57,DataLINK_EXPORT_May_5_2014!$A$5:$A$11469,1,FALSE)=B57,"Yes","No") -> Yes | B57: 13630730000000 | C57: 13630730000000 | D57: 0605790 | F57: Active | G57: Imperial | H57: Brawley Elementary | J57: 261 D Street | K57: 261 D St. | L57: Brawley | M57: 92227-1912 | N57: CA | O57: 261 D Street | P57: 261 D St. | Q57: Brawley | R57: 92227-1912 | S57: CA | T57: (760) 344-2330 | V57: www.besd.org | AB57: 52 | AC57: Elementary School District | AL57: 32.8477200 | AM57: -115.53531 | AN57: Ronald A. | AO57: Garcia | AP57: rongarcia@besd.org | AW57: 7/2/2013
A58: =IF(VLOOKUP(B58,DataLINK_EXPORT_May_5_2014!$A$5:$A$11469,1,FALSE)=B58,"Yes","No") -> Yes | B58: 13632140000000 | C58: 13632140000000 | D58: 0635070 | F58: Active | G58: Imperial | H58: San Pasqual Valley Unified | J58: Route 1, 676 Baseline Road | K58: Route 1, 676 Baseline Rd. | L58: Winterhaven | M58: 92283-9801 | N58: CA | O58: Route 1, 676 Baseline Road | P58: Route 1, 676 Baseline Rd. | Q58: Winterhaven | R58: 92283-9801 | S58: CA | T58: (760) 572-0222 | V58: www.sanpasqual.k12.ca.us | AB58: 54 | AC58: Unified School District | AL58: 32.9263100 | AM58: -115.07177 | AN58: David | AO58: Bealer | AP58: dbealer@spvusd.org | AW58: 7/2/2013
A59: =IF(VLOOKUP(B59,DataLINK_EXPORT_May_5_2014!$A$5:$A$11469,1,FALSE)=B59,"Yes","No") -> Yes | B59: 13630810000000 | C59: 13630810000000 | D59: 0605820 | F59: Active | G59: Imperial | H59: Brawley Union High | J59: 480 North Imperial Avenue | K59: 480 North Imperial Ave. | L59: Brawley | M59: 92227-1625 | N59: CA | O59: 480 North Imperial Avenue | P59: 480 North Imperial Ave. | Q59: Brawley | R59: 92227-1625 | S59: CA | T59: (760) 312-5819 | V59: www.brawleyhigh.org | AB59: 56 | AC59: High School District | AL59: 32.8498099 | AM59: -115.53215 | AN59: Hasmik | AO59: Danielian | AP59: superintendent@brawleyhigh.org | AW59: 7/2/2013
A60: =IF(VLOOKUP(B60,DataLINK_EXPORT_May_5_2014!$A$5:$A$11469,1,FALSE)=B60,"Yes","No") -> Yes | B60: 13630990000000 | C60: 13630990000000 | D60: 0606900 | F60: Active | G60: Imperial | H60: Calexico Unified | J60: 901 Andrade Avenue | K60: 901 Andrade Ave. | L60: Calexico | M60: 92231-3015 | N60: CA | O60: 901 Andrade Avenue | P60: 901 Andrade Ave. | Q60: Calexico | R60: 92231-3015 | S60: CA | T60: (760) 768-3888 | V60: www.calexico.k12.ca.us | AB60: 54 | AC60: Unified School District | AL60: 32.5372500 | AM60: -115.47937 | AN60: Maria | AO60: Ambriz | AP60: mambriz@cusdk12.org | AW60: 8/27/2013
A61: =IF(VLOOKUP(B61,DataLINK_EXPORT_May_5_2014!$A$5:$A$11469,1,FALSE)=B61,"Yes","No") -> Yes | B61: 13631070000000 | C61: 13631070000000 | D61: 0606990 | F61: Active | G61: Imperial | H61: Calipatria Unified | J61: 501 West Main Street | K61: 501 West Main St. | L61: Calipatria | M61: 92233-9787 | N61: CA | O61: 501 West Main Street | P61: 501 West Main St. | Q61: Calipatria | R61: 92233-9787 | S61: CA | T61: (760) 348-2151 | V61: www.calipat.com | AB61: 54 | AC61: Unified School District | AL61: 32.9923100 | AM61: -115.51468 | AN61: Douglas | AO61: Kline | AP61: dkline@calipat.com | AW61: 7/2/2013
A62: =IF(VLOOKUP(B62,DataLINK_EXPORT_May_5_2014!$A$5:$A$11469,1,FALSE)=B62,"Yes","No") -> Yes | B62: 13631150000000 | C62: 13631150000000 | D62: 0608010 | F62: Active | G62: Imperial | H62: Central Union High | J62: 351 West Ross Avenue | K62: 351 West Ross Ave. | L62: El Centro | M62: 92243-3110 | N62: CA | O62: 351 West Ross Avenue | P62: 351 West Ross Ave. | Q62: El Centro | R62: 92243-3110 | S62: CA | T62: (760) 336-4500 | V62: www.cuhsd.net | AB62: 56 | AC62: High School District | AL62: 32.6570899 | AM62: -115.56068 | AN62: C. | AO62: Budde | AP62: tbudde@cuhsd.net | AW62: 7/2/2013
A63: =IF(VLOOKUP(B63,DataLINK_EXPORT_May_5_2014!$A$5:$A$11469,1,FALSE)=B63,"Yes","No") -> Yes | B63: 13631230000000 | C63: 13631230000000 | D63: 0612030 | F63: Active | G63: Imperial | H63: El Centro Elementary | J63: 1256 Broadway | K63: 1256 Broadway | L63: El Centro | M63: 92243-2317 | N63: CA | O63: 1256 Broadway | P63: 1256 Broadway | Q63: El Centro | R63: 92243-2317 | S63: CA | T63: (760) 352-5712 | V63: www.ecesd.org | AB63: 52 | AC63: Elementary School District | AL63: 32.6612000 | AM63: -115.56340 | AN63: Jon | AO63: LeDoux | AP63: jledoux@ecesd.org | AW63: 7/2/2013
A64: =IF(VLOOKUP(B64,DataLINK_EXPORT_May_5_2014!$A$5:$A$11469,1,FALSE)=B64,"Yes","No") -> Yes | B64: 13631310000000 | C64: 13631310000000 | D64: 0616830 | F64: Active | G64: Imperial | H64: Heber Elementary | J64: 1052 Heber Avenue | K64: 1052 Heber Ave. | L64: Heber | M64: 92249-9759 | N64: CA | O64: 1052 Heber Avenue | P64: 1052 Heber Ave. | Q64: Heber | R64: 92249-9759 | S64: CA | T64: (760) 337-6530 | U64: 2497 | V64: http://hesdk8.org | AB64: 52 | AC64: Elementary School District | AL64: 32.5975899 | AM64: -115.42722 | AN64: Jaime | AO64: Silva | AP64: jaimes@hesdk8.org | AW64: 7/2/2013
A65: =IF(VLOOKUP(B65,DataLINK_EXPORT_May_5_2014!$A$5:$A$11469,1,FALSE)=B65,"Yes","No") -> Yes | B65: 13631490000000 | C65: 13631490000000 | D65: 0617430 | F65: Active | G65: Imperial | H65: Holtville Unified | J65: 621 East Sixth Street | K65: 621 East Sixth St. | L65: Holtville | M65: 92250-1450 | N65: CA | O65: 621 East Sixth Street | P65: 621 East Sixth St. | Q65: Holtville | R65: 92250-1450 | S65: CA | T65: (760) 356-2974 | V65: www.holtville.k12.ca.us | AB65: 54 | AC65: Unified School District | AL65: 32.6803000 | AM65: -115.37058 | AN65: Celso | AO65: Ruiz | AP65: celso@holtville.k12.ca.us | AW65: 7/2/2013
A66: =IF(VLOOKUP(B66,DataLINK_EXPORT_May_5_2014!$A$5:$A$11469,1,FALSE)=B66,"Yes","No") -> Yes | B66: 13631640000000 | C66: 13631640000000 | D66: 0618210 | F66: Active | G66: Imperial | H66: Imperial Unified | J66: 219 North E Street | K66: 219 North E St. | L66: Imperial | M66: 92251 | N66: CA | O66: 219 North E Street | P66: 219 North E St. | Q66: Imperial | R66: 92251 | S66: CA | T66: (760) 355-3200 | V66: http://iusd.imperial.k12.ca.us | AB66: 54 | AC66: Unified School District | AL66: 32.7158299 | AM66: -115.57196 | AN66: Lisa | AO66: Tabarez | AP66: ltabarez@imperialusd.org | AW66: 7/2/2013
A67: =IF(VLOOKUP(B67,DataLINK_EXPORT_May_5_2014!$A$5:$A$11469,1,FALSE)=B67,"Yes","No") -> Yes | B67: =VALUE(C67) -> 13631720000000 | C67: 13631720000000 | D67: 0623460 | F67: Active | G67: Imperial | H67: Magnolia Union Elementary | J67: 4502 Casey Road | K67: 4502 Casey Rd. | L67: Brawley | M67: 92227-9561 | N67: CA | O67: 4502 Casey Road | P67: 4502 Casey Rd. | Q67: Brawley | R67: 92227-9561 | S67: CA | T67: (760) 344-2494 | V67: www.magnoliatigers.com | AB67: 52 | AC67: Elementary School District | AL67: 32.8687100 | AM67: -115.42081 | AN67: Blaine | AO67: Smith | AP67: brsmith@ivnet.org | AW67: 7/2/2013
A68: =IF(VLOOKUP(B68,DataLINK_EXPORT_May_5_2014!$A$5:$A$11469,1,FALSE)=B68,"Yes","No") -> Yes | B68: 13631800000000 | C68: 13631800000000 | D68: 0624180 | F68: Active | G68: Imperial | H68: McCabe Union Elementary | J68: 701 West McCabe Road | K68: 701 West McCabe Rd. | L68: El Centro | M68: 92243-9507 | N68: CA | O68: 701 West McCabe Road | P68: 701 West McCabe Rd. | Q68: El Centro | R68: 92243-9507 | S68: CA | T68: (760) 335-5200 | V68: www.mccabeschool.net | AB68: 52 | AC68: Elementary School District | AL68: 32.6197599 | AM68: -115.58707 | AN68: Amanda | AO68: Brooke | AP68: abrooke@ivnet.org | AW68: 7/2/2013
A69: =IF(VLOOKUP(B69,DataLINK_EXPORT_May_5_2014!$A$5:$A$11469,1,FALSE)=B69,"Yes","No") -> Yes | B69: 13631980000000 | C69: 13631980000000 | D69: 0624390 | F69: Active | G69: Imperial | H69: Meadows Union Elementary | J69: 2059 Bowker Road | K69: 2059 Bowker Rd. | L69: El Centro | M69: 92243-9724 | N69: CA | O69: 2059 Bowker Road | P69: 2059 Bowker Rd. | Q69: El Centro | R69: 92243-9724 | S69: CA | T69: (760) 352-7512 | V69: www.meadows.k12.ca.us | AB69: 52 | AC69: Elementary School District | AL69: 32.6646900 | AM69: -115.47068 | AN69: Sharon | AO69: Theis | AP69: stheis@ivnet.org | AW69: 7/2/2013
A70: =IF(VLOOKUP(B70,DataLINK_EXPORT_May_5_2014!$A$5:$A$11469,1,FALSE)=B70,"Yes","No") -> Yes | B70: 13632060000000 | C70: 13632060000000 | D70: 0626430 | F70: Active | G70: Imperial | H70: Mulberry Elementary | J70: 1391 East Rutherford Road | K70: 1391 East Rutherford Rd. | L70: Brawley | M70: 92227-9578 | N70: CA | O70: 1391 East Rutherford Road | P70: 1391 East Rutherford Rd. | Q70: Brawley | R70: 92227-9578 | S70: CA | T70: (760) 344-8600 | AB70: 52 | AC70: Elementary School District | AL70: 32.9113300 | AM70: -115.41963 | AN70: Danny | AO70: Eddins | AP70: dfeddins@ivnet.org | AW70: 7/2/2013
A71: =IF(VLOOKUP(B71,DataLINK_EXPORT_May_5_2014!$A$5:$A$11469,1,FALSE)=B71,"Yes","No") -> Yes | B71: 13632220000000 | C71: 13632220000000 | D71: 0636210 | F71: Active | G71: Imperial | H71: Seeley Union Elementary | J71: 1812 West Rio Vista Street | K71: 1812 West Rio Vista St. | L71: Seeley | M71: 92273-0868 | N71: CA | O71: PO Box 868 | P71: PO Box 868 | Q71: Seeley | R71: 92273-0868 | S71: CA | T71: (760) 352-3571 | V71: www.seeley.k12.ca.us | AB71: 52 | AC71: Elementary School District | AL71: 32.6560399 | AM71: -115.68169 | AN71: Ruben | AO71: Castro | AP71: rcastro@seeley.k12.ca.us | AW71: 7/2/2013
A72: =IF(VLOOKUP(B72,DataLINK_EXPORT_May_5_2014!$A$5:$A$11469,1,FALSE)=B72,"Yes","No") -> Yes | B72: 13632300000000 | C72: 13632300000000 | D72: 0642180 | F72: Active | G72: Imperial | H72: Westmorland Union Elementary | J72: 200 South C Street | K72: 200 South C St. | L72: Westmorland | M72: 92281-0088 | N72: CA | O72: PO Box 88 | P72: PO Box 88 | Q72: Westmorland | R72: 92281-0088 | S72: CA | T72: (760) 344-4364 | V72: www.wued.org | AB72: 52 | AC72: Elementary School District | AL72: 32.9054799 | AM72: -115.61584 | AN72: Nancy | AO72: Johnson | AP72: n.johnson@wued.org | AW72: 9/3/2013
A73: =IF(VLOOKUP(B73,DataLINK_EXPORT_May_5_2014!$A$5:$A$11469,1,FALSE)=B73,"Yes","No") -> Yes | B73: 13744010000000 | C73: 13744010000000 | D73: 0600101 | F73: Active | G73: Imperial | H73: Imperial Valley ROP | J73: 687 State Street | K73: 687 State St. | L73: El Centro | M73: 92243 | N73: CA | O73: 687 State Street | P73: 687 State St. | Q73: El Centro | R73: 92243 | S73: CA | T73: (760) 482-2600 | AB73: 98 | AC73: Regional Occupation Center/Program (ROC/P) | AN73: Edwin | AO73: Obergfell | AP73: eobergfell@ivrop.org | AW73: 7/22/2013
A74: =IF(VLOOKUP(B74,DataLINK_EXPORT_May_5_2014!$A$5:$A$11469,1,FALSE)=B74,"Yes","No") -> Yes | B74: 14101400000000 | C74: 14101400000000 | D74: 0691011 | F74: Active | G74: Inyo | H74: Inyo County Office of Education | J74: 555 South Clay Street | K74: 555 South Clay St. | L74: Independence | M74: 93526-0607 | N74: CA | O74: 555 South Clay Street PO Drawer G | P74: 555 South Clay St. PO Drawer G | Q74: Independence | R74: 93526-0607 | S74: CA | T74: (760) 878-2426 | V74: www.inyo.k12.ca.us | AB74: 00 | AC74: County Office of Education (COE) | AL74: 36.7381400 | AM74: -117.91224 | AN74: Terence | AO74: McAteer | AP74: terry_mcateer@inyo.k12.ca.us | AW74: 7/2/2013
A75: =IF(VLOOKUP(B75,DataLINK_EXPORT_May_5_2014!$A$5:$A$11469,1,FALSE)=B75,"Yes","No") -> Yes | B75: 14632480000000 | C75: 14632480000000 | D75: 0604950 | F75: Active | G75: Inyo | H75: Big Pine Unified | J75: 500 South Main Street | K75: 500 South Main St. | L75: Big Pine | M75: 93513-0908 | N75: CA | O75: PO Box 908 | P75: PO Box 908 | Q75: Big Pine | R75: 93513 | S75: CA | T75: (760) 938-2005 | U75: 235 | V75: http://bp.k12.ca.us | AB75: 54 | AC75: Unified School District | AL75: 37.1257499 | AM75: -117.94195 | AN75: Pamela | AO75: Jones | AP75: pamela_jones@inyo.k12.ca.us | AW75: 7/2/2013
A76: =IF(VLOOKUP(B76,DataLINK_EXPORT_May_5_2014!$A$5:$A$11469,1,FALSE)=B76,"Yes","No") -> Yes | B76: 14632710000000 | C76: 14632710000000 | D76: 0610680 | F76: Active | G76: Inyo | H76: Death Valley Unified | J76: Old State Highway 127 | K76: Old State Highway 127 | L76: Shoshone | M76: 92384-0217 | N76: CA | O76: PO Box 217 | P76: PO Box 217 | Q76: Shoshone | R76: 92384-0217 | S76: CA | T76: (760) 852-4303 | AB76: 54 | AC76: Unified School District | AL76: 36.0470699 | AM76: -116.41126 | AN76: Jim | AO76: Copeland | AP76: jim_copeland@inyo.k12.ca.us | AW76: 7/2/2013
A77: =IF(VLOOKUP(B77,DataLINK_EXPORT_May_5_2014!$A$5:$A$11469,1,FALSE)=B77,"Yes","No") -> Yes | B77: 14632890000000 | C77: 14632890000000 | D77: 0622440 | F77: Active | G77: Inyo | H77: Lone Pine Unified | J77: 301 South Hay Street | K77: 301 South Hay St. | L77: Lone Pine | M77: 93545-0159 | N77: CA | O77: PO Box 159 | P77: PO Box 159 | Q77: Lone Pine | R77: 93545-0159 | S77: CA | T77: (760) 876-5579 | V77: www.lpusd.k12.ca.us | AB77: 54 | AC77: Unified School District | AL77: 36.4617999 | AM77: -118.05821 | AN77: Victor | AO77: Hopper | AP77: vhopper@lpusd.k12.ca.us | AW77: 7/2/2013
A78: =IF(VLOOKUP(B78,DataLINK_EXPORT_May_5_2014!$A$5:$A$11469,1,FALSE)=B78,"Yes","No") -> Yes | B78: 14632970000000 | C78: 14632970000000 | D78: 0629190 | F78: Active | G78: Inyo | H78: Owens Valley Unified | J78: 202 South Clay Street | K78: 202 South Clay St. | L78: Independence | M78: 93526-0605 | N78: CA | O78: PO Drawer E | P78: PO Drawer E | Q78: Independence | R78: 93526-0605 | S78: CA | T78: (760) 878-2405 | V78: www.ovusd.org | AB78: 54 | AC78: Unified School District | AL78: 36.7381400 | AM78: -117.91224 | AN78: Joel | AO78: Hampton | AP78: jhampton@ovusd.k12.ca.us | AW78: 7/2/2013
A79: =IF(VLOOKUP(B79,DataLINK_EXPORT_May_5_2014!$A$5:$A$11469,1,FALSE)=B79,"Yes","No") -> Yes | B79: 14633050000000 | C79: 14633050000000 | D79: 0633690 | F79: Active | G79: Inyo | H79: Round Valley Joint Elementary | J79: 300 North Round Valley Road | K79: 300 North Round Valley Rd. | L79: Bishop | M79: 93514-9632 | N79: CA | O79: 300 North Round Valley Road | P79: 300 North Round Valley Rd. | Q79: Bishop | R79: 93514-9632 | S79: CA | T79: (760) 387-2525 | V79: http://rvjesd-ca.schoolloop.com/ | AB79: 52 | AC79: Elementary School District | AL79: 37.3063900 | AM79: -118.36712 | AN79: Daniel | AO79: Moore | AP79: dmoore@rv.k12.ca.us | AW79: 7/2/2013
A80: =IF(VLOOKUP(B80,DataLINK_EXPORT_May_5_2014!$A$5:$A$11469,1,FALSE)=B80,"Yes","No") ->  | B80: 14740700000000 | C80: 14740700000000 | D80: 0600102 | F80: Active | G80: Inyo | H80: Inyo County ROP | J80: 166 Grandview Drive | K80: 166 Grandview Dr. | L80: Bishop | M80: 93514-2984 | N80: CA | O80: 166 Grandview Drive | P80: 166 Grandview Dr. | Q80: Bishop | R80: 93514-2984 | S80: CA | T80: (760) 873-3262 | U80: 411 | V80: www.inyo.k12.ca.us | AB80: 98 | AC80: Regional Occupation Center/Program (ROC/P) | AN80: Sophie | AO80: Kenn | AP80: sophie_kenn@inyo.k12.ca.us | AW80: 5/18/2011
A81: =IF(VLOOKUP(B81,DataLINK_EXPORT_May_5_2014!$A$5:$A$11469,1,FALSE)=B81,"Yes","No") -> Yes | B81: 15101570000000 | C81: 15101570000000 | D81: 0691012 | F81: Active | G81: Kern | H81: Kern County Office of Education | J81: 1300 17th Street, City Centre | K81: 1300 17th St., City Centre | L81: Bakersfield | M81: 93301-4533 | N81: CA | O81: 1300 17th Street, City Centre | P81: 1300 17th St., City Centre | Q81: Bakersfield | R81: 93301-4533 | S81: CA | T81: (661) 636-4621 | V81: www.kern.org | AB81: 00 | AC81: County Office of Education (COE) | AL81: 35.2357099 | AM81: -119.01495 | AN81: Christine | AO81: Frazier | AP81: chfrazier@kern.org | AW81: 9/3/2013
A82: =IF(VLOOKUP(B82,DataLINK_EXPORT_May_5_2014!$A$5:$A$11469,1,FALSE)=B82,"Yes","No") -> Yes | B82: 15633130000000 | C82: 15633130000000 | D82: 0603270 | F82: Active | G82: Kern | H82: Arvin Union | J82: 737 Bear Mountain Boulevard | K82: 737 Bear Mountain Blvd. | L82: Arvin | M82: 93203-1413 | N82: CA | O82: 737 Bear Mountain Boulevard | P82: 737 Bear Mountain Blvd. | Q82: Arvin | R82: 93203-1413 | S82: CA | T82: (661) 854-6500 | V82: www.arvinschools.com | AB82: 52 | AC82: Elementary School District | AL82: 35.0709900 | AM82: -118.85655 | AN82: Michelle | AO82: McLean | AP82: mmclean@arvin-do.com | AW82: 7/2/2013
A83: =IF(VLOOKUP(B83,DataLINK_EXPORT_May_5_2014!$A$5:$A$11469,1,FALSE)=B83,"Yes","No") -> Yes | B83: 15633210000000 | C83: 15633210000000 | D83: 0603630 | F83: Active | G83: Kern | H83: Bakersfield City | J83: 1300 Baker Street | K83: 1300 Baker St. | L83: Bakersfield | M83: 93305-4326 | N83: CA | O83: 1300 Baker Street | P83: 1300 Baker St. | Q83: Bakersfield | R83: 93305-4326 | S83: CA | T83: (661) 631-4610 | V83: www.bcsd.com | AB83: 52 | AC83: Elementary School District | AL83: 35.2435499 | AM83: -118.98941 | AN83: Robert | AO83: Arias | AP83: ariasr@bcsd.com | AW83: 7/2/2013
A84: =IF(VLOOKUP(B84,DataLINK_EXPORT_May_5_2014!$A$5:$A$11469,1,FALSE)=B84,"Yes","No") -> Yes | B84: 15633390000000 | C84: 15633390000000 | D84: 0604260 | F84: Active | G84: Kern | H84: Beardsley Elementary | J84: 1001 Roberts Lane | K84: 1001 Roberts Ln. | L84: Bakersfield | M84: 93308-4503 | N84: CA | O84: 1001 Roberts Lane | P84: 1001 Roberts Ln. | Q84: Bakersfield | R84: 93308-4503 | S84: CA | T84: (661) 393-8550 | V84: www.beardsleyschool.org | AB84: 52 | AC84: Elementary School District | AL84: 35.2698699 | AM84: -119.03906 | AN84: Paul | AO84: Miller | AP84: pamiller@beardsley.k12.ca.us | AW84: 7/2/2013
A85: =IF(VLOOKUP(B85,DataLINK_EXPORT_May_5_2014!$A$5:$A$11469,1,FALSE)=B85,"Yes","No") -> Yes | B85: 15633470000000 | C85: 15633470000000 | D85: 0604560 | F85: Active | G85: Kern | H85: Belridge Elementary | J85: 19447 Wagon Wheel Road | K85: 19447 Wagon Wheel Rd. | L85: McKittrick | M85: 93251-9715 | N85: CA | O85: 19447 Wagon Wheel Road | P85: 19447 Wagon Wheel Rd. | Q85: McKittrick | R85: 93251-9715 | S85: CA | T85: (661) 762-7381 | V85: http://kcsos.kern.org/belridge | AB85: 52 | AC85: Elementary School District | AL85: 35.2276400 | AM85: -119.61794 | AN85: Tammy | AO85: Reynolds | AP85: tareyno@zeus.kern.org | AW85: 7/2/2013
A86: =IF(VLOOKUP(B86,DataLINK_EXPORT_May_5_2014!$A$5:$A$11469,1,FALSE)=B86,"Yes","No") -> Yes | B86: 15633540000000 | C86: 15633540000000 | D86: 0605250 | F86: Active | G86: Kern | H86: Blake Elementary | J86: 19165 Main Street | K86: 19165 Main St. | L86: Woody | M86: 93287-0040 | N86: CA | O86: 1300 17th Street, 6th Floor | P86: 1300 17th St., 6th Fl. | Q86: Bakersfield | R86: 93301 | S86: CA | T86: (661) 536-8559 | V86: http://kcsos.kern.org/blakesd | AB86: 52 | AC86: Elementary School District | AL86: 35.5651400 | AM86: -118.83483 | AN86: Gary | AO86: Bray | AP86: gabray@kern.org | AW86: 7/2/2013
A87: =IF(VLOOKUP(B87,DataLINK_EXPORT_May_5_2014!$A$5:$A$11469,1,FALSE)=B87,"Yes","No") -> Yes | B87: 15633620000000 | C87: 15633620000000 | D87: 0606390 | F87: Active | G87: Kern | H87: Panama-Buena Vista Union | J87: 4200 Ashe Road | K87: 4200 Ashe Rd. | L87: Bakersfield | M87: 93313-2029 | N87: CA | O87: 4200 Ashe Road | P87: 4200 Ashe Rd. | Q87: Bakersfield | R87: 93313-2029 | S87: CA | T87: (661) 831-8331 | U87: 6104 | V87: www.pbvusd.net | AB87: 52 | AC87: Elementary School District | AL87: 35.1769400 | AM87: -119.07356 | AN87: Kevin | AO87: Silbergerg | AP87: ksilberberg@pbvusd.net | AW87: 8/27/2013
A88: =IF(VLOOKUP(B88,DataLINK_EXPORT_May_5_2014!$A$5:$A$11469,1,FALSE)=B88,"Yes","No") -> Yes | B88: 15633700000000 | C88: 15633700000000 | D88: 0606720 | F88: Active | G88: Kern | H88: Buttonwillow Union Elementary | J88: 42600 Highway 58 | K88: 42600 Highway 58 | L88: Buttonwillow | M88: 93206-9700 | N88: CA | O88: 42600 Highway 58 | P88: 42600 Highway 58 | Q88: Buttonwillow | R88: 93206-9700 | S88: CA | T88: (661) 764-5166 | V88: www.buttonwillow.k12.ca.us | AB88: 52 | AC88: Elementary School District | AL88: 35.2651699 | AM88: -119.48453 | AN88: Stuart | AO88: Packard | AP88: spackard@buttonwillowschool.com | AW88: 7/2/2013
A89: =IF(VLOOKUP(B89,DataLINK_EXPORT_May_5_2014!$A$5:$A$11469,1,FALSE)=B89,"Yes","No") -> Yes | B89: 15633880000000 | C89: 15633880000000 | D89: 0606960 | F89: Active | G89: Kern | H89: Caliente Union Elementary | J89: 12400 Caliente Creek Road | K89: 12400 Caliente Creek Rd. | L89: Caliente | M89: 93518-2851 | N89: CA | O89: 12400 Caliente Creek Road | P89: 12400 Caliente Creek Rd. | Q89: Caliente | R89: 93518-2851 | S89: CA | T89: (661) 867-2301 | V89: www.calienteschooldistrict.org | AB89: 52 | AC89: Elementary School District | AL89: 35.1793400 | AM89: -118.53829 | AN89: Kathleen | AO89: Hansen | AP89: khansen@calienteschooldistrict.org | AW89: 7/2/2013
A90: =IF(VLOOKUP(B90,DataLINK_EXPORT_May_5_2014!$A$5:$A$11469,1,FALSE)=B90,"Yes","No") -> Yes | B90: 15634040000000 | C90: 15634040000000 | D90: 0610890 | F90: Active | G90: Kern | H90: Delano Union Elementary | J90: 1405 12th Avenue | K90: 1405 12th Ave. | L90: Delano | M90: 93215-2416 | N90: CA | O90: 1405 12th Avenue | P90: 1405 12th Ave. | Q90: Delano | R90: 93215-2416 | S90: CA | T90: (661) 721-5000 | V90: www.duesd.org | AB90: 52 | AC90: Elementary School District | AL90: 35.6336099 | AM90: -119.23595 | AN90: Robert | AO90: Aguilar | AP90: raguilar2@duesd.org | AW90: 7/2/2013
